Workbook

Sheet INDEX
D2: HAC Y EC - Herramienta simplificada
D3: Circular Berrindartzea 21
D4: v4
B6: HOJA
B8: ORGANIZACIÓN | D8: Información general de la organización a evaluar. | J8: METODOLOGÍA
J9: Base de datos (BBDD) de Inventario de Ciclo de Vida (ICV) adaptados
B10: ASPECTOS | D10: Recopilación de los aspectos entrada/salida en el ciclo de vida del proyecto. | J10: Metodología evaluación impactos -- ILCD 2011+, IPCC 2013 y ReCiPe 2008 H/A
J11: Modelo de asignación de cargas ambientales Cut-off (allocation recycled)
B12: CATEGORÍAS | D12: Sumatorio de resultados por categoría de impacto. Permite seleccionar por alcance.
B14: ALCANCES | D14: Representación de los resultados según los alcances de la organización. | J14: ASPECTOS AMBIENTALES
J15: M | K15: Materiales
B16: FAMILIAS | D16: Representación de los resultados según los grupos de aspectos ambientales definidos. | J16: P | K16: Procesos
J17: En | K17: Energía
B18: SUBFAMILIAS | D18: Representación de los resultados según los sub-grupos de aspectos ambientales. | J18: Em | K18: Emisiones
J19: FdV | K19: Fin de vida
B20: EC | D20: Sumatorio de resultados en aspectos de economía circular | J20: Tr | K20: Transportes
B22: CÁLCULOS INTERNOS | D22: Cálculos específicos internos de la organización / usuario
J23: ALCANCES
J24: AIOb | K24: Alcance Indirecto Obligatorio | L24: Ocurren anteriormente a la propia actividad de la empresa, a lo largo de las cadenas de suministro.
J25: AIE | K25: Alcance Indirecto Energía [Obligatorio] | L25: Actividades relativas a la generación de la electricidad, vapor o calor consumidos por la empresa
J26: AD | K26: Alcance Directo [Obligatorio] | L26: El uso de recursos y emisiones asociados a estas actividades se producen en fuentes que pertenecen o están controladas por la empresa (como calderas, vehículos comerciales, proceso productivo, etc.), es decir, dentro de los límites organizativos
J27: AIOp | K27: Alcance Indirecto Opcional | L27: Ocurren posteriormente a las actividades de la empresa a lo largo de las cadenas de suministro. Básicamente será las actividades ligadas a la distribución, uso, mantenimiento y fin de vida de la cartera de productos de la empresa

Sheet ORGANIZACIÓN
D2: =INDEX!D2 -> HAC Y EC - Herramienta simplificada
D3: =INDEX!D3 -> Circular Berrindartzea 21
D4: =INDEX!D4 -> v4
B7: Organización | D7: SHUTON. GRUPO NADELLA.
B9: Descripción
B11: Alcance del estudio | D11: Europa
B13: Método de consolidación | D13: Enfoque de control
B15: Intervalo de notificación | D15: Anual | J15: =IF(COUNTBLANK(D15)=1,UPPER(B15),IF(D15="Anual","AÑO",IF(D15="Semestral","6 MESES",UPPER(D15)))) -> AÑO
B17: =CONCATENATE("Facturación ",D15) -> Facturación Anual
B19: Más información en la GUÍA METODOLÓGICA PARA LA APLICACIÓN DE LA HUELLA AMBIENTAL CORPORATIVA, IHOBE, 2021.

Sheet ASPECTOS
D2: =INDEX!D2 -> HAC Y EC - Herramienta simplificada
D3: =INDEX!D3 -> Circular Berrindartzea 21
D4: =INDEX!D4 -> v4
C6: ALCANCE INDIRECTO OBLIGATORIO | H6: --> COMPLETAR PARA EL ANÁLISIS DE CIRCULARIDAD | V6: A | W6: B | X6: R | Z6: A (t) | AA6: B (t) | AB6: R (t) | AE6: C (t) | AF6: D (t) | AG6: E (t) | AH6: F (t) | AI6: (t) | AJ6: (t) | AK6: (GJ) | AL6: (GJ)
C7: FAMILIA | D7: SUBFAMILIA | E7: ASPECTO | F7: MAGNITUD | G7: UNIDAD | H7: % MATERIAL SECUNDARIO | I7: % MATERIAL RENOVABLE | J7: % ENERGÍA RENOVABLE | K7: El agua que se vierte tiene una calidad adecuada (SÍ/NO) | L7: % VALORIZACIÓN MATERIAL INTERNA | M7: % VALORIZACIÓN MATERIAL EXTERNA | N7: % ELIMINACIÓN | O7: % VALORIZACIÓN ENERGÉTICA | P7: % INCINERACIÓN SIN VALORIZACIÓN ENERGÉTICA | Q7: OBSERVACIÓN | V7: (Entrada materia prima primaria) | W7: (Entrada materia prima secundaria) | X7: (Entrada material renovable) | Z7: (Entrada materia prima primaria) | AA7: (Entrada materia prima secundaria) | AB7: (Entrada material renovable) | AC7: Salida de agua circular m3 | AD7: Salida de agua lineal m3 | AE7: (Valorización material interna) | AF7: (Valorización material externa) | AG7: (Eliminación) | AH7: (Valorización energética) | AI7: Incineración sin valorización energética | AJ7: DATO DE ACTIVIDAD UNIDADES MATERIAL | AK7: DATO DE ACTIVIDAD UNIDADES ENERGÍA | AL7: Energia renovable
A8: =Etapa_Fabricación -> ALCANCE INDIRECTO OBLIGATORIO | C8: Materiales | D8: Metal | E8: Acero reciclado | F8: 671630 | G8: =IF(E8="","",VLOOKUP(E8,INDICADORES!$F$10:$G$500,2,FALSE)) -> kg | H8: 0.05 | Q8: Materia prima | V8: =_xlfn.IFNA(IF(OR(VLOOKUP($E8,INDICADORES!$F$10:$AH$235,28,FALSE)="M")=TRUE,1-$H8-$I8,""),"") ->  | W8: =_xlfn.IFNA(IF(OR(VLOOKUP($E8,INDICADORES!$F$10:$AH$235,28,FALSE)="M")=TRUE,$H8,""),"") ->  | X8: =_xlfn.IFNA(IF(OR(VLOOKUP($E8,INDICADORES!$F$10:$AH$235,28,FALSE)="M")=TRUE,$I8,""),"") ->  | Z8: =IFERROR(VLOOKUP($E8,INDICADORES!$F$10:$AH$235,29,FALSE)*V8*$F8,"") ->  | AA8: =IFERROR(VLOOKUP($E8,INDICADORES!$F$10:$AH$235,29,FALSE)*W8*$F8,"") ->  | AB8: =IFERROR(VLOOKUP($E8,INDICADORES!$F$10:$AH$235,29,FALSE)*X8*$F8,"") ->  | AC8: =IF($D8="Agua",IF($K8="SÍ",IF($E8="Agua no corriente",$F8,$F8/1000),0),0) -> 0 | AD8: =IF($D8="Agua",IF($K8="NO",IF($E8="Agua no corriente",$F8,$F8/1000),0),0) -> 0 | AE8: =_xlfn.IFNA(IF(VLOOKUP($E8,INDICADORES!$F$10:$AH$235,28,FALSE)="R",VLOOKUP($E8,INDICADORES!$F$10:$AH$235,29,FALSE)*L8*$F8,""),"") ->  | AF8: =_xlfn.IFNA(IF(VLOOKUP($E8,INDICADORES!$F$10:$AH$235,28,FALSE)="R",VLOOKUP($E8,INDICADORES!$F$10:$AH$235,29,FALSE)*M8*$F8,""),"") ->  | AG8: =_xlfn.IFNA(IF(VLOOKUP($E8,INDICADORES!$F$10:$AH$235,28,FALSE)="R",VLOOKUP($E8,INDICADORES!$F$10:$AH$235,29,FALSE)*N8*$F8,""),"") ->  | AH8: =_xlfn.IFNA(IF(VLOOKUP($E8,INDICADORES!$F$10:$AH$235,28,FALSE)="R",VLOOKUP($E8,INDICADORES!$F$10:$AH$235,29,FALSE)*O8*$F8,""),"") ->  | AI8: =_xlfn.IFNA(IF(VLOOKUP($E8,INDICADORES!$F$10:$AH$235,28,FALSE)="R",VLOOKUP($E8,INDICADORES!$F$10:$AH$235,29,FALSE)*P8*$F8,""),"") ->  | AJ8: =IFERROR( IF(OR(VLOOKUP($E8,INDICADORES!$F$10:$AH$235,28,FALSE)="R",VLOOKUP($E8,INDICADORES!$F$10:$AH$235,28,FALSE)="M")=TRUE,VLOOKUP($E8,INDICADORES!$F$10:$AH$235,29,FALSE)*$F8,""),"") -> 671.63
A9: ALCANCE INDIRECTO OBLIGATORIO | C9: Transportes | D9: Terrestre | E9: Transporte de carga en camión pesado | F9: 862080 | G9: =IF(E9="","",VLOOKUP(E9,INDICADORES!$F$10:$G$500,2,FALSE)) -> tonnes*km | Q9: Materias primas | V9: =_xlfn.IFNA(IF(OR(VLOOKUP($E9,INDICADORES!$F$10:$AH$235,28,FALSE)="M")=TRUE,1-$H9-$I9,""),"") ->  | W9: =_xlfn.IFNA(IF(OR(VLOOKUP($E9,INDICADORES!$F$10:$AH$235,28,FALSE)="M")=TRUE,$H9,""),"") ->  | X9: =_xlfn.IFNA(IF(OR(VLOOKUP($E9,INDICADORES!$F$10:$AH$235,28,FALSE)="M")=TRUE,$I9,""),"") ->  | Z9: =IFERROR(VLOOKUP($E9,INDICADORES!$F$10:$AH$235,29,FALSE)*V9*$F9,"") ->  | AA9: =IFERROR(VLOOKUP($E9,INDICADORES!$F$10:$AH$235,29,FALSE)*W9*$F9,"") ->  | AB9: =IFERROR(VLOOKUP($E9,INDICADORES!$F$10:$AH$235,29,FALSE)*X9*$F9,"") ->  | AC9: 0 | AD9: 0 | AE9: =_xlfn.IFNA(IF(VLOOKUP($E9,INDICADORES!$F$10:$AH$235,28,FALSE)="R",VLOOKUP($E9,INDICADORES!$F$10:$AH$235,29,FALSE)*L9*$F9,""),"") ->  | AF9: =_xlfn.IFNA(IF(VLOOKUP($E9,INDICADORES!$F$10:$AH$235,28,FALSE)="R",VLOOKUP($E9,INDICADORES!$F$10:$AH$235,29,FALSE)*M9*$F9,""),"") ->  | AG9: =_xlfn.IFNA(IF(VLOOKUP($E9,INDICADORES!$F$10:$AH$235,28,FALSE)="R",VLOOKUP($E9,INDICADORES!$F$10:$AH$235,29,FALSE)*N9*$F9,""),"") ->  | AH9: =_xlfn.IFNA(IF(VLOOKUP($E9,INDICADORES!$F$10:$AH$235,28,FALSE)="R",VLOOKUP($E9,INDICADORES!$F$10:$AH$235,29,FALSE)*O9*$F9,""),"") ->  | AI9: =_xlfn.IFNA(IF(VLOOKUP($E9,INDICADORES!$F$10:$AH$235,28,FALSE)="R",VLOOKUP($E9,INDICADORES!$F$10:$AH$235,29,FALSE)*P9*$F9,""),"") ->  | AJ9: =IFERROR( IF(OR(VLOOKUP($E9,INDICADORES!$F$10:$AH$235,28,FALSE)="R",VLOOKUP($E9,INDICADORES!$F$10:$AH$235,28,FALSE)="M")=TRUE,VLOOKUP($E9,INDICADORES!$F$10:$AH$235,29,FALSE)*$F9,""),"") -> 
A10: ALCANCE INDIRECTO OBLIGATORIO | C10: Fin_de_Vida | D10: Gestión_finalista | E10: Gestión de residuo de cartón (gestión finalista) | F10: 9340 | G10: =IF(E10="","",VLOOKUP(E10,INDICADORES!$F$10:$G$500,2,FALSE)) -> kg | O10: 1 | Q10: Embalajaes de materias primas | V10: =_xlfn.IFNA(IF(OR(VLOOKUP($E10,INDICADORES!$F$10:$AH$235,28,FALSE)="M")=TRUE,1-$H10-$I10,""),"") ->  | W10: =_xlfn.IFNA(IF(OR(VLOOKUP($E10,INDICADORES!$F$10:$AH$235,28,FALSE)="M")=TRUE,$H10,""),"") ->  | X10: =_xlfn.IFNA(IF(OR(VLOOKUP($E10,INDICADORES!$F$10:$AH$235,28,FALSE)="M")=TRUE,$I10,""),"") ->  | Z10: =IFERROR(VLOOKUP($E10,INDICADORES!$F$10:$AH$235,29,FALSE)*V10*$F10,"") ->  | AA10: =IFERROR(VLOOKUP($E10,INDICADORES!$F$10:$AH$235,29,FALSE)*W10*$F10,"") ->  | AB10: =IFERROR(VLOOKUP($E10,INDICADORES!$F$10:$AH$235,29,FALSE)*X10*$F10,"") ->  | AC10: 0 | AD10: 0 | AE10: =_xlfn.IFNA(IF(VLOOKUP($E10,INDICADORES!$F$10:$AH$235,28,FALSE)="R",VLOOKUP($E10,INDICADORES!$F$10:$AH$235,29,FALSE)*L10*$F10,""),"") ->  | AF10: =_xlfn.IFNA(IF(VLOOKUP($E10,INDICADORES!$F$10:$AH$235,28,FALSE)="R",VLOOKUP($E10,INDICADORES!$F$10:$AH$235,29,FALSE)*M10*$F10,""),"") ->  | AG10: =_xlfn.IFNA(IF(VLOOKUP($E10,INDICADORES!$F$10:$AH$235,28,FALSE)="R",VLOOKUP($E10,INDICADORES!$F$10:$AH$235,29,FALSE)*N10*$F10,""),"") ->  | AH10: =_xlfn.IFNA(IF(VLOOKUP($E10,INDICADORES!$F$10:$AH$235,28,FALSE)="R",VLOOKUP($E10,INDICADORES!$F$10:$AH$235,29,FALSE)*O10*$F10,""),"") ->  | AI10: =_xlfn.IFNA(IF(VLOOKUP($E10,INDICADORES!$F$10:$AH$235,28,FALSE)="R",VLOOKUP($E10,INDICADORES!$F$10:$AH$235,29,FALSE)*P10*$F10,""),"") ->  | AJ10: =IFERROR( IF(OR(VLOOKUP($E10,INDICADORES!$F$10:$AH$235,28,FALSE)="R",VLOOKUP($E10,INDICADORES!$F$10:$AH$235,28,FALSE)="M")=TRUE,VLOOKUP($E10,INDICADORES!$F$10:$AH$235,29,FALSE)*$F10,""),"") -> 9.34
A11: ALCANCE INDIRECTO OBLIGATORIO | C11: Fin_de_Vida | D11: Gestión_finalista | E11: Gestión de residuo de madera (gestión finalista) | F11: 3580 | G11: =IF(E11="","",VLOOKUP(E11,INDICADORES!$F$10:$G$500,2,FALSE)) -> kg | O11: 1 | Q11: Embalajaes de materias primas | V11: =_xlfn.IFNA(IF(OR(VLOOKUP($E11,INDICADORES!$F$10:$AH$235,28,FALSE)="M")=TRUE,1-$H11-$I11,""),"") ->  | W11: =_xlfn.IFNA(IF(OR(VLOOKUP($E11,INDICADORES!$F$10:$AH$235,28,FALSE)="M")=TRUE,$H11,""),"") ->  | X11: =_xlfn.IFNA(IF(OR(VLOOKUP($E11,INDICADORES!$F$10:$AH$235,28,FALSE)="M")=TRUE,$I11,""),"") ->  | Z11: =IFERROR(VLOOKUP($E11,INDICADORES!$F$10:$AH$235,29,FALSE)*V11*$F11,"") ->  | AA11: =IFERROR(VLOOKUP($E11,INDICADORES!$F$10:$AH$235,29,FALSE)*W11*$F11,"") ->  | AB11: =IFERROR(VLOOKUP($E11,INDICADORES!$F$10:$AH$235,29,FALSE)*X11*$F11,"") ->  | AC11: 0 | AD11: 0 | AE11: =_xlfn.IFNA(IF(VLOOKUP($E11,INDICADORES!$F$10:$AH$235,28,FALSE)="R",VLOOKUP($E11,INDICADORES!$F$10:$AH$235,29,FALSE)*L11*$F11,""),"") ->  | AF11: =_xlfn.IFNA(IF(VLOOKUP($E11,INDICADORES!$F$10:$AH$235,28,FALSE)="R",VLOOKUP($E11,INDICADORES!$F$10:$AH$235,29,FALSE)*M11*$F11,""),"") ->  | AG11: =_xlfn.IFNA(IF(VLOOKUP($E11,INDICADORES!$F$10:$AH$235,28,FALSE)="R",VLOOKUP($E11,INDICADORES!$F$10:$AH$235,29,FALSE)*N11*$F11,""),"") ->  | AH11: =_xlfn.IFNA(IF(VLOOKUP($E11,INDICADORES!$F$10:$AH$235,28,FALSE)="R",VLOOKUP($E11,INDICADORES!$F$10:$AH$235,29,FALSE)*O11*$F11,""),"") ->  | AI11: =_xlfn.IFNA(IF(VLOOKUP($E11,INDICADORES!$F$10:$AH$235,28,FALSE)="R",VLOOKUP($E11,INDICADORES!$F$10:$AH$235,29,FALSE)*P11*$F11,""),"") ->  | AJ11: =IFERROR( IF(OR(VLOOKUP($E11,INDICADORES!$F$10:$AH$235,28,FALSE)="R",VLOOKUP($E11,INDICADORES!$F$10:$AH$235,28,FALSE)="M")=TRUE,VLOOKUP($E11,INDICADORES!$F$10:$AH$235,29,FALSE)*$F11,""),"") -> 3.58
A12: ALCANCE INDIRECTO OBLIGATORIO | C12: Fin_de_Vida | D12: Gestión_finalista | E12: Gestión de residuo de plástico (gestión finalista) | F12: 2740 | G12: =IF(E12="","",VLOOKUP(E12,INDICADORES!$F$10:$G$500,2,FALSE)) -> kg | O12: 1 | Q12: Embalajaes de materias primas | V12: =_xlfn.IFNA(IF(OR(VLOOKUP($E12,INDICADORES!$F$10:$AH$235,28,FALSE)="M")=TRUE,1-$H12-$I12,""),"") ->  | W12: =_xlfn.IFNA(IF(OR(VLOOKUP($E12,INDICADORES!$F$10:$AH$235,28,FALSE)="M")=TRUE,$H12,""),"") ->  | X12: =_xlfn.IFNA(IF(OR(VLOOKUP($E12,INDICADORES!$F$10:$AH$235,28,FALSE)="M")=TRUE,$I12,""),"") ->  | Z12: =IFERROR(VLOOKUP($E12,INDICADORES!$F$10:$AH$235,29,FALSE)*V12*$F12,"") ->  | AA12: =IFERROR(VLOOKUP($E12,INDICADORES!$F$10:$AH$235,29,FALSE)*W12*$F12,"") ->  | AB12: =IFERROR(VLOOKUP($E12,INDICADORES!$F$10:$AH$235,29,FALSE)*X12*$F12,"") ->  | AC12: 0 | AD12: 0 | AE12: =_xlfn.IFNA(IF(VLOOKUP($E12,INDICADORES!$F$10:$AH$235,28,FALSE)="R",VLOOKUP($E12,INDICADORES!$F$10:$AH$235,29,FALSE)*L12*$F12,""),"") ->  | AF12: =_xlfn.IFNA(IF(VLOOKUP($E12,INDICADORES!$F$10:$AH$235,28,FALSE)="R",VLOOKUP($E12,INDICADORES!$F$10:$AH$235,29,FALSE)*M12*$F12,""),"") ->  | AG12: =_xlfn.IFNA(IF(VLOOKUP($E12,INDICADORES!$F$10:$AH$235,28,FALSE)="R",VLOOKUP($E12,INDICADORES!$F$10:$AH$235,29,FALSE)*N12*$F12,""),"") ->  | AH12: =_xlfn.IFNA(IF(VLOOKUP($E12,INDICADORES!$F$10:$AH$235,28,FALSE)="R",VLOOKUP($E12,INDICADORES!$F$10:$AH$235,29,FALSE)*O12*$F12,""),"") ->  | AI12: =_xlfn.IFNA(IF(VLOOKUP($E12,INDICADORES!$F$10:$AH$235,28,FALSE)="R",VLOOKUP($E12,INDICADORES!$F$10:$AH$235,29,FALSE)*P12*$F12,""),"") ->  | AJ12: =IFERROR( IF(OR(VLOOKUP($E12,INDICADORES!$F$10:$AH$235,28,FALSE)="R",VLOOKUP($E12,INDICADORES!$F$10:$AH$235,28,FALSE)="M")=TRUE,VLOOKUP($E12,INDICADORES!$F$10:$AH$235,29,FALSE)*$F12,""),"") -> 2.74
A13: ALCANCE INDIRECTO OBLIGATORIO | C13: Materiales | D13: Embalajes | E13: Papel | F13: 250 | G13: =IF(E13="","",VLOOKUP(E13,INDICADORES!$F$10:$G$500,2,FALSE)) -> kg | I13: 1 | Q13: Papel embalaje | V13: =_xlfn.IFNA(IF(OR(VLOOKUP($E13,INDICADORES!$F$10:$AH$235,28,FALSE)="M")=TRUE,1-$H13-$I13,""),"") ->  | W13: =_xlfn.IFNA(IF(OR(VLOOKUP($E13,INDICADORES!$F$10:$AH$235,28,FALSE)="M")=TRUE,$H13,""),"") ->  | X13: =_xlfn.IFNA(IF(OR(VLOOKUP($E13,INDICADORES!$F$10:$AH$235,28,FALSE)="M")=TRUE,$I13,""),"") ->  | Z13: =IFERROR(VLOOKUP($E13,INDICADORES!$F$10:$AH$235,29,FALSE)*V13*$F13,"") ->  | AA13: =IFERROR(VLOOKUP($E13,INDICADORES!$F$10:$AH$235,29,FALSE)*W13*$F13,"") ->  | AB13: =IFERROR(VLOOKUP($E13,INDICADORES!$F$10:$AH$235,29,FALSE)*X13*$F13,"") ->  | AC13: 0 | AD13: 0 | AE13: =_xlfn.IFNA(IF(VLOOKUP($E13,INDICADORES!$F$10:$AH$235,28,FALSE)="R",VLOOKUP($E13,INDICADORES!$F$10:$AH$235,29,FALSE)*L13*$F13,""),"") ->  | AF13: =_xlfn.IFNA(IF(VLOOKUP($E13,INDICADORES!$F$10:$AH$235,28,FALSE)="R",VLOOKUP($E13,INDICADORES!$F$10:$AH$235,29,FALSE)*M13*$F13,""),"") ->  | AG13: =_xlfn.IFNA(IF(VLOOKUP($E13,INDICADORES!$F$10:$AH$235,28,FALSE)="R",VLOOKUP($E13,INDICADORES!$F$10:$AH$235,29,FALSE)*N13*$F13,""),"") ->  | AH13: =_xlfn.IFNA(IF(VLOOKUP($E13,INDICADORES!$F$10:$AH$235,28,FALSE)="R",VLOOKUP($E13,INDICADORES!$F$10:$AH$235,29,FALSE)*O13*$F13,""),"") ->  | AI13: =_xlfn.IFNA(IF(VLOOKUP($E13,INDICADORES!$F$10:$AH$235,28,FALSE)="R",VLOOKUP($E13,INDICADORES!$F$10:$AH$235,29,FALSE)*P13*$F13,""),"") ->  | AJ13: =IFERROR( IF(OR(VLOOKUP($E13,INDICADORES!$F$10:$AH$235,28,FALSE)="R",VLOOKUP($E13,INDICADORES!$F$10:$AH$235,28,FALSE)="M")=TRUE,VLOOKUP($E13,INDICADORES!$F$10:$AH$235,29,FALSE)*$F13,""),"") -> 0.25
A14: ALCANCE INDIRECTO OBLIGATORIO | C14: Materiales | D14: Embalajes | E14: Cartón | F14: 6660 | G14: =IF(E14="","",VLOOKUP(E14,INDICADORES!$F$10:$G$500,2,FALSE)) -> kg | I14: 1 | Q14: Embalaje | V14: =_xlfn.IFNA(IF(OR(VLOOKUP($E14,INDICADORES!$F$10:$AH$235,28,FALSE)="M")=TRUE,1-$H14-$I14,""),"") ->  | W14: =_xlfn.IFNA(IF(OR(VLOOKUP($E14,INDICADORES!$F$10:$AH$235,28,FALSE)="M")=TRUE,$H14,""),"") ->  | X14: =_xlfn.IFNA(IF(OR(VLOOKUP($E14,INDICADORES!$F$10:$AH$235,28,FALSE)="M")=TRUE,$I14,""),"") ->  | Z14: =IFERROR(VLOOKUP($E14,INDICADORES!$F$10:$AH$235,29,FALSE)*V14*$F14,"") ->  | AA14: =IFERROR(VLOOKUP($E14,INDICADORES!$F$10:$AH$235,29,FALSE)*W14*$F14,"") ->  | AB14: =IFERROR(VLOOKUP($E14,INDICADORES!$F$10:$AH$235,29,FALSE)*X14*$F14,"") ->  | AC14: 0 | AD14: 0 | AE14: =_xlfn.IFNA(IF(VLOOKUP($E14,INDICADORES!$F$10:$AH$235,28,FALSE)="R",VLOOKUP($E14,INDICADORES!$F$10:$AH$235,29,FALSE)*L14*$F14,""),"") ->  | AF14: =_xlfn.IFNA(IF(VLOOKUP($E14,INDICADORES!$F$10:$AH$235,28,FALSE)="R",VLOOKUP($E14,INDICADORES!$F$10:$AH$235,29,FALSE)*M14*$F14,""),"") ->  | AG14: =_xlfn.IFNA(IF(VLOOKUP($E14,INDICADORES!$F$10:$AH$235,28,FALSE)="R",VLOOKUP($E14,INDICADORES!$F$10:$AH$235,29,FALSE)*N14*$F14,""),"") ->  | AH14: =_xlfn.IFNA(IF(VLOOKUP($E14,INDICADORES!$F$10:$AH$235,28,FALSE)="R",VLOOKUP($E14,INDICADORES!$F$10:$AH$235,29,FALSE)*O14*$F14,""),"") ->  | AI14: =_xlfn.IFNA(IF(VLOOKUP($E14,INDICADORES!$F$10:$AH$235,28,FALSE)="R",VLOOKUP($E14,INDICADORES!$F$10:$AH$235,29,FALSE)*P14*$F14,""),"") ->  | AJ14: =IFERROR( IF(OR(VLOOKUP($E14,INDICADORES!$F$10:$AH$235,28,FALSE)="R",VLOOKUP($E14,INDICADORES!$F$10:$AH$235,28,FALSE)="M")=TRUE,VLOOKUP($E14,INDICADORES!$F$10:$AH$235,29,FALSE)*$F14,""),"") -> 6.66
A15: ALCANCE INDIRECTO OBLIGATORIO | C15: Materiales | D15: Embalajes | E15: Pallet | F15: 165265 | G15: =IF(E15="","",VLOOKUP(E15,INDICADORES!$F$10:$G$500,2,FALSE)) -> unit | I15: 1 | Q15: Embalaje | V15: =_xlfn.IFNA(IF(OR(VLOOKUP($E15,INDICADORES!$F$10:$AH$235,28,FALSE)="M")=TRUE,1-$H15-$I15,""),"") ->  | W15: =_xlfn.IFNA(IF(OR(VLOOKUP($E15,INDICADORES!$F$10:$AH$235,28,FALSE)="M")=TRUE,$H15,""),"") ->  | X15: =_xlfn.IFNA(IF(OR(VLOOKUP($E15,INDICADORES!$F$10:$AH$235,28,FALSE)="M")=TRUE,$I15,""),"") ->  | Z15: =IFERROR(VLOOKUP($E15,INDICADORES!$F$10:$AH$235,29,FALSE)*V15*$F15,"") ->  | AA15: =IFERROR(VLOOKUP($E15,INDICADORES!$F$10:$AH$235,29,FALSE)*W15*$F15,"") ->  | AB15: =IFERROR(VLOOKUP($E15,INDICADORES!$F$10:$AH$235,29,FALSE)*X15*$F15,"") ->  | AC15: 0 | AD15: 0 | AE15: =_xlfn.IFNA(IF(VLOOKUP($E15,INDICADORES!$F$10:$AH$235,28,FALSE)="R",VLOOKUP($E15,INDICADORES!$F$10:$AH$235,29,FALSE)*L15*$F15,""),"") ->  | AF15: =_xlfn.IFNA(IF(VLOOKUP($E15,INDICADORES!$F$10:$AH$235,28,FALSE)="R",VLOOKUP($E15,INDICADORES!$F$10:$AH$235,29,FALSE)*M15*$F15,""),"") ->  | AG15: =_xlfn.IFNA(IF(VLOOKUP($E15,INDICADORES!$F$10:$AH$235,28,FALSE)="R",VLOOKUP($E15,INDICADORES!$F$10:$AH$235,29,FALSE)*N15*$F15,""),"") ->  | AH15: =_xlfn.IFNA(IF(VLOOKUP($E15,INDICADORES!$F$10:$AH$235,28,FALSE)="R",VLOOKUP($E15,INDICADORES!$F$10:$AH$235,29,FALSE)*O15*$F15,""),"") ->  | AI15: =_xlfn.IFNA(IF(VLOOKUP($E15,INDICADORES!$F$10:$AH$235,28,FALSE)="R",VLOOKUP($E15,INDICADORES!$F$10:$AH$235,29,FALSE)*P15*$F15,""),"") ->  | AJ15: =IFERROR( IF(OR(VLOOKUP($E15,INDICADORES!$F$10:$AH$235,28,FALSE)="R",VLOOKUP($E15,INDICADORES!$F$10:$AH$235,28,FALSE)="M")=TRUE,VLOOKUP($E15,INDICADORES!$F$10:$AH$235,29,FALSE)*$F15,""),"") -> 4131.625
A16: ALCANCE INDIRECTO OBLIGATORIO | C16: Materiales | D16: Embalajes | E16: Papel | F16: 725 | G16: =IF(E16="","",VLOOKUP(E16,INDICADORES!$F$10:$G$500,2,FALSE)) -> kg | I16: 1 | Q16: Papel oficina (planos, etc.) | V16: =_xlfn.IFNA(IF(OR(VLOOKUP($E16,INDICADORES!$F$10:$AH$235,28,FALSE)="M")=TRUE,1-$H16-$I16,""),"") ->  | W16: =_xlfn.IFNA(IF(OR(VLOOKUP($E16,INDICADORES!$F$10:$AH$235,28,FALSE)="M")=TRUE,$H16,""),"") ->  | X16: =_xlfn.IFNA(IF(OR(VLOOKUP($E16,INDICADORES!$F$10:$AH$235,28,FALSE)="M")=TRUE,$I16,""),"") ->  | Z16: =IFERROR(VLOOKUP($E16,INDICADORES!$F$10:$AH$235,29,FALSE)*V16*$F16,"") ->  | AA16: =IFERROR(VLOOKUP($E16,INDICADORES!$F$10:$AH$235,29,FALSE)*W16*$F16,"") ->  | AB16: =IFERROR(VLOOKUP($E16,INDICADORES!$F$10:$AH$235,29,FALSE)*X16*$F16,"") ->  | AC16: 0 | AD16: 0 | AE16: =_xlfn.IFNA(IF(VLOOKUP($E16,INDICADORES!$F$10:$AH$235,28,FALSE)="R",VLOOKUP($E16,INDICADORES!$F$10:$AH$235,29,FALSE)*L16*$F16,""),"") ->  | AF16: =_xlfn.IFNA(IF(VLOOKUP($E16,INDICADORES!$F$10:$AH$235,28,FALSE)="R",VLOOKUP($E16,INDICADORES!$F$10:$AH$235,29,FALSE)*M16*$F16,""),"") ->  | AG16: =_xlfn.IFNA(IF(VLOOKUP($E16,INDICADORES!$F$10:$AH$235,28,FALSE)="R",VLOOKUP($E16,INDICADORES!$F$10:$AH$235,29,FALSE)*N16*$F16,""),"") ->  | AH16: =_xlfn.IFNA(IF(VLOOKUP($E16,INDICADORES!$F$10:$AH$235,28,FALSE)="R",VLOOKUP($E16,INDICADORES!$F$10:$AH$235,29,FALSE)*O16*$F16,""),"") ->  | AI16: =_xlfn.IFNA(IF(VLOOKUP($E16,INDICADORES!$F$10:$AH$235,28,FALSE)="R",VLOOKUP($E16,INDICADORES!$F$10:$AH$235,29,FALSE)*P16*$F16,""),"") ->  | AJ16: =IFERROR( IF(OR(VLOOKUP($E16,INDICADORES!$F$10:$AH$235,28,FALSE)="R",VLOOKUP($E16,INDICADORES!$F$10:$AH$235,28,FALSE)="M")=TRUE,VLOOKUP($E16,INDICADORES!$F$10:$AH$235,29,FALSE)*$F16,""),"") -> 0.725
A17: ALCANCE INDIRECTO OBLIGATORIO | C17: Materiales | D17: Polímeros | E17: Polietileno de alta densidad (HDPE) | F17: 5140 | G17: =IF(E17="","",VLOOKUP(E17,INDICADORES!$F$10:$G$500,2,FALSE)) -> kg | I17: 1 | Q17: Embalaje | V17: =_xlfn.IFNA(IF(OR(VLOOKUP($E17,INDICADORES!$F$10:$AH$235,28,FALSE)="M")=TRUE,1-$H17-$I17,""),"") ->  | W17: =_xlfn.IFNA(IF(OR(VLOOKUP($E17,INDICADORES!$F$10:$AH$235,28,FALSE)="M")=TRUE,$H17,""),"") ->  | X17: =_xlfn.IFNA(IF(OR(VLOOKUP($E17,INDICADORES!$F$10:$AH$235,28,FALSE)="M")=TRUE,$I17,""),"") ->  | Z17: =IFERROR(VLOOKUP($E17,INDICADORES!$F$10:$AH$235,29,FALSE)*V17*$F17,"") ->  | AA17: =IFERROR(VLOOKUP($E17,INDICADORES!$F$10:$AH$235,29,FALSE)*W17*$F17,"") ->  | AB17: =IFERROR(VLOOKUP($E17,INDICADORES!$F$10:$AH$235,29,FALSE)*X17*$F17,"") ->  | AC17: 0 | AD17: 0 | AE17: =_xlfn.IFNA(IF(VLOOKUP($E17,INDICADORES!$F$10:$AH$235,28,FALSE)="R",VLOOKUP($E17,INDICADORES!$F$10:$AH$235,29,FALSE)*L17*$F17,""),"") ->  | AF17: =_xlfn.IFNA(IF(VLOOKUP($E17,INDICADORES!$F$10:$AH$235,28,FALSE)="R",VLOOKUP($E17,INDICADORES!$F$10:$AH$235,29,FALSE)*M17*$F17,""),"") ->  | AG17: =_xlfn.IFNA(IF(VLOOKUP($E17,INDICADORES!$F$10:$AH$235,28,FALSE)="R",VLOOKUP($E17,INDICADORES!$F$10:$AH$235,29,FALSE)*N17*$F17,""),"") ->  | AH17: =_xlfn.IFNA(IF(VLOOKUP($E17,INDICADORES!$F$10:$AH$235,28,FALSE)="R",VLOOKUP($E17,INDICADORES!$F$10:$AH$235,29,FALSE)*O17*$F17,""),"") ->  | AI17: =_xlfn.IFNA(IF(VLOOKUP($E17,INDICADORES!$F$10:$AH$235,28,FALSE)="R",VLOOKUP($E17,INDICADORES!$F$10:$AH$235,29,FALSE)*P17*$F17,""),"") ->  | AJ17: =IFERROR( IF(OR(VLOOKUP($E17,INDICADORES!$F$10:$AH$235,28,FALSE)="R",VLOOKUP($E17,INDICADORES!$F$10:$AH$235,28,FALSE)="M")=TRUE,VLOOKUP($E17,INDICADORES!$F$10:$AH$235,29,FALSE)*$F17,""),"") -> 5.14
A18: ALCANCE INDIRECTO OBLIGATORIO | C18: Materiales | D18: Metal | E18: Acero reciclado | F18: 15000 | G18: =IF(E18="","",VLOOKUP(E18,INDICADORES!$F$10:$G$500,2,FALSE)) -> kg | H18: 0.05 | Q18: Componentes | V18: =_xlfn.IFNA(IF(OR(VLOOKUP($E18,INDICADORES!$F$10:$AH$235,28,FALSE)="M")=TRUE,1-$H18-$I18,""),"") ->  | W18: =_xlfn.IFNA(IF(OR(VLOOKUP($E18,INDICADORES!$F$10:$AH$235,28,FALSE)="M")=TRUE,$H18,""),"") ->  | X18: =_xlfn.IFNA(IF(OR(VLOOKUP($E18,INDICADORES!$F$10:$AH$235,28,FALSE)="M")=TRUE,$I18,""),"") ->  | Z18: =IFERROR(VLOOKUP($E18,INDICADORES!$F$10:$AH$235,29,FALSE)*V18*$F18,"") ->  | AA18: =IFERROR(VLOOKUP($E18,INDICADORES!$F$10:$AH$235,29,FALSE)*W18*$F18,"") ->  | AB18: =IFERROR(VLOOKUP($E18,INDICADORES!$F$10:$AH$235,29,FALSE)*X18*$F18,"") ->  | AC18: 0 | AD18: 0 | AE18: =_xlfn.IFNA(IF(VLOOKUP($E18,INDICADORES!$F$10:$AH$235,28,FALSE)="R",VLOOKUP($E18,INDICADORES!$F$10:$AH$235,29,FALSE)*L18*$F18,""),"") ->  | AF18: =_xlfn.IFNA(IF(VLOOKUP($E18,INDICADORES!$F$10:$AH$235,28,FALSE)="R",VLOOKUP($E18,INDICADORES!$F$10:$AH$235,29,FALSE)*M18*$F18,""),"") ->  | AG18: =_xlfn.IFNA(IF(VLOOKUP($E18,INDICADORES!$F$10:$AH$235,28,FALSE)="R",VLOOKUP($E18,INDICADORES!$F$10:$AH$235,29,FALSE)*N18*$F18,""),"") ->  | AH18: =_xlfn.IFNA(IF(VLOOKUP($E18,INDICADORES!$F$10:$AH$235,28,FALSE)="R",VLOOKUP($E18,INDICADORES!$F$10:$AH$235,29,FALSE)*O18*$F18,""),"") ->  | AI18: =_xlfn.IFNA(IF(VLOOKUP($E18,INDICADORES!$F$10:$AH$235,28,FALSE)="R",VLOOKUP($E18,INDICADORES!$F$10:$AH$235,29,FALSE)*P18*$F18,""),"") ->  | AJ18: =IFERROR( IF(OR(VLOOKUP($E18,INDICADORES!$F$10:$AH$235,28,FALSE)="R",VLOOKUP($E18,INDICADORES!$F$10:$AH$235,28,FALSE)="M")=TRUE,VLOOKUP($E18,INDICADORES!$F$10:$AH$235,29,FALSE)*$F18,""),"") -> 15
A19: ALCANCE INDIRECTO OBLIGATORIO | C19: Materiales | D19: Químicos | E19: Aceite lubricante | F19: 3641 | G19: =IF(E19="","",VLOOKUP(E19,INDICADORES!$F$10:$G$500,2,FALSE)) -> kg | Q19: Lubricantes | V19: =_xlfn.IFNA(IF(OR(VLOOKUP($E19,INDICADORES!$F$10:$AH$235,28,FALSE)="M")=TRUE,1-$H19-$I19,""),"") ->  | W19: =_xlfn.IFNA(IF(OR(VLOOKUP($E19,INDICADORES!$F$10:$AH$235,28,FALSE)="M")=TRUE,$H19,""),"") ->  | X19: =_xlfn.IFNA(IF(OR(VLOOKUP($E19,INDICADORES!$F$10:$AH$235,28,FALSE)="M")=TRUE,$I19,""),"") ->  | Z19: =IFERROR(VLOOKUP($E19,INDICADORES!$F$10:$AH$235,29,FALSE)*V19*$F19,"") ->  | AA19: =IFERROR(VLOOKUP($E19,INDICADORES!$F$10:$AH$235,29,FALSE)*W19*$F19,"") ->  | AB19: =IFERROR(VLOOKUP($E19,INDICADORES!$F$10:$AH$235,29,FALSE)*X19*$F19,"") ->  | AC19: 0 | AD19: 0 | AE19: =_xlfn.IFNA(IF(VLOOKUP($E19,INDICADORES!$F$10:$AH$235,28,FALSE)="R",VLOOKUP($E19,INDICADORES!$F$10:$AH$235,29,FALSE)*L19*$F19,""),"") ->  | AF19: =_xlfn.IFNA(IF(VLOOKUP($E19,INDICADORES!$F$10:$AH$235,28,FALSE)="R",VLOOKUP($E19,INDICADORES!$F$10:$AH$235,29,FALSE)*M19*$F19,""),"") ->  | AG19: =_xlfn.IFNA(IF(VLOOKUP($E19,INDICADORES!$F$10:$AH$235,28,FALSE)="R",VLOOKUP($E19,INDICADORES!$F$10:$AH$235,29,FALSE)*N19*$F19,""),"") ->  | AH19: =_xlfn.IFNA(IF(VLOOKUP($E19,INDICADORES!$F$10:$AH$235,28,FALSE)="R",VLOOKUP($E19,INDICADORES!$F$10:$AH$235,29,FALSE)*O19*$F19,""),"") ->  | AI19: =_xlfn.IFNA(IF(VLOOKUP($E19,INDICADORES!$F$10:$AH$235,28,FALSE)="R",VLOOKUP($E19,INDICADORES!$F$10:$AH$235,29,FALSE)*P19*$F19,""),"") ->  | AJ19: =IFERROR( IF(OR(VLOOKUP($E19,INDICADORES!$F$10:$AH$235,28,FALSE)="R",VLOOKUP($E19,INDICADORES!$F$10:$AH$235,28,FALSE)="M")=TRUE,VLOOKUP($E19,INDICADORES!$F$10:$AH$235,29,FALSE)*$F19,""),"") -> 3.641
A20: ALCANCE INDIRECTO OBLIGATORIO | C20: Transportes | D20: Terrestre | E20: Transporte de pasajeros en vehículo diésel (entrada km) | F20: 4400 | G20: =IF(E20="","",VLOOKUP(E20,INDICADORES!$F$10:$G$500,2,FALSE)) -> km | Q20: Resto de componentes / embalajes | V20: =_xlfn.IFNA(IF(OR(VLOOKUP($E20,INDICADORES!$F$10:$AH$235,28,FALSE)="M")=TRUE,1-$H20-$I20,""),"") ->  | W20: =_xlfn.IFNA(IF(OR(VLOOKUP($E20,INDICADORES!$F$10:$AH$235,28,FALSE)="M")=TRUE,$H20,""),"") ->  | X20: =_xlfn.IFNA(IF(OR(VLOOKUP($E20,INDICADORES!$F$10:$AH$235,28,FALSE)="M")=TRUE,$I20,""),"") ->  | Z20: =IFERROR(VLOOKUP($E20,INDICADORES!$F$10:$AH$235,29,FALSE)*V20*$F20,"") ->  | AA20: =IFERROR(VLOOKUP($E20,INDICADORES!$F$10:$AH$235,29,FALSE)*W20*$F20,"") ->  | AB20: =IFERROR(VLOOKUP($E20,INDICADORES!$F$10:$AH$235,29,FALSE)*X20*$F20,"") ->  | AC20: 0 | AD20: 0 | AE20: =_xlfn.IFNA(IF(VLOOKUP($E20,INDICADORES!$F$10:$AH$235,28,FALSE)="R",VLOOKUP($E20,INDICADORES!$F$10:$AH$235,29,FALSE)*L20*$F20,""),"") ->  | AF20: =_xlfn.IFNA(IF(VLOOKUP($E20,INDICADORES!$F$10:$AH$235,28,FALSE)="R",VLOOKUP($E20,INDICADORES!$F$10:$AH$235,29,FALSE)*M20*$F20,""),"") ->  | AG20: =_xlfn.IFNA(IF(VLOOKUP($E20,INDICADORES!$F$10:$AH$235,28,FALSE)="R",VLOOKUP($E20,INDICADORES!$F$10:$AH$235,29,FALSE)*N20*$F20,""),"") ->  | AH20: =_xlfn.IFNA(IF(VLOOKUP($E20,INDICADORES!$F$10:$AH$235,28,FALSE)="R",VLOOKUP($E20,INDICADORES!$F$10:$AH$235,29,FALSE)*O20*$F20,""),"") ->  | AI20: =_xlfn.IFNA(IF(VLOOKUP($E20,INDICADORES!$F$10:$AH$235,28,FALSE)="R",VLOOKUP($E20,INDICADORES!$F$10:$AH$235,29,FALSE)*P20*$F20,""),"") ->  | AJ20: =IFERROR( IF(OR(VLOOKUP($E20,INDICADORES!$F$10:$AH$235,28,FALSE)="R",VLOOKUP($E20,INDICADORES!$F$10:$AH$235,28,FALSE)="M")=TRUE,VLOOKUP($E20,INDICADORES!$F$10:$AH$235,29,FALSE)*$F20,""),"") -> 
A21: ALCANCE INDIRECTO OBLIGATORIO | C21: Transportes | D21: Terrestre | E21: Transporte de carga en camión | F21: 16000 | G21: =IF(E21="","",VLOOKUP(E21,INDICADORES!$F$10:$G$500,2,FALSE)) -> tonnes*km | Q21: Resto de componentes / embalajes | V21: =_xlfn.IFNA(IF(OR(VLOOKUP($E21,INDICADORES!$F$10:$AH$235,28,FALSE)="M")=TRUE,1-$H21-$I21,""),"") ->  | W21: =_xlfn.IFNA(IF(OR(VLOOKUP($E21,INDICADORES!$F$10:$AH$235,28,FALSE)="M")=TRUE,$H21,""),"") ->  | X21: =_xlfn.IFNA(IF(OR(VLOOKUP($E21,INDICADORES!$F$10:$AH$235,28,FALSE)="M")=TRUE,$I21,""),"") ->  | Z21: =IFERROR(VLOOKUP($E21,INDICADORES!$F$10:$AH$235,29,FALSE)*V21*$F21,"") ->  | AA21: =IFERROR(VLOOKUP($E21,INDICADORES!$F$10:$AH$235,29,FALSE)*W21*$F21,"") ->  | AB21: =IFERROR(VLOOKUP($E21,INDICADORES!$F$10:$AH$235,29,FALSE)*X21*$F21,"") ->  | AC21: 0 | AD21: 0 | AE21: =_xlfn.IFNA(IF(VLOOKUP($E21,INDICADORES!$F$10:$AH$235,28,FALSE)="R",VLOOKUP($E21,INDICADORES!$F$10:$AH$235,29,FALSE)*L21*$F21,""),"") ->  | AF21: =_xlfn.IFNA(IF(VLOOKUP($E21,INDICADORES!$F$10:$AH$235,28,FALSE)="R",VLOOKUP($E21,INDICADORES!$F$10:$AH$235,29,FALSE)*M21*$F21,""),"") ->  | AG21: =_xlfn.IFNA(IF(VLOOKUP($E21,INDICADORES!$F$10:$AH$235,28,FALSE)="R",VLOOKUP($E21,INDICADORES!$F$10:$AH$235,29,FALSE)*N21*$F21,""),"") ->  | AH21: =_xlfn.IFNA(IF(VLOOKUP($E21,INDICADORES!$F$10:$AH$235,28,FALSE)="R",VLOOKUP($E21,INDICADORES!$F$10:$AH$235,29,FALSE)*O21*$F21,""),"") ->  | AI21: =_xlfn.IFNA(IF(VLOOKUP($E21,INDICADORES!$F$10:$AH$235,28,FALSE)="R",VLOOKUP($E21,INDICADORES!$F$10:$AH$235,29,FALSE)*P21*$F21,""),"") ->  | AJ21: =IFERROR( IF(OR(VLOOKUP($E21,INDICADORES!$F$10:$AH$235,28,FALSE)="R",VLOOKUP($E21,INDICADORES!$F$10:$AH$235,28,FALSE)="M")=TRUE,VLOOKUP($E21,INDICADORES!$F$10:$AH$235,29,FALSE)*$F21,""),"") -> 
C22: ALCANCE INDIRECTO ENERGÍA [OBLIGATORIO] | H22: --> COMPLETAR PARA EL ANÁLISIS DE CIRCULARIDAD
C23: FAMILIA | D23: SUBFAMILIA | E23: ASPECTO | F23: MAGNITUD | G23: UNIDAD | H23: % MATERIAL SECUNDARIO | I23: % MATERIAL RENOVABLE | J23: % ENERGÍA RENOVABLE | K23: El agua que se vierte tiene una calidad adecuada (SÍ/NO) | L23: % VALORIZACIÓN MATERIAL INTERNA | M23: % VALORIZACIÓN MATERIAL EXTERNA | N23: % ELIMINACIÓN | O23: % VALORIZACIÓN ENERGÉTICA | P23: % INCINERACIÓN SIN VALORIZACIÓN ENERGÉTICA | Q23: OBSERVACIÓN
A24: =Etapa_Instalación -> ALCANCE INDIRECTO ENERGÍA [OBLIGATORIO] | C24: Energía | D24: Calor | E24: Caldera de gas natural industrial | F24: 1122900 | G24: =IF(E24="","",VLOOKUP(E24,INDICADORES!$F$10:$G$500,2,FALSE)) -> MJ | AK24: =IFERROR( IF(OR(VLOOKUP($E24,INDICADORES!$F$10:$AH$235,28,FALSE)="E",VLOOKUP($E24,INDICADORES!$F$10:$AH$235,28,FALSE)="ME")=TRUE,VLOOKUP($E24,INDICADORES!$F$10:$AI$235,30,FALSE)*$F24,""),"") -> 1122.9 | AL24: =+IFERROR(AK24*J24,"") -> 0
A25: =Etapa_Instalación -> ALCANCE INDIRECTO ENERGÍA [OBLIGATORIO] | C25: Energía | D25: Electricidad | E25: Electricidad en Media tensión | F25: 513803 | G25: =IF(E25="","",VLOOKUP(E25,INDICADORES!$F$10:$G$500,2,FALSE)) -> kWh | AK25: =IFERROR( IF(OR(VLOOKUP($E25,INDICADORES!$F$10:$AH$235,28,FALSE)="E",VLOOKUP($E25,INDICADORES!$F$10:$AH$235,28,FALSE)="ME")=TRUE,VLOOKUP($E25,INDICADORES!$F$10:$AI$235,30,FALSE)*$F25,""),"") -> 1849.6908 | AL25: =+IFERROR(AK25*J25,"") -> 0
A26: =Etapa_Instalación -> ALCANCE INDIRECTO ENERGÍA [OBLIGATORIO] | G26: =IF(E26="","",VLOOKUP(E26,INDICADORES!$F$10:$G$500,2,FALSE)) ->  | AK26: =IFERROR( IF(OR(VLOOKUP($E26,INDICADORES!$F$10:$AH$235,28,FALSE)="E",VLOOKUP($E26,INDICADORES!$F$10:$AH$235,28,FALSE)="ME")=TRUE,VLOOKUP($E26,INDICADORES!$F$10:$AI$235,30,FALSE)*$F26,""),"") ->  | AL26: =+IFERROR(AK26*J26,"") -> 
A27: =Etapa_Instalación -> ALCANCE INDIRECTO ENERGÍA [OBLIGATORIO] | G27: =IF(E27="","",VLOOKUP(E27,INDICADORES!$F$10:$G$500,2,FALSE)) ->  | AK27: =IFERROR( IF(OR(VLOOKUP($E27,INDICADORES!$F$10:$AH$235,28,FALSE)="E",VLOOKUP($E27,INDICADORES!$F$10:$AH$235,28,FALSE)="ME")=TRUE,VLOOKUP($E27,INDICADORES!$F$10:$AI$235,30,FALSE)*$F27,""),"") ->  | AL27: =+IFERROR(AK27*J27,"") -> 
A28: =Etapa_Instalación -> ALCANCE INDIRECTO ENERGÍA [OBLIGATORIO] | G28: =IF(E28="","",VLOOKUP(E28,INDICADORES!$F$10:$G$500,2,FALSE)) ->  | AK28: =IFERROR( IF(OR(VLOOKUP($E28,INDICADORES!$F$10:$AH$235,28,FALSE)="E",VLOOKUP($E28,INDICADORES!$F$10:$AH$235,28,FALSE)="ME")=TRUE,VLOOKUP($E28,INDICADORES!$F$10:$AI$235,30,FALSE)*$F28,""),"") ->  | AL28: =+IFERROR(AK28*J28,"") -> 
C29: ALCANCE DIRECTO [OBLIGATORIO] | H29: --> COMPLETAR PARA EL ANÁLISIS DE CIRCULARIDAD
C30: FAMILIA | D30: SUBFAMILIA | E30: ASPECTO | F30: MAGNITUD | G30: UNIDAD | H30: % MATERIAL SECUNDARIO | I30: % MATERIAL RENOVABLE | J30: % ENERGÍA RENOVABLE | K30: El agua que se vierte tiene una calidad adecuada (SÍ/NO) | L30: % VALORIZACIÓN MATERIAL INTERNA | M30: % VALORIZACIÓN MATERIAL EXTERNA | N30: % ELIMINACIÓN | O30: % VALORIZACIÓN ENERGÉTICA | P30: % INCINERACIÓN SIN VALORIZACIÓN ENERGÉTICA | Q30: OBSERVACIÓN
A31: =Etapa_Mantenimiento -> ALCANCE DIRECTO [OBLIGATORIO] | C31: Fin_de_Vida | D31: Gestión_finalista | E31: Depósito de residuo peligroso | F31: 4000 | G31: =IF(E31="","",VLOOKUP(E31,INDICADORES!$F$10:$G$500,2,FALSE)) -> kg | O31: 1 | Q31: Agua + hidrocarburos | V31: =_xlfn.IFNA(IF(OR(VLOOKUP($E31,INDICADORES!$F$10:$AH$235,28,FALSE)="M",VLOOKUP($E31,INDICADORES!$F$10:$AH$235,28,FALSE)="ME")=TRUE,1-$H31-$I31,""),"") ->  | W31: =_xlfn.IFNA(IF(OR(VLOOKUP($E31,INDICADORES!$F$10:$AH$235,28,FALSE)="M",VLOOKUP($E31,INDICADORES!$F$10:$AH$235,28,FALSE)="ME")=TRUE,$H31,""),"") ->  | X31: =_xlfn.IFNA(IF(OR(VLOOKUP($E31,INDICADORES!$F$10:$AH$235,28,FALSE)="M",VLOOKUP($E31,INDICADORES!$F$10:$AH$235,28,FALSE)="ME")=TRUE,$I31,""),"") ->  | Z31: =IFERROR(VLOOKUP($E31,INDICADORES!$F$10:$AH$235,29,FALSE)*V31*$F31,"") ->  | AA31: =IFERROR(VLOOKUP($E31,INDICADORES!$F$10:$AH$235,29,FALSE)*W31*$F31,"") ->  | AB31: =IFERROR(VLOOKUP($E31,INDICADORES!$F$10:$AH$235,29,FALSE)*X31*$F31,"") ->  | AC31: =IF($D31="Agua",IF($K31="SÍ",IF($E31="Agua no corriente",$F31,$F31/1000),0),0) -> 0 | AD31: =IF($D31="Agua",IF($K31="NO",IF($E31="Agua no corriente",$F31,$F31/1000),0),0) -> 0 | AE31: =_xlfn.IFNA(IF(VLOOKUP($E31,INDICADORES!$F$10:$AH$235,28,FALSE)="R",VLOOKUP($E31,INDICADORES!$F$10:$AH$235,29,FALSE)*L31*$F31,""),"") ->  | AF31: =_xlfn.IFNA(IF(VLOOKUP($E31,INDICADORES!$F$10:$AH$235,28,FALSE)="R",VLOOKUP($E31,INDICADORES!$F$10:$AH$235,29,FALSE)*M31*$F31,""),"") ->  | AG31: =_xlfn.IFNA(IF(VLOOKUP($E31,INDICADORES!$F$10:$AH$235,28,FALSE)="R",VLOOKUP($E31,INDICADORES!$F$10:$AH$235,29,FALSE)*N31*$F31,""),"") ->  | AH31: =_xlfn.IFNA(IF(VLOOKUP($E31,INDICADORES!$F$10:$AH$235,28,FALSE)="R",VLOOKUP($E31,INDICADORES!$F$10:$AH$235,29,FALSE)*O31*$F31,""),"") ->  | AI31: =_xlfn.IFNA(IF(VLOOKUP($E31,INDICADORES!$F$10:$AH$235,28,FALSE)="R",VLOOKUP($E31,INDICADORES!$F$10:$AH$235,29,FALSE)*P31*$F31,""),"") ->  | AJ31: =IFERROR( IF(OR(VLOOKUP($E31,INDICADORES!$F$10:$AH$235,28,FALSE)="R",VLOOKUP($E31,INDICADORES!$F$10:$AH$235,28,FALSE)="M",VLOOKUP($E31,INDICADORES!$F$10:$AH$235,28,FALSE)="ME")=TRUE,VLOOKUP($E31,INDICADORES!$F$10:$AH$235,29,FALSE)*$F31,""),"") -> 4 | AK31: =IFERROR( IF(VLOOKUP($E31,INDICADORES!$F$10:$AH$235,28,FALSE)="ME",VLOOKUP($E31,INDICADORES!$F$10:$AI$235,30,FALSE)*$F31,""),"") ->  | AL31: =+IFERROR(AK31*J31,"") -> 
A32: ALCANCE DIRECTO [OBLIGATORIO] | C32: Fin_de_Vida | D32: Gestión_finalista | E32: Chatarra de acero (gestión finalista) | F32: 104240 | G32: =IF(E32="","",VLOOKUP(E32,INDICADORES!$F$10:$G$500,2,FALSE)) -> kg | O32: 1 | Q32: Chatarra | V32: =_xlfn.IFNA(IF(OR(VLOOKUP($E32,INDICADORES!$F$10:$AH$235,28,FALSE)="M",VLOOKUP($E32,INDICADORES!$F$10:$AH$235,28,FALSE)="ME")=TRUE,1-$H32-$I32,""),"") ->  | W32: =_xlfn.IFNA(IF(OR(VLOOKUP($E32,INDICADORES!$F$10:$AH$235,28,FALSE)="M",VLOOKUP($E32,INDICADORES!$F$10:$AH$235,28,FALSE)="ME")=TRUE,$H32,""),"") ->  | X32: =_xlfn.IFNA(IF(OR(VLOOKUP($E32,INDICADORES!$F$10:$AH$235,28,FALSE)="M",VLOOKUP($E32,INDICADORES!$F$10:$AH$235,28,FALSE)="ME")=TRUE,$I32,""),"") ->  | Z32: =IFERROR(VLOOKUP($E32,INDICADORES!$F$10:$AH$235,29,FALSE)*V32*$F32,"") ->  | AA32: =IFERROR(VLOOKUP($E32,INDICADORES!$F$10:$AH$235,29,FALSE)*W32*$F32,"") ->  | AB32: =IFERROR(VLOOKUP($E32,INDICADORES!$F$10:$AH$235,29,FALSE)*X32*$F32,"") ->  | AC32: 0 | AD32: 0 | AE32: =_xlfn.IFNA(IF(VLOOKUP($E32,INDICADORES!$F$10:$AH$235,28,FALSE)="R",VLOOKUP($E32,INDICADORES!$F$10:$AH$235,29,FALSE)*L32*$F32,""),"") ->  | AF32: =_xlfn.IFNA(IF(VLOOKUP($E32,INDICADORES!$F$10:$AH$235,28,FALSE)="R",VLOOKUP($E32,INDICADORES!$F$10:$AH$235,29,FALSE)*M32*$F32,""),"") ->  | AG32: =_xlfn.IFNA(IF(VLOOKUP($E32,INDICADORES!$F$10:$AH$235,28,FALSE)="R",VLOOKUP($E32,INDICADORES!$F$10:$AH$235,29,FALSE)*N32*$F32,""),"") ->  | AH32: =_xlfn.IFNA(IF(VLOOKUP($E32,INDICADORES!$F$10:$AH$235,28,FALSE)="R",VLOOKUP($E32,INDICADORES!$F$10:$AH$235,29,FALSE)*O32*$F32,""),"") ->  | AI32: =_xlfn.IFNA(IF(VLOOKUP($E32,INDICADORES!$F$10:$AH$235,28,FALSE)="R",VLOOKUP($E32,INDICADORES!$F$10:$AH$235,29,FALSE)*P32*$F32,""),"") ->  | AJ32: =IFERROR( IF(OR(VLOOKUP($E32,INDICADORES!$F$10:$AH$235,28,FALSE)="R",VLOOKUP($E32,INDICADORES!$F$10:$AH$235,28,FALSE)="M",VLOOKUP($E32,INDICADORES!$F$10:$AH$235,28,FALSE)="ME")=TRUE,VLOOKUP($E32,INDICADORES!$F$10:$AH$235,29,FALSE)*$F32,""),"") -> 104.24 | AK32: =IFERROR( IF(VLOOKUP($E32,INDICADORES!$F$10:$AH$235,28,FALSE)="ME",VLOOKUP($E32,INDICADORES!$F$10:$AI$235,30,FALSE)*$F32,""),"") -> 
A33: ALCANCE DIRECTO [OBLIGATORIO] | C33: Fin_de_Vida | D33: Gestión_finalista | E33: Lodo de depuración | F33: 10000 | G33: =IF(E33="","",VLOOKUP(E33,INDICADORES!$F$10:$G$500,2,FALSE)) -> kg | O33: 1 | Q33: Lodos oleosos | V33: =_xlfn.IFNA(IF(OR(VLOOKUP($E33,INDICADORES!$F$10:$AH$235,28,FALSE)="M",VLOOKUP($E33,INDICADORES!$F$10:$AH$235,28,FALSE)="ME")=TRUE,1-$H33-$I33,""),"") ->  | W33: =_xlfn.IFNA(IF(OR(VLOOKUP($E33,INDICADORES!$F$10:$AH$235,28,FALSE)="M",VLOOKUP($E33,INDICADORES!$F$10:$AH$235,28,FALSE)="ME")=TRUE,$H33,""),"") ->  | X33: =_xlfn.IFNA(IF(OR(VLOOKUP($E33,INDICADORES!$F$10:$AH$235,28,FALSE)="M",VLOOKUP($E33,INDICADORES!$F$10:$AH$235,28,FALSE)="ME")=TRUE,$I33,""),"") ->  | Z33: =IFERROR(VLOOKUP($E33,INDICADORES!$F$10:$AH$235,29,FALSE)*V33*$F33,"") ->  | AA33: =IFERROR(VLOOKUP($E33,INDICADORES!$F$10:$AH$235,29,FALSE)*W33*$F33,"") ->  | AB33: =IFERROR(VLOOKUP($E33,INDICADORES!$F$10:$AH$235,29,FALSE)*X33*$F33,"") ->  | AC33: 0 | AD33: 0 | AE33: =_xlfn.IFNA(IF(VLOOKUP($E33,INDICADORES!$F$10:$AH$235,28,FALSE)="R",VLOOKUP($E33,INDICADORES!$F$10:$AH$235,29,FALSE)*L33*$F33,""),"") ->  | AF33: =_xlfn.IFNA(IF(VLOOKUP($E33,INDICADORES!$F$10:$AH$235,28,FALSE)="R",VLOOKUP($E33,INDICADORES!$F$10:$AH$235,29,FALSE)*M33*$F33,""),"") ->  | AG33: =_xlfn.IFNA(IF(VLOOKUP($E33,INDICADORES!$F$10:$AH$235,28,FALSE)="R",VLOOKUP($E33,INDICADORES!$F$10:$AH$235,29,FALSE)*N33*$F33,""),"") ->  | AH33: =_xlfn.IFNA(IF(VLOOKUP($E33,INDICADORES!$F$10:$AH$235,28,FALSE)="R",VLOOKUP($E33,INDICADORES!$F$10:$AH$235,29,FALSE)*O33*$F33,""),"") ->  | AI33: =_xlfn.IFNA(IF(VLOOKUP($E33,INDICADORES!$F$10:$AH$235,28,FALSE)="R",VLOOKUP($E33,INDICADORES!$F$10:$AH$235,29,FALSE)*P33*$F33,""),"") ->  | AJ33: =IFERROR( IF(OR(VLOOKUP($E33,INDICADORES!$F$10:$AH$235,28,FALSE)="R",VLOOKUP($E33,INDICADORES!$F$10:$AH$235,28,FALSE)="M",VLOOKUP($E33,INDICADORES!$F$10:$AH$235,28,FALSE)="ME")=TRUE,VLOOKUP($E33,INDICADORES!$F$10:$AH$235,29,FALSE)*$F33,""),"") -> 10 | AK33: =IFERROR( IF(VLOOKUP($E33,INDICADORES!$F$10:$AH$235,28,FALSE)="ME",VLOOKUP($E33,INDICADORES!$F$10:$AI$235,30,FALSE)*$F33,""),"") -> 
A34: ALCANCE DIRECTO [OBLIGATORIO] | C34: Fin_de_Vida | D34: Gestión_finalista | E34: Tratamiento de aguas residuales | F34: 2 | G34: =IF(E34="","",VLOOKUP(E34,INDICADORES!$F$10:$G$500,2,FALSE)) -> m3 | Q34: Líquidos limpieza | V34: =_xlfn.IFNA(IF(OR(VLOOKUP($E34,INDICADORES!$F$10:$AH$235,28,FALSE)="M",VLOOKUP($E34,INDICADORES!$F$10:$AH$235,28,FALSE)="ME")=TRUE,1-$H34-$I34,""),"") ->  | W34: =_xlfn.IFNA(IF(OR(VLOOKUP($E34,INDICADORES!$F$10:$AH$235,28,FALSE)="M",VLOOKUP($E34,INDICADORES!$F$10:$AH$235,28,FALSE)="ME")=TRUE,$H34,""),"") ->  | X34: =_xlfn.IFNA(IF(OR(VLOOKUP($E34,INDICADORES!$F$10:$AH$235,28,FALSE)="M",VLOOKUP($E34,INDICADORES!$F$10:$AH$235,28,FALSE)="ME")=TRUE,$I34,""),"") ->  | Z34: =IFERROR(VLOOKUP($E34,INDICADORES!$F$10:$AH$235,29,FALSE)*V34*$F34,"") ->  | AA34: =IFERROR(VLOOKUP($E34,INDICADORES!$F$10:$AH$235,29,FALSE)*W34*$F34,"") ->  | AB34: =IFERROR(VLOOKUP($E34,INDICADORES!$F$10:$AH$235,29,FALSE)*X34*$F34,"") ->  | AC34: 0 | AD34: 0 | AE34: =_xlfn.IFNA(IF(VLOOKUP($E34,INDICADORES!$F$10:$AH$235,28,FALSE)="R",VLOOKUP($E34,INDICADORES!$F$10:$AH$235,29,FALSE)*L34*$F34,""),"") ->  | AF34: =_xlfn.IFNA(IF(VLOOKUP($E34,INDICADORES!$F$10:$AH$235,28,FALSE)="R",VLOOKUP($E34,INDICADORES!$F$10:$AH$235,29,FALSE)*M34*$F34,""),"") ->  | AG34: =_xlfn.IFNA(IF(VLOOKUP($E34,INDICADORES!$F$10:$AH$235,28,FALSE)="R",VLOOKUP($E34,INDICADORES!$F$10:$AH$235,29,FALSE)*N34*$F34,""),"") ->  | AH34: =_xlfn.IFNA(IF(VLOOKUP($E34,INDICADORES!$F$10:$AH$235,28,FALSE)="R",VLOOKUP($E34,INDICADORES!$F$10:$AH$235,29,FALSE)*O34*$F34,""),"") ->  | AI34: =_xlfn.IFNA(IF(VLOOKUP($E34,INDICADORES!$F$10:$AH$235,28,FALSE)="R",VLOOKUP($E34,INDICADORES!$F$10:$AH$235,29,FALSE)*P34*$F34,""),"") ->  | AJ34: =IFERROR( IF(OR(VLOOKUP($E34,INDICADORES!$F$10:$AH$235,28,FALSE)="R",VLOOKUP($E34,INDICADORES!$F$10:$AH$235,28,FALSE)="M",VLOOKUP($E34,INDICADORES!$F$10:$AH$235,28,FALSE)="ME")=TRUE,VLOOKUP($E34,INDICADORES!$F$10:$AH$235,29,FALSE)*$F34,""),"") ->  | AK34: =IFERROR( IF(VLOOKUP($E34,INDICADORES!$F$10:$AH$235,28,FALSE)="ME",VLOOKUP($E34,INDICADORES!$F$10:$AI$235,30,FALSE)*$F34,""),"") -> 
A35: ALCANCE DIRECTO [OBLIGATORIO] | G35: =IF(E35="","",VLOOKUP(E35,INDICADORES!$F$10:$G$500,2,FALSE)) ->  | V35: =_xlfn.IFNA(IF(OR(VLOOKUP($E35,INDICADORES!$F$10:$AH$235,28,FALSE)="M",VLOOKUP($E35,INDICADORES!$F$10:$AH$235,28,FALSE)="ME")=TRUE,1-$H35-$I35,""),"") ->  | W35: =_xlfn.IFNA(IF(OR(VLOOKUP($E35,INDICADORES!$F$10:$AH$235,28,FALSE)="M",VLOOKUP($E35,INDICADORES!$F$10:$AH$235,28,FALSE)="ME")=TRUE,$H35,""),"") ->  | X35: =_xlfn.IFNA(IF(OR(VLOOKUP($E35,INDICADORES!$F$10:$AH$235,28,FALSE)="M",VLOOKUP($E35,INDICADORES!$F$10:$AH$235,28,FALSE)="ME")=TRUE,$I35,""),"") ->  | Z35: =IFERROR(VLOOKUP($E35,INDICADORES!$F$10:$AH$235,29,FALSE)*V35*$F35,"") ->  | AA35: =IFERROR(VLOOKUP($E35,INDICADORES!$F$10:$AH$235,29,FALSE)*W35*$F35,"") ->  | AB35: =IFERROR(VLOOKUP($E35,INDICADORES!$F$10:$AH$235,29,FALSE)*X35*$F35,"") ->  | AC35: 0 | AD35: 0 | AE35: =_xlfn.IFNA(IF(VLOOKUP($E35,INDICADORES!$F$10:$AH$235,28,FALSE)="R",VLOOKUP($E35,INDICADORES!$F$10:$AH$235,29,FALSE)*L35*$F35,""),"") ->  | AF35: =_xlfn.IFNA(IF(VLOOKUP($E35,INDICADORES!$F$10:$AH$235,28,FALSE)="R",VLOOKUP($E35,INDICADORES!$F$10:$AH$235,29,FALSE)*M35*$F35,""),"") ->  | AG35: =_xlfn.IFNA(IF(VLOOKUP($E35,INDICADORES!$F$10:$AH$235,28,FALSE)="R",VLOOKUP($E35,INDICADORES!$F$10:$AH$235,29,FALSE)*N35*$F35,""),"") ->  | AH35: =_xlfn.IFNA(IF(VLOOKUP($E35,INDICADORES!$F$10:$AH$235,28,FALSE)="R",VLOOKUP($E35,INDICADORES!$F$10:$AH$235,29,FALSE)*O35*$F35,""),"") ->  | AI35: =_xlfn.IFNA(IF(VLOOKUP($E35,INDICADORES!$F$10:$AH$235,28,FALSE)="R",VLOOKUP($E35,INDICADORES!$F$10:$AH$235,29,FALSE)*P35*$F35,""),"") ->  | AJ35: =IFERROR( IF(OR(VLOOKUP($E35,INDICADORES!$F$10:$AH$235,28,FALSE)="R",VLOOKUP($E35,INDICADORES!$F$10:$AH$235,28,FALSE)="M",VLOOKUP($E35,INDICADORES!$F$10:$AH$235,28,FALSE)="ME")=TRUE,VLOOKUP($E35,INDICADORES!$F$10:$AH$235,29,FALSE)*$F35,""),"") ->  | AK35: =IFERROR( IF(VLOOKUP($E35,INDICADORES!$F$10:$AH$235,28,FALSE)="ME",VLOOKUP($E35,INDICADORES!$F$10:$AI$235,30,FALSE)*$F35,""),"") -> 
A36: ALCANCE DIRECTO [OBLIGATORIO] | G36: =IF(E36="","",VLOOKUP(E36,INDICADORES!$F$10:$G$500,2,FALSE)) ->  | V36: =_xlfn.IFNA(IF(OR(VLOOKUP($E36,INDICADORES!$F$10:$AH$235,28,FALSE)="M",VLOOKUP($E36,INDICADORES!$F$10:$AH$235,28,FALSE)="ME")=TRUE,1-$H36-$I36,""),"") ->  | W36: =_xlfn.IFNA(IF(OR(VLOOKUP($E36,INDICADORES!$F$10:$AH$235,28,FALSE)="M",VLOOKUP($E36,INDICADORES!$F$10:$AH$235,28,FALSE)="ME")=TRUE,$H36,""),"") ->  | X36: =_xlfn.IFNA(IF(OR(VLOOKUP($E36,INDICADORES!$F$10:$AH$235,28,FALSE)="M",VLOOKUP($E36,INDICADORES!$F$10:$AH$235,28,FALSE)="ME")=TRUE,$I36,""),"") ->  | Z36: =IFERROR(VLOOKUP($E36,INDICADORES!$F$10:$AH$235,29,FALSE)*V36*$F36,"") ->  | AA36: =IFERROR(VLOOKUP($E36,INDICADORES!$F$10:$AH$235,29,FALSE)*W36*$F36,"") ->  | AB36: =IFERROR(VLOOKUP($E36,INDICADORES!$F$10:$AH$235,29,FALSE)*X36*$F36,"") ->  | AC36: 0 | AD36: 0 | AE36: =_xlfn.IFNA(IF(VLOOKUP($E36,INDICADORES!$F$10:$AH$235,28,FALSE)="R",VLOOKUP($E36,INDICADORES!$F$10:$AH$235,29,FALSE)*L36*$F36,""),"") ->  | AF36: =_xlfn.IFNA(IF(VLOOKUP($E36,INDICADORES!$F$10:$AH$235,28,FALSE)="R",VLOOKUP($E36,INDICADORES!$F$10:$AH$235,29,FALSE)*M36*$F36,""),"") ->  | AG36: =_xlfn.IFNA(IF(VLOOKUP($E36,INDICADORES!$F$10:$AH$235,28,FALSE)="R",VLOOKUP($E36,INDICADORES!$F$10:$AH$235,29,FALSE)*N36*$F36,""),"") ->  | AH36: =_xlfn.IFNA(IF(VLOOKUP($E36,INDICADORES!$F$10:$AH$235,28,FALSE)="R",VLOOKUP($E36,INDICADORES!$F$10:$AH$235,29,FALSE)*O36*$F36,""),"") ->  | AI36: =_xlfn.IFNA(IF(VLOOKUP($E36,INDICADORES!$F$10:$AH$235,28,FALSE)="R",VLOOKUP($E36,INDICADORES!$F$10:$AH$235,29,FALSE)*P36*$F36,""),"") ->  | AJ36: =IFERROR( IF(OR(VLOOKUP($E36,INDICADORES!$F$10:$AH$235,28,FALSE)="R",VLOOKUP($E36,INDICADORES!$F$10:$AH$235,28,FALSE)="M",VLOOKUP($E36,INDICADORES!$F$10:$AH$235,28,FALSE)="ME")=TRUE,VLOOKUP($E36,INDICADORES!$F$10:$AH$235,29,FALSE)*$F36,""),"") ->  | AK36: =IFERROR( IF(VLOOKUP($E36,INDICADORES!$F$10:$AH$235,28,FALSE)="ME",VLOOKUP($E36,INDICADORES!$F$10:$AI$235,30,FALSE)*$F36,""),"") ->  | AL36: =+IFERROR(AK36*J36,"") -> 
A37: ALCANCE DIRECTO [OBLIGATORIO] | G37: =IF(E37="","",VLOOKUP(E37,INDICADORES!$F$10:$G$500,2,FALSE)) ->  | V37: =_xlfn.IFNA(IF(OR(VLOOKUP($E37,INDICADORES!$F$10:$AH$235,28,FALSE)="M",VLOOKUP($E37,INDICADORES!$F$10:$AH$235,28,FALSE)="ME")=TRUE,1-$H37-$I37,""),"") ->  | W37: =_xlfn.IFNA(IF(OR(VLOOKUP($E37,INDICADORES!$F$10:$AH$235,28,FALSE)="M",VLOOKUP($E37,INDICADORES!$F$10:$AH$235,28,FALSE)="ME")=TRUE,$H37,""),"") ->  | X37: =_xlfn.IFNA(IF(OR(VLOOKUP($E37,INDICADORES!$F$10:$AH$235,28,FALSE)="M",VLOOKUP($E37,INDICADORES!$F$10:$AH$235,28,FALSE)="ME")=TRUE,$I37,""),"") ->  | Z37: =IFERROR(VLOOKUP($E37,INDICADORES!$F$10:$AH$235,29,FALSE)*V37*$F37,"") ->  | AA37: =IFERROR(VLOOKUP($E37,INDICADORES!$F$10:$AH$235,29,FALSE)*W37*$F37,"") ->  | AB37: =IFERROR(VLOOKUP($E37,INDICADORES!$F$10:$AH$235,29,FALSE)*X37*$F37,"") ->  | AC37: 0 | AD37: 0 | AE37: =_xlfn.IFNA(IF(VLOOKUP($E37,INDICADORES!$F$10:$AH$235,28,FALSE)="R",VLOOKUP($E37,INDICADORES!$F$10:$AH$235,29,FALSE)*L37*$F37,""),"") ->  | AF37: =_xlfn.IFNA(IF(VLOOKUP($E37,INDICADORES!$F$10:$AH$235,28,FALSE)="R",VLOOKUP($E37,INDICADORES!$F$10:$AH$235,29,FALSE)*M37*$F37,""),"") ->  | AG37: =_xlfn.IFNA(IF(VLOOKUP($E37,INDICADORES!$F$10:$AH$235,28,FALSE)="R",VLOOKUP($E37,INDICADORES!$F$10:$AH$235,29,FALSE)*N37*$F37,""),"") ->  | AH37: =_xlfn.IFNA(IF(VLOOKUP($E37,INDICADORES!$F$10:$AH$235,28,FALSE)="R",VLOOKUP($E37,INDICADORES!$F$10:$AH$235,29,FALSE)*O37*$F37,""),"") ->  | AI37: =_xlfn.IFNA(IF(VLOOKUP($E37,INDICADORES!$F$10:$AH$235,28,FALSE)="R",VLOOKUP($E37,INDICADORES!$F$10:$AH$235,29,FALSE)*P37*$F37,""),"") ->  | AJ37: =IFERROR( IF(OR(VLOOKUP($E37,INDICADORES!$F$10:$AH$235,28,FALSE)="R",VLOOKUP($E37,INDICADORES!$F$10:$AH$235,28,FALSE)="M",VLOOKUP($E37,INDICADORES!$F$10:$AH$235,28,FALSE)="ME")=TRUE,VLOOKUP($E37,INDICADORES!$F$10:$AH$235,29,FALSE)*$F37,""),"") ->  | AK37: =IFERROR( IF(VLOOKUP($E37,INDICADORES!$F$10:$AH$235,28,FALSE)="ME",VLOOKUP($E37,INDICADORES!$F$10:$AI$235,30,FALSE)*$F37,""),"") ->  | AL37: =+IFERROR(AK37*J37,"") -> 
A38: ALCANCE DIRECTO [OBLIGATORIO] | G38: =IF(E38="","",VLOOKUP(E38,INDICADORES!$F$10:$G$500,2,FALSE)) ->  | V38: =_xlfn.IFNA(IF(OR(VLOOKUP($E38,INDICADORES!$F$10:$AH$235,28,FALSE)="M",VLOOKUP($E38,INDICADORES!$F$10:$AH$235,28,FALSE)="ME")=TRUE,1-$H38-$I38,""),"") ->  | W38: =_xlfn.IFNA(IF(OR(VLOOKUP($E38,INDICADORES!$F$10:$AH$235,28,FALSE)="M",VLOOKUP($E38,INDICADORES!$F$10:$AH$235,28,FALSE)="ME")=TRUE,$H38,""),"") ->  | X38: =_xlfn.IFNA(IF(OR(VLOOKUP($E38,INDICADORES!$F$10:$AH$235,28,FALSE)="M",VLOOKUP($E38,INDICADORES!$F$10:$AH$235,28,FALSE)="ME")=TRUE,$I38,""),"") ->  | Z38: =IFERROR(VLOOKUP($E38,INDICADORES!$F$10:$AH$235,29,FALSE)*V38*$F38,"") ->  | AA38: =IFERROR(VLOOKUP($E38,INDICADORES!$F$10:$AH$235,29,FALSE)*W38*$F38,"") ->  | AB38: =IFERROR(VLOOKUP($E38,INDICADORES!$F$10:$AH$235,29,FALSE)*X38*$F38,"") ->  | AC38: 0 | AD38: 0 | AE38: =_xlfn.IFNA(IF(VLOOKUP($E38,INDICADORES!$F$10:$AH$235,28,FALSE)="R",VLOOKUP($E38,INDICADORES!$F$10:$AH$235,29,FALSE)*L38*$F38,""),"") ->  | AF38: =_xlfn.IFNA(IF(VLOOKUP($E38,INDICADORES!$F$10:$AH$235,28,FALSE)="R",VLOOKUP($E38,INDICADORES!$F$10:$AH$235,29,FALSE)*M38*$F38,""),"") ->  | AG38: =_xlfn.IFNA(IF(VLOOKUP($E38,INDICADORES!$F$10:$AH$235,28,FALSE)="R",VLOOKUP($E38,INDICADORES!$F$10:$AH$235,29,FALSE)*N38*$F38,""),"") ->  | AH38: =_xlfn.IFNA(IF(VLOOKUP($E38,INDICADORES!$F$10:$AH$235,28,FALSE)="R",VLOOKUP($E38,INDICADORES!$F$10:$AH$235,29,FALSE)*O38*$F38,""),"") ->  | AI38: =_xlfn.IFNA(IF(VLOOKUP($E38,INDICADORES!$F$10:$AH$235,28,FALSE)="R",VLOOKUP($E38,INDICADORES!$F$10:$AH$235,29,FALSE)*P38*$F38,""),"") ->  | AJ38: =IFERROR( IF(OR(VLOOKUP($E38,INDICADORES!$F$10:$AH$235,28,FALSE)="R",VLOOKUP($E38,INDICADORES!$F$10:$AH$235,28,FALSE)="M",VLOOKUP($E38,INDICADORES!$F$10:$AH$235,28,FALSE)="ME")=TRUE,VLOOKUP($E38,INDICADORES!$F$10:$AH$235,29,FALSE)*$F38,""),"") ->  | AK38: =IFERROR( IF(VLOOKUP($E38,INDICADORES!$F$10:$AH$235,28,FALSE)="ME",VLOOKUP($E38,INDICADORES!$F$10:$AI$235,30,FALSE)*$F38,""),"") ->  | AL38: =+IFERROR(AK38*J38,"") -> 
A39: ALCANCE DIRECTO [OBLIGATORIO] | C39: Transportes | D39: Terrestre | E39: Transporte de carga en camión pesado | F39: 16000 | G39: =IF(E39="","",VLOOKUP(E39,INDICADORES!$F$10:$G$500,2,FALSE)) -> tonnes*km | Q39: Sucontratas + vehiculos empresa | V39: =_xlfn.IFNA(IF(OR(VLOOKUP($E39,INDICADORES!$F$10:$AH$235,28,FALSE)="M",VLOOKUP($E39,INDICADORES!$F$10:$AH$235,28,FALSE)="ME")=TRUE,1-$H39-$I39,""),"") ->  | W39: =_xlfn.IFNA(IF(OR(VLOOKUP($E39,INDICADORES!$F$10:$AH$235,28,FALSE)="M",VLOOKUP($E39,INDICADORES!$F$10:$AH$235,28,FALSE)="ME")=TRUE,$H39,""),"") ->  | X39: =_xlfn.IFNA(IF(OR(VLOOKUP($E39,INDICADORES!$F$10:$AH$235,28,FALSE)="M",VLOOKUP($E39,INDICADORES!$F$10:$AH$235,28,FALSE)="ME")=TRUE,$I39,""),"") ->  | Z39: =IFERROR(VLOOKUP($E39,INDICADORES!$F$10:$AH$235,29,FALSE)*V39*$F39,"") ->  | AA39: =IFERROR(VLOOKUP($E39,INDICADORES!$F$10:$AH$235,29,FALSE)*W39*$F39,"") ->  | AB39: =IFERROR(VLOOKUP($E39,INDICADORES!$F$10:$AH$235,29,FALSE)*X39*$F39,"") ->  | AC39: 0 | AD39: 0 | AE39: =_xlfn.IFNA(IF(VLOOKUP($E39,INDICADORES!$F$10:$AH$235,28,FALSE)="R",VLOOKUP($E39,INDICADORES!$F$10:$AH$235,29,FALSE)*L39*$F39,""),"") ->  | AF39: =_xlfn.IFNA(IF(VLOOKUP($E39,INDICADORES!$F$10:$AH$235,28,FALSE)="R",VLOOKUP($E39,INDICADORES!$F$10:$AH$235,29,FALSE)*M39*$F39,""),"") ->  | AG39: =_xlfn.IFNA(IF(VLOOKUP($E39,INDICADORES!$F$10:$AH$235,28,FALSE)="R",VLOOKUP($E39,INDICADORES!$F$10:$AH$235,29,FALSE)*N39*$F39,""),"") ->  | AH39: =_xlfn.IFNA(IF(VLOOKUP($E39,INDICADORES!$F$10:$AH$235,28,FALSE)="R",VLOOKUP($E39,INDICADORES!$F$10:$AH$235,29,FALSE)*O39*$F39,""),"") ->  | AI39: =_xlfn.IFNA(IF(VLOOKUP($E39,INDICADORES!$F$10:$AH$235,28,FALSE)="R",VLOOKUP($E39,INDICADORES!$F$10:$AH$235,29,FALSE)*P39*$F39,""),"") ->  | AJ39: =IFERROR( IF(OR(VLOOKUP($E39,INDICADORES!$F$10:$AH$235,28,FALSE)="R",VLOOKUP($E39,INDICADORES!$F$10:$AH$235,28,FALSE)="M",VLOOKUP($E39,INDICADORES!$F$10:$AH$235,28,FALSE)="ME")=TRUE,VLOOKUP($E39,INDICADORES!$F$10:$AH$235,29,FALSE)*$F39,""),"") -> 0.586336864 | AK39: =IFERROR( IF(VLOOKUP($E39,INDICADORES!$F$10:$AH$235,28,FALSE)="ME",VLOOKUP($E39,INDICADORES!$F$10:$AI$235,30,FALSE)*$F39,""),"") -> 15.83109533 | AL39: =+IFERROR(AK39*J39,"") -> 0
A40: ALCANCE DIRECTO [OBLIGATORIO] | C40: Transportes | D40: Terrestre | E40: Transporte de pasajeros en vehículo diésel (entrada km) | F40: 60500 | G40: =IF(E40="","",VLOOKUP(E40,INDICADORES!$F$10:$G$500,2,FALSE)) -> km | V40: =_xlfn.IFNA(IF(OR(VLOOKUP($E40,INDICADORES!$F$10:$AH$235,28,FALSE)="M",VLOOKUP($E40,INDICADORES!$F$10:$AH$235,28,FALSE)="ME")=TRUE,1-$H40-$I40,""),"") ->  | W40: =_xlfn.IFNA(IF(OR(VLOOKUP($E40,INDICADORES!$F$10:$AH$235,28,FALSE)="M",VLOOKUP($E40,INDICADORES!$F$10:$AH$235,28,FALSE)="ME")=TRUE,$H40,""),"") ->  | X40: =_xlfn.IFNA(IF(OR(VLOOKUP($E40,INDICADORES!$F$10:$AH$235,28,FALSE)="M",VLOOKUP($E40,INDICADORES!$F$10:$AH$235,28,FALSE)="ME")=TRUE,$I40,""),"") ->  | Z40: =IFERROR(VLOOKUP($E40,INDICADORES!$F$10:$AH$235,29,FALSE)*V40*$F40,"") ->  | AA40: =IFERROR(VLOOKUP($E40,INDICADORES!$F$10:$AH$235,29,FALSE)*W40*$F40,"") ->  | AB40: =IFERROR(VLOOKUP($E40,INDICADORES!$F$10:$AH$235,29,FALSE)*X40*$F40,"") ->  | AC40: 0 | AD40: 0 | AE40: =_xlfn.IFNA(IF(VLOOKUP($E40,INDICADORES!$F$10:$AH$235,28,FALSE)="R",VLOOKUP($E40,INDICADORES!$F$10:$AH$235,29,FALSE)*L40*$F40,""),"") ->  | AF40: =_xlfn.IFNA(IF(VLOOKUP($E40,INDICADORES!$F$10:$AH$235,28,FALSE)="R",VLOOKUP($E40,INDICADORES!$F$10:$AH$235,29,FALSE)*M40*$F40,""),"") ->  | AG40: =_xlfn.IFNA(IF(VLOOKUP($E40,INDICADORES!$F$10:$AH$235,28,FALSE)="R",VLOOKUP($E40,INDICADORES!$F$10:$AH$235,29,FALSE)*N40*$F40,""),"") ->  | AH40: =_xlfn.IFNA(IF(VLOOKUP($E40,INDICADORES!$F$10:$AH$235,28,FALSE)="R",VLOOKUP($E40,INDICADORES!$F$10:$AH$235,29,FALSE)*O40*$F40,""),"") ->  | AI40: =_xlfn.IFNA(IF(VLOOKUP($E40,INDICADORES!$F$10:$AH$235,28,FALSE)="R",VLOOKUP($E40,INDICADORES!$F$10:$AH$235,29,FALSE)*P40*$F40,""),"") ->  | AJ40: =IFERROR( IF(OR(VLOOKUP($E40,INDICADORES!$F$10:$AH$235,28,FALSE)="R",VLOOKUP($E40,INDICADORES!$F$10:$AH$235,28,FALSE)="M",VLOOKUP($E40,INDICADORES!$F$10:$AH$235,28,FALSE)="ME")=TRUE,VLOOKUP($E40,INDICADORES!$F$10:$AH$235,29,FALSE)*$F40,""),"") -> 3.220010607 | AK40: =IFERROR( IF(VLOOKUP($E40,INDICADORES!$F$10:$AH$235,28,FALSE)="ME",VLOOKUP($E40,INDICADORES!$F$10:$AI$235,30,FALSE)*$F40,""),"") -> 138.4604561 | AL40: =+IFERROR(AK40*J40,"") -> 0
A41: ALCANCE DIRECTO [OBLIGATORIO] | C41: Procesos | D41: Metal | E41: Torneado de acero | F41: 78770 | G41: =IF(E41="","",VLOOKUP(E41,INDICADORES!$F$10:$G$500,2,FALSE)) -> kg | V41: =_xlfn.IFNA(IF(OR(VLOOKUP($E41,INDICADORES!$F$10:$AH$235,28,FALSE)="M",VLOOKUP($E41,INDICADORES!$F$10:$AH$235,28,FALSE)="ME")=TRUE,1-$H41-$I41,""),"") ->  | W41: =_xlfn.IFNA(IF(OR(VLOOKUP($E41,INDICADORES!$F$10:$AH$235,28,FALSE)="M",VLOOKUP($E41,INDICADORES!$F$10:$AH$235,28,FALSE)="ME")=TRUE,$H41,""),"") ->  | X41: =_xlfn.IFNA(IF(OR(VLOOKUP($E41,INDICADORES!$F$10:$AH$235,28,FALSE)="M",VLOOKUP($E41,INDICADORES!$F$10:$AH$235,28,FALSE)="ME")=TRUE,$I41,""),"") ->  | Z41: =IFERROR(VLOOKUP($E41,INDICADORES!$F$10:$AH$235,29,FALSE)*V41*$F41,"") ->  | AA41: =IFERROR(VLOOKUP($E41,INDICADORES!$F$10:$AH$235,29,FALSE)*W41*$F41,"") ->  | AB41: =IFERROR(VLOOKUP($E41,INDICADORES!$F$10:$AH$235,29,FALSE)*X41*$F41,"") ->  | AC41: 0 | AD41: 0 | AE41: =_xlfn.IFNA(IF(VLOOKUP($E41,INDICADORES!$F$10:$AH$235,28,FALSE)="R",VLOOKUP($E41,INDICADORES!$F$10:$AH$235,29,FALSE)*L41*$F41,""),"") ->  | AF41: =_xlfn.IFNA(IF(VLOOKUP($E41,INDICADORES!$F$10:$AH$235,28,FALSE)="R",VLOOKUP($E41,INDICADORES!$F$10:$AH$235,29,FALSE)*M41*$F41,""),"") ->  | AG41: =_xlfn.IFNA(IF(VLOOKUP($E41,INDICADORES!$F$10:$AH$235,28,FALSE)="R",VLOOKUP($E41,INDICADORES!$F$10:$AH$235,29,FALSE)*N41*$F41,""),"") ->  | AH41: =_xlfn.IFNA(IF(VLOOKUP($E41,INDICADORES!$F$10:$AH$235,28,FALSE)="R",VLOOKUP($E41,INDICADORES!$F$10:$AH$235,29,FALSE)*O41*$F41,""),"") ->  | AI41: =_xlfn.IFNA(IF(VLOOKUP($E41,INDICADORES!$F$10:$AH$235,28,FALSE)="R",VLOOKUP($E41,INDICADORES!$F$10:$AH$235,29,FALSE)*P41*$F41,""),"") ->  | AJ41: =IFERROR( IF(OR(VLOOKUP($E41,INDICADORES!$F$10:$AH$235,28,FALSE)="R",VLOOKUP($E41,INDICADORES!$F$10:$AH$235,28,FALSE)="M",VLOOKUP($E41,INDICADORES!$F$10:$AH$235,28,FALSE)="ME")=TRUE,VLOOKUP($E41,INDICADORES!$F$10:$AH$235,29,FALSE)*$F41,""),"") ->  | AK41: =IFERROR( IF(VLOOKUP($E41,INDICADORES!$F$10:$AH$235,28,FALSE)="ME",VLOOKUP($E41,INDICADORES!$F$10:$AI$235,30,FALSE)*$F41,""),"") ->  | AL41: =+IFERROR(AK41*J41,"") -> 
A42: ALCANCE DIRECTO [OBLIGATORIO] | G42: =IF(E42="","",VLOOKUP(E42,INDICADORES!$F$10:$G$500,2,FALSE)) ->  | V42: =_xlfn.IFNA(IF(OR(VLOOKUP($E42,INDICADORES!$F$10:$AH$235,28,FALSE)="M",VLOOKUP($E42,INDICADORES!$F$10:$AH$235,28,FALSE)="ME")=TRUE,1-$H42-$I42,""),"") ->  | W42: =_xlfn.IFNA(IF(OR(VLOOKUP($E42,INDICADORES!$F$10:$AH$235,28,FALSE)="M",VLOOKUP($E42,INDICADORES!$F$10:$AH$235,28,FALSE)="ME")=TRUE,$H42,""),"") ->  | X42: =_xlfn.IFNA(IF(OR(VLOOKUP($E42,INDICADORES!$F$10:$AH$235,28,FALSE)="M",VLOOKUP($E42,INDICADORES!$F$10:$AH$235,28,FALSE)="ME")=TRUE,$I42,""),"") ->  | Z42: =IFERROR(VLOOKUP($E42,INDICADORES!$F$10:$AH$235,29,FALSE)*V42*$F42,"") ->  | AA42: =IFERROR(VLOOKUP($E42,INDICADORES!$F$10:$AH$235,29,FALSE)*W42*$F42,"") ->  | AB42: =IFERROR(VLOOKUP($E42,INDICADORES!$F$10:$AH$235,29,FALSE)*X42*$F42,"") ->  | AC42: 0 | AD42: 0 | AE42: =_xlfn.IFNA(IF(VLOOKUP($E42,INDICADORES!$F$10:$AH$235,28,FALSE)="R",VLOOKUP($E42,INDICADORES!$F$10:$AH$235,29,FALSE)*L42*$F42,""),"") ->  | AF42: =_xlfn.IFNA(IF(VLOOKUP($E42,INDICADORES!$F$10:$AH$235,28,FALSE)="R",VLOOKUP($E42,INDICADORES!$F$10:$AH$235,29,FALSE)*M42*$F42,""),"") ->  | AG42: =_xlfn.IFNA(IF(VLOOKUP($E42,INDICADORES!$F$10:$AH$235,28,FALSE)="R",VLOOKUP($E42,INDICADORES!$F$10:$AH$235,29,FALSE)*N42*$F42,""),"") ->  | AH42: =_xlfn.IFNA(IF(VLOOKUP($E42,INDICADORES!$F$10:$AH$235,28,FALSE)="R",VLOOKUP($E42,INDICADORES!$F$10:$AH$235,29,FALSE)*O42*$F42,""),"") ->  | AI42: =_xlfn.IFNA(IF(VLOOKUP($E42,INDICADORES!$F$10:$AH$235,28,FALSE)="R",VLOOKUP($E42,INDICADORES!$F$10:$AH$235,29,FALSE)*P42*$F42,""),"") ->  | AJ42: =IFERROR( IF(OR(VLOOKUP($E42,INDICADORES!$F$10:$AH$235,28,FALSE)="R",VLOOKUP($E42,INDICADORES!$F$10:$AH$235,28,FALSE)="M",VLOOKUP($E42,INDICADORES!$F$10:$AH$235,28,FALSE)="ME")=TRUE,VLOOKUP($E42,INDICADORES!$F$10:$AH$235,29,FALSE)*$F42,""),"") ->  | AK42: =IFERROR( IF(VLOOKUP($E42,INDICADORES!$F$10:$AH$235,28,FALSE)="ME",VLOOKUP($E42,INDICADORES!$F$10:$AI$235,30,FALSE)*$F42,""),"") ->  | AL42: =+IFERROR(AK42*J42,"") -> 
A43: ALCANCE DIRECTO [OBLIGATORIO] | G43: =IF(E43="","",VLOOKUP(E43,INDICADORES!$F$10:$G$500,2,FALSE)) ->  | V43: =_xlfn.IFNA(IF(OR(VLOOKUP($E43,INDICADORES!$F$10:$AH$235,28,FALSE)="M",VLOOKUP($E43,INDICADORES!$F$10:$AH$235,28,FALSE)="ME")=TRUE,1-$H43-$I43,""),"") ->  | W43: =_xlfn.IFNA(IF(OR(VLOOKUP($E43,INDICADORES!$F$10:$AH$235,28,FALSE)="M",VLOOKUP($E43,INDICADORES!$F$10:$AH$235,28,FALSE)="ME")=TRUE,$H43,""),"") ->  | X43: =_xlfn.IFNA(IF(OR(VLOOKUP($E43,INDICADORES!$F$10:$AH$235,28,FALSE)="M",VLOOKUP($E43,INDICADORES!$F$10:$AH$235,28,FALSE)="ME")=TRUE,$I43,""),"") ->  | Z43: =IFERROR(VLOOKUP($E43,INDICADORES!$F$10:$AH$235,29,FALSE)*V43*$F43,"") ->  | AA43: =IFERROR(VLOOKUP($E43,INDICADORES!$F$10:$AH$235,29,FALSE)*W43*$F43,"") ->  | AB43: =IFERROR(VLOOKUP($E43,INDICADORES!$F$10:$AH$235,29,FALSE)*X43*$F43,"") ->  | AC43: 0 | AD43: 0 | AE43: =_xlfn.IFNA(IF(VLOOKUP($E43,INDICADORES!$F$10:$AH$235,28,FALSE)="R",VLOOKUP($E43,INDICADORES!$F$10:$AH$235,29,FALSE)*L43*$F43,""),"") ->  | AF43: =_xlfn.IFNA(IF(VLOOKUP($E43,INDICADORES!$F$10:$AH$235,28,FALSE)="R",VLOOKUP($E43,INDICADORES!$F$10:$AH$235,29,FALSE)*M43*$F43,""),"") ->  | AG43: =_xlfn.IFNA(IF(VLOOKUP($E43,INDICADORES!$F$10:$AH$235,28,FALSE)="R",VLOOKUP($E43,INDICADORES!$F$10:$AH$235,29,FALSE)*N43*$F43,""),"") ->  | AH43: =_xlfn.IFNA(IF(VLOOKUP($E43,INDICADORES!$F$10:$AH$235,28,FALSE)="R",VLOOKUP($E43,INDICADORES!$F$10:$AH$235,29,FALSE)*O43*$F43,""),"") ->  | AI43: =_xlfn.IFNA(IF(VLOOKUP($E43,INDICADORES!$F$10:$AH$235,28,FALSE)="R",VLOOKUP($E43,INDICADORES!$F$10:$AH$235,29,FALSE)*P43*$F43,""),"") ->  | AJ43: =IFERROR( IF(OR(VLOOKUP($E43,INDICADORES!$F$10:$AH$235,28,FALSE)="R",VLOOKUP($E43,INDICADORES!$F$10:$AH$235,28,FALSE)="M",VLOOKUP($E43,INDICADORES!$F$10:$AH$235,28,FALSE)="ME")=TRUE,VLOOKUP($E43,INDICADORES!$F$10:$AH$235,29,FALSE)*$F43,""),"") ->  | AK43: =IFERROR( IF(VLOOKUP($E43,INDICADORES!$F$10:$AH$235,28,FALSE)="ME",VLOOKUP($E43,INDICADORES!$F$10:$AI$235,30,FALSE)*$F43,""),"") ->  | AL43: =+IFERROR(AK43*J43,"") -> 
A44: ALCANCE DIRECTO [OBLIGATORIO] | C44: Materiales | D44: Agua | E44: Agua corriente | F44: 556000 | G44: =IF(E44="","",VLOOKUP(E44,INDICADORES!$F$10:$G$500,2,FALSE)) -> kg | V44: =_xlfn.IFNA(IF(OR(VLOOKUP($E44,INDICADORES!$F$10:$AH$235,28,FALSE)="M",VLOOKUP($E44,INDICADORES!$F$10:$AH$235,28,FALSE)="ME")=TRUE,1-$H44-$I44,""),"") ->  | W44: =_xlfn.IFNA(IF(OR(VLOOKUP($E44,INDICADORES!$F$10:$AH$235,28,FALSE)="M",VLOOKUP($E44,INDICADORES!$F$10:$AH$235,28,FALSE)="ME")=TRUE,$H44,""),"") ->  | X44: =_xlfn.IFNA(IF(OR(VLOOKUP($E44,INDICADORES!$F$10:$AH$235,28,FALSE)="M",VLOOKUP($E44,INDICADORES!$F$10:$AH$235,28,FALSE)="ME")=TRUE,$I44,""),"") ->  | Z44: =IFERROR(VLOOKUP($E44,INDICADORES!$F$10:$AH$235,29,FALSE)*V44*$F44,"") ->  | AA44: =IFERROR(VLOOKUP($E44,INDICADORES!$F$10:$AH$235,29,FALSE)*W44*$F44,"") ->  | AB44: =IFERROR(VLOOKUP($E44,INDICADORES!$F$10:$AH$235,29,FALSE)*X44*$F44,"") ->  | AC44: 0 | AD44: 0 | AE44: =_xlfn.IFNA(IF(VLOOKUP($E44,INDICADORES!$F$10:$AH$235,28,FALSE)="R",VLOOKUP($E44,INDICADORES!$F$10:$AH$235,29,FALSE)*L44*$F44,""),"") ->  | AF44: =_xlfn.IFNA(IF(VLOOKUP($E44,INDICADORES!$F$10:$AH$235,28,FALSE)="R",VLOOKUP($E44,INDICADORES!$F$10:$AH$235,29,FALSE)*M44*$F44,""),"") ->  | AG44: =_xlfn.IFNA(IF(VLOOKUP($E44,INDICADORES!$F$10:$AH$235,28,FALSE)="R",VLOOKUP($E44,INDICADORES!$F$10:$AH$235,29,FALSE)*N44*$F44,""),"") ->  | AH44: =_xlfn.IFNA(IF(VLOOKUP($E44,INDICADORES!$F$10:$AH$235,28,FALSE)="R",VLOOKUP($E44,INDICADORES!$F$10:$AH$235,29,FALSE)*O44*$F44,""),"") ->  | AI44: =_xlfn.IFNA(IF(VLOOKUP($E44,INDICADORES!$F$10:$AH$235,28,FALSE)="R",VLOOKUP($E44,INDICADORES!$F$10:$AH$235,29,FALSE)*P44*$F44,""),"") ->  | AJ44: =IFERROR( IF(OR(VLOOKUP($E44,INDICADORES!$F$10:$AH$235,28,FALSE)="R",VLOOKUP($E44,INDICADORES!$F$10:$AH$235,28,FALSE)="M",VLOOKUP($E44,INDICADORES!$F$10:$AH$235,28,FALSE)="ME")=TRUE,VLOOKUP($E44,INDICADORES!$F$10:$AH$235,29,FALSE)*$F44,""),"") ->  | AK44: =IFERROR( IF(VLOOKUP($E44,INDICADORES!$F$10:$AH$235,28,FALSE)="ME",VLOOKUP($E44,INDICADORES!$F$10:$AI$235,30,FALSE)*$F44,""),"") ->  | AL44: =+IFERROR(AK44*J44,"") -> 
A45: ALCANCE DIRECTO [OBLIGATORIO] | C45: Emisiones | D45: Otras_emisiones_cuantificadas | E45: CO2e | F45: 78600 | G45: =IF(E45="","",VLOOKUP(E45,INDICADORES!$F$10:$G$500,2,FALSE)) -> kg | V45: =_xlfn.IFNA(IF(OR(VLOOKUP($E45,INDICADORES!$F$10:$AH$235,28,FALSE)="M",VLOOKUP($E45,INDICADORES!$F$10:$AH$235,28,FALSE)="ME")=TRUE,1-$H45-$I45,""),"") ->  | W45: =_xlfn.IFNA(IF(OR(VLOOKUP($E45,INDICADORES!$F$10:$AH$235,28,FALSE)="M",VLOOKUP($E45,INDICADORES!$F$10:$AH$235,28,FALSE)="ME")=TRUE,$H45,""),"") ->  | X45: =_xlfn.IFNA(IF(OR(VLOOKUP($E45,INDICADORES!$F$10:$AH$235,28,FALSE)="M",VLOOKUP($E45,INDICADORES!$F$10:$AH$235,28,FALSE)="ME")=TRUE,$I45,""),"") ->  | Z45: =IFERROR(VLOOKUP($E45,INDICADORES!$F$10:$AH$235,29,FALSE)*V45*$F45,"") ->  | AA45: =IFERROR(VLOOKUP($E45,INDICADORES!$F$10:$AH$235,29,FALSE)*W45*$F45,"") ->  | AB45: =IFERROR(VLOOKUP($E45,INDICADORES!$F$10:$AH$235,29,FALSE)*X45*$F45,"") ->  | AC45: 0 | AD45: 0 | AE45: =_xlfn.IFNA(IF(VLOOKUP($E45,INDICADORES!$F$10:$AH$235,28,FALSE)="R",VLOOKUP($E45,INDICADORES!$F$10:$AH$235,29,FALSE)*L45*$F45,""),"") ->  | AF45: =_xlfn.IFNA(IF(VLOOKUP($E45,INDICADORES!$F$10:$AH$235,28,FALSE)="R",VLOOKUP($E45,INDICADORES!$F$10:$AH$235,29,FALSE)*M45*$F45,""),"") ->  | AG45: =_xlfn.IFNA(IF(VLOOKUP($E45,INDICADORES!$F$10:$AH$235,28,FALSE)="R",VLOOKUP($E45,INDICADORES!$F$10:$AH$235,29,FALSE)*N45*$F45,""),"") ->  | AH45: =_xlfn.IFNA(IF(VLOOKUP($E45,INDICADORES!$F$10:$AH$235,28,FALSE)="R",VLOOKUP($E45,INDICADORES!$F$10:$AH$235,29,FALSE)*O45*$F45,""),"") ->  | AI45: =_xlfn.IFNA(IF(VLOOKUP($E45,INDICADORES!$F$10:$AH$235,28,FALSE)="R",VLOOKUP($E45,INDICADORES!$F$10:$AH$235,29,FALSE)*P45*$F45,""),"") ->  | AJ45: =IFERROR( IF(OR(VLOOKUP($E45,INDICADORES!$F$10:$AH$235,28,FALSE)="R",VLOOKUP($E45,INDICADORES!$F$10:$AH$235,28,FALSE)="M",VLOOKUP($E45,INDICADORES!$F$10:$AH$235,28,FALSE)="ME")=TRUE,VLOOKUP($E45,INDICADORES!$F$10:$AH$235,29,FALSE)*$F45,""),"") ->  | AK45: =IFERROR( IF(VLOOKUP($E45,INDICADORES!$F$10:$AH$235,28,FALSE)="ME",VLOOKUP($E45,INDICADORES!$F$10:$AI$235,30,FALSE)*$F45,""),"") ->  | AL45: =+IFERROR(AK45*J45,"") -> 
A46: ALCANCE DIRECTO [OBLIGATORIO] | C46: Fin_de_Vida | D46: Gestión_finalista | E46: Gestión de residuo de papel (gestión finalista) | F46: 725 | G46: =IF(E46="","",VLOOKUP(E46,INDICADORES!$F$10:$G$500,2,FALSE)) -> kg | O46: 1 | Q46: Reciclaje papel oficina | V46: =_xlfn.IFNA(IF(OR(VLOOKUP($E46,INDICADORES!$F$10:$AH$235,28,FALSE)="M",VLOOKUP($E46,INDICADORES!$F$10:$AH$235,28,FALSE)="ME")=TRUE,1-$H46-$I46,""),"") ->  | W46: =_xlfn.IFNA(IF(OR(VLOOKUP($E46,INDICADORES!$F$10:$AH$235,28,FALSE)="M",VLOOKUP($E46,INDICADORES!$F$10:$AH$235,28,FALSE)="ME")=TRUE,$H46,""),"") ->  | X46: =_xlfn.IFNA(IF(OR(VLOOKUP($E46,INDICADORES!$F$10:$AH$235,28,FALSE)="M",VLOOKUP($E46,INDICADORES!$F$10:$AH$235,28,FALSE)="ME")=TRUE,$I46,""),"") ->  | Z46: =IFERROR(VLOOKUP($E46,INDICADORES!$F$10:$AH$235,29,FALSE)*V46*$F46,"") ->  | AA46: =IFERROR(VLOOKUP($E46,INDICADORES!$F$10:$AH$235,29,FALSE)*W46*$F46,"") ->  | AB46: =IFERROR(VLOOKUP($E46,INDICADORES!$F$10:$AH$235,29,FALSE)*X46*$F46,"") ->  | AC46: 0 | AD46: 0 | AE46: =_xlfn.IFNA(IF(VLOOKUP($E46,INDICADORES!$F$10:$AH$235,28,FALSE)="R",VLOOKUP($E46,INDICADORES!$F$10:$AH$235,29,FALSE)*L46*$F46,""),"") ->  | AF46: =_xlfn.IFNA(IF(VLOOKUP($E46,INDICADORES!$F$10:$AH$235,28,FALSE)="R",VLOOKUP($E46,INDICADORES!$F$10:$AH$235,29,FALSE)*M46*$F46,""),"") ->  | AG46: =_xlfn.IFNA(IF(VLOOKUP($E46,INDICADORES!$F$10:$AH$235,28,FALSE)="R",VLOOKUP($E46,INDICADORES!$F$10:$AH$235,29,FALSE)*N46*$F46,""),"") ->  | AH46: =_xlfn.IFNA(IF(VLOOKUP($E46,INDICADORES!$F$10:$AH$235,28,FALSE)="R",VLOOKUP($E46,INDICADORES!$F$10:$AH$235,29,FALSE)*O46*$F46,""),"") ->  | AI46: =_xlfn.IFNA(IF(VLOOKUP($E46,INDICADORES!$F$10:$AH$235,28,FALSE)="R",VLOOKUP($E46,INDICADORES!$F$10:$AH$235,29,FALSE)*P46*$F46,""),"") ->  | AJ46: =IFERROR( IF(OR(VLOOKUP($E46,INDICADORES!$F$10:$AH$235,28,FALSE)="R",VLOOKUP($E46,INDICADORES!$F$10:$AH$235,28,FALSE)="M",VLOOKUP($E46,INDICADORES!$F$10:$AH$235,28,FALSE)="ME")=TRUE,VLOOKUP($E46,INDICADORES!$F$10:$AH$235,29,FALSE)*$F46,""),"") -> 0.725 | AK46: =IFERROR( IF(VLOOKUP($E46,INDICADORES!$F$10:$AH$235,28,FALSE)="ME",VLOOKUP($E46,INDICADORES!$F$10:$AI$235,30,FALSE)*$F46,""),"") ->  | AL46: =+IFERROR(AK46*J46,"") -> 
C47: ALCANCE INDIRECTO OPCIONAL
C48: FAMILIA | D48: SUBFAMILIA | E48: ASPECTO | F48: MAGNITUD | G48: UNIDAD | Q48: OBSERVACIÓN
A49: =Etapa_Fin -> ALCANCE INDIRECTO OPCIONAL | C49: Transportes | D49: Mar | E49: Transporte de carga en barco | F49: 266500 | G49: =IF(E49="","",VLOOKUP(E49,INDICADORES!$F$10:$G$500,2,FALSE)) -> tonnes*km | Q49: Distribución a cliente
A50: ALCANCE INDIRECTO OPCIONAL | C50: Transportes | D50: Terrestre | E50: Transporte de carga en camión pesado | F50: 240000 | G50: =IF(E50="","",VLOOKUP(E50,INDICADORES!$F$10:$G$500,2,FALSE)) -> tonnes*km | Q50: Distribución a cliente
A51: ALCANCE INDIRECTO OPCIONAL | C51: Transportes | D51: Terrestre | E51: Transporte de carga en camión pesado | F51: 450000 | G51: =IF(E51="","",VLOOKUP(E51,INDICADORES!$F$10:$G$500,2,FALSE)) -> tonnes*km | Q51: Para fin de vida
A52: ALCANCE INDIRECTO OPCIONAL | C52: Fin_de_Vida | D52: Gestión_finalista | E52: Chatarra de acero (gestión finalista) | F52: 488656 | G52: =IF(E52="","",VLOOKUP(E52,INDICADORES!$F$10:$G$500,2,FALSE)) -> kg | Q52: Husillos
A53: ALCANCE INDIRECTO OPCIONAL | G53: =IF(E53="","",VLOOKUP(E53,INDICADORES!$F$10:$G$500,2,FALSE)) ->  | Q53: Embalaje
A54: ALCANCE INDIRECTO OPCIONAL | C54: Materiales | D54: Químicos | E54: Aceite lubricante | F54: 64900 | G54: =IF(E54="","",VLOOKUP(E54,INDICADORES!$F$10:$G$500,2,FALSE)) -> kg
A55: ALCANCE INDIRECTO OPCIONAL | C55: Energía | D55: Electricidad | E55: Electricidad en Alta tensión | F55: 1940600000 | G55: =IF(E55="","",VLOOKUP(E55,INDICADORES!$F$10:$G$500,2,FALSE)) -> kWh
A56: ALCANCE INDIRECTO OPCIONAL | C56: Fin_de_Vida | D56: Gestión_finalista | E56: Gestión de residuo de plástico (gestión finalista) | F56: 4949 | G56: =IF(E56="","",VLOOKUP(E56,INDICADORES!$F$10:$G$500,2,FALSE)) -> kg
A57: ALCANCE INDIRECTO OPCIONAL | C57: Fin_de_Vida | D57: Gestión_finalista | E57: Gestión de residuo de madera (gestión finalista) | F57: 165265 | G57: =IF(E57="","",VLOOKUP(E57,INDICADORES!$F$10:$G$500,2,FALSE)) -> kg
A58: ALCANCE INDIRECTO OPCIONAL | C58: Fin_de_Vida | D58: Gestión_finalista | E58: Gestión de residuo de cartón (gestión finalista) | F58: 6655 | G58: =IF(E58="","",VLOOKUP(E58,INDICADORES!$F$10:$G$500,2,FALSE)) -> kg
C59: CIRCULARIDAD DE LOS PRODUCTOS
C60: PLANTA (opcional) | D60: TECNOLOGÍA (opcional) | E60: PRODUCTO | F60: PESO/ PRODUCTO | G60: UNIDAD | I60: =CONCATENATE("PRODUCTOS / ",ORGANIZACIÓN!J15) -> PRODUCTOS / AÑO | J60: POTENCIAL DE RECUPERACIÓN (%) | L60: % VALORIZACIÓN MATERIAL INTERNA | M60: % VALORIZACIÓN MATERIAL EXTERNA | N60: % ELIMINACIÓN | O60: % VALORIZACIÓN ENERGÉTICA | P60: % INCINERACIÓN SIN VALORIZACIÓN ENERGÉTICA | Q60: OBSERVACIÓN | AM60: RECUPERACIÓN REAL % | AN60: SALIDA DE PRODUCTOS CIRCULARES % | AO60: SALIDA DE PRODUCTOS CIRCULARES (t) | AP60: SALIDA DE PRODUCTOS LINEALES (t)
E61: Pallet | F61: 25 | G61: t | I61: 125 | AM61: =L61+M61 -> 0 | AN61: =J61*AM61 -> 0 | AO61: =F61*I61*AN61 -> 0 | AP61: =F61*I61-AO61 -> 3125
G62: t | AM62: =L62+M62 -> 0 | AN62: 0 | AO62: 0 | AP62: 0
G63: t | AM63: =L63+M63 -> 0 | AN63: 0 | AO63: 0 | AP63: 0
G64: t | AM64: 0 | AN64: =J64*AM64 -> 0 | AO64: 0 | AP64: 0
G65: t | AM65: =L65+M65 -> 0 | AN65: =J65*AM65 -> 0 | AO65: =F65*I65*AN65 -> 0 | AP65: =F65*I65-AO65 -> 0
Z67: =SUM(Z8:Z59) -> 0 | AA67: 0 | AB67: 0 | AC67: 0 | AD67: 0 | AJ67: 4973.102347 | AK67: 3126.882351 | AL67: 0 | AO67: =SUM(AO61:AO66) -> 0 | AP67: =SUM(AP61:AP66) -> 3125

Sheet INDICADORES (hidden)
F2: =INDEX!D2 -> HAC Y EC - Herramienta simplificada
F3: =INDEX!D3 -> Circular Berrindartzea 21
F4: =INDEX!D4 -> v4 | H4: <-- FACTORES IMPACTO -->
H6: 1 | I6: 2 | J6: 3 | K6: 4 | L6: 5 | M6: 6 | N6: 7 | O6: 8 | P6: 9 | Q6: 10 | R6: 11 | S6: 12 | T6: 13 | U6: 14 | V6: 15 | W6: 16 | X6: 17 | Y6: 18 | Z6: 19 | AA6: 20 | AB6: 21 | AC6: 22 | AD6: 23 | AE6: 24 | AF6: 25 | AG6: 26 | AH6: 27 | AI6: 28
AM7: CAMBIO CLIMÁTICO | AQ7: AGOTAMIENTO DE RECURSOS | AU7: HUELLA DE AGUA | AY7: PUNTUACIÓN ÚNICA | BE7: Alcance indirecto obligatorio | CD7: Alcance indirecto energía (obligatorio) | DC7: Alcance directo (obligatorio) | EB7: Alcance indirecto opcional | FB7: TOTAL | GC7: TOTAL | HE7: TOTAL
B8: Id | C8: Código | D8: Familia | E8: Subfamilia | F8: Nombre | G8: Unidad | H8: Calentamiento global | I8: Eutrofización marina | J8: Radiación ionizante E (interim) | K8: Eutrofización de agua dulce | L8: Eutrofización terrestre | M8: Ecotoxicidad de agua dulce | N8: Agotamiento de la capa de ozono | O8: Partículas en suspensión | P8: Toxicidad humana, efectos no cancerígenos | Q8: Radiación ionizante HH | R8: Formación de ozono fotoquímico | S8: Toxicidad humana, efectos cancerígenos | T8: Acidificación | U8: Uso de suelo | V8: Agotamiento mineral, fósil y de recursos | W8: Agotamiento de los recursos hídricos | X8: ReCiPe Endpoint 2008 (H,A) Total | Y8: Consumo de Energía: no renovable, fósil | Z8: Consumo de Energía: no renovable, nuclear | AA8: Consumo de Energía: no renovable, Biomasa | AB8: Consumo de Energía, no renovable, TOTAL | AC8: Consumo de Energía: renovable, Biomasa | AD8: Consumo de Energía: renovable, eólica, solar, geotérmica | AE8: Consumo de Energía: renovable, hidráulica | AF8: Consumo de Energía, renovable, TOTAL | AG8: Categoría | AH8: Factor de conversión a material | AI8: Factor de conversión a energía | AM8: =INDEX!$K$24 -> Alcance Indirecto Obligatorio | AN8: =INDEX!$K$25 -> Alcance Indirecto Energía [Obligatorio] | AO8: =INDEX!$K$26 -> Alcance Directo [Obligatorio] | AP8: =INDEX!$K$27 -> Alcance Indirecto Opcional | AQ8: =INDEX!$K$24 -> Alcance Indirecto Obligatorio | AR8: =INDEX!$K$25 -> Alcance Indirecto Energía [Obligatorio] | AS8: =INDEX!$K$26 -> Alcance Directo [Obligatorio] | AT8: =INDEX!$K$27 -> Alcance Indirecto Opcional | AU8: =INDEX!$K$24 -> Alcance Indirecto Obligatorio | AV8: =INDEX!$K$25 -> Alcance Indirecto Energía [Obligatorio] | AW8: =INDEX!$K$26 -> Alcance Directo [Obligatorio] | AX8: =INDEX!$K$27 -> Alcance Indirecto Opcional | AY8: =INDEX!$K$24 -> Alcance Indirecto Obligatorio | AZ8: =INDEX!$K$25 -> Alcance Indirecto Energía [Obligatorio] | BA8: =INDEX!$K$26 -> Alcance Directo [Obligatorio] | BB8: =INDEX!$K$27 -> Alcance Indirecto Opcional | BE8: =H8 -> Calentamiento global | BF8: Eutrofización marina | BG8: Radiación ionizante E (interim) | BH8: Eutrofización de agua dulce | BI8: Eutrofización terrestre | BJ8: Ecotoxicidad de agua dulce | BK8: Agotamiento de la capa de ozono | BL8: Partículas en suspensión | BM8: Toxicidad humana, efectos no cancerígenos | BN8: Radiación ionizante HH | BO8: =R8 -> Formación de ozono fotoquímico | BP8: Toxicidad humana, efectos cancerígenos | BQ8: Acidificación | BR8: Uso de suelo | BS8: Agotamiento mineral, fósil y de recursos | BT8: Agotamiento de los recursos hídricos | BU8: ReCiPe Endpoint 2008 (H,A) Total | BV8: Consumo de Energía: no renovable, fósil | BW8: Consumo de Energía: no renovable, nuclear | BX8: Consumo de Energía: no renovable, Biomasa | BY8: =AB8 -> Consumo de Energía, no renovable, TOTAL | BZ8: Consumo de Energía: renovable, Biomasa | CA8: Consumo de Energía: renovable, eólica, solar, geotérmica | CB8: Consumo de Energía: renovable, hidráulica | CC8: Consumo de Energía, renovable, TOTAL | CD8: =H8 -> Calentamiento global | CE8: Eutrofización marina | CF8: Radiación ionizante E (interim) | CG8: Eutrofización de agua dulce | CH8: Eutrofización terrestre | CI8: Ecotoxicidad de agua dulce | CJ8: Agotamiento de la capa de ozono | CK8: Partículas en suspensión | CL8: Toxicidad humana, efectos no cancerígenos | CM8: Radiación ionizante HH | CN8: =R8 -> Formación de ozono fotoquímico | CO8: Toxicidad humana, efectos cancerígenos | CP8: Acidificación | CQ8: Uso de suelo | CR8: Agotamiento mineral, fósil y de recursos | CS8: Agotamiento de los recursos hídricos | CT8: ReCiPe Endpoint 2008 (H,A) Total | CU8: Consumo de Energía: no renovable, fósil | CV8: Consumo de Energía: no renovable, nuclear | CW8: Consumo de Energía: no renovable, Biomasa | CX8: =AB8 -> Consumo de Energía, no renovable, TOTAL | CY8: Consumo de Energía: renovable, Biomasa | CZ8: Consumo de Energía: renovable, eólica, solar, geotérmica | DA8: Consumo de Energía: renovable, hidráulica | DB8: Consumo de Energía, renovable, TOTAL | DC8: =H8 -> Calentamiento global | DD8: Eutrofización marina | DE8: Radiación ionizante E (interim) | DF8: Eutrofización de agua dulce | DG8: Eutrofización terrestre | DH8: Ecotoxicidad de agua dulce | DI8: Agotamiento de la capa de ozono | DJ8: Partículas en suspensión | DK8: Toxicidad humana, efectos no cancerígenos | DL8: Radiación ionizante HH | DM8: =R8 -> Formación de ozono fotoquímico | DN8: Toxicidad humana, efectos cancerígenos | DO8: Acidificación | DP8: Uso de suelo | DQ8: Agotamiento mineral, fósil y de recursos | DR8: Agotamiento de los recursos hídricos | DS8: ReCiPe Endpoint 2008 (H,A) Total | DT8: Consumo de Energía: no renovable, fósil | DU8: Consumo de Energía: no renovable, nuclear | DV8: Consumo de Energía: no renovable, Biomasa | DW8: =AB8 -> Consumo de Energía, no renovable, TOTAL | DX8: Consumo de Energía: renovable, Biomasa | DY8: Consumo de Energía: renovable, eólica, solar, geotérmica | DZ8: Consumo de Energía: renovable, hidráulica | EA8: Consumo de Energía, renovable, TOTAL | EB8: =H8 -> Calentamiento global | EC8: Eutrofización marina | ED8: Radiación ionizante E (interim) | EE8: Eutrofización de agua dulce | EF8: Eutrofización terrestre | EG8: Ecotoxicidad de agua dulce | EH8: Agotamiento de la capa de ozono | EI8: Partículas en suspensión | EJ8: Toxicidad humana, efectos no cancerígenos | EK8: Radiación ionizante HH | EL8: =R8 -> Formación de ozono fotoquímico | EM8: Toxicidad humana, efectos cancerígenos | EN8: Acidificación | EO8: Uso de suelo | EP8: Agotamiento mineral, fósil y de recursos | EQ8: Agotamiento de los recursos hídricos | ER8: ReCiPe Endpoint 2008 (H,A) Total | ES8: Consumo de Energía: no renovable, fósil | ET8: Consumo de Energía: no renovable, nuclear | EU8: Consumo de Energía: no renovable, Biomasa | EV8: =AB8 -> Consumo de Energía, no renovable, TOTAL | EW8: Consumo de Energía: renovable, Biomasa | EX8: Consumo de Energía: renovable, eólica, solar, geotérmica | EY8: Consumo de Energía: renovable, hidráulica | EZ8: Consumo de Energía, renovable, TOTAL | FB8: =H8 -> Calentamiento global | FC8: Eutrofización marina | FD8: Radiación ionizante E (interim) | FE8: Eutrofización de agua dulce | FF8: Eutrofización terrestre | FG8: Ecotoxicidad de agua dulce | FH8: Agotamiento de la capa de ozono | FI8: Partículas en suspensión | FJ8: Toxicidad humana, efectos no cancerígenos | FK8: Radiación ionizante HH | FL8: =R8 -> Formación de ozono fotoquímico | FM8: Toxicidad humana, efectos cancerígenos | FN8: Acidificación | FO8: Uso de suelo | FP8: Agotamiento mineral, fósil y de recursos | FQ8: Agotamiento de los recursos hídricos | FR8: ReCiPe Endpoint 2008 (H,A) Total | FS8: Consumo de Energía: no renovable, fósil | FT8: Consumo de Energía: no renovable, nuclear | FU8: Consumo de Energía: no renovable, Biomasa | FV8: =AB8 -> Consumo de Energía, no renovable, TOTAL | FW8: Consumo de Energía: renovable, Biomasa | FX8: Consumo de Energía: renovable, eólica, solar, geotérmica | FY8: Consumo de Energía: renovable, hidráulica | FZ8: Consumo de Energía, renovable, TOTAL | GC8: =H8 -> Calentamiento global | GD8: Eutrofización marina | GE8: Radiación ionizante E (interim) | GF8: Eutrofización de agua dulce | GG8: Eutrofización terrestre | GH8: Ecotoxicidad de agua dulce | GI8: Agotamiento de la capa de ozono | GJ8: Partículas en suspensión | GK8: Toxicidad humana, efectos no cancerígenos | GL8: Radiación ionizante HH | GM8: =R8 -> Formación de ozono fotoquímico | GN8: Toxicidad humana, efectos cancerígenos | GO8: Acidificación | GP8: Uso de suelo | GQ8: Agotamiento mineral, fósil y de recursos | GR8: Agotamiento de los recursos hídricos | GS8: ReCiPe Endpoint 2008 (H,A) Total | GT8: Consumo de Energía: no renovable, fósil | GU8: Consumo de Energía: no renovable, nuclear | GV8: Consumo de Energía: no renovable, Biomasa | GW8: =AB8 -> Consumo de Energía, no renovable, TOTAL | GX8: Consumo de Energía: renovable, Biomasa | GY8: Consumo de Energía: renovable, eólica, solar, geotérmica | GZ8: Consumo de Energía: renovable, hidráulica | HA8: Consumo de Energía, renovable, TOTAL | HE8: =H8 -> Calentamiento global | HF8: Eutrofización marina | HG8: Radiación ionizante E (interim) | HH8: Eutrofización de agua dulce | HI8: Eutrofización terrestre | HJ8: Ecotoxicidad de agua dulce | HK8: Agotamiento de la capa de ozono | HL8: Partículas en suspensión | HM8: Toxicidad humana, efectos no cancerígenos | HN8: Radiación ionizante HH | HO8: =R8 -> Formación de ozono fotoquímico | HP8: Toxicidad humana, efectos cancerígenos | HQ8: Acidificación | HR8: Uso de suelo | HS8: Agotamiento mineral, fósil y de recursos | HT8: Agotamiento de los recursos hídricos | HU8: ReCiPe Endpoint 2008 (H,A) Total | HV8: Consumo de Energía: no renovable, fósil | HW8: Consumo de Energía: no renovable, nuclear | HX8: Consumo de Energía: no renovable, Biomasa | HY8: =AB8 -> Consumo de Energía, no renovable, TOTAL | HZ8: Consumo de Energía: renovable, Biomasa | IA8: Consumo de Energía: renovable, eólica, solar, geotérmica | IB8: Consumo de Energía: renovable, hidráulica | IC8: Consumo de Energía, renovable, TOTAL
H9: t CO2 e | I9: kg N eq | J9: CTUe | K9: kg P eq | L9: molc N eq | M9: CTUe | N9: kg CFC-11 eq | O9: kg PM2.5 eq | P9: CTUh | Q9: kBq U235 eq | R9: kg NMVOC eq | S9: CTUh | T9: molc H+ eq | U9: kg C deficit | V9: kg Sb eq | W9: m3 water eq | X9: Pt | Y9: MJ | Z9: MJ | AA9: MJ | AB9: MJ | AC9: MJ | AD9: MJ | AE9: MJ | AF9: MJ | AG9: - | AH9: t/ud | AI9: GJ/ud | AM9: kg CO2 eq | AN9: kg CO2 eq | AO9: kg CO2 eq | AP9: kg CO2 eq | AQ9: kg Sb eq | AR9: kg Sb eq | AS9: kg Sb eq | AT9: kg Sb eq | AU9: m3 depriv. | AV9: m3 depriv. | AW9: m3 depriv. | AX9: m3 depriv. | AY9: Pt | AZ9: Pt | BA9: Pt | BB9: Pt | BE9: t CO2 e | BF9: kg N eq | BG9: CTUe | BH9: kg P eq | BI9: molc N eq | BJ9: CTUe | BK9: kg CFC-11 eq | BL9: kg PM2.5 eq | BM9: CTUh | BN9: kBq U235 eq | BO9: kg NMVOC eq | BP9: CTUh | BQ9: molc H+ eq | BR9: kg C deficit | BS9: kg Sb eq | BT9: m3 water eq | BU9: Pt | BV9: MJ | BW9: MJ | BX9: MJ | BY9: MJ | BZ9: MJ | CA9: MJ | CB9: MJ | CC9: MJ | CD9: t CO2 e | CE9: kg N eq | CF9: CTUe | CG9: kg P eq | CH9: molc N eq | CI9: CTUe | CJ9: kg CFC-11 eq | CK9: kg PM2.5 eq | CL9: CTUh | CM9: kBq U235 eq | CN9: kg NMVOC eq | CO9: CTUh | CP9: molc H+ eq | CQ9: kg C deficit | CR9: kg Sb eq | CS9: m3 water eq | CT9: Pt | CU9: MJ | CV9: MJ | CW9: MJ | CX9: MJ | CY9: MJ | CZ9: MJ | DA9: MJ | DB9: MJ | DC9: t CO2 e | DD9: kg N eq | DE9: CTUe | DF9: kg P eq | DG9: molc N eq | DH9: CTUe | DI9: kg CFC-11 eq | DJ9: kg PM2.5 eq | DK9: CTUh | DL9: kBq U235 eq | DM9: kg NMVOC eq | DN9: CTUh | DO9: molc H+ eq | DP9: kg C deficit | DQ9: kg Sb eq | DR9: m3 water eq | DS9: Pt | DT9: MJ | DU9: MJ | DV9: MJ | DW9: MJ | DX9: MJ | DY9: MJ | DZ9: MJ | EA9: MJ | EB9: t CO2 e | EC9: kg N eq | ED9: CTUe | EE9: kg P eq | EF9: molc N eq | EG9: CTUe | EH9: kg CFC-11 eq | EI9: kg PM2.5 eq | EJ9: CTUh | EK9: kBq U235 eq | EL9: kg NMVOC eq | EM9: CTUh | EN9: molc H+ eq | EO9: kg C deficit | EP9: kg Sb eq | EQ9: m3 water eq | ER9: Pt | ES9: MJ | ET9: MJ | EU9: MJ | EV9: MJ | EW9: MJ | EX9: MJ | EY9: MJ | EZ9: MJ | FB9: t CO2 e | FC9: kg N eq | FD9: CTUe | FE9: kg P eq | FF9: molc N eq | FG9: CTUe | FH9: kg CFC-11 eq | FI9: kg PM2.5 eq | FJ9: CTUh | FK9: kBq U235 eq | FL9: kg NMVOC eq | FM9: CTUh | FN9: molc H+ eq | FO9: kg C deficit | FP9: kg Sb eq | FQ9: m3 water eq | FR9: Pt | FS9: MJ | FT9: MJ | FU9: MJ | FV9: MJ | FW9: MJ | FX9: MJ | FY9: MJ | FZ9: MJ | GC9: t CO2 e | GD9: kg N eq | GE9: CTUe | GF9: kg P eq | GG9: molc N eq | GH9: CTUe | GI9: kg CFC-11 eq | GJ9: kg PM2.5 eq | GK9: CTUh | GL9: kBq U235 eq | GM9: kg NMVOC eq | GN9: CTUh | GO9: molc H+ eq | GP9: kg C deficit | GQ9: kg Sb eq | GR9: m3 water eq | GS9: Pt | GT9: MJ | GU9: MJ | GV9: MJ | GW9: MJ | GX9: MJ | GY9: MJ | GZ9: MJ | HA9: MJ | HE9: t CO2 e | HF9: kg N eq | HG9: CTUe | HH9: kg P eq | HI9: molc N eq | HJ9: CTUe | HK9: kg CFC-11 eq | HL9: kg PM2.5 eq | HM9: CTUh | HN9: kBq U235 eq | HO9: kg NMVOC eq | HP9: CTUh | HQ9: molc H+ eq | HR9: kg C deficit | HS9: kg Sb eq | HT9: m3 water eq | HU9: Pt | HV9: MJ | HW9: MJ | HX9: MJ | HY9: MJ | HZ9: MJ | IA9: MJ | IB9: MJ | IC9: MJ
B10: 107 | C10: MAg 001 | D10: Materiales | E10: Agua | F10: Agua corriente | G10: kg | H10: 2.676540138e-07 | I10: 2.910655475e-07 | J10: 3.165823656e-10 | K10: 7.700524676e-08 | L10: 3.022301001e-06 | M10: 0.002297976429 | N10: 3.840252225e-11 | O10: 1.517116558e-07 | P10: 6.225940189e-11 | Q10: 0.0001160210855 | R10: 8.623421984e-07 | S10: 2.324626258e-11 | T10: 2.177268176e-06 | U10: 0.0004680572306 | V10: 2.768064431e-08 | W10: 0.0001636709164 | X10: 2.569646248e-05 | Y10: 0.003335727507 | Z10: 0.001917564157 | AA10: 1.445227367e-07 | AB10: 0.005253436186 | AC10: 0.0001774698024 | AD10: 0.0004666499547 | AE10: 0.0001404929898 | AF10: 0.0007846127469 | AG10: A | AH10: N/A | AI10: N/A | AM10: =+(SUMIFS(ASPECTOS!$F$7:$F$477,ASPECTOS!$A$7:$A$477,INDICADORES!AM$8,ASPECTOS!$E$7:$E$477,INDICADORES!$F10)*$H10) -> 0 | AN10: =+(SUMIFS(ASPECTOS!$F$7:$F$477,ASPECTOS!$A$7:$A$477,INDICADORES!AN$8,ASPECTOS!$E$7:$E$477,INDICADORES!$F10)*$H10) -> 0 | AO10: =+(SUMIFS(ASPECTOS!$F$7:$F$477,ASPECTOS!$A$7:$A$477,INDICADORES!AO$8,ASPECTOS!$E$7:$E$477,INDICADORES!$F10)*$H10) -> 0.1488156317 | AP10: =+(SUMIFS(ASPECTOS!$F$7:$F$477,ASPECTOS!$A$7:$A$477,INDICADORES!AP$8,ASPECTOS!$E$7:$E$477,INDICADORES!$F10)*$H10) -> 0 | AQ10: =+(SUMIFS(ASPECTOS!$F$7:$F$477,ASPECTOS!$A$7:$A$477,INDICADORES!AQ$8,ASPECTOS!$E$7:$E$477,INDICADORES!$F10)*$V10) -> 0 | AR10: =+(SUMIFS(ASPECTOS!$F$7:$F$477,ASPECTOS!$A$7:$A$477,INDICADORES!AR$8,ASPECTOS!$E$7:$E$477,INDICADORES!$F10)*$V10) -> 0 | AS10: =+(SUMIFS(ASPECTOS!$F$7:$F$477,ASPECTOS!$A$7:$A$477,INDICADORES!AS$8,ASPECTOS!$E$7:$E$477,INDICADORES!$F10)*$V10) -> 0.01539043824 | AT10: =+(SUMIFS(ASPECTOS!$F$7:$F$477,ASPECTOS!$A$7:$A$477,INDICADORES!AT$8,ASPECTOS!$E$7:$E$477,INDICADORES!$F10)*$V10) -> 0 | AU10: =+(SUMIFS(ASPECTOS!$F$7:$F$477,ASPECTOS!$A$7:$A$477,INDICADORES!AU$8,ASPECTOS!$E$7:$E$477,INDICADORES!$F10)*$W10) -> 0 | AV10: =+(SUMIFS(ASPECTOS!$F$7:$F$477,ASPECTOS!$A$7:$A$477,INDICADORES!AV$8,ASPECTOS!$E$7:$E$477,INDICADORES!$F10)*$W10) -> 0 | AW10: =+(SUMIFS(ASPECTOS!$F$7:$F$477,ASPECTOS!$A$7:$A$477,INDICADORES!AW$8,ASPECTOS!$E$7:$E$477,INDICADORES!$F10)*$W10) -> 91.0010295 | AX10: =+(SUMIFS(ASPECTOS!$F$7:$F$477,ASPECTOS!$A$7:$A$477,INDICADORES!AX$8,ASPECTOS!$E$7:$E$477,INDICADORES!$F10)*$W10) -> 0 | AY10: =+(SUMIFS(ASPECTOS!$F$7:$F$477,ASPECTOS!$A$7:$A$477,INDICADORES!AY$8,ASPECTOS!$E$7:$E$477,INDICADORES!$F10)*$X10) -> 0 | AZ10: =+(SUMIFS(ASPECTOS!$F$7:$F$477,ASPECTOS!$A$7:$A$477,INDICADORES!AZ$8,ASPECTOS!$E$7:$E$477,INDICADORES!$F10)*$X10) -> 0 | BA10: =+(SUMIFS(ASPECTOS!$F$7:$F$477,ASPECTOS!$A$7:$A$477,INDICADORES!BA$8,ASPECTOS!$E$7:$E$477,INDICADORES!$F10)*$X10) -> 14.28723314 | BB10: =+(SUMIFS(ASPECTOS!$F$7:$F$477,ASPECTOS!$A$7:$A$477,INDICADORES!BB$8,ASPECTOS!$E$7:$E$477,INDICADORES!$F10)*$X10) -> 0 | BE10: =+(SUMIFS(ASPECTOS!$F$7:$F$477,ASPECTOS!$A$7:$A$477,INDICADORES!$BE$7,ASPECTOS!$E$7:$E$477,INDICADORES!$F10)*INDICADORES!H10) -> 0 | BF10: =+(SUMIFS(ASPECTOS!$F$7:$F$477,ASPECTOS!$A$7:$A$477,INDICADORES!$BE$7,ASPECTOS!$E$7:$E$477,INDICADORES!$F10)*INDICADORES!I10) -> 0 | BG10: =+(SUMIFS(ASPECTOS!$F$7:$F$477,ASPECTOS!$A$7:$A$477,INDICADORES!$BE$7,ASPECTOS!$E$7:$E$477,INDICADORES!$F10)*INDICADORES!J10) -> 0 | BH10: =+(SUMIFS(ASPECTOS!$F$7:$F$477,ASPECTOS!$A$7:$A$477,INDICADORES!$BE$7,ASPECTOS!$E$7:$E$477,INDICADORES!$F10)*INDICADORES!K10) -> 0 | BI10: =+(SUMIFS(ASPECTOS!$F$7:$F$477,ASPECTOS!$A$7:$A$477,INDICADORES!$BE$7,ASPECTOS!$E$7:$E$477,INDICADORES!$F10)*INDICADORES!L10) -> 0 | BJ10: =+(SUMIFS(ASPECTOS!$F$7:$F$477,ASPECTOS!$A$7:$A$477,INDICADORES!$BE$7,ASPECTOS!$E$7:$E$477,INDICADORES!$F10)*INDICADORES!M10) -> 0 | BK10: =+(SUMIFS(ASPECTOS!$F$7:$F$477,ASPECTOS!$A$7:$A$477,INDICADORES!$BE$7,ASPECTOS!$E$7:$E$477,INDICADORES!$F10)*INDICADORES!N10) -> 0 | BL10: =+(SUMIFS(ASPECTOS!$F$7:$F$477,ASPECTOS!$A$7:$A$477,INDICADORES!$BE$7,ASPECTOS!$E$7:$E$477,INDICADORES!$F10)*INDICADORES!O10) -> 0 | BM10: =+(SUMIFS(ASPECTOS!$F$7:$F$477,ASPECTOS!$A$7:$A$477,INDICADORES!$BE$7,ASPECTOS!$E$7:$E$477,INDICADORES!$F10)*INDICADORES!P10) -> 0 | BN10: =+(SUMIFS(ASPECTOS!$F$7:$F$477,ASPECTOS!$A$7:$A$477,INDICADORES!$BE$7,ASPECTOS!$E$7:$E$477,INDICADORES!$F10)*INDICADORES!Q10) -> 0 | BO10: =+(SUMIFS(ASPECTOS!$F$7:$F$477,ASPECTOS!$A$7:$A$477,INDICADORES!$BE$7,ASPECTOS!$E$7:$E$477,INDICADORES!$F10)*INDICADORES!R10) -> 0 | BP10: =+(SUMIFS(ASPECTOS!$F$7:$F$477,ASPECTOS!$A$7:$A$477,INDICADORES!$BE$7,ASPECTOS!$E$7:$E$477,INDICADORES!$F10)*INDICADORES!S10) -> 0 | BQ10: =+(SUMIFS(ASPECTOS!$F$7:$F$477,ASPECTOS!$A$7:$A$477,INDICADORES!$BE$7,ASPECTOS!$E$7:$E$477,INDICADORES!$F10)*INDICADORES!T10) -> 0 | BR10: =+(SUMIFS(ASPECTOS!$F$7:$F$477,ASPECTOS!$A$7:$A$477,INDICADORES!$BE$7,ASPECTOS!$E$7:$E$477,INDICADORES!$F10)*INDICADORES!U10) -> 0 | BS10: =+(SUMIFS(ASPECTOS!$F$7:$F$477,ASPECTOS!$A$7:$A$477,INDICADORES!$BE$7,ASPECTOS!$E$7:$E$477,INDICADORES!$F10)*INDICADORES!V10) -> 0 | BT10: =+(SUMIFS(ASPECTOS!$F$7:$F$477,ASPECTOS!$A$7:$A$477,INDICADORES!$BE$7,ASPECTOS!$E$7:$E$477,INDICADORES!$F10)*INDICADORES!W10) -> 0 | BU10: =+(SUMIFS(ASPECTOS!$F$7:$F$477,ASPECTOS!$A$7:$A$477,INDICADORES!$BE$7,ASPECTOS!$E$7:$E$477,INDICADORES!$F10)*INDICADORES!X10) -> 0 | BV10: =+(SUMIFS(ASPECTOS!$F$7:$F$477,ASPECTOS!$A$7:$A$477,INDICADORES!$BE$7,ASPECTOS!$E$7:$E$477,INDICADORES!$F10)*INDICADORES!Y10) -> 0 | BW10: =+(SUMIFS(ASPECTOS!$F$7:$F$477,ASPECTOS!$A$7:$A$477,INDICADORES!$BE$7,ASPECTOS!$E$7:$E$477,INDICADORES!$F10)*INDICADORES!Z10) -> 0 | BX10: =+(SUMIFS(ASPECTOS!$F$7:$F$477,ASPECTOS!$A$7:$A$477,INDICADORES!$BE$7,ASPECTOS!$E$7:$E$477,INDICADORES!$F10)*INDICADORES!AA10) -> 0 | BY10: =+(SUMIFS(ASPECTOS!$F$7:$F$477,ASPECTOS!$A$7:$A$477,INDICADORES!$BE$7,ASPECTOS!$E$7:$E$477,INDICADORES!$F10)*INDICADORES!AB10) -> 0 | BZ10: =+(SUMIFS(ASPECTOS!$F$7:$F$477,ASPECTOS!$A$7:$A$477,INDICADORES!$BE$7,ASPECTOS!$E$7:$E$477,INDICADORES!$F10)*INDICADORES!AC10) -> 0 | CA10: =+(SUMIFS(ASPECTOS!$F$7:$F$477,ASPECTOS!$A$7:$A$477,INDICADORES!$BE$7,ASPECTOS!$E$7:$E$477,INDICADORES!$F10)*INDICADORES!AD10) -> 0 | CB10: =+(SUMIFS(ASPECTOS!$F$7:$F$477,ASPECTOS!$A$7:$A$477,INDICADORES!$BE$7,ASPECTOS!$E$7:$E$477,INDICADORES!$F10)*INDICADORES!AE10) -> 0 | CC10: =+(SUMIFS(ASPECTOS!$F$7:$F$477,ASPECTOS!$A$7:$A$477,INDICADORES!$BE$7,ASPECTOS!$E$7:$E$477,INDICADORES!$F10)*INDICADORES!AF10) -> 0 | CD10: =+(SUMIFS(ASPECTOS!$F$7:$F$477,ASPECTOS!$A$7:$A$477,INDICADORES!$CD$7,ASPECTOS!$E$7:$E$477,INDICADORES!$F10)*INDICADORES!H10) -> 0 | CE10: =+(SUMIFS(ASPECTOS!$F$7:$F$477,ASPECTOS!$A$7:$A$477,INDICADORES!$CD$7,ASPECTOS!$E$7:$E$477,INDICADORES!$F10)*INDICADORES!I10) -> 0 | CF10: =+(SUMIFS(ASPECTOS!$F$7:$F$477,ASPECTOS!$A$7:$A$477,INDICADORES!$CD$7,ASPECTOS!$E$7:$E$477,INDICADORES!$F10)*INDICADORES!J10) -> 0 | CG10: =+(SUMIFS(ASPECTOS!$F$7:$F$477,ASPECTOS!$A$7:$A$477,INDICADORES!$CD$7,ASPECTOS!$E$7:$E$477,INDICADORES!$F10)*INDICADORES!K10) -> 0 | CH10: =+(SUMIFS(ASPECTOS!$F$7:$F$477,ASPECTOS!$A$7:$A$477,INDICADORES!$CD$7,ASPECTOS!$E$7:$E$477,INDICADORES!$F10)*INDICADORES!L10) -> 0 | CI10: =+(SUMIFS(ASPECTOS!$F$7:$F$477,ASPECTOS!$A$7:$A$477,INDICADORES!$CD$7,ASPECTOS!$E$7:$E$477,INDICADORES!$F10)*INDICADORES!M10) -> 0 | CJ10: =+(SUMIFS(ASPECTOS!$F$7:$F$477,ASPECTOS!$A$7:$A$477,INDICADORES!$CD$7,ASPECTOS!$E$7:$E$477,INDICADORES!$F10)*INDICADORES!N10) -> 0 | CK10: =+(SUMIFS(ASPECTOS!$F$7:$F$477,ASPECTOS!$A$7:$A$477,INDICADORES!$CD$7,ASPECTOS!$E$7:$E$477,INDICADORES!$F10)*INDICADORES!O10) -> 0 | CL10: =+(SUMIFS(ASPECTOS!$F$7:$F$477,ASPECTOS!$A$7:$A$477,INDICADORES!$CD$7,ASPECTOS!$E$7:$E$477,INDICADORES!$F10)*INDICADORES!P10) -> 0 | CM10: =+(SUMIFS(ASPECTOS!$F$7:$F$477,ASPECTOS!$A$7:$A$477,INDICADORES!$CD$7,ASPECTOS!$E$7:$E$477,INDICADORES!$F10)*INDICADORES!Q10) -> 0 | CN10: =+(SUMIFS(ASPECTOS!$F$7:$F$477,ASPECTOS!$A$7:$A$477,INDICADORES!$CD$7,ASPECTOS!$E$7:$E$477,INDICADORES!$F10)*INDICADORES!R10) -> 0 | CO10: =+(SUMIFS(ASPECTOS!$F$7:$F$477,ASPECTOS!$A$7:$A$477,INDICADORES!$CD$7,ASPECTOS!$E$7:$E$477,INDICADORES!$F10)*INDICADORES!S10) -> 0 | CP10: =+(SUMIFS(ASPECTOS!$F$7:$F$477,ASPECTOS!$A$7:$A$477,INDICADORES!$CD$7,ASPECTOS!$E$7:$E$477,INDICADORES!$F10)*INDICADORES!T10) -> 0 | CQ10: =+(SUMIFS(ASPECTOS!$F$7:$F$477,ASPECTOS!$A$7:$A$477,INDICADORES!$CD$7,ASPECTOS!$E$7:$E$477,INDICADORES!$F10)*INDICADORES!U10) -> 0 | CR10: =+(SUMIFS(ASPECTOS!$F$7:$F$477,ASPECTOS!$A$7:$A$477,INDICADORES!$CD$7,ASPECTOS!$E$7:$E$477,INDICADORES!$F10)*INDICADORES!V10) -> 0 | CS10: =+(SUMIFS(ASPECTOS!$F$7:$F$477,ASPECTOS!$A$7:$A$477,INDICADORES!$CD$7,ASPECTOS!$E$7:$E$477,INDICADORES!$F10)*INDICADORES!W10) -> 0 | CT10: =+(SUMIFS(ASPECTOS!$F$7:$F$477,ASPECTOS!$A$7:$A$477,INDICADORES!$CD$7,ASPECTOS!$E$7:$E$477,INDICADORES!$F10)*INDICADORES!X10) -> 0 | CU10: =+(SUMIFS(ASPECTOS!$F$7:$F$477,ASPECTOS!$A$7:$A$477,INDICADORES!$CD$7,ASPECTOS!$E$7:$E$477,INDICADORES!$F10)*INDICADORES!Y10) -> 0 | CV10: =+(SUMIFS(ASPECTOS!$F$7:$F$477,ASPECTOS!$A$7:$A$477,INDICADORES!$CD$7,ASPECTOS!$E$7:$E$477,INDICADORES!$F10)*INDICADORES!Z10) -> 0 | CW10: =+(SUMIFS(ASPECTOS!$F$7:$F$477,ASPECTOS!$A$7:$A$477,INDICADORES!$CD$7,ASPECTOS!$E$7:$E$477,INDICADORES!$F10)*INDICADORES!AA10) -> 0 | CX10: =+(SUMIFS(ASPECTOS!$F$7:$F$477,ASPECTOS!$A$7:$A$477,INDICADORES!$CD$7,ASPECTOS!$E$7:$E$477,INDICADORES!$F10)*INDICADORES!AB10) -> 0 | CY10: =+(SUMIFS(ASPECTOS!$F$7:$F$477,ASPECTOS!$A$7:$A$477,INDICADORES!$CD$7,ASPECTOS!$E$7:$E$477,INDICADORES!$F10)*INDICADORES!AC10) -> 0 | CZ10: =+(SUMIFS(ASPECTOS!$F$7:$F$477,ASPECTOS!$A$7:$A$477,INDICADORES!$CD$7,ASPECTOS!$E$7:$E$477,INDICADORES!$F10)*INDICADORES!AD10) -> 0 | DA10: =+(SUMIFS(ASPECTOS!$F$7:$F$477,ASPECTOS!$A$7:$A$477,INDICADORES!$CD$7,ASPECTOS!$E$7:$E$477,INDICADORES!$F10)*INDICADORES!AE10) -> 0 | DB10: =+(SUMIFS(ASPECTOS!$F$7:$F$477,ASPECTOS!$A$7:$A$477,INDICADORES!$CD$7,ASPECTOS!$E$7:$E$477,INDICADORES!$F10)*INDICADORES!AF10) -> 0 | DC10: =+(SUMIFS(ASPECTOS!$F$7:$F$477,ASPECTOS!$A$7:$A$477,INDICADORES!$DC$7,ASPECTOS!$E$7:$E$477,INDICADORES!$F10)*INDICADORES!H10) -> 0 | DD10: =+(SUMIFS(ASPECTOS!$F$7:$F$477,ASPECTOS!$A$7:$A$477,INDICADORES!$DC$7,ASPECTOS!$E$7:$E$477,INDICADORES!$F10)*INDICADORES!I10) -> 0 | DE10: =+(SUMIFS(ASPECTOS!$F$7:$F$477,ASPECTOS!$A$7:$A$477,INDICADORES!$DC$7,ASPECTOS!$E$7:$E$477,INDICADORES!$F10)*INDICADORES!J10) -> 0 | DF10: =+(SUMIFS(ASPECTOS!$F$7:$F$477,ASPECTOS!$A$7:$A$477,INDICADORES!$DC$7,ASPECTOS!$E$7:$E$477,INDICADORES!$F10)*INDICADORES!K10) -> 0 | DG10: =+(SUMIFS(ASPECTOS!$F$7:$F$477,ASPECTOS!$A$7:$A$477,INDICADORES!$DC$7,ASPECTOS!$E$7:$E$477,INDICADORES!$F10)*INDICADORES!L10) -> 0 | DH10: =+(SUMIFS(ASPECTOS!$F$7:$F$477,ASPECTOS!$A$7:$A$477,INDICADORES!$DC$7,ASPECTOS!$E$7:$E$477,INDICADORES!$F10)*INDICADORES!M10) -> 0 | DI10: =+(SUMIFS(ASPECTOS!$F$7:$F$477,ASPECTOS!$A$7:$A$477,INDICADORES!$DC$7,ASPECTOS!$E$7:$E$477,INDICADORES!$F10)*INDICADORES!N10) -> 0 | DJ10: =+(SUMIFS(ASPECTOS!$F$7:$F$477,ASPECTOS!$A$7:$A$477,INDICADORES!$DC$7,ASPECTOS!$E$7:$E$477,INDICADORES!$F10)*INDICADORES!O10) -> 0 | DK10: =+(SUMIFS(ASPECTOS!$F$7:$F$477,ASPECTOS!$A$7:$A$477,INDICADORES!$DC$7,ASPECTOS!$E$7:$E$477,INDICADORES!$F10)*INDICADORES!P10) -> 0 | DL10: =+(SUMIFS(ASPECTOS!$F$7:$F$477,ASPECTOS!$A$7:$A$477,INDICADORES!$DC$7,ASPECTOS!$E$7:$E$477,INDICADORES!$F10)*INDICADORES!Q10) -> 0 | DM10: =+(SUMIFS(ASPECTOS!$F$7:$F$477,ASPECTOS!$A$7:$A$477,INDICADORES!$DC$7,ASPECTOS!$E$7:$E$477,INDICADORES!$F10)*INDICADORES!R10) -> 0 | DN10: =+(SUMIFS(ASPECTOS!$F$7:$F$477,ASPECTOS!$A$7:$A$477,INDICADORES!$DC$7,ASPECTOS!$E$7:$E$477,INDICADORES!$F10)*INDICADORES!S10) -> 0 | DO10: =+(SUMIFS(ASPECTOS!$F$7:$F$477,ASPECTOS!$A$7:$A$477,INDICADORES!$DC$7,ASPECTOS!$E$7:$E$477,INDICADORES!$F10)*INDICADORES!T10) -> 0 | DP10: =+(SUMIFS(ASPECTOS!$F$7:$F$477,ASPECTOS!$A$7:$A$477,INDICADORES!$DC$7,ASPECTOS!$E$7:$E$477,INDICADORES!$F10)*INDICADORES!U10) -> 0 | DQ10: =+(SUMIFS(ASPECTOS!$F$7:$F$477,ASPECTOS!$A$7:$A$477,INDICADORES!$DC$7,ASPECTOS!$E$7:$E$477,INDICADORES!$F10)*INDICADORES!V10) -> 0 | DR10: =+(SUMIFS(ASPECTOS!$F$7:$F$477,ASPECTOS!$A$7:$A$477,INDICADORES!$DC$7,ASPECTOS!$E$7:$E$477,INDICADORES!$F10)*INDICADORES!W10) -> 0 | DS10: =+(SUMIFS(ASPECTOS!$F$7:$F$477,ASPECTOS!$A$7:$A$477,INDICADORES!$DC$7,ASPECTOS!$E$7:$E$477,INDICADORES!$F10)*INDICADORES!X10) -> 0 | DT10: =+(SUMIFS(ASPECTOS!$F$7:$F$477,ASPECTOS!$A$7:$A$477,INDICADORES!$DC$7,ASPECTOS!$E$7:$E$477,INDICADORES!$F10)*INDICADORES!Y10) -> 0 | DU10: =+(SUMIFS(ASPECTOS!$F$7:$F$477,ASPECTOS!$A$7:$A$477,INDICADORES!$DC$7,ASPECTOS!$E$7:$E$477,INDICADORES!$F10)*INDICADORES!Z10) -> 0 | DV10: =+(SUMIFS(ASPECTOS!$F$7:$F$477,ASPECTOS!$A$7:$A$477,INDICADORES!$DC$7,ASPECTOS!$E$7:$E$477,INDICADORES!$F10)*INDICADORES!AA10) -> 0 | DW10: =+(SUMIFS(ASPECTOS!$F$7:$F$477,ASPECTOS!$A$7:$A$477,INDICADORES!$DC$7,ASPECTOS!$E$7:$E$477,INDICADORES!$F10)*INDICADORES!AB10) -> 0 | DX10: =+(SUMIFS(ASPECTOS!$F$7:$F$477,ASPECTOS!$A$7:$A$477,INDICADORES!$DC$7,ASPECTOS!$E$7:$E$477,INDICADORES!$F10)*INDICADORES!AC10) -> 0 | DY10: =+(SUMIFS(ASPECTOS!$F$7:$F$477,ASPECTOS!$A$7:$A$477,INDICADORES!$DC$7,ASPECTOS!$E$7:$E$477,INDICADORES!$F10)*INDICADORES!AD10) -> 0 | DZ10: =+(SUMIFS(ASPECTOS!$F$7:$F$477,ASPECTOS!$A$7:$A$477,INDICADORES!$DC$7,ASPECTOS!$E$7:$E$477,INDICADORES!$F10)*INDICADORES!AE10) -> 0 | EA10: =+(SUMIFS(ASPECTOS!$F$7:$F$477,ASPECTOS!$A$7:$A$477,INDICADORES!$DC$7,ASPECTOS!$E$7:$E$477,INDICADORES!$F10)*INDICADORES!AF10) -> 0 | EB10: =+(SUMIFS(ASPECTOS!$F$7:$F$477,ASPECTOS!$A$7:$A$477,INDICADORES!$EB$7,ASPECTOS!$E$7:$E$477,INDICADORES!$F10)*H10) -> 0 | EC10: =+(SUMIFS(ASPECTOS!$F$7:$F$477,ASPECTOS!$A$7:$A$477,INDICADORES!$EB$7,ASPECTOS!$E$7:$E$477,INDICADORES!$F10)*I10) -> 0 | ED10: =+(SUMIFS(ASPECTOS!$F$7:$F$477,ASPECTOS!$A$7:$A$477,INDICADORES!$EB$7,ASPECTOS!$E$7:$E$477,INDICADORES!$F10)*J10) -> 0 | EE10: =+(SUMIFS(ASPECTOS!$F$7:$F$477,ASPECTOS!$A$7:$A$477,INDICADORES!$EB$7,ASPECTOS!$E$7:$E$477,INDICADORES!$F10)*K10) -> 0 | EF10: =+(SUMIFS(ASPECTOS!$F$7:$F$477,ASPECTOS!$A$7:$A$477,INDICADORES!$EB$7,ASPECTOS!$E$7:$E$477,INDICADORES!$F10)*L10) -> 0 | EG10: =+(SUMIFS(ASPECTOS!$F$7:$F$477,ASPECTOS!$A$7:$A$477,INDICADORES!$EB$7,ASPECTOS!$E$7:$E$477,INDICADORES!$F10)*M10) -> 0 | EH10: =+(SUMIFS(ASPECTOS!$F$7:$F$477,ASPECTOS!$A$7:$A$477,INDICADORES!$EB$7,ASPECTOS!$E$7:$E$477,INDICADORES!$F10)*N10) -> 0 | EI10: =+(SUMIFS(ASPECTOS!$F$7:$F$477,ASPECTOS!$A$7:$A$477,INDICADORES!$EB$7,ASPECTOS!$E$7:$E$477,INDICADORES!$F10)*O10) -> 0 | EJ10: =+(SUMIFS(ASPECTOS!$F$7:$F$477,ASPECTOS!$A$7:$A$477,INDICADORES!$EB$7,ASPECTOS!$E$7:$E$477,INDICADORES!$F10)*P10) -> 0 | EK10: =+(SUMIFS(ASPECTOS!$F$7:$F$477,ASPECTOS!$A$7:$A$477,INDICADORES!$EB$7,ASPECTOS!$E$7:$E$477,INDICADORES!$F10)*Q10) -> 0 | EL10: =+(SUMIFS(ASPECTOS!$F$7:$F$477,ASPECTOS!$A$7:$A$477,INDICADORES!$EB$7,ASPECTOS!$E$7:$E$477,INDICADORES!$F10)*R10) -> 0 | EM10: =+(SUMIFS(ASPECTOS!$F$7:$F$477,ASPECTOS!$A$7:$A$477,INDICADORES!$EB$7,ASPECTOS!$E$7:$E$477,INDICADORES!$F10)*S10) -> 0 | EN10: =+(SUMIFS(ASPECTOS!$F$7:$F$477,ASPECTOS!$A$7:$A$477,INDICADORES!$EB$7,ASPECTOS!$E$7:$E$477,INDICADORES!$F10)*T10) -> 0 | EO10: =+(SUMIFS(ASPECTOS!$F$7:$F$477,ASPECTOS!$A$7:$A$477,INDICADORES!$EB$7,ASPECTOS!$E$7:$E$477,INDICADORES!$F10)*U10) -> 0 | EP10: =+(SUMIFS(ASPECTOS!$F$7:$F$477,ASPECTOS!$A$7:$A$477,INDICADORES!$EB$7,ASPECTOS!$E$7:$E$477,INDICADORES!$F10)*V10) -> 0 | EQ10: =+(SUMIFS(ASPECTOS!$F$7:$F$477,ASPECTOS!$A$7:$A$477,INDICADORES!$EB$7,ASPECTOS!$E$7:$E$477,INDICADORES!$F10)*W10) -> 0 | ER10: =+(SUMIFS(ASPECTOS!$F$7:$F$477,ASPECTOS!$A$7:$A$477,INDICADORES!$EB$7,ASPECTOS!$E$7:$E$477,INDICADORES!$F10)*X10) -> 0 | ES10: =+(SUMIFS(ASPECTOS!$F$7:$F$477,ASPECTOS!$A$7:$A$477,INDICADORES!$EB$7,ASPECTOS!$E$7:$E$477,INDICADORES!$F10)*Y10) -> 0 | ET10: =+(SUMIFS(ASPECTOS!$F$7:$F$477,ASPECTOS!$A$7:$A$477,INDICADORES!$EB$7,ASPECTOS!$E$7:$E$477,INDICADORES!$F10)*Z10) -> 0 | EU10: =+(SUMIFS(ASPECTOS!$F$7:$F$477,ASPECTOS!$A$7:$A$477,INDICADORES!$EB$7,ASPECTOS!$E$7:$E$477,INDICADORES!$F10)*AA10) -> 0 | EV10: =+(SUMIFS(ASPECTOS!$F$7:$F$477,ASPECTOS!$A$7:$A$477,INDICADORES!$EB$7,ASPECTOS!$E$7:$E$477,INDICADORES!$F10)*AB10) -> 0 | EW10: =+(SUMIFS(ASPECTOS!$F$7:$F$477,ASPECTOS!$A$7:$A$477,INDICADORES!$EB$7,ASPECTOS!$E$7:$E$477,INDICADORES!$F10)*AC10) -> 0 | EX10: =+(SUMIFS(ASPECTOS!$F$7:$F$477,ASPECTOS!$A$7:$A$477,INDICADORES!$EB$7,ASPECTOS!$E$7:$E$477,INDICADORES!$F10)*AD10) -> 0 | EY10: =+(SUMIFS(ASPECTOS!$F$7:$F$477,ASPECTOS!$A$7:$A$477,INDICADORES!$EB$7,ASPECTOS!$E$7:$E$477,INDICADORES!$F10)*AE10) -> 0 | EZ10: =+(SUMIFS(ASPECTOS!$F$7:$F$477,ASPECTOS!$A$7:$A$477,INDICADORES!$EB$7,ASPECTOS!$E$7:$E$477,INDICADORES!$F10)*AF10) -> 0 | FB10: =BE10+CD10+DC10+EB10 -> 0 | FC10: =BF10+CE10+DD10+EC10 -> 0 | FD10: 0 | FE10: 0 | FF10: 0 | FG10: 0 | FH10: 0 | FI10: 0 | FJ10: 0 | FK10: 0 | FL10: 0 | FM10: 0 | FN10: 0 | FO10: 0 | FP10: 0 | FQ10: 0 | FR10: 0 | FS10: 0 | FT10: 0 | FU10: 0 | FV10: 0 | FW10: 0 | FX10: 0 | FY10: 0 | FZ10: 0 | GB10: Materiales | GC10: =+SUMIF(INDICADORES!$D$10:$D$235,$GB10,INDICADORES!FB$10:FB$235) -> 1528.225982 | GD10: =+SUMIF(INDICADORES!$D$10:$D$235,$GB10,INDICADORES!FC$10:FC$235) -> 2437.428443 | GE10: =+SUMIF(INDICADORES!$D$10:$D$235,$GB10,INDICADORES!FD$10:FD$235) -> 1.049686649 | GF10: =+SUMIF(INDICADORES!$D$10:$D$235,$GB10,INDICADORES!FE$10:FE$235) -> 381.0051094 | GG10: =+SUMIF(INDICADORES!$D$10:$D$235,$GB10,INDICADORES!FF$10:FF$235) -> 26704.16756 | GH10: =+SUMIF(INDICADORES!$D$10:$D$235,$GB10,INDICADORES!FG$10:FG$235) -> 38736344.96 | GI10: =+SUMIF(INDICADORES!$D$10:$D$235,$GB10,INDICADORES!FH$10:FH$235) -> 0.2546244962 | GJ10: =+SUMIF(INDICADORES!$D$10:$D$235,$GB10,INDICADORES!FI$10:FI$235) -> 2222.320449 | GK10: =+SUMIF(INDICADORES!$D$10:$D$235,$GB10,INDICADORES!FJ$10:FJ$235) -> 2.168966168 | GL10: =+SUMIF(INDICADORES!$D$10:$D$235,$GB10,INDICADORES!FK$10:FK$235) -> 301699.8239 | GM10: =+SUMIF(INDICADORES!$D$10:$D$235,$GB10,INDICADORES!FL$10:FL$235) -> 11257.24587 | GN10: =+SUMIF(INDICADORES!$D$10:$D$235,$GB10,INDICADORES!FM$10:FM$235) -> 2.010255547 | GO10: =+SUMIF(INDICADORES!$D$10:$D$235,$GB10,INDICADORES!FN$10:FN$235) -> 10926.3767 | GP10: =+SUMIF(INDICADORES!$D$10:$D$235,$GB10,INDICADORES!FO$10:FO$235) -> 55478010.02 | GQ10: =+SUMIF(INDICADORES!$D$10:$D$235,$GB10,INDICADORES!FP$10:FP$235) -> 78.55263725 | GR10: =+SUMIF(INDICADORES!$D$10:$D$235,$GB10,INDICADORES!FQ$10:FQ$235) -> 3188.917192 | GS10: =+SUMIF(INDICADORES!$D$10:$D$235,$GB10,INDICADORES!FR$10:FR$235) -> 726543.3982 | GT10: =+SUMIF(INDICADORES!$D$10:$D$235,$GB10,INDICADORES!FS$10:FS$235) -> 32896142.76 | GU10: =+SUMIF(INDICADORES!$D$10:$D$235,$GB10,INDICADORES!FT$10:FT$235) -> 4360063.682 | GV10: =+SUMIF(INDICADORES!$D$10:$D$235,$GB10,INDICADORES!FU$10:FU$235) -> 10872.69129 | GW10: =+SUMIF(INDICADORES!$D$10:$D$235,$GB10,INDICADORES!FV$10:FV$235) -> 37267079.13 | GX10: =+SUMIF(INDICADORES!$D$10:$D$235,$GB10,INDICADORES!FW$10:FW$235) -> 100068454 | GY10: =+SUMIF(INDICADORES!$D$10:$D$235,$GB10,INDICADORES!FX$10:FX$235) -> 1007738.047 | GZ10: =+SUMIF(INDICADORES!$D$10:$D$235,$GB10,INDICADORES!FY$10:FY$235) -> 359952.805 | HA10: =+SUMIF(INDICADORES!$D$10:$D$235,$GB10,INDICADORES!FZ$10:FZ$235) -> 101436144.9 | HC10: Materiales | HD10: Agua | HE10: =+SUMIFS(INDICADORES!FB$10:FB$235,INDICADORES!$D$10:$D$235,$HC10,INDICADORES!$E$10:$E$235,$HD10) -> 0 | HF10: =+SUMIFS(INDICADORES!FC$10:FC$235,INDICADORES!$D$10:$D$235,$HC10,INDICADORES!$E$10:$E$235,$HD10) -> 0 | HG10: =+SUMIFS(INDICADORES!FD$10:FD$235,INDICADORES!$D$10:$D$235,$HC10,INDICADORES!$E$10:$E$235,$HD10) -> 0 | HH10: =+SUMIFS(INDICADORES!FE$10:FE$235,INDICADORES!$D$10:$D$235,$HC10,INDICADORES!$E$10:$E$235,$HD10) -> 0 | HI10: =+SUMIFS(INDICADORES!FF$10:FF$235,INDICADORES!$D$10:$D$235,$HC10,INDICADORES!$E$10:$E$235,$HD10) -> 0 | HJ10: =+SUMIFS(INDICADORES!FG$10:FG$235,INDICADORES!$D$10:$D$235,$HC10,INDICADORES!$E$10:$E$235,$HD10) -> 0 | HK10: =+SUMIFS(INDICADORES!FH$10:FH$235,INDICADORES!$D$10:$D$235,$HC10,INDICADORES!$E$10:$E$235,$HD10) -> 0 | HL10: =+SUMIFS(INDICADORES!FI$10:FI$235,INDICADORES!$D$10:$D$235,$HC10,INDICADORES!$E$10:$E$235,$HD10) -> 0 | HM10: =+SUMIFS(INDICADORES!FJ$10:FJ$235,INDICADORES!$D$10:$D$235,$HC10,INDICADORES!$E$10:$E$235,$HD10) -> 0 | HN10: =+SUMIFS(INDICADORES!FK$10:FK$235,INDICADORES!$D$10:$D$235,$HC10,INDICADORES!$E$10:$E$235,$HD10) -> 0 | HO10: =+SUMIFS(INDICADORES!FL$10:FL$235,INDICADORES!$D$10:$D$235,$HC10,INDICADORES!$E$10:$E$235,$HD10) -> 0 | HP10: =+SUMIFS(INDICADORES!FM$10:FM$235,INDICADORES!$D$10:$D$235,$HC10,INDICADORES!$E$10:$E$235,$HD10) -> 0 | HQ10: =+SUMIFS(INDICADORES!FN$10:FN$235,INDICADORES!$D$10:$D$235,$HC10,INDICADORES!$E$10:$E$235,$HD10) -> 0 | HR10: =+SUMIFS(INDICADORES!FO$10:FO$235,INDICADORES!$D$10:$D$235,$HC10,INDICADORES!$E$10:$E$235,$HD10) -> 0 | HS10: =+SUMIFS(INDICADORES!FP$10:FP$235,INDICADORES!$D$10:$D$235,$HC10,INDICADORES!$E$10:$E$235,$HD10) -> 0 | HT10: =+SUMIFS(INDICADORES!FQ$10:FQ$235,INDICADORES!$D$10:$D$235,$HC10,INDICADORES!$E$10:$E$235,$HD10) -> 0 | HU10: =+SUMIFS(INDICADORES!FR$10:FR$235,INDICADORES!$D$10:$D$235,$HC10,INDICADORES!$E$10:$E$235,$HD10) -> 0 | HV10: =+SUMIFS(INDICADORES!FS$10:FS$235,INDICADORES!$D$10:$D$235,$HC10,INDICADORES!$E$10:$E$235,$HD10) -> 0 | HW10: =+SUMIFS(INDICADORES!FT$10:FT$235,INDICADORES!$D$10:$D$235,$HC10,INDICADORES!$E$10:$E$235,$HD10) -> 0 | HX10: =+SUMIFS(INDICADORES!FU$10:FU$235,INDICADORES!$D$10:$D$235,$HC10,INDICADORES!$E$10:$E$235,$HD10) -> 0 | HY10: =+SUMIFS(INDICADORES!FV$10:FV$235,INDICADORES!$D$10:$D$235,$HC10,INDICADORES!$E$10:$E$235,$HD10) -> 0 | HZ10: =+SUMIFS(INDICADORES!FW$10:FW$235,INDICADORES!$D$10:$D$235,$HC10,INDICADORES!$E$10:$E$235,$HD10) -> 0 | IA10: =+SUMIFS(INDICADORES!FX$10:FX$235,INDICADORES!$D$10:$D$235,$HC10,INDICADORES!$E$10:$E$235,$HD10) -> 0 | IB10: =+SUMIFS(INDICADORES!FY$10:FY$235,INDICADORES!$D$10:$D$235,$HC10,INDICADORES!$E$10:$E$235,$HD10) -> 0 | IC10: =+SUMIFS(INDICADORES!FZ$10:FZ$235,INDICADORES!$D$10:$D$235,$HC10,INDICADORES!$E$10:$E$235,$HD10) -> 0
B11: 189 | C11: MAg 002 | D11: Materiales | E11: Agua | F11: Agua no corriente | G11: m3 | H11: 0 | I11: 0 | J11: 0 | K11: 0 | L11: 0 | M11: 0 | N11: 0 | O11: 0 | P11: 0 | Q11: 0 | R11: 0 | S11: 0 | T11: 0 | U11: 0 | V11: 0 | W11: 1.66 | X11: 0 | Y11: 0 | Z11: 0 | AA11: 0 | AB11: 0 | AC11: 0 | AD11: 0 | AE11: 0 | AF11: 0 | AG11: A | AH11: N/A | AI11: N/A | AM11: =+(SUMIFS(ASPECTOS!$F$7:$F$477,ASPECTOS!$A$7:$A$477,INDICADORES!AM$8,ASPECTOS!$E$7:$E$477,INDICADORES!$F11)*$H11) -> 0 | AN11: =+(SUMIFS(ASPECTOS!$F$7:$F$477,ASPECTOS!$A$7:$A$477,INDICADORES!AN$8,ASPECTOS!$E$7:$E$477,INDICADORES!$F11)*$H11) -> 0 | AO11: =+(SUMIFS(ASPECTOS!$F$7:$F$477,ASPECTOS!$A$7:$A$477,INDICADORES!AO$8,ASPECTOS!$E$7:$E$477,INDICADORES!$F11)*$H11) -> 0 | AP11: =+(SUMIFS(ASPECTOS!$F$7:$F$477,ASPECTOS!$A$7:$A$477,INDICADORES!AP$8,ASPECTOS!$E$7:$E$477,INDICADORES!$F11)*$H11) -> 0 | AQ11: =+(SUMIFS(ASPECTOS!$F$7:$F$477,ASPECTOS!$A$7:$A$477,INDICADORES!AQ$8,ASPECTOS!$E$7:$E$477,INDICADORES!$F11)*$V11) -> 0 | AR11: =+(SUMIFS(ASPECTOS!$F$7:$F$477,ASPECTOS!$A$7:$A$477,INDICADORES!AR$8,ASPECTOS!$E$7:$E$477,INDICADORES!$F11)*$V11) -> 0 | AS11: =+(SUMIFS(ASPECTOS!$F$7:$F$477,ASPECTOS!$A$7:$A$477,INDICADORES!AS$8,ASPECTOS!$E$7:$E$477,INDICADORES!$F11)*$V11) -> 0 | AT11: =+(SUMIFS(ASPECTOS!$F$7:$F$477,ASPECTOS!$A$7:$A$477,INDICADORES!AT$8,ASPECTOS!$E$7:$E$477,INDICADORES!$F11)*$V11) -> 0 | AU11: =+(SUMIFS(ASPECTOS!$F$7:$F$477,ASPECTOS!$A$7:$A$477,INDICADORES!AU$8,ASPECTOS!$E$7:$E$477,INDICADORES!$F11)*$W11) -> 0 | AV11: =+(SUMIFS(ASPECTOS!$F$7:$F$477,ASPECTOS!$A$7:$A$477,INDICADORES!AV$8,ASPECTOS!$E$7:$E$477,INDICADORES!$F11)*$W11) -> 0 | AW11: =+(SUMIFS(ASPECTOS!$F$7:$F$477,ASPECTOS!$A$7:$A$477,INDICADORES!AW$8,ASPECTOS!$E$7:$E$477,INDICADORES!$F11)*$W11) -> 0 | AX11: =+(SUMIFS(ASPECTOS!$F$7:$F$477,ASPECTOS!$A$7:$A$477,INDICADORES!AX$8,ASPECTOS!$E$7:$E$477,INDICADORES!$F11)*$W11) -> 0 | AY11: =+(SUMIFS(ASPECTOS!$F$7:$F$477,ASPECTOS!$A$7:$A$477,INDICADORES!AY$8,ASPECTOS!$E$7:$E$477,INDICADORES!$F11)*$X11) -> 0 | AZ11: =+(SUMIFS(ASPECTOS!$F$7:$F$477,ASPECTOS!$A$7:$A$477,INDICADORES!AZ$8,ASPECTOS!$E$7:$E$477,INDICADORES!$F11)*$X11) -> 0 | BA11: =+(SUMIFS(ASPECTOS!$F$7:$F$477,ASPECTOS!$A$7:$A$477,INDICADORES!BA$8,ASPECTOS!$E$7:$E$477,INDICADORES!$F11)*$X11) -> 0 | BB11: =+(SUMIFS(ASPECTOS!$F$7:$F$477,ASPECTOS!$A$7:$A$477,INDICADORES!BB$8,ASPECTOS!$E$7:$E$477,INDICADORES!$F11)*$X11) -> 0 | BE11: =+(SUMIFS(ASPECTOS!$F$7:$F$477,ASPECTOS!$A$7:$A$477,INDICADORES!$BE$7,ASPECTOS!$E$7:$E$477,INDICADORES!$F11)*INDICADORES!H11) -> 0 | BF11: =+(SUMIFS(ASPECTOS!$F$7:$F$477,ASPECTOS!$A$7:$A$477,INDICADORES!$BE$7,ASPECTOS!$E$7:$E$477,INDICADORES!$F11)*INDICADORES!I11) -> 0 | BG11: =+(SUMIFS(ASPECTOS!$F$7:$F$477,ASPECTOS!$A$7:$A$477,INDICADORES!$BE$7,ASPECTOS!$E$7:$E$477,INDICADORES!$F11)*INDICADORES!J11) -> 0 | BH11: =+(SUMIFS(ASPECTOS!$F$7:$F$477,ASPECTOS!$A$7:$A$477,INDICADORES!$BE$7,ASPECTOS!$E$7:$E$477,INDICADORES!$F11)*INDICADORES!K11) -> 0 | BI11: =+(SUMIFS(ASPECTOS!$F$7:$F$477,ASPECTOS!$A$7:$A$477,INDICADORES!$BE$7,ASPECTOS!$E$7:$E$477,INDICADORES!$F11)*INDICADORES!L11) -> 0 | BJ11: =+(SUMIFS(ASPECTOS!$F$7:$F$477,ASPECTOS!$A$7:$A$477,INDICADORES!$BE$7,ASPECTOS!$E$7:$E$477,INDICADORES!$F11)*INDICADORES!M11) -> 0 | BK11: =+(SUMIFS(ASPECTOS!$F$7:$F$477,ASPECTOS!$A$7:$A$477,INDICADORES!$BE$7,ASPECTOS!$E$7:$E$477,INDICADORES!$F11)*INDICADORES!N11) -> 0 | BL11: =+(SUMIFS(ASPECTOS!$F$7:$F$477,ASPECTOS!$A$7:$A$477,INDICADORES!$BE$7,ASPECTOS!$E$7:$E$477,INDICADORES!$F11)*INDICADORES!O11) -> 0 | BM11: =+(SUMIFS(ASPECTOS!$F$7:$F$477,ASPECTOS!$A$7:$A$477,INDICADORES!$BE$7,ASPECTOS!$E$7:$E$477,INDICADORES!$F11)*INDICADORES!P11) -> 0 | BN11: =+(SUMIFS(ASPECTOS!$F$7:$F$477,ASPECTOS!$A$7:$A$477,INDICADORES!$BE$7,ASPECTOS!$E$7:$E$477,INDICADORES!$F11)*INDICADORES!Q11) -> 0 | BO11: =+(SUMIFS(ASPECTOS!$F$7:$F$477,ASPECTOS!$A$7:$A$477,INDICADORES!$BE$7,ASPECTOS!$E$7:$E$477,INDICADORES!$F11)*INDICADORES!R11) -> 0 | BP11: =+(SUMIFS(ASPECTOS!$F$7:$F$477,ASPECTOS!$A$7:$A$477,INDICADORES!$BE$7,ASPECTOS!$E$7:$E$477,INDICADORES!$F11)*INDICADORES!S11) -> 0 | BQ11: =+(SUMIFS(ASPECTOS!$F$7:$F$477,ASPECTOS!$A$7:$A$477,INDICADORES!$BE$7,ASPECTOS!$E$7:$E$477,INDICADORES!$F11)*INDICADORES!T11) -> 0 | BR11: =+(SUMIFS(ASPECTOS!$F$7:$F$477,ASPECTOS!$A$7:$A$477,INDICADORES!$BE$7,ASPECTOS!$E$7:$E$477,INDICADORES!$F11)*INDICADORES!U11) -> 0 | BS11: =+(SUMIFS(ASPECTOS!$F$7:$F$477,ASPECTOS!$A$7:$A$477,INDICADORES!$BE$7,ASPECTOS!$E$7:$E$477,INDICADORES!$F11)*INDICADORES!V11) -> 0 | BT11: =+(SUMIFS(ASPECTOS!$F$7:$F$477,ASPECTOS!$A$7:$A$477,INDICADORES!$BE$7,ASPECTOS!$E$7:$E$477,INDICADORES!$F11)*INDICADORES!W11) -> 0 | BU11: =+(SUMIFS(ASPECTOS!$F$7:$F$477,ASPECTOS!$A$7:$A$477,INDICADORES!$BE$7,ASPECTOS!$E$7:$E$477,INDICADORES!$F11)*INDICADORES!X11) -> 0 | BV11: =+(SUMIFS(ASPECTOS!$F$7:$F$477,ASPECTOS!$A$7:$A$477,INDICADORES!$BE$7,ASPECTOS!$E$7:$E$477,INDICADORES!$F11)*INDICADORES!Y11) -> 0 | BW11: =+(SUMIFS(ASPECTOS!$F$7:$F$477,ASPECTOS!$A$7:$A$477,INDICADORES!$BE$7,ASPECTOS!$E$7:$E$477,INDICADORES!$F11)*INDICADORES!Z11) -> 0 | BX11: =+(SUMIFS(ASPECTOS!$F$7:$F$477,ASPECTOS!$A$7:$A$477,INDICADORES!$BE$7,ASPECTOS!$E$7:$E$477,INDICADORES!$F11)*INDICADORES!AA11) -> 0 | BY11: =+(SUMIFS(ASPECTOS!$F$7:$F$477,ASPECTOS!$A$7:$A$477,INDICADORES!$BE$7,ASPECTOS!$E$7:$E$477,INDICADORES!$F11)*INDICADORES!AB11) -> 0 | BZ11: =+(SUMIFS(ASPECTOS!$F$7:$F$477,ASPECTOS!$A$7:$A$477,INDICADORES!$BE$7,ASPECTOS!$E$7:$E$477,INDICADORES!$F11)*INDICADORES!AC11) -> 0 | CA11: =+(SUMIFS(ASPECTOS!$F$7:$F$477,ASPECTOS!$A$7:$A$477,INDICADORES!$BE$7,ASPECTOS!$E$7:$E$477,INDICADORES!$F11)*INDICADORES!AD11) -> 0 | CB11: =+(SUMIFS(ASPECTOS!$F$7:$F$477,ASPECTOS!$A$7:$A$477,INDICADORES!$BE$7,ASPECTOS!$E$7:$E$477,INDICADORES!$F11)*INDICADORES!AE11) -> 0 | CC11: =+(SUMIFS(ASPECTOS!$F$7:$F$477,ASPECTOS!$A$7:$A$477,INDICADORES!$BE$7,ASPECTOS!$E$7:$E$477,INDICADORES!$F11)*INDICADORES!AF11) -> 0 | CD11: =+(SUMIFS(ASPECTOS!$F$7:$F$477,ASPECTOS!$A$7:$A$477,INDICADORES!$CD$7,ASPECTOS!$E$7:$E$477,INDICADORES!$F11)*INDICADORES!H11) -> 0 | CE11: =+(SUMIFS(ASPECTOS!$F$7:$F$477,ASPECTOS!$A$7:$A$477,INDICADORES!$CD$7,ASPECTOS!$E$7:$E$477,INDICADORES!$F11)*INDICADORES!I11) -> 0 | CF11: =+(SUMIFS(ASPECTOS!$F$7:$F$477,ASPECTOS!$A$7:$A$477,INDICADORES!$CD$7,ASPECTOS!$E$7:$E$477,INDICADORES!$F11)*INDICADORES!J11) -> 0 | CG11: =+(SUMIFS(ASPECTOS!$F$7:$F$477,ASPECTOS!$A$7:$A$477,INDICADORES!$CD$7,ASPECTOS!$E$7:$E$477,INDICADORES!$F11)*INDICADORES!K11) -> 0 | CH11: =+(SUMIFS(ASPECTOS!$F$7:$F$477,ASPECTOS!$A$7:$A$477,INDICADORES!$CD$7,ASPECTOS!$E$7:$E$477,INDICADORES!$F11)*INDICADORES!L11) -> 0 | CI11: =+(SUMIFS(ASPECTOS!$F$7:$F$477,ASPECTOS!$A$7:$A$477,INDICADORES!$CD$7,ASPECTOS!$E$7:$E$477,INDICADORES!$F11)*INDICADORES!M11) -> 0 | CJ11: =+(SUMIFS(ASPECTOS!$F$7:$F$477,ASPECTOS!$A$7:$A$477,INDICADORES!$CD$7,ASPECTOS!$E$7:$E$477,INDICADORES!$F11)*INDICADORES!N11) -> 0 | CK11: =+(SUMIFS(ASPECTOS!$F$7:$F$477,ASPECTOS!$A$7:$A$477,INDICADORES!$CD$7,ASPECTOS!$E$7:$E$477,INDICADORES!$F11)*INDICADORES!O11) -> 0 | CL11: =+(SUMIFS(ASPECTOS!$F$7:$F$477,ASPECTOS!$A$7:$A$477,INDICADORES!$CD$7,ASPECTOS!$E$7:$E$477,INDICADORES!$F11)*INDICADORES!P11) -> 0 | CM11: =+(SUMIFS(ASPECTOS!$F$7:$F$477,ASPECTOS!$A$7:$A$477,INDICADORES!$CD$7,ASPECTOS!$E$7:$E$477,INDICADORES!$F11)*INDICADORES!Q11) -> 0 | CN11: =+(SUMIFS(ASPECTOS!$F$7:$F$477,ASPECTOS!$A$7:$A$477,INDICADORES!$CD$7,ASPECTOS!$E$7:$E$477,INDICADORES!$F11)*INDICADORES!R11) -> 0 | CO11: =+(SUMIFS(ASPECTOS!$F$7:$F$477,ASPECTOS!$A$7:$A$477,INDICADORES!$CD$7,ASPECTOS!$E$7:$E$477,INDICADORES!$F11)*INDICADORES!S11) -> 0 | CP11: =+(SUMIFS(ASPECTOS!$F$7:$F$477,ASPECTOS!$A$7:$A$477,INDICADORES!$CD$7,ASPECTOS!$E$7:$E$477,INDICADORES!$F11)*INDICADORES!T11) -> 0 | CQ11: =+(SUMIFS(ASPECTOS!$F$7:$F$477,ASPECTOS!$A$7:$A$477,INDICADORES!$CD$7,ASPECTOS!$E$7:$E$477,INDICADORES!$F11)*INDICADORES!U11) -> 0 | CR11: =+(SUMIFS(ASPECTOS!$F$7:$F$477,ASPECTOS!$A$7:$A$477,INDICADORES!$CD$7,ASPECTOS!$E$7:$E$477,INDICADORES!$F11)*INDICADORES!V11) -> 0 | CS11: =+(SUMIFS(ASPECTOS!$F$7:$F$477,ASPECTOS!$A$7:$A$477,INDICADORES!$CD$7,ASPECTOS!$E$7:$E$477,INDICADORES!$F11)*INDICADORES!W11) -> 0 | CT11: =+(SUMIFS(ASPECTOS!$F$7:$F$477,ASPECTOS!$A$7:$A$477,INDICADORES!$CD$7,ASPECTOS!$E$7:$E$477,INDICADORES!$F11)*INDICADORES!X11) -> 0 | CU11: =+(SUMIFS(ASPECTOS!$F$7:$F$477,ASPECTOS!$A$7:$A$477,INDICADORES!$CD$7,ASPECTOS!$E$7:$E$477,INDICADORES!$F11)*INDICADORES!Y11) -> 0 | CV11: =+(SUMIFS(ASPECTOS!$F$7:$F$477,ASPECTOS!$A$7:$A$477,INDICADORES!$CD$7,ASPECTOS!$E$7:$E$477,INDICADORES!$F11)*INDICADORES!Z11) -> 0 | CW11: =+(SUMIFS(ASPECTOS!$F$7:$F$477,ASPECTOS!$A$7:$A$477,INDICADORES!$CD$7,ASPECTOS!$E$7:$E$477,INDICADORES!$F11)*INDICADORES!AA11) -> 0 | CX11: =+(SUMIFS(ASPECTOS!$F$7:$F$477,ASPECTOS!$A$7:$A$477,INDICADORES!$CD$7,ASPECTOS!$E$7:$E$477,INDICADORES!$F11)*INDICADORES!AB11) -> 0 | CY11: =+(SUMIFS(ASPECTOS!$F$7:$F$477,ASPECTOS!$A$7:$A$477,INDICADORES!$CD$7,ASPECTOS!$E$7:$E$477,INDICADORES!$F11)*INDICADORES!AC11) -> 0 | CZ11: =+(SUMIFS(ASPECTOS!$F$7:$F$477,ASPECTOS!$A$7:$A$477,INDICADORES!$CD$7,ASPECTOS!$E$7:$E$477,INDICADORES!$F11)*INDICADORES!AD11) -> 0 | DA11: =+(SUMIFS(ASPECTOS!$F$7:$F$477,ASPECTOS!$A$7:$A$477,INDICADORES!$CD$7,ASPECTOS!$E$7:$E$477,INDICADORES!$F11)*INDICADORES!AE11) -> 0 | DB11: =+(SUMIFS(ASPECTOS!$F$7:$F$477,ASPECTOS!$A$7:$A$477,INDICADORES!$CD$7,ASPECTOS!$E$7:$E$477,INDICADORES!$F11)*INDICADORES!AF11) -> 0 | DC11: =+(SUMIFS(ASPECTOS!$F$7:$F$477,ASPECTOS!$A$7:$A$477,INDICADORES!$DC$7,ASPECTOS!$E$7:$E$477,INDICADORES!$F11)*INDICADORES!H11) -> 0 | DD11: =+(SUMIFS(ASPECTOS!$F$7:$F$477,ASPECTOS!$A$7:$A$477,INDICADORES!$DC$7,ASPECTOS!$E$7:$E$477,INDICADORES!$F11)*INDICADORES!I11) -> 0 | DE11: =+(SUMIFS(ASPECTOS!$F$7:$F$477,ASPECTOS!$A$7:$A$477,INDICADORES!$DC$7,ASPECTOS!$E$7:$E$477,INDICADORES!$F11)*INDICADORES!J11) -> 0 | DF11: =+(SUMIFS(ASPECTOS!$F$7:$F$477,ASPECTOS!$A$7:$A$477,INDICADORES!$DC$7,ASPECTOS!$E$7:$E$477,INDICADORES!$F11)*INDICADORES!K11) -> 0 | DG11: =+(SUMIFS(ASPECTOS!$F$7:$F$477,ASPECTOS!$A$7:$A$477,INDICADORES!$DC$7,ASPECTOS!$E$7:$E$477,INDICADORES!$F11)*INDICADORES!L11) -> 0 | DH11: =+(SUMIFS(ASPECTOS!$F$7:$F$477,ASPECTOS!$A$7:$A$477,INDICADORES!$DC$7,ASPECTOS!$E$7:$E$477,INDICADORES!$F11)*INDICADORES!M11) -> 0 | DI11: =+(SUMIFS(ASPECTOS!$F$7:$F$477,ASPECTOS!$A$7:$A$477,INDICADORES!$DC$7,ASPECTOS!$E$7:$E$477,INDICADORES!$F11)*INDICADORES!N11) -> 0 | DJ11: =+(SUMIFS(ASPECTOS!$F$7:$F$477,ASPECTOS!$A$7:$A$477,INDICADORES!$DC$7,ASPECTOS!$E$7:$E$477,INDICADORES!$F11)*INDICADORES!O11) -> 0 | DK11: =+(SUMIFS(ASPECTOS!$F$7:$F$477,ASPECTOS!$A$7:$A$477,INDICADORES!$DC$7,ASPECTOS!$E$7:$E$477,INDICADORES!$F11)*INDICADORES!P11) -> 0 | DL11: =+(SUMIFS(ASPECTOS!$F$7:$F$477,ASPECTOS!$A$7:$A$477,INDICADORES!$DC$7,ASPECTOS!$E$7:$E$477,INDICADORES!$F11)*INDICADORES!Q11) -> 0 | DM11: =+(SUMIFS(ASPECTOS!$F$7:$F$477,ASPECTOS!$A$7:$A$477,INDICADORES!$DC$7,ASPECTOS!$E$7:$E$477,INDICADORES!$F11)*INDICADORES!R11) -> 0 | DN11: =+(SUMIFS(ASPECTOS!$F$7:$F$477,ASPECTOS!$A$7:$A$477,INDICADORES!$DC$7,ASPECTOS!$E$7:$E$477,INDICADORES!$F11)*INDICADORES!S11) -> 0 | DO11: =+(SUMIFS(ASPECTOS!$F$7:$F$477,ASPECTOS!$A$7:$A$477,INDICADORES!$DC$7,ASPECTOS!$E$7:$E$477,INDICADORES!$F11)*INDICADORES!T11) -> 0 | DP11: =+(SUMIFS(ASPECTOS!$F$7:$F$477,ASPECTOS!$A$7:$A$477,INDICADORES!$DC$7,ASPECTOS!$E$7:$E$477,INDICADORES!$F11)*INDICADORES!U11) -> 0 | DQ11: =+(SUMIFS(ASPECTOS!$F$7:$F$477,ASPECTOS!$A$7:$A$477,INDICADORES!$DC$7,ASPECTOS!$E$7:$E$477,INDICADORES!$F11)*INDICADORES!V11) -> 0 | DR11: =+(SUMIFS(ASPECTOS!$F$7:$F$477,ASPECTOS!$A$7:$A$477,INDICADORES!$DC$7,ASPECTOS!$E$7:$E$477,INDICADORES!$F11)*INDICADORES!W11) -> 0 | DS11: =+(SUMIFS(ASPECTOS!$F$7:$F$477,ASPECTOS!$A$7:$A$477,INDICADORES!$DC$7,ASPECTOS!$E$7:$E$477,INDICADORES!$F11)*INDICADORES!X11) -> 0 | DT11: =+(SUMIFS(ASPECTOS!$F$7:$F$477,ASPECTOS!$A$7:$A$477,INDICADORES!$DC$7,ASPECTOS!$E$7:$E$477,INDICADORES!$F11)*INDICADORES!Y11) -> 0 | DU11: =+(SUMIFS(ASPECTOS!$F$7:$F$477,ASPECTOS!$A$7:$A$477,INDICADORES!$DC$7,ASPECTOS!$E$7:$E$477,INDICADORES!$F11)*INDICADORES!Z11) -> 0 | DV11: =+(SUMIFS(ASPECTOS!$F$7:$F$477,ASPECTOS!$A$7:$A$477,INDICADORES!$DC$7,ASPECTOS!$E$7:$E$477,INDICADORES!$F11)*INDICADORES!AA11) -> 0 | DW11: =+(SUMIFS(ASPECTOS!$F$7:$F$477,ASPECTOS!$A$7:$A$477,INDICADORES!$DC$7,ASPECTOS!$E$7:$E$477,INDICADORES!$F11)*INDICADORES!AB11) -> 0 | DX11: =+(SUMIFS(ASPECTOS!$F$7:$F$477,ASPECTOS!$A$7:$A$477,INDICADORES!$DC$7,ASPECTOS!$E$7:$E$477,INDICADORES!$F11)*INDICADORES!AC11) -> 0 | DY11: =+(SUMIFS(ASPECTOS!$F$7:$F$477,ASPECTOS!$A$7:$A$477,INDICADORES!$DC$7,ASPECTOS!$E$7:$E$477,INDICADORES!$F11)*INDICADORES!AD11) -> 0 | DZ11: =+(SUMIFS(ASPECTOS!$F$7:$F$477,ASPECTOS!$A$7:$A$477,INDICADORES!$DC$7,ASPECTOS!$E$7:$E$477,INDICADORES!$F11)*INDICADORES!AE11) -> 0 | EA11: =+(SUMIFS(ASPECTOS!$F$7:$F$477,ASPECTOS!$A$7:$A$477,INDICADORES!$DC$7,ASPECTOS!$E$7:$E$477,INDICADORES!$F11)*INDICADORES!AF11) -> 0 | EB11: =+(SUMIFS(ASPECTOS!$F$7:$F$477,ASPECTOS!$A$7:$A$477,INDICADORES!$EB$7,ASPECTOS!$E$7:$E$477,INDICADORES!$F11)*H11) -> 0 | EC11: =+(SUMIFS(ASPECTOS!$F$7:$F$477,ASPECTOS!$A$7:$A$477,INDICADORES!$EB$7,ASPECTOS!$E$7:$E$477,INDICADORES!$F11)*I11) -> 0 | ED11: =+(SUMIFS(ASPECTOS!$F$7:$F$477,ASPECTOS!$A$7:$A$477,INDICADORES!$EB$7,ASPECTOS!$E$7:$E$477,INDICADORES!$F11)*J11) -> 0 | EE11: =+(SUMIFS(ASPECTOS!$F$7:$F$477,ASPECTOS!$A$7:$A$477,INDICADORES!$EB$7,ASPECTOS!$E$7:$E$477,INDICADORES!$F11)*K11) -> 0 | EF11: =+(SUMIFS(ASPECTOS!$F$7:$F$477,ASPECTOS!$A$7:$A$477,INDICADORES!$EB$7,ASPECTOS!$E$7:$E$477,INDICADORES!$F11)*L11) -> 0 | EG11: =+(SUMIFS(ASPECTOS!$F$7:$F$477,ASPECTOS!$A$7:$A$477,INDICADORES!$EB$7,ASPECTOS!$E$7:$E$477,INDICADORES!$F11)*M11) -> 0 | EH11: =+(SUMIFS(ASPECTOS!$F$7:$F$477,ASPECTOS!$A$7:$A$477,INDICADORES!$EB$7,ASPECTOS!$E$7:$E$477,INDICADORES!$F11)*N11) -> 0 | EI11: =+(SUMIFS(ASPECTOS!$F$7:$F$477,ASPECTOS!$A$7:$A$477,INDICADORES!$EB$7,ASPECTOS!$E$7:$E$477,INDICADORES!$F11)*O11) -> 0 | EJ11: =+(SUMIFS(ASPECTOS!$F$7:$F$477,ASPECTOS!$A$7:$A$477,INDICADORES!$EB$7,ASPECTOS!$E$7:$E$477,INDICADORES!$F11)*P11) -> 0 | EK11: =+(SUMIFS(ASPECTOS!$F$7:$F$477,ASPECTOS!$A$7:$A$477,INDICADORES!$EB$7,ASPECTOS!$E$7:$E$477,INDICADORES!$F11)*Q11) -> 0 | EL11: =+(SUMIFS(ASPECTOS!$F$7:$F$477,ASPECTOS!$A$7:$A$477,INDICADORES!$EB$7,ASPECTOS!$E$7:$E$477,INDICADORES!$F11)*R11) -> 0 | EM11: =+(SUMIFS(ASPECTOS!$F$7:$F$477,ASPECTOS!$A$7:$A$477,INDICADORES!$EB$7,ASPECTOS!$E$7:$E$477,INDICADORES!$F11)*S11) -> 0 | EN11: =+(SUMIFS(ASPECTOS!$F$7:$F$477,ASPECTOS!$A$7:$A$477,INDICADORES!$EB$7,ASPECTOS!$E$7:$E$477,INDICADORES!$F11)*T11) -> 0 | EO11: =+(SUMIFS(ASPECTOS!$F$7:$F$477,ASPECTOS!$A$7:$A$477,INDICADORES!$EB$7,ASPECTOS!$E$7:$E$477,INDICADORES!$F11)*U11) -> 0 | EP11: =+(SUMIFS(ASPECTOS!$F$7:$F$477,ASPECTOS!$A$7:$A$477,INDICADORES!$EB$7,ASPECTOS!$E$7:$E$477,INDICADORES!$F11)*V11) -> 0 | EQ11: =+(SUMIFS(ASPECTOS!$F$7:$F$477,ASPECTOS!$A$7:$A$477,INDICADORES!$EB$7,ASPECTOS!$E$7:$E$477,INDICADORES!$F11)*W11) -> 0 | ER11: =+(SUMIFS(ASPECTOS!$F$7:$F$477,ASPECTOS!$A$7:$A$477,INDICADORES!$EB$7,ASPECTOS!$E$7:$E$477,INDICADORES!$F11)*X11) -> 0 | ES11: =+(SUMIFS(ASPECTOS!$F$7:$F$477,ASPECTOS!$A$7:$A$477,INDICADORES!$EB$7,ASPECTOS!$E$7:$E$477,INDICADORES!$F11)*Y11) -> 0 | ET11: =+(SUMIFS(ASPECTOS!$F$7:$F$477,ASPECTOS!$A$7:$A$477,INDICADORES!$EB$7,ASPECTOS!$E$7:$E$477,INDICADORES!$F11)*Z11) -> 0 | EU11: =+(SUMIFS(ASPECTOS!$F$7:$F$477,ASPECTOS!$A$7:$A$477,INDICADORES!$EB$7,ASPECTOS!$E$7:$E$477,INDICADORES!$F11)*AA11) -> 0 | EV11: =+(SUMIFS(ASPECTOS!$F$7:$F$477,ASPECTOS!$A$7:$A$477,INDICADORES!$EB$7,ASPECTOS!$E$7:$E$477,INDICADORES!$F11)*AB11) -> 0 | EW11: =+(SUMIFS(ASPECTOS!$F$7:$F$477,ASPECTOS!$A$7:$A$477,INDICADORES!$EB$7,ASPECTOS!$E$7:$E$477,INDICADORES!$F11)*AC11) -> 0 | EX11: =+(SUMIFS(ASPECTOS!$F$7:$F$477,ASPECTOS!$A$7:$A$477,INDICADORES!$EB$7,ASPECTOS!$E$7:$E$477,INDICADORES!$F11)*AD11) -> 0 | EY11: =+(SUMIFS(ASPECTOS!$F$7:$F$477,ASPECTOS!$A$7:$A$477,INDICADORES!$EB$7,ASPECTOS!$E$7:$E$477,INDICADORES!$F11)*AE11) -> 0 | EZ11: =+(SUMIFS(ASPECTOS!$F$7:$F$477,ASPECTOS!$A$7:$A$477,INDICADORES!$EB$7,ASPECTOS!$E$7:$E$477,INDICADORES!$F11)*AF11) -> 0 | FB11: =BE11+CD11+DC11+EB11 -> 0 | FC11: =BF11+CE11+DD11+EC11 -> 0 | FD11: =BG11+CF11+DE11+ED11 -> 0 | FE11: =BH11+CG11+DF11+EE11 -> 0 | FF11: =BI11+CH11+DG11+EF11 -> 0 | FG11: =BJ11+CI11+DH11+EG11 -> 0 | FH11: =BK11+CJ11+DI11+EH11 -> 0 | FI11: =BL11+CK11+DJ11+EI11 -> 0 | FJ11: =BM11+CL11+DK11+EJ11 -> 0 | FK11: =BN11+CM11+DL11+EK11 -> 0 | FL11: =BO11+CN11+DM11+EL11 -> 0 | FM11: =BP11+CO11+DN11+EM11 -> 0 | FN11: =BQ11+CP11+DO11+EN11 -> 0 | FO11: =BR11+CQ11+DP11+EO11 -> 0 | FP11: =BS11+CR11+DQ11+EP11 -> 0 | FQ11: =BT11+CS11+DR11+EQ11 -> 0 | FR11: =BU11+CT11+DS11+ER11 -> 0 | FS11: =BV11+CU11+DT11+ES11 -> 0 | FT11: =BW11+CV11+DU11+ET11 -> 0 | FU11: =BX11+CW11+DV11+EU11 -> 0 | FV11: =BY11+CX11+DW11+EV11 -> 0 | FW11: =BZ11+CY11+DX11+EW11 -> 0 | FX11: =CA11+CZ11+DY11+EX11 -> 0 | FY11: =CB11+DA11+DZ11+EY11 -> 0 | FZ11: =CC11+DB11+EA11+EZ11 -> 0 | GB11: Procesos | GC11: =+SUMIF(INDICADORES!$D$10:$D$235,$GB11,INDICADORES!FB$10:FB$235) -> 0 | GD11: =+SUMIF(INDICADORES!$D$10:$D$235,$GB11,INDICADORES!FC$10:FC$235) -> 0 | GE11: =+SUMIF(INDICADORES!$D$10:$D$235,$GB11,INDICADORES!FD$10:FD$235) -> 0 | GF11: =+SUMIF(INDICADORES!$D$10:$D$235,$GB11,INDICADORES!FE$10:FE$235) -> 0 | GG11: =+SUMIF(INDICADORES!$D$10:$D$235,$GB11,INDICADORES!FF$10:FF$235) -> 0 | GH11: =+SUMIF(INDICADORES!$D$10:$D$235,$GB11,INDICADORES!FG$10:FG$235) -> 0 | GI11: =+SUMIF(INDICADORES!$D$10:$D$235,$GB11,INDICADORES!FH$10:FH$235) -> 0 | GJ11: =+SUMIF(INDICADORES!$D$10:$D$235,$GB11,INDICADORES!FI$10:FI$235) -> 0 | GK11: =+SUMIF(INDICADORES!$D$10:$D$235,$GB11,INDICADORES!FJ$10:FJ$235) -> 0 | GL11: =+SUMIF(INDICADORES!$D$10:$D$235,$GB11,INDICADORES!FK$10:FK$235) -> 0 | GM11: =+SUMIF(INDICADORES!$D$10:$D$235,$GB11,INDICADORES!FL$10:FL$235) -> 0 | GN11: =+SUMIF(INDICADORES!$D$10:$D$235,$GB11,INDICADORES!FM$10:FM$235) -> 0 | GO11: =+SUMIF(INDICADORES!$D$10:$D$235,$GB11,INDICADORES!FN$10:FN$235) -> 0 | GP11: =+SUMIF(INDICADORES!$D$10:$D$235,$GB11,INDICADORES!FO$10:FO$235) -> 0 | GQ11: =+SUMIF(INDICADORES!$D$10:$D$235,$GB11,INDICADORES!FP$10:FP$235) -> 0 | GR11: =+SUMIF(INDICADORES!$D$10:$D$235,$GB11,INDICADORES!FQ$10:FQ$235) -> 0 | GS11: =+SUMIF(INDICADORES!$D$10:$D$235,$GB11,INDICADORES!FR$10:FR$235) -> 0 | GT11: =+SUMIF(INDICADORES!$D$10:$D$235,$GB11,INDICADORES!FS$10:FS$235) -> 0 | GU11: =+SUMIF(INDICADORES!$D$10:$D$235,$GB11,INDICADORES!FT$10:FT$235) -> 0 | GV11: =+SUMIF(INDICADORES!$D$10:$D$235,$GB11,INDICADORES!FU$10:FU$235) -> 0 | GW11: =+SUMIF(INDICADORES!$D$10:$D$235,$GB11,INDICADORES!FV$10:FV$235) -> 0 | GX11: =+SUMIF(INDICADORES!$D$10:$D$235,$GB11,INDICADORES!FW$10:FW$235) -> 0 | GY11: =+SUMIF(INDICADORES!$D$10:$D$235,$GB11,INDICADORES!FX$10:FX$235) -> 0 | GZ11: =+SUMIF(INDICADORES!$D$10:$D$235,$GB11,INDICADORES!FY$10:FY$235) -> 0 | HA11: =+SUMIF(INDICADORES!$D$10:$D$235,$GB11,INDICADORES!FZ$10:FZ$235) -> 0 | HC11: Materiales | HD11: Construcción | HE11: =+SUMIFS(INDICADORES!FB$10:FB$235,INDICADORES!$D$10:$D$235,$HC11,INDICADORES!$E$10:$E$235,$HD11) -> 0 | HF11: =+SUMIFS(INDICADORES!FC$10:FC$235,INDICADORES!$D$10:$D$235,$HC11,INDICADORES!$E$10:$E$235,$HD11) -> 0 | HG11: =+SUMIFS(INDICADORES!FD$10:FD$235,INDICADORES!$D$10:$D$235,$HC11,INDICADORES!$E$10:$E$235,$HD11) -> 0 | HH11: =+SUMIFS(INDICADORES!FE$10:FE$235,INDICADORES!$D$10:$D$235,$HC11,INDICADORES!$E$10:$E$235,$HD11) -> 0 | HI11: =+SUMIFS(INDICADORES!FF$10:FF$235,INDICADORES!$D$10:$D$235,$HC11,INDICADORES!$E$10:$E$235,$HD11) -> 0 | HJ11: =+SUMIFS(INDICADORES!FG$10:FG$235,INDICADORES!$D$10:$D$235,$HC11,INDICADORES!$E$10:$E$235,$HD11) -> 0 | HK11: =+SUMIFS(INDICADORES!FH$10:FH$235,INDICADORES!$D$10:$D$235,$HC11,INDICADORES!$E$10:$E$235,$HD11) -> 0 | HL11: =+SUMIFS(INDICADORES!FI$10:FI$235,INDICADORES!$D$10:$D$235,$HC11,INDICADORES!$E$10:$E$235,$HD11) -> 0 | HM11: =+SUMIFS(INDICADORES!FJ$10:FJ$235,INDICADORES!$D$10:$D$235,$HC11,INDICADORES!$E$10:$E$235,$HD11) -> 0 | HN11: =+SUMIFS(INDICADORES!FK$10:FK$235,INDICADORES!$D$10:$D$235,$HC11,INDICADORES!$E$10:$E$235,$HD11) -> 0 | HO11: =+SUMIFS(INDICADORES!FL$10:FL$235,INDICADORES!$D$10:$D$235,$HC11,INDICADORES!$E$10:$E$235,$HD11) -> 0 | HP11: =+SUMIFS(INDICADORES!FM$10:FM$235,INDICADORES!$D$10:$D$235,$HC11,INDICADORES!$E$10:$E$235,$HD11) -> 0 | HQ11: =+SUMIFS(INDICADORES!FN$10:FN$235,INDICADORES!$D$10:$D$235,$HC11,INDICADORES!$E$10:$E$235,$HD11) -> 0 | HR11: =+SUMIFS(INDICADORES!FO$10:FO$235,INDICADORES!$D$10:$D$235,$HC11,INDICADORES!$E$10:$E$235,$HD11) -> 0 | HS11: =+SUMIFS(INDICADORES!FP$10:FP$235,INDICADORES!$D$10:$D$235,$HC11,INDICADORES!$E$10:$E$235,$HD11) -> 0 | HT11: =+SUMIFS(INDICADORES!FQ$10:FQ$235,INDICADORES!$D$10:$D$235,$HC11,INDICADORES!$E$10:$E$235,$HD11) -> 0 | HU11: =+SUMIFS(INDICADORES!FR$10:FR$235,INDICADORES!$D$10:$D$235,$HC11,INDICADORES!$E$10:$E$235,$HD11) -> 0 | HV11: =+SUMIFS(INDICADORES!FS$10:FS$235,INDICADORES!$D$10:$D$235,$HC11,INDICADORES!$E$10:$E$235,$HD11) -> 0 | HW11: =+SUMIFS(INDICADORES!FT$10:FT$235,INDICADORES!$D$10:$D$235,$HC11,INDICADORES!$E$10:$E$235,$HD11) -> 0 | HX11: =+SUMIFS(INDICADORES!FU$10:FU$235,INDICADORES!$D$10:$D$235,$HC11,INDICADORES!$E$10:$E$235,$HD11) -> 0 | HY11: =+SUMIFS(INDICADORES!FV$10:FV$235,INDICADORES!$D$10:$D$235,$HC11,INDICADORES!$E$10:$E$235,$HD11) -> 0 | HZ11: =+SUMIFS(INDICADORES!FW$10:FW$235,INDICADORES!$D$10:$D$235,$HC11,INDICADORES!$E$10:$E$235,$HD11) -> 0 | IA11: =+SUMIFS(INDICADORES!FX$10:FX$235,INDICADORES!$D$10:$D$235,$HC11,INDICADORES!$E$10:$E$235,$HD11) -> 0 | IB11: =+SUMIFS(INDICADORES!FY$10:FY$235,INDICADORES!$D$10:$D$235,$HC11,INDICADORES!$E$10:$E$235,$HD11) -> 0 | IC11: =+SUMIFS(INDICADORES!FZ$10:FZ$235,INDICADORES!$D$10:$D$235,$HC11,INDICADORES!$E$10:$E$235,$HD11) -> 0
B12: 11 | C12: MCo 010 | D12: Materiales | E12: Construcción | F12: Acero de armadura | G12: kg | H12: 0.001961910315 | I12: 0.001845598624 | J12: 4.758598362e-07 | K12: 0.001123449471 | L12: 0.01996864558 | M12: 36.71328354 | N12: 1.368805496e-07 | O12: 0.001362383948 | P12: 1.359889358e-06 | Q12: 0.1504900924 | R12: 0.008386748946 | S12: 1.193295947e-06 | T12: 0.01060158942 | U12: 2.789325682 | V12: 6.061217212e-05 | W12: 0.001929219758 | X12: 0.2822516258 | Y12: 21.12744215 | Z12: 2.240645406 | AA12: 0.0003788973248 | AB12: 23.36846645 | AC12: 0.3643132746 | AD12: 0.5459878533 | AE12: 0.5548742361 | AF12: 1.465175364 | AG12: M | AH12: 0.001 | AI12: N/A | AM12: =+(SUMIFS(ASPECTOS!$F$7:$F$477,ASPECTOS!$A$7:$A$477,INDICADORES!AM$8,ASPECTOS!$E$7:$E$477,INDICADORES!$F12)*$H12) -> 0 | AN12: =+(SUMIFS(ASPECTOS!$F$7:$F$477,ASPECTOS!$A$7:$A$477,INDICADORES!AN$8,ASPECTOS!$E$7:$E$477,INDICADORES!$F12)*$H12) -> 0 | AO12: =+(SUMIFS(ASPECTOS!$F$7:$F$477,ASPECTOS!$A$7:$A$477,INDICADORES!AO$8,ASPECTOS!$E$7:$E$477,INDICADORES!$F12)*$H12) -> 0 | AP12: =+(SUMIFS(ASPECTOS!$F$7:$F$477,ASPECTOS!$A$7:$A$477,INDICADORES!AP$8,ASPECTOS!$E$7:$E$477,INDICADORES!$F12)*$H12) -> 0 | AQ12: =+(SUMIFS(ASPECTOS!$F$7:$F$477,ASPECTOS!$A$7:$A$477,INDICADORES!AQ$8,ASPECTOS!$E$7:$E$477,INDICADORES!$F12)*$V12) -> 0 | AR12: =+(SUMIFS(ASPECTOS!$F$7:$F$477,ASPECTOS!$A$7:$A$477,INDICADORES!AR$8,ASPECTOS!$E$7:$E$477,INDICADORES!$F12)*$V12) -> 0 | AS12: =+(SUMIFS(ASPECTOS!$F$7:$F$477,ASPECTOS!$A$7:$A$477,INDICADORES!AS$8,ASPECTOS!$E$7:$E$477,INDICADORES!$F12)*$V12) -> 0 | AT12: =+(SUMIFS(ASPECTOS!$F$7:$F$477,ASPECTOS!$A$7:$A$477,INDICADORES!AT$8,ASPECTOS!$E$7:$E$477,INDICADORES!$F12)*$V12) -> 0 | AU12: =+(SUMIFS(ASPECTOS!$F$7:$F$477,ASPECTOS!$A$7:$A$477,INDICADORES!AU$8,ASPECTOS!$E$7:$E$477,INDICADORES!$F12)*$W12) -> 0 | AV12: =+(SUMIFS(ASPECTOS!$F$7:$F$477,ASPECTOS!$A$7:$A$477,INDICADORES!AV$8,ASPECTOS!$E$7:$E$477,INDICADORES!$F12)*$W12) -> 0 | AW12: =+(SUMIFS(ASPECTOS!$F$7:$F$477,ASPECTOS!$A$7:$A$477,INDICADORES!AW$8,ASPECTOS!$E$7:$E$477,INDICADORES!$F12)*$W12) -> 0 | AX12: =+(SUMIFS(ASPECTOS!$F$7:$F$477,ASPECTOS!$A$7:$A$477,INDICADORES!AX$8,ASPECTOS!$E$7:$E$477,INDICADORES!$F12)*$W12) -> 0 | AY12: =+(SUMIFS(ASPECTOS!$F$7:$F$477,ASPECTOS!$A$7:$A$477,INDICADORES!AY$8,ASPECTOS!$E$7:$E$477,INDICADORES!$F12)*$X12) -> 0 | AZ12: =+(SUMIFS(ASPECTOS!$F$7:$F$477,ASPECTOS!$A$7:$A$477,INDICADORES!AZ$8,ASPECTOS!$E$7:$E$477,INDICADORES!$F12)*$X12) -> 0 | BA12: =+(SUMIFS(ASPECTOS!$F$7:$F$477,ASPECTOS!$A$7:$A$477,INDICADORES!BA$8,ASPECTOS!$E$7:$E$477,INDICADORES!$F12)*$X12) -> 0 | BB12: =+(SUMIFS(ASPECTOS!$F$7:$F$477,ASPECTOS!$A$7:$A$477,INDICADORES!BB$8,ASPECTOS!$E$7:$E$477,INDICADORES!$F12)*$X12) -> 0 | BE12: =+(SUMIFS(ASPECTOS!$F$7:$F$477,ASPECTOS!$A$7:$A$477,INDICADORES!$BE$7,ASPECTOS!$E$7:$E$477,INDICADORES!$F12)*INDICADORES!H12) -> 0 | BF12: =+(SUMIFS(ASPECTOS!$F$7:$F$477,ASPECTOS!$A$7:$A$477,INDICADORES!$BE$7,ASPECTOS!$E$7:$E$477,INDICADORES!$F12)*INDICADORES!I12) -> 0 | BG12: =+(SUMIFS(ASPECTOS!$F$7:$F$477,ASPECTOS!$A$7:$A$477,INDICADORES!$BE$7,ASPECTOS!$E$7:$E$477,INDICADORES!$F12)*INDICADORES!J12) -> 0 | BH12: =+(SUMIFS(ASPECTOS!$F$7:$F$477,ASPECTOS!$A$7:$A$477,INDICADORES!$BE$7,ASPECTOS!$E$7:$E$477,INDICADORES!$F12)*INDICADORES!K12) -> 0 | BI12: =+(SUMIFS(ASPECTOS!$F$7:$F$477,ASPECTOS!$A$7:$A$477,INDICADORES!$BE$7,ASPECTOS!$E$7:$E$477,INDICADORES!$F12)*INDICADORES!L12) -> 0 | BJ12: =+(SUMIFS(ASPECTOS!$F$7:$F$477,ASPECTOS!$A$7:$A$477,INDICADORES!$BE$7,ASPECTOS!$E$7:$E$477,INDICADORES!$F12)*INDICADORES!M12) -> 0 | BK12: =+(SUMIFS(ASPECTOS!$F$7:$F$477,ASPECTOS!$A$7:$A$477,INDICADORES!$BE$7,ASPECTOS!$E$7:$E$477,INDICADORES!$F12)*INDICADORES!N12) -> 0 | BL12: =+(SUMIFS(ASPECTOS!$F$7:$F$477,ASPECTOS!$A$7:$A$477,INDICADORES!$BE$7,ASPECTOS!$E$7:$E$477,INDICADORES!$F12)*INDICADORES!O12) -> 0 | BM12: =+(SUMIFS(ASPECTOS!$F$7:$F$477,ASPECTOS!$A$7:$A$477,INDICADORES!$BE$7,ASPECTOS!$E$7:$E$477,INDICADORES!$F12)*INDICADORES!P12) -> 0 | BN12: =+(SUMIFS(ASPECTOS!$F$7:$F$477,ASPECTOS!$A$7:$A$477,INDICADORES!$BE$7,ASPECTOS!$E$7:$E$477,INDICADORES!$F12)*INDICADORES!Q12) -> 0 | BO12: =+(SUMIFS(ASPECTOS!$F$7:$F$477,ASPECTOS!$A$7:$A$477,INDICADORES!$BE$7,ASPECTOS!$E$7:$E$477,INDICADORES!$F12)*INDICADORES!R12) -> 0 | BP12: =+(SUMIFS(ASPECTOS!$F$7:$F$477,ASPECTOS!$A$7:$A$477,INDICADORES!$BE$7,ASPECTOS!$E$7:$E$477,INDICADORES!$F12)*INDICADORES!S12) -> 0 | BQ12: =+(SUMIFS(ASPECTOS!$F$7:$F$477,ASPECTOS!$A$7:$A$477,INDICADORES!$BE$7,ASPECTOS!$E$7:$E$477,INDICADORES!$F12)*INDICADORES!T12) -> 0 | BR12: =+(SUMIFS(ASPECTOS!$F$7:$F$477,ASPECTOS!$A$7:$A$477,INDICADORES!$BE$7,ASPECTOS!$E$7:$E$477,INDICADORES!$F12)*INDICADORES!U12) -> 0 | BS12: =+(SUMIFS(ASPECTOS!$F$7:$F$477,ASPECTOS!$A$7:$A$477,INDICADORES!$BE$7,ASPECTOS!$E$7:$E$477,INDICADORES!$F12)*INDICADORES!V12) -> 0 | BT12: =+(SUMIFS(ASPECTOS!$F$7:$F$477,ASPECTOS!$A$7:$A$477,INDICADORES!$BE$7,ASPECTOS!$E$7:$E$477,INDICADORES!$F12)*INDICADORES!W12) -> 0 | BU12: =+(SUMIFS(ASPECTOS!$F$7:$F$477,ASPECTOS!$A$7:$A$477,INDICADORES!$BE$7,ASPECTOS!$E$7:$E$477,INDICADORES!$F12)*INDICADORES!X12) -> 0 | BV12: =+(SUMIFS(ASPECTOS!$F$7:$F$477,ASPECTOS!$A$7:$A$477,INDICADORES!$BE$7,ASPECTOS!$E$7:$E$477,INDICADORES!$F12)*INDICADORES!Y12) -> 0 | BW12: =+(SUMIFS(ASPECTOS!$F$7:$F$477,ASPECTOS!$A$7:$A$477,INDICADORES!$BE$7,ASPECTOS!$E$7:$E$477,INDICADORES!$F12)*INDICADORES!Z12) -> 0 | BX12: =+(SUMIFS(ASPECTOS!$F$7:$F$477,ASPECTOS!$A$7:$A$477,INDICADORES!$BE$7,ASPECTOS!$E$7:$E$477,INDICADORES!$F12)*INDICADORES!AA12) -> 0 | BY12: =+(SUMIFS(ASPECTOS!$F$7:$F$477,ASPECTOS!$A$7:$A$477,INDICADORES!$BE$7,ASPECTOS!$E$7:$E$477,INDICADORES!$F12)*INDICADORES!AB12) -> 0 | BZ12: =+(SUMIFS(ASPECTOS!$F$7:$F$477,ASPECTOS!$A$7:$A$477,INDICADORES!$BE$7,ASPECTOS!$E$7:$E$477,INDICADORES!$F12)*INDICADORES!AC12) -> 0 | CA12: =+(SUMIFS(ASPECTOS!$F$7:$F$477,ASPECTOS!$A$7:$A$477,INDICADORES!$BE$7,ASPECTOS!$E$7:$E$477,INDICADORES!$F12)*INDICADORES!AD12) -> 0 | CB12: =+(SUMIFS(ASPECTOS!$F$7:$F$477,ASPECTOS!$A$7:$A$477,INDICADORES!$BE$7,ASPECTOS!$E$7:$E$477,INDICADORES!$F12)*INDICADORES!AE12) -> 0 | CC12: =+(SUMIFS(ASPECTOS!$F$7:$F$477,ASPECTOS!$A$7:$A$477,INDICADORES!$BE$7,ASPECTOS!$E$7:$E$477,INDICADORES!$F12)*INDICADORES!AF12) -> 0 | CD12: =+(SUMIFS(ASPECTOS!$F$7:$F$477,ASPECTOS!$A$7:$A$477,INDICADORES!$CD$7,ASPECTOS!$E$7:$E$477,INDICADORES!$F12)*INDICADORES!H12) -> 0 | CE12: =+(SUMIFS(ASPECTOS!$F$7:$F$477,ASPECTOS!$A$7:$A$477,INDICADORES!$CD$7,ASPECTOS!$E$7:$E$477,INDICADORES!$F12)*INDICADORES!I12) -> 0 | CF12: =+(SUMIFS(ASPECTOS!$F$7:$F$477,ASPECTOS!$A$7:$A$477,INDICADORES!$CD$7,ASPECTOS!$E$7:$E$477,INDICADORES!$F12)*INDICADORES!J12) -> 0 | CG12: =+(SUMIFS(ASPECTOS!$F$7:$F$477,ASPECTOS!$A$7:$A$477,INDICADORES!$CD$7,ASPECTOS!$E$7:$E$477,INDICADORES!$F12)*INDICADORES!K12) -> 0 | CH12: =+(SUMIFS(ASPECTOS!$F$7:$F$477,ASPECTOS!$A$7:$A$477,INDICADORES!$CD$7,ASPECTOS!$E$7:$E$477,INDICADORES!$F12)*INDICADORES!L12) -> 0 | CI12: =+(SUMIFS(ASPECTOS!$F$7:$F$477,ASPECTOS!$A$7:$A$477,INDICADORES!$CD$7,ASPECTOS!$E$7:$E$477,INDICADORES!$F12)*INDICADORES!M12) -> 0 | CJ12: =+(SUMIFS(ASPECTOS!$F$7:$F$477,ASPECTOS!$A$7:$A$477,INDICADORES!$CD$7,ASPECTOS!$E$7:$E$477,INDICADORES!$F12)*INDICADORES!N12) -> 0 | CK12: =+(SUMIFS(ASPECTOS!$F$7:$F$477,ASPECTOS!$A$7:$A$477,INDICADORES!$CD$7,ASPECTOS!$E$7:$E$477,INDICADORES!$F12)*INDICADORES!O12) -> 0 | CL12: =+(SUMIFS(ASPECTOS!$F$7:$F$477,ASPECTOS!$A$7:$A$477,INDICADORES!$CD$7,ASPECTOS!$E$7:$E$477,INDICADORES!$F12)*INDICADORES!P12) -> 0 | CM12: =+(SUMIFS(ASPECTOS!$F$7:$F$477,ASPECTOS!$A$7:$A$477,INDICADORES!$CD$7,ASPECTOS!$E$7:$E$477,INDICADORES!$F12)*INDICADORES!Q12) -> 0 | CN12: =+(SUMIFS(ASPECTOS!$F$7:$F$477,ASPECTOS!$A$7:$A$477,INDICADORES!$CD$7,ASPECTOS!$E$7:$E$477,INDICADORES!$F12)*INDICADORES!R12) -> 0 | CO12: =+(SUMIFS(ASPECTOS!$F$7:$F$477,ASPECTOS!$A$7:$A$477,INDICADORES!$CD$7,ASPECTOS!$E$7:$E$477,INDICADORES!$F12)*INDICADORES!S12) -> 0 | CP12: =+(SUMIFS(ASPECTOS!$F$7:$F$477,ASPECTOS!$A$7:$A$477,INDICADORES!$CD$7,ASPECTOS!$E$7:$E$477,INDICADORES!$F12)*INDICADORES!T12) -> 0 | CQ12: =+(SUMIFS(ASPECTOS!$F$7:$F$477,ASPECTOS!$A$7:$A$477,INDICADORES!$CD$7,ASPECTOS!$E$7:$E$477,INDICADORES!$F12)*INDICADORES!U12) -> 0 | CR12: =+(SUMIFS(ASPECTOS!$F$7:$F$477,ASPECTOS!$A$7:$A$477,INDICADORES!$CD$7,ASPECTOS!$E$7:$E$477,INDICADORES!$F12)*INDICADORES!V12) -> 0 | CS12: =+(SUMIFS(ASPECTOS!$F$7:$F$477,ASPECTOS!$A$7:$A$477,INDICADORES!$CD$7,ASPECTOS!$E$7:$E$477,INDICADORES!$F12)*INDICADORES!W12) -> 0 | CT12: =+(SUMIFS(ASPECTOS!$F$7:$F$477,ASPECTOS!$A$7:$A$477,INDICADORES!$CD$7,ASPECTOS!$E$7:$E$477,INDICADORES!$F12)*INDICADORES!X12) -> 0 | CU12: =+(SUMIFS(ASPECTOS!$F$7:$F$477,ASPECTOS!$A$7:$A$477,INDICADORES!$CD$7,ASPECTOS!$E$7:$E$477,INDICADORES!$F12)*INDICADORES!Y12) -> 0 | CV12: =+(SUMIFS(ASPECTOS!$F$7:$F$477,ASPECTOS!$A$7:$A$477,INDICADORES!$CD$7,ASPECTOS!$E$7:$E$477,INDICADORES!$F12)*INDICADORES!Z12) -> 0 | CW12: =+(SUMIFS(ASPECTOS!$F$7:$F$477,ASPECTOS!$A$7:$A$477,INDICADORES!$CD$7,ASPECTOS!$E$7:$E$477,INDICADORES!$F12)*INDICADORES!AA12) -> 0 | CX12: =+(SUMIFS(ASPECTOS!$F$7:$F$477,ASPECTOS!$A$7:$A$477,INDICADORES!$CD$7,ASPECTOS!$E$7:$E$477,INDICADORES!$F12)*INDICADORES!AB12) -> 0 | CY12: =+(SUMIFS(ASPECTOS!$F$7:$F$477,ASPECTOS!$A$7:$A$477,INDICADORES!$CD$7,ASPECTOS!$E$7:$E$477,INDICADORES!$F12)*INDICADORES!AC12) -> 0 | CZ12: =+(SUMIFS(ASPECTOS!$F$7:$F$477,ASPECTOS!$A$7:$A$477,INDICADORES!$CD$7,ASPECTOS!$E$7:$E$477,INDICADORES!$F12)*INDICADORES!AD12) -> 0 | DA12: =+(SUMIFS(ASPECTOS!$F$7:$F$477,ASPECTOS!$A$7:$A$477,INDICADORES!$CD$7,ASPECTOS!$E$7:$E$477,INDICADORES!$F12)*INDICADORES!AE12) -> 0 | DB12: =+(SUMIFS(ASPECTOS!$F$7:$F$477,ASPECTOS!$A$7:$A$477,INDICADORES!$CD$7,ASPECTOS!$E$7:$E$477,INDICADORES!$F12)*INDICADORES!AF12) -> 0 | DC12: =+(SUMIFS(ASPECTOS!$F$7:$F$477,ASPECTOS!$A$7:$A$477,INDICADORES!$DC$7,ASPECTOS!$E$7:$E$477,INDICADORES!$F12)*INDICADORES!H12) -> 0 | DD12: =+(SUMIFS(ASPECTOS!$F$7:$F$477,ASPECTOS!$A$7:$A$477,INDICADORES!$DC$7,ASPECTOS!$E$7:$E$477,INDICADORES!$F12)*INDICADORES!I12) -> 0 | DE12: =+(SUMIFS(ASPECTOS!$F$7:$F$477,ASPECTOS!$A$7:$A$477,INDICADORES!$DC$7,ASPECTOS!$E$7:$E$477,INDICADORES!$F12)*INDICADORES!J12) -> 0 | DF12: =+(SUMIFS(ASPECTOS!$F$7:$F$477,ASPECTOS!$A$7:$A$477,INDICADORES!$DC$7,ASPECTOS!$E$7:$E$477,INDICADORES!$F12)*INDICADORES!K12) -> 0 | DG12: =+(SUMIFS(ASPECTOS!$F$7:$F$477,ASPECTOS!$A$7:$A$477,INDICADORES!$DC$7,ASPECTOS!$E$7:$E$477,INDICADORES!$F12)*INDICADORES!L12) -> 0 | DH12: =+(SUMIFS(ASPECTOS!$F$7:$F$477,ASPECTOS!$A$7:$A$477,INDICADORES!$DC$7,ASPECTOS!$E$7:$E$477,INDICADORES!$F12)*INDICADORES!M12) -> 0 | DI12: =+(SUMIFS(ASPECTOS!$F$7:$F$477,ASPECTOS!$A$7:$A$477,INDICADORES!$DC$7,ASPECTOS!$E$7:$E$477,INDICADORES!$F12)*INDICADORES!N12) -> 0 | DJ12: =+(SUMIFS(ASPECTOS!$F$7:$F$477,ASPECTOS!$A$7:$A$477,INDICADORES!$DC$7,ASPECTOS!$E$7:$E$477,INDICADORES!$F12)*INDICADORES!O12) -> 0 | DK12: =+(SUMIFS(ASPECTOS!$F$7:$F$477,ASPECTOS!$A$7:$A$477,INDICADORES!$DC$7,ASPECTOS!$E$7:$E$477,INDICADORES!$F12)*INDICADORES!P12) -> 0 | DL12: =+(SUMIFS(ASPECTOS!$F$7:$F$477,ASPECTOS!$A$7:$A$477,INDICADORES!$DC$7,ASPECTOS!$E$7:$E$477,INDICADORES!$F12)*INDICADORES!Q12) -> 0 | DM12: =+(SUMIFS(ASPECTOS!$F$7:$F$477,ASPECTOS!$A$7:$A$477,INDICADORES!$DC$7,ASPECTOS!$E$7:$E$477,INDICADORES!$F12)*INDICADORES!R12) -> 0 | DN12: =+(SUMIFS(ASPECTOS!$F$7:$F$477,ASPECTOS!$A$7:$A$477,INDICADORES!$DC$7,ASPECTOS!$E$7:$E$477,INDICADORES!$F12)*INDICADORES!S12) -> 0 | DO12: =+(SUMIFS(ASPECTOS!$F$7:$F$477,ASPECTOS!$A$7:$A$477,INDICADORES!$DC$7,ASPECTOS!$E$7:$E$477,INDICADORES!$F12)*INDICADORES!T12) -> 0 | DP12: =+(SUMIFS(ASPECTOS!$F$7:$F$477,ASPECTOS!$A$7:$A$477,INDICADORES!$DC$7,ASPECTOS!$E$7:$E$477,INDICADORES!$F12)*INDICADORES!U12) -> 0 | DQ12: =+(SUMIFS(ASPECTOS!$F$7:$F$477,ASPECTOS!$A$7:$A$477,INDICADORES!$DC$7,ASPECTOS!$E$7:$E$477,INDICADORES!$F12)*INDICADORES!V12) -> 0 | DR12: =+(SUMIFS(ASPECTOS!$F$7:$F$477,ASPECTOS!$A$7:$A$477,INDICADORES!$DC$7,ASPECTOS!$E$7:$E$477,INDICADORES!$F12)*INDICADORES!W12) -> 0 | DS12: =+(SUMIFS(ASPECTOS!$F$7:$F$477,ASPECTOS!$A$7:$A$477,INDICADORES!$DC$7,ASPECTOS!$E$7:$E$477,INDICADORES!$F12)*INDICADORES!X12) -> 0 | DT12: =+(SUMIFS(ASPECTOS!$F$7:$F$477,ASPECTOS!$A$7:$A$477,INDICADORES!$DC$7,ASPECTOS!$E$7:$E$477,INDICADORES!$F12)*INDICADORES!Y12) -> 0 | DU12: =+(SUMIFS(ASPECTOS!$F$7:$F$477,ASPECTOS!$A$7:$A$477,INDICADORES!$DC$7,ASPECTOS!$E$7:$E$477,INDICADORES!$F12)*INDICADORES!Z12) -> 0 | DV12: =+(SUMIFS(ASPECTOS!$F$7:$F$477,ASPECTOS!$A$7:$A$477,INDICADORES!$DC$7,ASPECTOS!$E$7:$E$477,INDICADORES!$F12)*INDICADORES!AA12) -> 0 | DW12: =+(SUMIFS(ASPECTOS!$F$7:$F$477,ASPECTOS!$A$7:$A$477,INDICADORES!$DC$7,ASPECTOS!$E$7:$E$477,INDICADORES!$F12)*INDICADORES!AB12) -> 0 | DX12: =+(SUMIFS(ASPECTOS!$F$7:$F$477,ASPECTOS!$A$7:$A$477,INDICADORES!$DC$7,ASPECTOS!$E$7:$E$477,INDICADORES!$F12)*INDICADORES!AC12) -> 0 | DY12: =+(SUMIFS(ASPECTOS!$F$7:$F$477,ASPECTOS!$A$7:$A$477,INDICADORES!$DC$7,ASPECTOS!$E$7:$E$477,INDICADORES!$F12)*INDICADORES!AD12) -> 0 | DZ12: =+(SUMIFS(ASPECTOS!$F$7:$F$477,ASPECTOS!$A$7:$A$477,INDICADORES!$DC$7,ASPECTOS!$E$7:$E$477,INDICADORES!$F12)*INDICADORES!AE12) -> 0 | EA12: =+(SUMIFS(ASPECTOS!$F$7:$F$477,ASPECTOS!$A$7:$A$477,INDICADORES!$DC$7,ASPECTOS!$E$7:$E$477,INDICADORES!$F12)*INDICADORES!AF12) -> 0 | EB12: =+(SUMIFS(ASPECTOS!$F$7:$F$477,ASPECTOS!$A$7:$A$477,INDICADORES!$EB$7,ASPECTOS!$E$7:$E$477,INDICADORES!$F12)*H12) -> 0 | EC12: =+(SUMIFS(ASPECTOS!$F$7:$F$477,ASPECTOS!$A$7:$A$477,INDICADORES!$EB$7,ASPECTOS!$E$7:$E$477,INDICADORES!$F12)*I12) -> 0 | ED12: =+(SUMIFS(ASPECTOS!$F$7:$F$477,ASPECTOS!$A$7:$A$477,INDICADORES!$EB$7,ASPECTOS!$E$7:$E$477,INDICADORES!$F12)*J12) -> 0 | EE12: =+(SUMIFS(ASPECTOS!$F$7:$F$477,ASPECTOS!$A$7:$A$477,INDICADORES!$EB$7,ASPECTOS!$E$7:$E$477,INDICADORES!$F12)*K12) -> 0 | EF12: =+(SUMIFS(ASPECTOS!$F$7:$F$477,ASPECTOS!$A$7:$A$477,INDICADORES!$EB$7,ASPECTOS!$E$7:$E$477,INDICADORES!$F12)*L12) -> 0 | EG12: =+(SUMIFS(ASPECTOS!$F$7:$F$477,ASPECTOS!$A$7:$A$477,INDICADORES!$EB$7,ASPECTOS!$E$7:$E$477,INDICADORES!$F12)*M12) -> 0 | EH12: =+(SUMIFS(ASPECTOS!$F$7:$F$477,ASPECTOS!$A$7:$A$477,INDICADORES!$EB$7,ASPECTOS!$E$7:$E$477,INDICADORES!$F12)*N12) -> 0 | EI12: =+(SUMIFS(ASPECTOS!$F$7:$F$477,ASPECTOS!$A$7:$A$477,INDICADORES!$EB$7,ASPECTOS!$E$7:$E$477,INDICADORES!$F12)*O12) -> 0 | EJ12: =+(SUMIFS(ASPECTOS!$F$7:$F$477,ASPECTOS!$A$7:$A$477,INDICADORES!$EB$7,ASPECTOS!$E$7:$E$477,INDICADORES!$F12)*P12) -> 0 | EK12: =+(SUMIFS(ASPECTOS!$F$7:$F$477,ASPECTOS!$A$7:$A$477,INDICADORES!$EB$7,ASPECTOS!$E$7:$E$477,INDICADORES!$F12)*Q12) -> 0 | EL12: =+(SUMIFS(ASPECTOS!$F$7:$F$477,ASPECTOS!$A$7:$A$477,INDICADORES!$EB$7,ASPECTOS!$E$7:$E$477,INDICADORES!$F12)*R12) -> 0 | EM12: =+(SUMIFS(ASPECTOS!$F$7:$F$477,ASPECTOS!$A$7:$A$477,INDICADORES!$EB$7,ASPECTOS!$E$7:$E$477,INDICADORES!$F12)*S12) -> 0 | EN12: =+(SUMIFS(ASPECTOS!$F$7:$F$477,ASPECTOS!$A$7:$A$477,INDICADORES!$EB$7,ASPECTOS!$E$7:$E$477,INDICADORES!$F12)*T12) -> 0 | EO12: =+(SUMIFS(ASPECTOS!$F$7:$F$477,ASPECTOS!$A$7:$A$477,INDICADORES!$EB$7,ASPECTOS!$E$7:$E$477,INDICADORES!$F12)*U12) -> 0 | EP12: =+(SUMIFS(ASPECTOS!$F$7:$F$477,ASPECTOS!$A$7:$A$477,INDICADORES!$EB$7,ASPECTOS!$E$7:$E$477,INDICADORES!$F12)*V12) -> 0 | EQ12: =+(SUMIFS(ASPECTOS!$F$7:$F$477,ASPECTOS!$A$7:$A$477,INDICADORES!$EB$7,ASPECTOS!$E$7:$E$477,INDICADORES!$F12)*W12) -> 0 | ER12: =+(SUMIFS(ASPECTOS!$F$7:$F$477,ASPECTOS!$A$7:$A$477,INDICADORES!$EB$7,ASPECTOS!$E$7:$E$477,INDICADORES!$F12)*X12) -> 0 | ES12: =+(SUMIFS(ASPECTOS!$F$7:$F$477,ASPECTOS!$A$7:$A$477,INDICADORES!$EB$7,ASPECTOS!$E$7:$E$477,INDICADORES!$F12)*Y12) -> 0 | ET12: =+(SUMIFS(ASPECTOS!$F$7:$F$477,ASPECTOS!$A$7:$A$477,INDICADORES!$EB$7,ASPECTOS!$E$7:$E$477,INDICADORES!$F12)*Z12) -> 0 | EU12: =+(SUMIFS(ASPECTOS!$F$7:$F$477,ASPECTOS!$A$7:$A$477,INDICADORES!$EB$7,ASPECTOS!$E$7:$E$477,INDICADORES!$F12)*AA12) -> 0 | EV12: =+(SUMIFS(ASPECTOS!$F$7:$F$477,ASPECTOS!$A$7:$A$477,INDICADORES!$EB$7,ASPECTOS!$E$7:$E$477,INDICADORES!$F12)*AB12) -> 0 | EW12: =+(SUMIFS(ASPECTOS!$F$7:$F$477,ASPECTOS!$A$7:$A$477,INDICADORES!$EB$7,ASPECTOS!$E$7:$E$477,INDICADORES!$F12)*AC12) -> 0 | EX12: =+(SUMIFS(ASPECTOS!$F$7:$F$477,ASPECTOS!$A$7:$A$477,INDICADORES!$EB$7,ASPECTOS!$E$7:$E$477,INDICADORES!$F12)*AD12) -> 0 | EY12: =+(SUMIFS(ASPECTOS!$F$7:$F$477,ASPECTOS!$A$7:$A$477,INDICADORES!$EB$7,ASPECTOS!$E$7:$E$477,INDICADORES!$F12)*AE12) -> 0 | EZ12: =+(SUMIFS(ASPECTOS!$F$7:$F$477,ASPECTOS!$A$7:$A$477,INDICADORES!$EB$7,ASPECTOS!$E$7:$E$477,INDICADORES!$F12)*AF12) -> 0 | FB12: 0 | FC12: 0 | FD12: 0 | FE12: 0 | FF12: 0 | FG12: 0 | FH12: 0 | FI12: 0 | FJ12: 0 | FK12: 0 | FL12: 0 | FM12: 0 | FN12: 0 | FO12: 0 | FP12: 0 | FQ12: 0 | FR12: 0 | FS12: 0 | FT12: 0 | FU12: 0 | FV12: 0 | FW12: 0 | FX12: 0 | FY12: 0 | FZ12: 0 | GB12: Energía | GC12: =+SUMIF(INDICADORES!$D$10:$D$235,$GB12,INDICADORES!FB$10:FB$235) -> 808548.2714 | GD12: =+SUMIF(INDICADORES!$D$10:$D$235,$GB12,INDICADORES!FC$10:FC$235) -> 844391.8323 | GE12: =+SUMIF(INDICADORES!$D$10:$D$235,$GB12,INDICADORES!FD$10:FD$235) -> 1085.963498 | GF12: =+SUMIF(INDICADORES!$D$10:$D$235,$GB12,INDICADORES!FE$10:FE$235) -> 219666.6215 | GG12: =+SUMIF(INDICADORES!$D$10:$D$235,$GB12,INDICADORES!FF$10:FF$235) -> 8695954.03 | GH12: =+SUMIF(INDICADORES!$D$10:$D$235,$GB12,INDICADORES!FG$10:FG$235) -> 2785609464 | GI12: =+SUMIF(INDICADORES!$D$10:$D$235,$GB12,INDICADORES!FH$10:FH$235) -> 110.6432424 | GJ12: =+SUMIF(INDICADORES!$D$10:$D$235,$GB12,INDICADORES!FI$10:FI$235) -> 427448.3403 | GK12: =+SUMIF(INDICADORES!$D$10:$D$235,$GB12,INDICADORES!FJ$10:FJ$235) -> 110.5104965 | GL12: =+SUMIF(INDICADORES!$D$10:$D$235,$GB12,INDICADORES!FK$10:FK$235) -> 404882868.6 | GM12: =+SUMIF(INDICADORES!$D$10:$D$235,$GB12,INDICADORES!FL$10:FL$235) -> 2429969.079 | GN12: =+SUMIF(INDICADORES!$D$10:$D$235,$GB12,INDICADORES!FM$10:FM$235) -> 25.03045574 | GO12: =+SUMIF(INDICADORES!$D$10:$D$235,$GB12,INDICADORES!FN$10:FN$235) -> 6248699.306 | GP12: =+SUMIF(INDICADORES!$D$10:$D$235,$GB12,INDICADORES!FO$10:FO$235) -> 802741368.1 | GQ12: =+SUMIF(INDICADORES!$D$10:$D$235,$GB12,INDICADORES!FP$10:FP$235) -> 4554.814935 | GR12: =+SUMIF(INDICADORES!$D$10:$D$235,$GB12,INDICADORES!FQ$10:FQ$235) -> 3102730.306 | GS12: =+SUMIF(INDICADORES!$D$10:$D$235,$GB12,INDICADORES!FR$10:FR$235) -> 73676347.04 | GT12: =+SUMIF(INDICADORES!$D$10:$D$235,$GB12,INDICADORES!FS$10:FS$235) -> 9912796848 | GU12: =+SUMIF(INDICADORES!$D$10:$D$235,$GB12,INDICADORES!FT$10:FT$235) -> 6759497920 | GV12: =+SUMIF(INDICADORES!$D$10:$D$235,$GB12,INDICADORES!FU$10:FU$235) -> 355417.0088 | GW12: =+SUMIF(INDICADORES!$D$10:$D$235,$GB12,INDICADORES!FV$10:FV$235) -> 1.667265018e+10 | GX12: =+SUMIF(INDICADORES!$D$10:$D$235,$GB12,INDICADORES!FW$10:FW$235) -> 485794304.4 | GY12: =+SUMIF(INDICADORES!$D$10:$D$235,$GB12,INDICADORES!FX$10:FX$235) -> 1645695535 | GZ12: =+SUMIF(INDICADORES!$D$10:$D$235,$GB12,INDICADORES!FY$10:FY$235) -> 477220256.2 | HA12: =+SUMIF(INDICADORES!$D$10:$D$235,$GB12,INDICADORES!FZ$10:FZ$235) -> 2608710096 | HC12: Materiales | HD12: Eléctrico electrónico | HE12: =+SUMIFS(INDICADORES!FB$10:FB$235,INDICADORES!$D$10:$D$235,$HC12,INDICADORES!$E$10:$E$235,$HD12) -> 0 | HF12: =+SUMIFS(INDICADORES!FC$10:FC$235,INDICADORES!$D$10:$D$235,$HC12,INDICADORES!$E$10:$E$235,$HD12) -> 0 | HG12: =+SUMIFS(INDICADORES!FD$10:FD$235,INDICADORES!$D$10:$D$235,$HC12,INDICADORES!$E$10:$E$235,$HD12) -> 0 | HH12: =+SUMIFS(INDICADORES!FE$10:FE$235,INDICADORES!$D$10:$D$235,$HC12,INDICADORES!$E$10:$E$235,$HD12) -> 0 | HI12: =+SUMIFS(INDICADORES!FF$10:FF$235,INDICADORES!$D$10:$D$235,$HC12,INDICADORES!$E$10:$E$235,$HD12) -> 0 | HJ12: =+SUMIFS(INDICADORES!FG$10:FG$235,INDICADORES!$D$10:$D$235,$HC12,INDICADORES!$E$10:$E$235,$HD12) -> 0 | HK12: =+SUMIFS(INDICADORES!FH$10:FH$235,INDICADORES!$D$10:$D$235,$HC12,INDICADORES!$E$10:$E$235,$HD12) -> 0 | HL12: =+SUMIFS(INDICADORES!FI$10:FI$235,INDICADORES!$D$10:$D$235,$HC12,INDICADORES!$E$10:$E$235,$HD12) -> 0 | HM12: =+SUMIFS(INDICADORES!FJ$10:FJ$235,INDICADORES!$D$10:$D$235,$HC12,INDICADORES!$E$10:$E$235,$HD12) -> 0 | HN12: =+SUMIFS(INDICADORES!FK$10:FK$235,INDICADORES!$D$10:$D$235,$HC12,INDICADORES!$E$10:$E$235,$HD12) -> 0 | HO12: =+SUMIFS(INDICADORES!FL$10:FL$235,INDICADORES!$D$10:$D$235,$HC12,INDICADORES!$E$10:$E$235,$HD12) -> 0 | HP12: =+SUMIFS(INDICADORES!FM$10:FM$235,INDICADORES!$D$10:$D$235,$HC12,INDICADORES!$E$10:$E$235,$HD12) -> 0 | HQ12: =+SUMIFS(INDICADORES!FN$10:FN$235,INDICADORES!$D$10:$D$235,$HC12,INDICADORES!$E$10:$E$235,$HD12) -> 0 | HR12: =+SUMIFS(INDICADORES!FO$10:FO$235,INDICADORES!$D$10:$D$235,$HC12,INDICADORES!$E$10:$E$235,$HD12) -> 0 | HS12: =+SUMIFS(INDICADORES!FP$10:FP$235,INDICADORES!$D$10:$D$235,$HC12,INDICADORES!$E$10:$E$235,$HD12) -> 0 | HT12: =+SUMIFS(INDICADORES!FQ$10:FQ$235,INDICADORES!$D$10:$D$235,$HC12,INDICADORES!$E$10:$E$235,$HD12) -> 0 | HU12: =+SUMIFS(INDICADORES!FR$10:FR$235,INDICADORES!$D$10:$D$235,$HC12,INDICADORES!$E$10:$E$235,$HD12) -> 0 | HV12: =+SUMIFS(INDICADORES!FS$10:FS$235,INDICADORES!$D$10:$D$235,$HC12,INDICADORES!$E$10:$E$235,$HD12) -> 0 | HW12: =+SUMIFS(INDICADORES!FT$10:FT$235,INDICADORES!$D$10:$D$235,$HC12,INDICADORES!$E$10:$E$235,$HD12) -> 0 | HX12: =+SUMIFS(INDICADORES!FU$10:FU$235,INDICADORES!$D$10:$D$235,$HC12,INDICADORES!$E$10:$E$235,$HD12) -> 0 | HY12: =+SUMIFS(INDICADORES!FV$10:FV$235,INDICADORES!$D$10:$D$235,$HC12,INDICADORES!$E$10:$E$235,$HD12) -> 0 | HZ12: =+SUMIFS(INDICADORES!FW$10:FW$235,INDICADORES!$D$10:$D$235,$HC12,INDICADORES!$E$10:$E$235,$HD12) -> 0 | IA12: =+SUMIFS(INDICADORES!FX$10:FX$235,INDICADORES!$D$10:$D$235,$HC12,INDICADORES!$E$10:$E$235,$HD12) -> 0 | IB12: =+SUMIFS(INDICADORES!FY$10:FY$235,INDICADORES!$D$10:$D$235,$HC12,INDICADORES!$E$10:$E$235,$HD12) -> 0 | IC12: =+SUMIFS(INDICADORES!FZ$10:FZ$235,INDICADORES!$D$10:$D$235,$HC12,INDICADORES!$E$10:$E$235,$HD12) -> 0
B13: 7 | C13: MCo 006 | D13: Materiales | E13: Construcción | F13: Aislamiento de lana de vidrio | G13: kg | H13: 0.001881244206 | I13: 0.003091195837 | J13: 1.618288174e-06 | K13: 0.0005689549092 | L13: 0.05286600683 | M13: 22.88263821 | N13: 2.965091832e-07 | O13: 0.00126546198 | P13: 5.759693319e-07 | Q13: 0.5838960626 | R13: 0.009233189253 | S13: 3.082326887e-07 | T13: 0.01990862807 | U13: 2.621353188 | V13: 0.0001141074358 | W13: 0.005564398926 | X13: 0.2216387085 | Y13: 29.37183136 | Z13: 9.752094921 | AA13: 0.003649816379 | AB13: 39.12757609 | AC13: 1.061161857 | AD13: 2.324503445 | AE13: 0.7370807712 | AF13: 4.122746073 | AG13: M | AH13: 0.001 | AI13: N/A | AM13: =+(SUMIFS(ASPECTOS!$F$7:$F$477,ASPECTOS!$A$7:$A$477,INDICADORES!AM$8,ASPECTOS!$E$7:$E$477,INDICADORES!$F13)*$H13) -> 0 | AN13: =+(SUMIFS(ASPECTOS!$F$7:$F$477,ASPECTOS!$A$7:$A$477,INDICADORES!AN$8,ASPECTOS!$E$7:$E$477,INDICADORES!$F13)*$H13) -> 0 | AO13: =+(SUMIFS(ASPECTOS!$F$7:$F$477,ASPECTOS!$A$7:$A$477,INDICADORES!AO$8,ASPECTOS!$E$7:$E$477,INDICADORES!$F13)*$H13) -> 0 | AP13: =+(SUMIFS(ASPECTOS!$F$7:$F$477,ASPECTOS!$A$7:$A$477,INDICADORES!AP$8,ASPECTOS!$E$7:$E$477,INDICADORES!$F13)*$H13) -> 0 | AQ13: =+(SUMIFS(ASPECTOS!$F$7:$F$477,ASPECTOS!$A$7:$A$477,INDICADORES!AQ$8,ASPECTOS!$E$7:$E$477,INDICADORES!$F13)*$V13) -> 0 | AR13: =+(SUMIFS(ASPECTOS!$F$7:$F$477,ASPECTOS!$A$7:$A$477,INDICADORES!AR$8,ASPECTOS!$E$7:$E$477,INDICADORES!$F13)*$V13) -> 0 | AS13: =+(SUMIFS(ASPECTOS!$F$7:$F$477,ASPECTOS!$A$7:$A$477,INDICADORES!AS$8,ASPECTOS!$E$7:$E$477,INDICADORES!$F13)*$V13) -> 0 | AT13: =+(SUMIFS(ASPECTOS!$F$7:$F$477,ASPECTOS!$A$7:$A$477,INDICADORES!AT$8,ASPECTOS!$E$7:$E$477,INDICADORES!$F13)*$V13) -> 0 | AU13: =+(SUMIFS(ASPECTOS!$F$7:$F$477,ASPECTOS!$A$7:$A$477,INDICADORES!AU$8,ASPECTOS!$E$7:$E$477,INDICADORES!$F13)*$W13) -> 0 | AV13: =+(SUMIFS(ASPECTOS!$F$7:$F$477,ASPECTOS!$A$7:$A$477,INDICADORES!AV$8,ASPECTOS!$E$7:$E$477,INDICADORES!$F13)*$W13) -> 0 | AW13: =+(SUMIFS(ASPECTOS!$F$7:$F$477,ASPECTOS!$A$7:$A$477,INDICADORES!AW$8,ASPECTOS!$E$7:$E$477,INDICADORES!$F13)*$W13) -> 0 | AX13: =+(SUMIFS(ASPECTOS!$F$7:$F$477,ASPECTOS!$A$7:$A$477,INDICADORES!AX$8,ASPECTOS!$E$7:$E$477,INDICADORES!$F13)*$W13) -> 0 | AY13: =+(SUMIFS(ASPECTOS!$F$7:$F$477,ASPECTOS!$A$7:$A$477,INDICADORES!AY$8,ASPECTOS!$E$7:$E$477,INDICADORES!$F13)*$X13) -> 0 | AZ13: =+(SUMIFS(ASPECTOS!$F$7:$F$477,ASPECTOS!$A$7:$A$477,INDICADORES!AZ$8,ASPECTOS!$E$7:$E$477,INDICADORES!$F13)*$X13) -> 0 | BA13: =+(SUMIFS(ASPECTOS!$F$7:$F$477,ASPECTOS!$A$7:$A$477,INDICADORES!BA$8,ASPECTOS!$E$7:$E$477,INDICADORES!$F13)*$X13) -> 0 | BB13: =+(SUMIFS(ASPECTOS!$F$7:$F$477,ASPECTOS!$A$7:$A$477,INDICADORES!BB$8,ASPECTOS!$E$7:$E$477,INDICADORES!$F13)*$X13) -> 0 | BE13: =+(SUMIFS(ASPECTOS!$F$7:$F$477,ASPECTOS!$A$7:$A$477,INDICADORES!$BE$7,ASPECTOS!$E$7:$E$477,INDICADORES!$F13)*INDICADORES!H13) -> 0 | BF13: =+(SUMIFS(ASPECTOS!$F$7:$F$477,ASPECTOS!$A$7:$A$477,INDICADORES!$BE$7,ASPECTOS!$E$7:$E$477,INDICADORES!$F13)*INDICADORES!I13) -> 0 | BG13: =+(SUMIFS(ASPECTOS!$F$7:$F$477,ASPECTOS!$A$7:$A$477,INDICADORES!$BE$7,ASPECTOS!$E$7:$E$477,INDICADORES!$F13)*INDICADORES!J13) -> 0 | BH13: =+(SUMIFS(ASPECTOS!$F$7:$F$477,ASPECTOS!$A$7:$A$477,INDICADORES!$BE$7,ASPECTOS!$E$7:$E$477,INDICADORES!$F13)*INDICADORES!K13) -> 0 | BI13: =+(SUMIFS(ASPECTOS!$F$7:$F$477,ASPECTOS!$A$7:$A$477,INDICADORES!$BE$7,ASPECTOS!$E$7:$E$477,INDICADORES!$F13)*INDICADORES!L13) -> 0 | BJ13: =+(SUMIFS(ASPECTOS!$F$7:$F$477,ASPECTOS!$A$7:$A$477,INDICADORES!$BE$7,ASPECTOS!$E$7:$E$477,INDICADORES!$F13)*INDICADORES!M13) -> 0 | BK13: =+(SUMIFS(ASPECTOS!$F$7:$F$477,ASPECTOS!$A$7:$A$477,INDICADORES!$BE$7,ASPECTOS!$E$7:$E$477,INDICADORES!$F13)*INDICADORES!N13) -> 0 | BL13: =+(SUMIFS(ASPECTOS!$F$7:$F$477,ASPECTOS!$A$7:$A$477,INDICADORES!$BE$7,ASPECTOS!$E$7:$E$477,INDICADORES!$F13)*INDICADORES!O13) -> 0 | BM13: =+(SUMIFS(ASPECTOS!$F$7:$F$477,ASPECTOS!$A$7:$A$477,INDICADORES!$BE$7,ASPECTOS!$E$7:$E$477,INDICADORES!$F13)*INDICADORES!P13) -> 0 | BN13: =+(SUMIFS(ASPECTOS!$F$7:$F$477,ASPECTOS!$A$7:$A$477,INDICADORES!$BE$7,ASPECTOS!$E$7:$E$477,INDICADORES!$F13)*INDICADORES!Q13) -> 0 | BO13: =+(SUMIFS(ASPECTOS!$F$7:$F$477,ASPECTOS!$A$7:$A$477,INDICADORES!$BE$7,ASPECTOS!$E$7:$E$477,INDICADORES!$F13)*INDICADORES!R13) -> 0 | BP13: =+(SUMIFS(ASPECTOS!$F$7:$F$477,ASPECTOS!$A$7:$A$477,INDICADORES!$BE$7,ASPECTOS!$E$7:$E$477,INDICADORES!$F13)*INDICADORES!S13) -> 0 | BQ13: =+(SUMIFS(ASPECTOS!$F$7:$F$477,ASPECTOS!$A$7:$A$477,INDICADORES!$BE$7,ASPECTOS!$E$7:$E$477,INDICADORES!$F13)*INDICADORES!T13) -> 0 | BR13: =+(SUMIFS(ASPECTOS!$F$7:$F$477,ASPECTOS!$A$7:$A$477,INDICADORES!$BE$7,ASPECTOS!$E$7:$E$477,INDICADORES!$F13)*INDICADORES!U13) -> 0 | BS13: =+(SUMIFS(ASPECTOS!$F$7:$F$477,ASPECTOS!$A$7:$A$477,INDICADORES!$BE$7,ASPECTOS!$E$7:$E$477,INDICADORES!$F13)*INDICADORES!V13) -> 0 | BT13: =+(SUMIFS(ASPECTOS!$F$7:$F$477,ASPECTOS!$A$7:$A$477,INDICADORES!$BE$7,ASPECTOS!$E$7:$E$477,INDICADORES!$F13)*INDICADORES!W13) -> 0 | BU13: =+(SUMIFS(ASPECTOS!$F$7:$F$477,ASPECTOS!$A$7:$A$477,INDICADORES!$BE$7,ASPECTOS!$E$7:$E$477,INDICADORES!$F13)*INDICADORES!X13) -> 0 | BV13: =+(SUMIFS(ASPECTOS!$F$7:$F$477,ASPECTOS!$A$7:$A$477,INDICADORES!$BE$7,ASPECTOS!$E$7:$E$477,INDICADORES!$F13)*INDICADORES!Y13) -> 0 | BW13: =+(SUMIFS(ASPECTOS!$F$7:$F$477,ASPECTOS!$A$7:$A$477,INDICADORES!$BE$7,ASPECTOS!$E$7:$E$477,INDICADORES!$F13)*INDICADORES!Z13) -> 0 | BX13: =+(SUMIFS(ASPECTOS!$F$7:$F$477,ASPECTOS!$A$7:$A$477,INDICADORES!$BE$7,ASPECTOS!$E$7:$E$477,INDICADORES!$F13)*INDICADORES!AA13) -> 0 | BY13: =+(SUMIFS(ASPECTOS!$F$7:$F$477,ASPECTOS!$A$7:$A$477,INDICADORES!$BE$7,ASPECTOS!$E$7:$E$477,INDICADORES!$F13)*INDICADORES!AB13) -> 0 | BZ13: =+(SUMIFS(ASPECTOS!$F$7:$F$477,ASPECTOS!$A$7:$A$477,INDICADORES!$BE$7,ASPECTOS!$E$7:$E$477,INDICADORES!$F13)*INDICADORES!AC13) -> 0 | CA13: =+(SUMIFS(ASPECTOS!$F$7:$F$477,ASPECTOS!$A$7:$A$477,INDICADORES!$BE$7,ASPECTOS!$E$7:$E$477,INDICADORES!$F13)*INDICADORES!AD13) -> 0 | CB13: =+(SUMIFS(ASPECTOS!$F$7:$F$477,ASPECTOS!$A$7:$A$477,INDICADORES!$BE$7,ASPECTOS!$E$7:$E$477,INDICADORES!$F13)*INDICADORES!AE13) -> 0 | CC13: =+(SUMIFS(ASPECTOS!$F$7:$F$477,ASPECTOS!$A$7:$A$477,INDICADORES!$BE$7,ASPECTOS!$E$7:$E$477,INDICADORES!$F13)*INDICADORES!AF13) -> 0 | CD13: =+(SUMIFS(ASPECTOS!$F$7:$F$477,ASPECTOS!$A$7:$A$477,INDICADORES!$CD$7,ASPECTOS!$E$7:$E$477,INDICADORES!$F13)*INDICADORES!H13) -> 0 | CE13: =+(SUMIFS(ASPECTOS!$F$7:$F$477,ASPECTOS!$A$7:$A$477,INDICADORES!$CD$7,ASPECTOS!$E$7:$E$477,INDICADORES!$F13)*INDICADORES!I13) -> 0 | CF13: =+(SUMIFS(ASPECTOS!$F$7:$F$477,ASPECTOS!$A$7:$A$477,INDICADORES!$CD$7,ASPECTOS!$E$7:$E$477,INDICADORES!$F13)*INDICADORES!J13) -> 0 | CG13: =+(SUMIFS(ASPECTOS!$F$7:$F$477,ASPECTOS!$A$7:$A$477,INDICADORES!$CD$7,ASPECTOS!$E$7:$E$477,INDICADORES!$F13)*INDICADORES!K13) -> 0 | CH13: =+(SUMIFS(ASPECTOS!$F$7:$F$477,ASPECTOS!$A$7:$A$477,INDICADORES!$CD$7,ASPECTOS!$E$7:$E$477,INDICADORES!$F13)*INDICADORES!L13) -> 0 | CI13: =+(SUMIFS(ASPECTOS!$F$7:$F$477,ASPECTOS!$A$7:$A$477,INDICADORES!$CD$7,ASPECTOS!$E$7:$E$477,INDICADORES!$F13)*INDICADORES!M13) -> 0 | CJ13: =+(SUMIFS(ASPECTOS!$F$7:$F$477,ASPECTOS!$A$7:$A$477,INDICADORES!$CD$7,ASPECTOS!$E$7:$E$477,INDICADORES!$F13)*INDICADORES!N13) -> 0 | CK13: =+(SUMIFS(ASPECTOS!$F$7:$F$477,ASPECTOS!$A$7:$A$477,INDICADORES!$CD$7,ASPECTOS!$E$7:$E$477,INDICADORES!$F13)*INDICADORES!O13) -> 0 | CL13: =+(SUMIFS(ASPECTOS!$F$7:$F$477,ASPECTOS!$A$7:$A$477,INDICADORES!$CD$7,ASPECTOS!$E$7:$E$477,INDICADORES!$F13)*INDICADORES!P13) -> 0 | CM13: =+(SUMIFS(ASPECTOS!$F$7:$F$477,ASPECTOS!$A$7:$A$477,INDICADORES!$CD$7,ASPECTOS!$E$7:$E$477,INDICADORES!$F13)*INDICADORES!Q13) -> 0 | CN13: =+(SUMIFS(ASPECTOS!$F$7:$F$477,ASPECTOS!$A$7:$A$477,INDICADORES!$CD$7,ASPECTOS!$E$7:$E$477,INDICADORES!$F13)*INDICADORES!R13) -> 0 | CO13: =+(SUMIFS(ASPECTOS!$F$7:$F$477,ASPECTOS!$A$7:$A$477,INDICADORES!$CD$7,ASPECTOS!$E$7:$E$477,INDICADORES!$F13)*INDICADORES!S13) -> 0 | CP13: =+(SUMIFS(ASPECTOS!$F$7:$F$477,ASPECTOS!$A$7:$A$477,INDICADORES!$CD$7,ASPECTOS!$E$7:$E$477,INDICADORES!$F13)*INDICADORES!T13) -> 0 | CQ13: =+(SUMIFS(ASPECTOS!$F$7:$F$477,ASPECTOS!$A$7:$A$477,INDICADORES!$CD$7,ASPECTOS!$E$7:$E$477,INDICADORES!$F13)*INDICADORES!U13) -> 0 | CR13: =+(SUMIFS(ASPECTOS!$F$7:$F$477,ASPECTOS!$A$7:$A$477,INDICADORES!$CD$7,ASPECTOS!$E$7:$E$477,INDICADORES!$F13)*INDICADORES!V13) -> 0 | CS13: =+(SUMIFS(ASPECTOS!$F$7:$F$477,ASPECTOS!$A$7:$A$477,INDICADORES!$CD$7,ASPECTOS!$E$7:$E$477,INDICADORES!$F13)*INDICADORES!W13) -> 0 | CT13: =+(SUMIFS(ASPECTOS!$F$7:$F$477,ASPECTOS!$A$7:$A$477,INDICADORES!$CD$7,ASPECTOS!$E$7:$E$477,INDICADORES!$F13)*INDICADORES!X13) -> 0 | CU13: =+(SUMIFS(ASPECTOS!$F$7:$F$477,ASPECTOS!$A$7:$A$477,INDICADORES!$CD$7,ASPECTOS!$E$7:$E$477,INDICADORES!$F13)*INDICADORES!Y13) -> 0 | CV13: =+(SUMIFS(ASPECTOS!$F$7:$F$477,ASPECTOS!$A$7:$A$477,INDICADORES!$CD$7,ASPECTOS!$E$7:$E$477,INDICADORES!$F13)*INDICADORES!Z13) -> 0 | CW13: =+(SUMIFS(ASPECTOS!$F$7:$F$477,ASPECTOS!$A$7:$A$477,INDICADORES!$CD$7,ASPECTOS!$E$7:$E$477,INDICADORES!$F13)*INDICADORES!AA13) -> 0 | CX13: =+(SUMIFS(ASPECTOS!$F$7:$F$477,ASPECTOS!$A$7:$A$477,INDICADORES!$CD$7,ASPECTOS!$E$7:$E$477,INDICADORES!$F13)*INDICADORES!AB13) -> 0 | CY13: =+(SUMIFS(ASPECTOS!$F$7:$F$477,ASPECTOS!$A$7:$A$477,INDICADORES!$CD$7,ASPECTOS!$E$7:$E$477,INDICADORES!$F13)*INDICADORES!AC13) -> 0 | CZ13: =+(SUMIFS(ASPECTOS!$F$7:$F$477,ASPECTOS!$A$7:$A$477,INDICADORES!$CD$7,ASPECTOS!$E$7:$E$477,INDICADORES!$F13)*INDICADORES!AD13) -> 0 | DA13: =+(SUMIFS(ASPECTOS!$F$7:$F$477,ASPECTOS!$A$7:$A$477,INDICADORES!$CD$7,ASPECTOS!$E$7:$E$477,INDICADORES!$F13)*INDICADORES!AE13) -> 0 | DB13: =+(SUMIFS(ASPECTOS!$F$7:$F$477,ASPECTOS!$A$7:$A$477,INDICADORES!$CD$7,ASPECTOS!$E$7:$E$477,INDICADORES!$F13)*INDICADORES!AF13) -> 0 | DC13: =+(SUMIFS(ASPECTOS!$F$7:$F$477,ASPECTOS!$A$7:$A$477,INDICADORES!$DC$7,ASPECTOS!$E$7:$E$477,INDICADORES!$F13)*INDICADORES!H13) -> 0 | DD13: =+(SUMIFS(ASPECTOS!$F$7:$F$477,ASPECTOS!$A$7:$A$477,INDICADORES!$DC$7,ASPECTOS!$E$7:$E$477,INDICADORES!$F13)*INDICADORES!I13) -> 0 | DE13: =+(SUMIFS(ASPECTOS!$F$7:$F$477,ASPECTOS!$A$7:$A$477,INDICADORES!$DC$7,ASPECTOS!$E$7:$E$477,INDICADORES!$F13)*INDICADORES!J13) -> 0 | DF13: =+(SUMIFS(ASPECTOS!$F$7:$F$477,ASPECTOS!$A$7:$A$477,INDICADORES!$DC$7,ASPECTOS!$E$7:$E$477,INDICADORES!$F13)*INDICADORES!K13) -> 0 | DG13: =+(SUMIFS(ASPECTOS!$F$7:$F$477,ASPECTOS!$A$7:$A$477,INDICADORES!$DC$7,ASPECTOS!$E$7:$E$477,INDICADORES!$F13)*INDICADORES!L13) -> 0 | DH13: =+(SUMIFS(ASPECTOS!$F$7:$F$477,ASPECTOS!$A$7:$A$477,INDICADORES!$DC$7,ASPECTOS!$E$7:$E$477,INDICADORES!$F13)*INDICADORES!M13) -> 0 | DI13: =+(SUMIFS(ASPECTOS!$F$7:$F$477,ASPECTOS!$A$7:$A$477,INDICADORES!$DC$7,ASPECTOS!$E$7:$E$477,INDICADORES!$F13)*INDICADORES!N13) -> 0 | DJ13: =+(SUMIFS(ASPECTOS!$F$7:$F$477,ASPECTOS!$A$7:$A$477,INDICADORES!$DC$7,ASPECTOS!$E$7:$E$477,INDICADORES!$F13)*INDICADORES!O13) -> 0 | DK13: =+(SUMIFS(ASPECTOS!$F$7:$F$477,ASPECTOS!$A$7:$A$477,INDICADORES!$DC$7,ASPECTOS!$E$7:$E$477,INDICADORES!$F13)*INDICADORES!P13) -> 0 | DL13: =+(SUMIFS(ASPECTOS!$F$7:$F$477,ASPECTOS!$A$7:$A$477,INDICADORES!$DC$7,ASPECTOS!$E$7:$E$477,INDICADORES!$F13)*INDICADORES!Q13) -> 0 | DM13: =+(SUMIFS(ASPECTOS!$F$7:$F$477,ASPECTOS!$A$7:$A$477,INDICADORES!$DC$7,ASPECTOS!$E$7:$E$477,INDICADORES!$F13)*INDICADORES!R13) -> 0 | DN13: =+(SUMIFS(ASPECTOS!$F$7:$F$477,ASPECTOS!$A$7:$A$477,INDICADORES!$DC$7,ASPECTOS!$E$7:$E$477,INDICADORES!$F13)*INDICADORES!S13) -> 0 | DO13: =+(SUMIFS(ASPECTOS!$F$7:$F$477,ASPECTOS!$A$7:$A$477,INDICADORES!$DC$7,ASPECTOS!$E$7:$E$477,INDICADORES!$F13)*INDICADORES!T13) -> 0 | DP13: =+(SUMIFS(ASPECTOS!$F$7:$F$477,ASPECTOS!$A$7:$A$477,INDICADORES!$DC$7,ASPECTOS!$E$7:$E$477,INDICADORES!$F13)*INDICADORES!U13) -> 0 | DQ13: =+(SUMIFS(ASPECTOS!$F$7:$F$477,ASPECTOS!$A$7:$A$477,INDICADORES!$DC$7,ASPECTOS!$E$7:$E$477,INDICADORES!$F13)*INDICADORES!V13) -> 0 | DR13: =+(SUMIFS(ASPECTOS!$F$7:$F$477,ASPECTOS!$A$7:$A$477,INDICADORES!$DC$7,ASPECTOS!$E$7:$E$477,INDICADORES!$F13)*INDICADORES!W13) -> 0 | DS13: =+(SUMIFS(ASPECTOS!$F$7:$F$477,ASPECTOS!$A$7:$A$477,INDICADORES!$DC$7,ASPECTOS!$E$7:$E$477,INDICADORES!$F13)*INDICADORES!X13) -> 0 | DT13: =+(SUMIFS(ASPECTOS!$F$7:$F$477,ASPECTOS!$A$7:$A$477,INDICADORES!$DC$7,ASPECTOS!$E$7:$E$477,INDICADORES!$F13)*INDICADORES!Y13) -> 0 | DU13: =+(SUMIFS(ASPECTOS!$F$7:$F$477,ASPECTOS!$A$7:$A$477,INDICADORES!$DC$7,ASPECTOS!$E$7:$E$477,INDICADORES!$F13)*INDICADORES!Z13) -> 0 | DV13: =+(SUMIFS(ASPECTOS!$F$7:$F$477,ASPECTOS!$A$7:$A$477,INDICADORES!$DC$7,ASPECTOS!$E$7:$E$477,INDICADORES!$F13)*INDICADORES!AA13) -> 0 | DW13: =+(SUMIFS(ASPECTOS!$F$7:$F$477,ASPECTOS!$A$7:$A$477,INDICADORES!$DC$7,ASPECTOS!$E$7:$E$477,INDICADORES!$F13)*INDICADORES!AB13) -> 0 | DX13: =+(SUMIFS(ASPECTOS!$F$7:$F$477,ASPECTOS!$A$7:$A$477,INDICADORES!$DC$7,ASPECTOS!$E$7:$E$477,INDICADORES!$F13)*INDICADORES!AC13) -> 0 | DY13: =+(SUMIFS(ASPECTOS!$F$7:$F$477,ASPECTOS!$A$7:$A$477,INDICADORES!$DC$7,ASPECTOS!$E$7:$E$477,INDICADORES!$F13)*INDICADORES!AD13) -> 0 | DZ13: =+(SUMIFS(ASPECTOS!$F$7:$F$477,ASPECTOS!$A$7:$A$477,INDICADORES!$DC$7,ASPECTOS!$E$7:$E$477,INDICADORES!$F13)*INDICADORES!AE13) -> 0 | EA13: =+(SUMIFS(ASPECTOS!$F$7:$F$477,ASPECTOS!$A$7:$A$477,INDICADORES!$DC$7,ASPECTOS!$E$7:$E$477,INDICADORES!$F13)*INDICADORES!AF13) -> 0 | EB13: =+(SUMIFS(ASPECTOS!$F$7:$F$477,ASPECTOS!$A$7:$A$477,INDICADORES!$EB$7,ASPECTOS!$E$7:$E$477,INDICADORES!$F13)*H13) -> 0 | EC13: =+(SUMIFS(ASPECTOS!$F$7:$F$477,ASPECTOS!$A$7:$A$477,INDICADORES!$EB$7,ASPECTOS!$E$7:$E$477,INDICADORES!$F13)*I13) -> 0 | ED13: =+(SUMIFS(ASPECTOS!$F$7:$F$477,ASPECTOS!$A$7:$A$477,INDICADORES!$EB$7,ASPECTOS!$E$7:$E$477,INDICADORES!$F13)*J13) -> 0 | EE13: =+(SUMIFS(ASPECTOS!$F$7:$F$477,ASPECTOS!$A$7:$A$477,INDICADORES!$EB$7,ASPECTOS!$E$7:$E$477,INDICADORES!$F13)*K13) -> 0 | EF13: =+(SUMIFS(ASPECTOS!$F$7:$F$477,ASPECTOS!$A$7:$A$477,INDICADORES!$EB$7,ASPECTOS!$E$7:$E$477,INDICADORES!$F13)*L13) -> 0 | EG13: =+(SUMIFS(ASPECTOS!$F$7:$F$477,ASPECTOS!$A$7:$A$477,INDICADORES!$EB$7,ASPECTOS!$E$7:$E$477,INDICADORES!$F13)*M13) -> 0 | EH13: =+(SUMIFS(ASPECTOS!$F$7:$F$477,ASPECTOS!$A$7:$A$477,INDICADORES!$EB$7,ASPECTOS!$E$7:$E$477,INDICADORES!$F13)*N13) -> 0 | EI13: =+(SUMIFS(ASPECTOS!$F$7:$F$477,ASPECTOS!$A$7:$A$477,INDICADORES!$EB$7,ASPECTOS!$E$7:$E$477,INDICADORES!$F13)*O13) -> 0 | EJ13: =+(SUMIFS(ASPECTOS!$F$7:$F$477,ASPECTOS!$A$7:$A$477,INDICADORES!$EB$7,ASPECTOS!$E$7:$E$477,INDICADORES!$F13)*P13) -> 0 | EK13: =+(SUMIFS(ASPECTOS!$F$7:$F$477,ASPECTOS!$A$7:$A$477,INDICADORES!$EB$7,ASPECTOS!$E$7:$E$477,INDICADORES!$F13)*Q13) -> 0 | EL13: =+(SUMIFS(ASPECTOS!$F$7:$F$477,ASPECTOS!$A$7:$A$477,INDICADORES!$EB$7,ASPECTOS!$E$7:$E$477,INDICADORES!$F13)*R13) -> 0 | EM13: =+(SUMIFS(ASPECTOS!$F$7:$F$477,ASPECTOS!$A$7:$A$477,INDICADORES!$EB$7,ASPECTOS!$E$7:$E$477,INDICADORES!$F13)*S13) -> 0 | EN13: =+(SUMIFS(ASPECTOS!$F$7:$F$477,ASPECTOS!$A$7:$A$477,INDICADORES!$EB$7,ASPECTOS!$E$7:$E$477,INDICADORES!$F13)*T13) -> 0 | EO13: =+(SUMIFS(ASPECTOS!$F$7:$F$477,ASPECTOS!$A$7:$A$477,INDICADORES!$EB$7,ASPECTOS!$E$7:$E$477,INDICADORES!$F13)*U13) -> 0 | EP13: =+(SUMIFS(ASPECTOS!$F$7:$F$477,ASPECTOS!$A$7:$A$477,INDICADORES!$EB$7,ASPECTOS!$E$7:$E$477,INDICADORES!$F13)*V13) -> 0 | EQ13: =+(SUMIFS(ASPECTOS!$F$7:$F$477,ASPECTOS!$A$7:$A$477,INDICADORES!$EB$7,ASPECTOS!$E$7:$E$477,INDICADORES!$F13)*W13) -> 0 | ER13: =+(SUMIFS(ASPECTOS!$F$7:$F$477,ASPECTOS!$A$7:$A$477,INDICADORES!$EB$7,ASPECTOS!$E$7:$E$477,INDICADORES!$F13)*X13) -> 0 | ES13: =+(SUMIFS(ASPECTOS!$F$7:$F$477,ASPECTOS!$A$7:$A$477,INDICADORES!$EB$7,ASPECTOS!$E$7:$E$477,INDICADORES!$F13)*Y13) -> 0 | ET13: =+(SUMIFS(ASPECTOS!$F$7:$F$477,ASPECTOS!$A$7:$A$477,INDICADORES!$EB$7,ASPECTOS!$E$7:$E$477,INDICADORES!$F13)*Z13) -> 0 | EU13: =+(SUMIFS(ASPECTOS!$F$7:$F$477,ASPECTOS!$A$7:$A$477,INDICADORES!$EB$7,ASPECTOS!$E$7:$E$477,INDICADORES!$F13)*AA13) -> 0 | EV13: =+(SUMIFS(ASPECTOS!$F$7:$F$477,ASPECTOS!$A$7:$A$477,INDICADORES!$EB$7,ASPECTOS!$E$7:$E$477,INDICADORES!$F13)*AB13) -> 0 | EW13: =+(SUMIFS(ASPECTOS!$F$7:$F$477,ASPECTOS!$A$7:$A$477,INDICADORES!$EB$7,ASPECTOS!$E$7:$E$477,INDICADORES!$F13)*AC13) -> 0 | EX13: =+(SUMIFS(ASPECTOS!$F$7:$F$477,ASPECTOS!$A$7:$A$477,INDICADORES!$EB$7,ASPECTOS!$E$7:$E$477,INDICADORES!$F13)*AD13) -> 0 | EY13: =+(SUMIFS(ASPECTOS!$F$7:$F$477,ASPECTOS!$A$7:$A$477,INDICADORES!$EB$7,ASPECTOS!$E$7:$E$477,INDICADORES!$F13)*AE13) -> 0 | EZ13: =+(SUMIFS(ASPECTOS!$F$7:$F$477,ASPECTOS!$A$7:$A$477,INDICADORES!$EB$7,ASPECTOS!$E$7:$E$477,INDICADORES!$F13)*AF13) -> 0 | FB13: 0 | FC13: 0 | FD13: 0 | FE13: 0 | FF13: 0 | FG13: 0 | FH13: 0 | FI13: 0 | FJ13: 0 | FK13: 0 | FL13: 0 | FM13: 0 | FN13: 0 | FO13: 0 | FP13: 0 | FQ13: 0 | FR13: 0 | FS13: 0 | FT13: 0 | FU13: 0 | FV13: 0 | FW13: 0 | FX13: 0 | FY13: 0 | FZ13: 0 | GB13: Transportes | GC13: =+SUMIF(INDICADORES!$D$10:$D$235,$GB13,INDICADORES!FB$10:FB$235) -> 257.793974 | GD13: =+SUMIF(INDICADORES!$D$10:$D$235,$GB13,INDICADORES!FC$10:FC$235) -> 153.7263163 | GE13: =+SUMIF(INDICADORES!$D$10:$D$235,$GB13,INDICADORES!FD$10:FD$235) -> 0.1305446611 | GF13: =+SUMIF(INDICADORES!$D$10:$D$235,$GB13,INDICADORES!FE$10:FE$235) -> 14.03644294 | GG13: =+SUMIF(INDICADORES!$D$10:$D$235,$GB13,INDICADORES!FF$10:FF$235) -> 1684.097574 | GH13: =+SUMIF(INDICADORES!$D$10:$D$235,$GB13,INDICADORES!FG$10:FG$235) -> 1542714.408 | GI13: =+SUMIF(INDICADORES!$D$10:$D$235,$GB13,INDICADORES!FH$10:FH$235) -> 0.04922315821 | GJ13: =+SUMIF(INDICADORES!$D$10:$D$235,$GB13,INDICADORES!FI$10:FI$235) -> 105.5018953 | GK13: =+SUMIF(INDICADORES!$D$10:$D$235,$GB13,INDICADORES!FJ$10:FJ$235) -> 0.05869288516 | GL13: =+SUMIF(INDICADORES!$D$10:$D$235,$GB13,INDICADORES!FK$10:FK$235) -> 22534.03004 | GM13: =+SUMIF(INDICADORES!$D$10:$D$235,$GB13,INDICADORES!FL$10:FL$235) -> 627.4824724 | GN13: =+SUMIF(INDICADORES!$D$10:$D$235,$GB13,INDICADORES!FM$10:FM$235) -> 0.007640383666 | GO13: =+SUMIF(INDICADORES!$D$10:$D$235,$GB13,INDICADORES!FN$10:FN$235) -> 828.0374829 | GP13: =+SUMIF(INDICADORES!$D$10:$D$235,$GB13,INDICADORES!FO$10:FO$235) -> 990706.4644 | GQ13: =+SUMIF(INDICADORES!$D$10:$D$235,$GB13,INDICADORES!FP$10:FP$235) -> 20.93981574 | GR13: =+SUMIF(INDICADORES!$D$10:$D$235,$GB13,INDICADORES!FQ$10:FQ$235) -> 90.66246496 | GS13: =+SUMIF(INDICADORES!$D$10:$D$235,$GB13,INDICADORES!FR$10:FR$235) -> 26031.29447 | GT13: =+SUMIF(INDICADORES!$D$10:$D$235,$GB13,INDICADORES!FS$10:FS$235) -> 4148844.712 | GU13: =+SUMIF(INDICADORES!$D$10:$D$235,$GB13,INDICADORES!FT$10:FT$235) -> 112439.1476 | GV13: =+SUMIF(INDICADORES!$D$10:$D$235,$GB13,INDICADORES!FU$10:FU$235) -> 160.0926252 | GW13: =+SUMIF(INDICADORES!$D$10:$D$235,$GB13,INDICADORES!FV$10:FV$235) -> 4261443.949 | GX13: =+SUMIF(INDICADORES!$D$10:$D$235,$GB13,INDICADORES!FW$10:FW$235) -> 22980.26963 | GY13: =+SUMIF(INDICADORES!$D$10:$D$235,$GB13,INDICADORES!FX$10:FX$235) -> 27206.47428 | GZ13: =+SUMIF(INDICADORES!$D$10:$D$235,$GB13,INDICADORES!FY$10:FY$235) -> 9621.460835 | HA13: =+SUMIF(INDICADORES!$D$10:$D$235,$GB13,INDICADORES!FZ$10:FZ$235) -> 59808.20387 | HC13: Materiales | HD13: Embalajes | HE13: =+SUMIFS(INDICADORES!FB$10:FB$235,INDICADORES!$D$10:$D$235,$HC13,INDICADORES!$E$10:$E$235,$HD13) -> 1183.656354 | HF13: =+SUMIFS(INDICADORES!FC$10:FC$235,INDICADORES!$D$10:$D$235,$HC13,INDICADORES!$E$10:$E$235,$HD13) -> 1996.664603 | HG13: =+SUMIFS(INDICADORES!FD$10:FD$235,INDICADORES!$D$10:$D$235,$HC13,INDICADORES!$E$10:$E$235,$HD13) -> 0.6324276661 | HH13: =+SUMIFS(INDICADORES!FE$10:FE$235,INDICADORES!$D$10:$D$235,$HC13,INDICADORES!$E$10:$E$235,$HD13) -> 279.9307757 | HI13: =+SUMIFS(INDICADORES!FF$10:FF$235,INDICADORES!$D$10:$D$235,$HC13,INDICADORES!$E$10:$E$235,$HD13) -> 21959.08878 | HJ13: =+SUMIFS(INDICADORES!FG$10:FG$235,INDICADORES!$D$10:$D$235,$HC13,INDICADORES!$E$10:$E$235,$HD13) -> 10224365.7 | HK13: =+SUMIFS(INDICADORES!FH$10:FH$235,INDICADORES!$D$10:$D$235,$HC13,INDICADORES!$E$10:$E$235,$HD13) -> 0.1502003684 | HL13: =+SUMIFS(INDICADORES!FI$10:FI$235,INDICADORES!$D$10:$D$235,$HC13,INDICADORES!$E$10:$E$235,$HD13) -> 1909.406952 | HM13: =+SUMIFS(INDICADORES!FJ$10:FJ$235,INDICADORES!$D$10:$D$235,$HC13,INDICADORES!$E$10:$E$235,$HD13) -> 0.4275485774 | HN13: =+SUMIFS(INDICADORES!FK$10:FK$235,INDICADORES!$D$10:$D$235,$HC13,INDICADORES!$E$10:$E$235,$HD13) -> 186849.3779 | HO13: =+SUMIFS(INDICADORES!FL$10:FL$235,INDICADORES!$D$10:$D$235,$HC13,INDICADORES!$E$10:$E$235,$HD13) -> 9129.2716 | HP13: =+SUMIFS(INDICADORES!FM$10:FM$235,INDICADORES!$D$10:$D$235,$HC13,INDICADORES!$E$10:$E$235,$HD13) -> 0.1319690046 | HQ13: =+SUMIFS(INDICADORES!FN$10:FN$235,INDICADORES!$D$10:$D$235,$HC13,INDICADORES!$E$10:$E$235,$HD13) -> 8217.093806 | HR13: =+SUMIFS(INDICADORES!FO$10:FO$235,INDICADORES!$D$10:$D$235,$HC13,INDICADORES!$E$10:$E$235,$HD13) -> 53898784.9 | HS13: =+SUMIFS(INDICADORES!FP$10:FP$235,INDICADORES!$D$10:$D$235,$HC13,INDICADORES!$E$10:$E$235,$HD13) -> 62.82710678 | HT13: =+SUMIFS(INDICADORES!FQ$10:FQ$235,INDICADORES!$D$10:$D$235,$HC13,INDICADORES!$E$10:$E$235,$HD13) -> 2108.848145 | HU13: =+SUMIFS(INDICADORES!FR$10:FR$235,INDICADORES!$D$10:$D$235,$HC13,INDICADORES!$E$10:$E$235,$HD13) -> 665781.1387 | HV13: =+SUMIFS(INDICADORES!FS$10:FS$235,INDICADORES!$D$10:$D$235,$HC13,INDICADORES!$E$10:$E$235,$HD13) -> 23238466.89 | HW13: =+SUMIFS(INDICADORES!FT$10:FT$235,INDICADORES!$D$10:$D$235,$HC13,INDICADORES!$E$10:$E$235,$HD13) -> 2832448.823 | HX13: =+SUMIFS(INDICADORES!FU$10:FU$235,INDICADORES!$D$10:$D$235,$HC13,INDICADORES!$E$10:$E$235,$HD13) -> 10738.18562 | HY13: =+SUMIFS(INDICADORES!FV$10:FV$235,INDICADORES!$D$10:$D$235,$HC13,INDICADORES!$E$10:$E$235,$HD13) -> 26081653.9 | HZ13: =+SUMIFS(INDICADORES!FW$10:FW$235,INDICADORES!$D$10:$D$235,$HC13,INDICADORES!$E$10:$E$235,$HD13) -> 99914121.61 | IA13: =+SUMIFS(INDICADORES!FX$10:FX$235,INDICADORES!$D$10:$D$235,$HC13,INDICADORES!$E$10:$E$235,$HD13) -> 641724.9696 | IB13: =+SUMIFS(INDICADORES!FY$10:FY$235,INDICADORES!$D$10:$D$235,$HC13,INDICADORES!$E$10:$E$235,$HD13) -> 240212.2113 | IC13: =+SUMIFS(INDICADORES!FZ$10:FZ$235,INDICADORES!$D$10:$D$235,$HC13,INDICADORES!$E$10:$E$235,$HD13) -> 100796058.8
B14: 13 | C14: MCo 012 | D14: Materiales | E14: Construcción | F14: Arena | G14: kg | H14: 3.192780644e-06 | I14: 8.141826643e-06 | J14: 2.496182819e-09 | K14: 7.238604799e-07 | L14: 9.293998128e-05 | M14: 0.02513364247 | N14: 4.874691485e-10 | O14: 2.912490998e-06 | P14: 9.706057506e-10 | Q14: 0.0007670642089 | R14: 2.445554646e-05 | S14: 3.460542679e-10 | T14: 2.871742145e-05 | U14: 0.1198344251 | V14: 6.172093756e-07 | W14: 5.625327439e-05 | X14: 0.0003890154876 | Y14: 0.04310078809 | Z14: 0.01115688046 | AA14: 1.969502656e-06 | AB14: 0.05425963805 | AC14: 0.001551719679 | AD14: 0.002733392951 | AE14: 0.0008940867733 | AF14: 0.005179199403 | AG14: M | AH14: 0.001 | AI14: N/A | AM14: =+(SUMIFS(ASPECTOS!$F$7:$F$477,ASPECTOS!$A$7:$A$477,INDICADORES!AM$8,ASPECTOS!$E$7:$E$477,INDICADORES!$F14)*$H14) -> 0 | AN14: =+(SUMIFS(ASPECTOS!$F$7:$F$477,ASPECTOS!$A$7:$A$477,INDICADORES!AN$8,ASPECTOS!$E$7:$E$477,INDICADORES!$F14)*$H14) -> 0 | AO14: =+(SUMIFS(ASPECTOS!$F$7:$F$477,ASPECTOS!$A$7:$A$477,INDICADORES!AO$8,ASPECTOS!$E$7:$E$477,INDICADORES!$F14)*$H14) -> 0 | AP14: =+(SUMIFS(ASPECTOS!$F$7:$F$477,ASPECTOS!$A$7:$A$477,INDICADORES!AP$8,ASPECTOS!$E$7:$E$477,INDICADORES!$F14)*$H14) -> 0 | AQ14: =+(SUMIFS(ASPECTOS!$F$7:$F$477,ASPECTOS!$A$7:$A$477,INDICADORES!AQ$8,ASPECTOS!$E$7:$E$477,INDICADORES!$F14)*$V14) -> 0 | AR14: =+(SUMIFS(ASPECTOS!$F$7:$F$477,ASPECTOS!$A$7:$A$477,INDICADORES!AR$8,ASPECTOS!$E$7:$E$477,INDICADORES!$F14)*$V14) -> 0 | AS14: =+(SUMIFS(ASPECTOS!$F$7:$F$477,ASPECTOS!$A$7:$A$477,INDICADORES!AS$8,ASPECTOS!$E$7:$E$477,INDICADORES!$F14)*$V14) -> 0 | AT14: =+(SUMIFS(ASPECTOS!$F$7:$F$477,ASPECTOS!$A$7:$A$477,INDICADORES!AT$8,ASPECTOS!$E$7:$E$477,INDICADORES!$F14)*$V14) -> 0 | AU14: =+(SUMIFS(ASPECTOS!$F$7:$F$477,ASPECTOS!$A$7:$A$477,INDICADORES!AU$8,ASPECTOS!$E$7:$E$477,INDICADORES!$F14)*$W14) -> 0 | AV14: =+(SUMIFS(ASPECTOS!$F$7:$F$477,ASPECTOS!$A$7:$A$477,INDICADORES!AV$8,ASPECTOS!$E$7:$E$477,INDICADORES!$F14)*$W14) -> 0 | AW14: =+(SUMIFS(ASPECTOS!$F$7:$F$477,ASPECTOS!$A$7:$A$477,INDICADORES!AW$8,ASPECTOS!$E$7:$E$477,INDICADORES!$F14)*$W14) -> 0 | AX14: =+(SUMIFS(ASPECTOS!$F$7:$F$477,ASPECTOS!$A$7:$A$477,INDICADORES!AX$8,ASPECTOS!$E$7:$E$477,INDICADORES!$F14)*$W14) -> 0 | AY14: =+(SUMIFS(ASPECTOS!$F$7:$F$477,ASPECTOS!$A$7:$A$477,INDICADORES!AY$8,ASPECTOS!$E$7:$E$477,INDICADORES!$F14)*$X14) -> 0 | AZ14: =+(SUMIFS(ASPECTOS!$F$7:$F$477,ASPECTOS!$A$7:$A$477,INDICADORES!AZ$8,ASPECTOS!$E$7:$E$477,INDICADORES!$F14)*$X14) -> 0 | BA14: =+(SUMIFS(ASPECTOS!$F$7:$F$477,ASPECTOS!$A$7:$A$477,INDICADORES!BA$8,ASPECTOS!$E$7:$E$477,INDICADORES!$F14)*$X14) -> 0 | BB14: =+(SUMIFS(ASPECTOS!$F$7:$F$477,ASPECTOS!$A$7:$A$477,INDICADORES!BB$8,ASPECTOS!$E$7:$E$477,INDICADORES!$F14)*$X14) -> 0 | BE14: =+(SUMIFS(ASPECTOS!$F$7:$F$477,ASPECTOS!$A$7:$A$477,INDICADORES!$BE$7,ASPECTOS!$E$7:$E$477,INDICADORES!$F14)*INDICADORES!H14) -> 0 | BF14: =+(SUMIFS(ASPECTOS!$F$7:$F$477,ASPECTOS!$A$7:$A$477,INDICADORES!$BE$7,ASPECTOS!$E$7:$E$477,INDICADORES!$F14)*INDICADORES!I14) -> 0 | BG14: =+(SUMIFS(ASPECTOS!$F$7:$F$477,ASPECTOS!$A$7:$A$477,INDICADORES!$BE$7,ASPECTOS!$E$7:$E$477,INDICADORES!$F14)*INDICADORES!J14) -> 0 | BH14: =+(SUMIFS(ASPECTOS!$F$7:$F$477,ASPECTOS!$A$7:$A$477,INDICADORES!$BE$7,ASPECTOS!$E$7:$E$477,INDICADORES!$F14)*INDICADORES!K14) -> 0 | BI14: =+(SUMIFS(ASPECTOS!$F$7:$F$477,ASPECTOS!$A$7:$A$477,INDICADORES!$BE$7,ASPECTOS!$E$7:$E$477,INDICADORES!$F14)*INDICADORES!L14) -> 0 | BJ14: =+(SUMIFS(ASPECTOS!$F$7:$F$477,ASPECTOS!$A$7:$A$477,INDICADORES!$BE$7,ASPECTOS!$E$7:$E$477,INDICADORES!$F14)*INDICADORES!M14) -> 0 | BK14: =+(SUMIFS(ASPECTOS!$F$7:$F$477,ASPECTOS!$A$7:$A$477,INDICADORES!$BE$7,ASPECTOS!$E$7:$E$477,INDICADORES!$F14)*INDICADORES!N14) -> 0 | BL14: =+(SUMIFS(ASPECTOS!$F$7:$F$477,ASPECTOS!$A$7:$A$477,INDICADORES!$BE$7,ASPECTOS!$E$7:$E$477,INDICADORES!$F14)*INDICADORES!O14) -> 0 | BM14: =+(SUMIFS(ASPECTOS!$F$7:$F$477,ASPECTOS!$A$7:$A$477,INDICADORES!$BE$7,ASPECTOS!$E$7:$E$477,INDICADORES!$F14)*INDICADORES!P14) -> 0 | BN14: =+(SUMIFS(ASPECTOS!$F$7:$F$477,ASPECTOS!$A$7:$A$477,INDICADORES!$BE$7,ASPECTOS!$E$7:$E$477,INDICADORES!$F14)*INDICADORES!Q14) -> 0 | BO14: =+(SUMIFS(ASPECTOS!$F$7:$F$477,ASPECTOS!$A$7:$A$477,INDICADORES!$BE$7,ASPECTOS!$E$7:$E$477,INDICADORES!$F14)*INDICADORES!R14) -> 0 | BP14: =+(SUMIFS(ASPECTOS!$F$7:$F$477,ASPECTOS!$A$7:$A$477,INDICADORES!$BE$7,ASPECTOS!$E$7:$E$477,INDICADORES!$F14)*INDICADORES!S14) -> 0 | BQ14: =+(SUMIFS(ASPECTOS!$F$7:$F$477,ASPECTOS!$A$7:$A$477,INDICADORES!$BE$7,ASPECTOS!$E$7:$E$477,INDICADORES!$F14)*INDICADORES!T14) -> 0 | BR14: =+(SUMIFS(ASPECTOS!$F$7:$F$477,ASPECTOS!$A$7:$A$477,INDICADORES!$BE$7,ASPECTOS!$E$7:$E$477,INDICADORES!$F14)*INDICADORES!U14) -> 0 | BS14: =+(SUMIFS(ASPECTOS!$F$7:$F$477,ASPECTOS!$A$7:$A$477,INDICADORES!$BE$7,ASPECTOS!$E$7:$E$477,INDICADORES!$F14)*INDICADORES!V14) -> 0 | BT14: =+(SUMIFS(ASPECTOS!$F$7:$F$477,ASPECTOS!$A$7:$A$477,INDICADORES!$BE$7,ASPECTOS!$E$7:$E$477,INDICADORES!$F14)*INDICADORES!W14) -> 0 | BU14: =+(SUMIFS(ASPECTOS!$F$7:$F$477,ASPECTOS!$A$7:$A$477,INDICADORES!$BE$7,ASPECTOS!$E$7:$E$477,INDICADORES!$F14)*INDICADORES!X14) -> 0 | BV14: =+(SUMIFS(ASPECTOS!$F$7:$F$477,ASPECTOS!$A$7:$A$477,INDICADORES!$BE$7,ASPECTOS!$E$7:$E$477,INDICADORES!$F14)*INDICADORES!Y14) -> 0 | BW14: =+(SUMIFS(ASPECTOS!$F$7:$F$477,ASPECTOS!$A$7:$A$477,INDICADORES!$BE$7,ASPECTOS!$E$7:$E$477,INDICADORES!$F14)*INDICADORES!Z14) -> 0 | BX14: =+(SUMIFS(ASPECTOS!$F$7:$F$477,ASPECTOS!$A$7:$A$477,INDICADORES!$BE$7,ASPECTOS!$E$7:$E$477,INDICADORES!$F14)*INDICADORES!AA14) -> 0 | BY14: =+(SUMIFS(ASPECTOS!$F$7:$F$477,ASPECTOS!$A$7:$A$477,INDICADORES!$BE$7,ASPECTOS!$E$7:$E$477,INDICADORES!$F14)*INDICADORES!AB14) -> 0 | BZ14: =+(SUMIFS(ASPECTOS!$F$7:$F$477,ASPECTOS!$A$7:$A$477,INDICADORES!$BE$7,ASPECTOS!$E$7:$E$477,INDICADORES!$F14)*INDICADORES!AC14) -> 0 | CA14: =+(SUMIFS(ASPECTOS!$F$7:$F$477,ASPECTOS!$A$7:$A$477,INDICADORES!$BE$7,ASPECTOS!$E$7:$E$477,INDICADORES!$F14)*INDICADORES!AD14) -> 0 | CB14: =+(SUMIFS(ASPECTOS!$F$7:$F$477,ASPECTOS!$A$7:$A$477,INDICADORES!$BE$7,ASPECTOS!$E$7:$E$477,INDICADORES!$F14)*INDICADORES!AE14) -> 0 | CC14: =+(SUMIFS(ASPECTOS!$F$7:$F$477,ASPECTOS!$A$7:$A$477,INDICADORES!$BE$7,ASPECTOS!$E$7:$E$477,INDICADORES!$F14)*INDICADORES!AF14) -> 0 | CD14: =+(SUMIFS(ASPECTOS!$F$7:$F$477,ASPECTOS!$A$7:$A$477,INDICADORES!$CD$7,ASPECTOS!$E$7:$E$477,INDICADORES!$F14)*INDICADORES!H14) -> 0 | CE14: =+(SUMIFS(ASPECTOS!$F$7:$F$477,ASPECTOS!$A$7:$A$477,INDICADORES!$CD$7,ASPECTOS!$E$7:$E$477,INDICADORES!$F14)*INDICADORES!I14) -> 0 | CF14: =+(SUMIFS(ASPECTOS!$F$7:$F$477,ASPECTOS!$A$7:$A$477,INDICADORES!$CD$7,ASPECTOS!$E$7:$E$477,INDICADORES!$F14)*INDICADORES!J14) -> 0 | CG14: =+(SUMIFS(ASPECTOS!$F$7:$F$477,ASPECTOS!$A$7:$A$477,INDICADORES!$CD$7,ASPECTOS!$E$7:$E$477,INDICADORES!$F14)*INDICADORES!K14) -> 0 | CH14: =+(SUMIFS(ASPECTOS!$F$7:$F$477,ASPECTOS!$A$7:$A$477,INDICADORES!$CD$7,ASPECTOS!$E$7:$E$477,INDICADORES!$F14)*INDICADORES!L14) -> 0 | CI14: =+(SUMIFS(ASPECTOS!$F$7:$F$477,ASPECTOS!$A$7:$A$477,INDICADORES!$CD$7,ASPECTOS!$E$7:$E$477,INDICADORES!$F14)*INDICADORES!M14) -> 0 | CJ14: =+(SUMIFS(ASPECTOS!$F$7:$F$477,ASPECTOS!$A$7:$A$477,INDICADORES!$CD$7,ASPECTOS!$E$7:$E$477,INDICADORES!$F14)*INDICADORES!N14) -> 0 | CK14: =+(SUMIFS(ASPECTOS!$F$7:$F$477,ASPECTOS!$A$7:$A$477,INDICADORES!$CD$7,ASPECTOS!$E$7:$E$477,INDICADORES!$F14)*INDICADORES!O14) -> 0 | CL14: =+(SUMIFS(ASPECTOS!$F$7:$F$477,ASPECTOS!$A$7:$A$477,INDICADORES!$CD$7,ASPECTOS!$E$7:$E$477,INDICADORES!$F14)*INDICADORES!P14) -> 0 | CM14: =+(SUMIFS(ASPECTOS!$F$7:$F$477,ASPECTOS!$A$7:$A$477,INDICADORES!$CD$7,ASPECTOS!$E$7:$E$477,INDICADORES!$F14)*INDICADORES!Q14) -> 0 | CN14: =+(SUMIFS(ASPECTOS!$F$7:$F$477,ASPECTOS!$A$7:$A$477,INDICADORES!$CD$7,ASPECTOS!$E$7:$E$477,INDICADORES!$F14)*INDICADORES!R14) -> 0 | CO14: =+(SUMIFS(ASPECTOS!$F$7:$F$477,ASPECTOS!$A$7:$A$477,INDICADORES!$CD$7,ASPECTOS!$E$7:$E$477,INDICADORES!$F14)*INDICADORES!S14) -> 0 | CP14: =+(SUMIFS(ASPECTOS!$F$7:$F$477,ASPECTOS!$A$7:$A$477,INDICADORES!$CD$7,ASPECTOS!$E$7:$E$477,INDICADORES!$F14)*INDICADORES!T14) -> 0 | CQ14: =+(SUMIFS(ASPECTOS!$F$7:$F$477,ASPECTOS!$A$7:$A$477,INDICADORES!$CD$7,ASPECTOS!$E$7:$E$477,INDICADORES!$F14)*INDICADORES!U14) -> 0 | CR14: =+(SUMIFS(ASPECTOS!$F$7:$F$477,ASPECTOS!$A$7:$A$477,INDICADORES!$CD$7,ASPECTOS!$E$7:$E$477,INDICADORES!$F14)*INDICADORES!V14) -> 0 | CS14: =+(SUMIFS(ASPECTOS!$F$7:$F$477,ASPECTOS!$A$7:$A$477,INDICADORES!$CD$7,ASPECTOS!$E$7:$E$477,INDICADORES!$F14)*INDICADORES!W14) -> 0 | CT14: =+(SUMIFS(ASPECTOS!$F$7:$F$477,ASPECTOS!$A$7:$A$477,INDICADORES!$CD$7,ASPECTOS!$E$7:$E$477,INDICADORES!$F14)*INDICADORES!X14) -> 0 | CU14: =+(SUMIFS(ASPECTOS!$F$7:$F$477,ASPECTOS!$A$7:$A$477,INDICADORES!$CD$7,ASPECTOS!$E$7:$E$477,INDICADORES!$F14)*INDICADORES!Y14) -> 0 | CV14: =+(SUMIFS(ASPECTOS!$F$7:$F$477,ASPECTOS!$A$7:$A$477,INDICADORES!$CD$7,ASPECTOS!$E$7:$E$477,INDICADORES!$F14)*INDICADORES!Z14) -> 0 | CW14: =+(SUMIFS(ASPECTOS!$F$7:$F$477,ASPECTOS!$A$7:$A$477,INDICADORES!$CD$7,ASPECTOS!$E$7:$E$477,INDICADORES!$F14)*INDICADORES!AA14) -> 0 | CX14: =+(SUMIFS(ASPECTOS!$F$7:$F$477,ASPECTOS!$A$7:$A$477,INDICADORES!$CD$7,ASPECTOS!$E$7:$E$477,INDICADORES!$F14)*INDICADORES!AB14) -> 0 | CY14: =+(SUMIFS(ASPECTOS!$F$7:$F$477,ASPECTOS!$A$7:$A$477,INDICADORES!$CD$7,ASPECTOS!$E$7:$E$477,INDICADORES!$F14)*INDICADORES!AC14) -> 0 | CZ14: =+(SUMIFS(ASPECTOS!$F$7:$F$477,ASPECTOS!$A$7:$A$477,INDICADORES!$CD$7,ASPECTOS!$E$7:$E$477,INDICADORES!$F14)*INDICADORES!AD14) -> 0 | DA14: =+(SUMIFS(ASPECTOS!$F$7:$F$477,ASPECTOS!$A$7:$A$477,INDICADORES!$CD$7,ASPECTOS!$E$7:$E$477,INDICADORES!$F14)*INDICADORES!AE14) -> 0 | DB14: =+(SUMIFS(ASPECTOS!$F$7:$F$477,ASPECTOS!$A$7:$A$477,INDICADORES!$CD$7,ASPECTOS!$E$7:$E$477,INDICADORES!$F14)*INDICADORES!AF14) -> 0 | DC14: =+(SUMIFS(ASPECTOS!$F$7:$F$477,ASPECTOS!$A$7:$A$477,INDICADORES!$DC$7,ASPECTOS!$E$7:$E$477,INDICADORES!$F14)*INDICADORES!H14) -> 0 | DD14: =+(SUMIFS(ASPECTOS!$F$7:$F$477,ASPECTOS!$A$7:$A$477,INDICADORES!$DC$7,ASPECTOS!$E$7:$E$477,INDICADORES!$F14)*INDICADORES!I14) -> 0 | DE14: =+(SUMIFS(ASPECTOS!$F$7:$F$477,ASPECTOS!$A$7:$A$477,INDICADORES!$DC$7,ASPECTOS!$E$7:$E$477,INDICADORES!$F14)*INDICADORES!J14) -> 0 | DF14: =+(SUMIFS(ASPECTOS!$F$7:$F$477,ASPECTOS!$A$7:$A$477,INDICADORES!$DC$7,ASPECTOS!$E$7:$E$477,INDICADORES!$F14)*INDICADORES!K14) -> 0 | DG14: =+(SUMIFS(ASPECTOS!$F$7:$F$477,ASPECTOS!$A$7:$A$477,INDICADORES!$DC$7,ASPECTOS!$E$7:$E$477,INDICADORES!$F14)*INDICADORES!L14) -> 0 | DH14: =+(SUMIFS(ASPECTOS!$F$7:$F$477,ASPECTOS!$A$7:$A$477,INDICADORES!$DC$7,ASPECTOS!$E$7:$E$477,INDICADORES!$F14)*INDICADORES!M14) -> 0 | DI14: =+(SUMIFS(ASPECTOS!$F$7:$F$477,ASPECTOS!$A$7:$A$477,INDICADORES!$DC$7,ASPECTOS!$E$7:$E$477,INDICADORES!$F14)*INDICADORES!N14) -> 0 | DJ14: =+(SUMIFS(ASPECTOS!$F$7:$F$477,ASPECTOS!$A$7:$A$477,INDICADORES!$DC$7,ASPECTOS!$E$7:$E$477,INDICADORES!$F14)*INDICADORES!O14) -> 0 | DK14: =+(SUMIFS(ASPECTOS!$F$7:$F$477,ASPECTOS!$A$7:$A$477,INDICADORES!$DC$7,ASPECTOS!$E$7:$E$477,INDICADORES!$F14)*INDICADORES!P14) -> 0 | DL14: =+(SUMIFS(ASPECTOS!$F$7:$F$477,ASPECTOS!$A$7:$A$477,INDICADORES!$DC$7,ASPECTOS!$E$7:$E$477,INDICADORES!$F14)*INDICADORES!Q14) -> 0 | DM14: =+(SUMIFS(ASPECTOS!$F$7:$F$477,ASPECTOS!$A$7:$A$477,INDICADORES!$DC$7,ASPECTOS!$E$7:$E$477,INDICADORES!$F14)*INDICADORES!R14) -> 0 | DN14: =+(SUMIFS(ASPECTOS!$F$7:$F$477,ASPECTOS!$A$7:$A$477,INDICADORES!$DC$7,ASPECTOS!$E$7:$E$477,INDICADORES!$F14)*INDICADORES!S14) -> 0 | DO14: =+(SUMIFS(ASPECTOS!$F$7:$F$477,ASPECTOS!$A$7:$A$477,INDICADORES!$DC$7,ASPECTOS!$E$7:$E$477,INDICADORES!$F14)*INDICADORES!T14) -> 0 | DP14: =+(SUMIFS(ASPECTOS!$F$7:$F$477,ASPECTOS!$A$7:$A$477,INDICADORES!$DC$7,ASPECTOS!$E$7:$E$477,INDICADORES!$F14)*INDICADORES!U14) -> 0 | DQ14: =+(SUMIFS(ASPECTOS!$F$7:$F$477,ASPECTOS!$A$7:$A$477,INDICADORES!$DC$7,ASPECTOS!$E$7:$E$477,INDICADORES!$F14)*INDICADORES!V14) -> 0 | DR14: =+(SUMIFS(ASPECTOS!$F$7:$F$477,ASPECTOS!$A$7:$A$477,INDICADORES!$DC$7,ASPECTOS!$E$7:$E$477,INDICADORES!$F14)*INDICADORES!W14) -> 0 | DS14: =+(SUMIFS(ASPECTOS!$F$7:$F$477,ASPECTOS!$A$7:$A$477,INDICADORES!$DC$7,ASPECTOS!$E$7:$E$477,INDICADORES!$F14)*INDICADORES!X14) -> 0 | DT14: =+(SUMIFS(ASPECTOS!$F$7:$F$477,ASPECTOS!$A$7:$A$477,INDICADORES!$DC$7,ASPECTOS!$E$7:$E$477,INDICADORES!$F14)*INDICADORES!Y14) -> 0 | DU14: =+(SUMIFS(ASPECTOS!$F$7:$F$477,ASPECTOS!$A$7:$A$477,INDICADORES!$DC$7,ASPECTOS!$E$7:$E$477,INDICADORES!$F14)*INDICADORES!Z14) -> 0 | DV14: =+(SUMIFS(ASPECTOS!$F$7:$F$477,ASPECTOS!$A$7:$A$477,INDICADORES!$DC$7,ASPECTOS!$E$7:$E$477,INDICADORES!$F14)*INDICADORES!AA14) -> 0 | DW14: =+(SUMIFS(ASPECTOS!$F$7:$F$477,ASPECTOS!$A$7:$A$477,INDICADORES!$DC$7,ASPECTOS!$E$7:$E$477,INDICADORES!$F14)*INDICADORES!AB14) -> 0 | DX14: =+(SUMIFS(ASPECTOS!$F$7:$F$477,ASPECTOS!$A$7:$A$477,INDICADORES!$DC$7,ASPECTOS!$E$7:$E$477,INDICADORES!$F14)*INDICADORES!AC14) -> 0 | DY14: =+(SUMIFS(ASPECTOS!$F$7:$F$477,ASPECTOS!$A$7:$A$477,INDICADORES!$DC$7,ASPECTOS!$E$7:$E$477,INDICADORES!$F14)*INDICADORES!AD14) -> 0 | DZ14: =+(SUMIFS(ASPECTOS!$F$7:$F$477,ASPECTOS!$A$7:$A$477,INDICADORES!$DC$7,ASPECTOS!$E$7:$E$477,INDICADORES!$F14)*INDICADORES!AE14) -> 0 | EA14: =+(SUMIFS(ASPECTOS!$F$7:$F$477,ASPECTOS!$A$7:$A$477,INDICADORES!$DC$7,ASPECTOS!$E$7:$E$477,INDICADORES!$F14)*INDICADORES!AF14) -> 0 | EB14: =+(SUMIFS(ASPECTOS!$F$7:$F$477,ASPECTOS!$A$7:$A$477,INDICADORES!$EB$7,ASPECTOS!$E$7:$E$477,INDICADORES!$F14)*H14) -> 0 | EC14: =+(SUMIFS(ASPECTOS!$F$7:$F$477,ASPECTOS!$A$7:$A$477,INDICADORES!$EB$7,ASPECTOS!$E$7:$E$477,INDICADORES!$F14)*I14) -> 0 | ED14: =+(SUMIFS(ASPECTOS!$F$7:$F$477,ASPECTOS!$A$7:$A$477,INDICADORES!$EB$7,ASPECTOS!$E$7:$E$477,INDICADORES!$F14)*J14) -> 0 | EE14: =+(SUMIFS(ASPECTOS!$F$7:$F$477,ASPECTOS!$A$7:$A$477,INDICADORES!$EB$7,ASPECTOS!$E$7:$E$477,INDICADORES!$F14)*K14) -> 0 | EF14: =+(SUMIFS(ASPECTOS!$F$7:$F$477,ASPECTOS!$A$7:$A$477,INDICADORES!$EB$7,ASPECTOS!$E$7:$E$477,INDICADORES!$F14)*L14) -> 0 | EG14: =+(SUMIFS(ASPECTOS!$F$7:$F$477,ASPECTOS!$A$7:$A$477,INDICADORES!$EB$7,ASPECTOS!$E$7:$E$477,INDICADORES!$F14)*M14) -> 0 | EH14: =+(SUMIFS(ASPECTOS!$F$7:$F$477,ASPECTOS!$A$7:$A$477,INDICADORES!$EB$7,ASPECTOS!$E$7:$E$477,INDICADORES!$F14)*N14) -> 0 | EI14: =+(SUMIFS(ASPECTOS!$F$7:$F$477,ASPECTOS!$A$7:$A$477,INDICADORES!$EB$7,ASPECTOS!$E$7:$E$477,INDICADORES!$F14)*O14) -> 0 | EJ14: =+(SUMIFS(ASPECTOS!$F$7:$F$477,ASPECTOS!$A$7:$A$477,INDICADORES!$EB$7,ASPECTOS!$E$7:$E$477,INDICADORES!$F14)*P14) -> 0 | EK14: =+(SUMIFS(ASPECTOS!$F$7:$F$477,ASPECTOS!$A$7:$A$477,INDICADORES!$EB$7,ASPECTOS!$E$7:$E$477,INDICADORES!$F14)*Q14) -> 0 | EL14: =+(SUMIFS(ASPECTOS!$F$7:$F$477,ASPECTOS!$A$7:$A$477,INDICADORES!$EB$7,ASPECTOS!$E$7:$E$477,INDICADORES!$F14)*R14) -> 0 | EM14: =+(SUMIFS(ASPECTOS!$F$7:$F$477,ASPECTOS!$A$7:$A$477,INDICADORES!$EB$7,ASPECTOS!$E$7:$E$477,INDICADORES!$F14)*S14) -> 0 | EN14: =+(SUMIFS(ASPECTOS!$F$7:$F$477,ASPECTOS!$A$7:$A$477,INDICADORES!$EB$7,ASPECTOS!$E$7:$E$477,INDICADORES!$F14)*T14) -> 0 | EO14: =+(SUMIFS(ASPECTOS!$F$7:$F$477,ASPECTOS!$A$7:$A$477,INDICADORES!$EB$7,ASPECTOS!$E$7:$E$477,INDICADORES!$F14)*U14) -> 0 | EP14: =+(SUMIFS(ASPECTOS!$F$7:$F$477,ASPECTOS!$A$7:$A$477,INDICADORES!$EB$7,ASPECTOS!$E$7:$E$477,INDICADORES!$F14)*V14) -> 0 | EQ14: =+(SUMIFS(ASPECTOS!$F$7:$F$477,ASPECTOS!$A$7:$A$477,INDICADORES!$EB$7,ASPECTOS!$E$7:$E$477,INDICADORES!$F14)*W14) -> 0 | ER14: =+(SUMIFS(ASPECTOS!$F$7:$F$477,ASPECTOS!$A$7:$A$477,INDICADORES!$EB$7,ASPECTOS!$E$7:$E$477,INDICADORES!$F14)*X14) -> 0 | ES14: =+(SUMIFS(ASPECTOS!$F$7:$F$477,ASPECTOS!$A$7:$A$477,INDICADORES!$EB$7,ASPECTOS!$E$7:$E$477,INDICADORES!$F14)*Y14) -> 0 | ET14: =+(SUMIFS(ASPECTOS!$F$7:$F$477,ASPECTOS!$A$7:$A$477,INDICADORES!$EB$7,ASPECTOS!$E$7:$E$477,INDICADORES!$F14)*Z14) -> 0 | EU14: =+(SUMIFS(ASPECTOS!$F$7:$F$477,ASPECTOS!$A$7:$A$477,INDICADORES!$EB$7,ASPECTOS!$E$7:$E$477,INDICADORES!$F14)*AA14) -> 0 | EV14: =+(SUMIFS(ASPECTOS!$F$7:$F$477,ASPECTOS!$A$7:$A$477,INDICADORES!$EB$7,ASPECTOS!$E$7:$E$477,INDICADORES!$F14)*AB14) -> 0 | EW14: =+(SUMIFS(ASPECTOS!$F$7:$F$477,ASPECTOS!$A$7:$A$477,INDICADORES!$EB$7,ASPECTOS!$E$7:$E$477,INDICADORES!$F14)*AC14) -> 0 | EX14: =+(SUMIFS(ASPECTOS!$F$7:$F$477,ASPECTOS!$A$7:$A$477,INDICADORES!$EB$7,ASPECTOS!$E$7:$E$477,INDICADORES!$F14)*AD14) -> 0 | EY14: =+(SUMIFS(ASPECTOS!$F$7:$F$477,ASPECTOS!$A$7:$A$477,INDICADORES!$EB$7,ASPECTOS!$E$7:$E$477,INDICADORES!$F14)*AE14) -> 0 | EZ14: =+(SUMIFS(ASPECTOS!$F$7:$F$477,ASPECTOS!$A$7:$A$477,INDICADORES!$EB$7,ASPECTOS!$E$7:$E$477,INDICADORES!$F14)*AF14) -> 0 | FB14: 0 | FC14: 0 | FD14: 0 | FE14: 0 | FF14: 0 | FG14: 0 | FH14: 0 | FI14: 0 | FJ14: 0 | FK14: 0 | FL14: 0 | FM14: 0 | FN14: 0 | FO14: 0 | FP14: 0 | FQ14: 0 | FR14: 0 | FS14: 0 | FT14: 0 | FU14: 0 | FV14: 0 | FW14: 0 | FX14: 0 | FY14: 0 | FZ14: 0 | GB14: Emisiones | GC14: =+SUMIF(INDICADORES!$D$10:$D$235,$GB14,INDICADORES!FB$10:FB$235) -> 0 | GD14: =+SUMIF(INDICADORES!$D$10:$D$235,$GB14,INDICADORES!FC$10:FC$235) -> 0 | GE14: =+SUMIF(INDICADORES!$D$10:$D$235,$GB14,INDICADORES!FD$10:FD$235) -> 0 | GF14: =+SUMIF(INDICADORES!$D$10:$D$235,$GB14,INDICADORES!FE$10:FE$235) -> 0 | GG14: =+SUMIF(INDICADORES!$D$10:$D$235,$GB14,INDICADORES!FF$10:FF$235) -> 0 | GH14: =+SUMIF(INDICADORES!$D$10:$D$235,$GB14,INDICADORES!FG$10:FG$235) -> 0 | GI14: =+SUMIF(INDICADORES!$D$10:$D$235,$GB14,INDICADORES!FH$10:FH$235) -> 0 | GJ14: =+SUMIF(INDICADORES!$D$10:$D$235,$GB14,INDICADORES!FI$10:FI$235) -> 0 | GK14: =+SUMIF(INDICADORES!$D$10:$D$235,$GB14,INDICADORES!FJ$10:FJ$235) -> 0 | GL14: =+SUMIF(INDICADORES!$D$10:$D$235,$GB14,INDICADORES!FK$10:FK$235) -> 0 | GM14: =+SUMIF(INDICADORES!$D$10:$D$235,$GB14,INDICADORES!FL$10:FL$235) -> 0 | GN14: =+SUMIF(INDICADORES!$D$10:$D$235,$GB14,INDICADORES!FM$10:FM$235) -> 0 | GO14: =+SUMIF(INDICADORES!$D$10:$D$235,$GB14,INDICADORES!FN$10:FN$235) -> 0 | GP14: =+SUMIF(INDICADORES!$D$10:$D$235,$GB14,INDICADORES!FO$10:FO$235) -> 0 | GQ14: =+SUMIF(INDICADORES!$D$10:$D$235,$GB14,INDICADORES!FP$10:FP$235) -> 0 | GR14: =+SUMIF(INDICADORES!$D$10:$D$235,$GB14,INDICADORES!FQ$10:FQ$235) -> 0 | GS14: =+SUMIF(INDICADORES!$D$10:$D$235,$GB14,INDICADORES!FR$10:FR$235) -> 0 | GT14: =+SUMIF(INDICADORES!$D$10:$D$235,$GB14,INDICADORES!FS$10:FS$235) -> 0 | GU14: =+SUMIF(INDICADORES!$D$10:$D$235,$GB14,INDICADORES!FT$10:FT$235) -> 0 | GV14: =+SUMIF(INDICADORES!$D$10:$D$235,$GB14,INDICADORES!FU$10:FU$235) -> 0 | GW14: =+SUMIF(INDICADORES!$D$10:$D$235,$GB14,INDICADORES!FV$10:FV$235) -> 0 | GX14: =+SUMIF(INDICADORES!$D$10:$D$235,$GB14,INDICADORES!FW$10:FW$235) -> 0 | GY14: =+SUMIF(INDICADORES!$D$10:$D$235,$GB14,INDICADORES!FX$10:FX$235) -> 0 | GZ14: =+SUMIF(INDICADORES!$D$10:$D$235,$GB14,INDICADORES!FY$10:FY$235) -> 0 | HA14: =+SUMIF(INDICADORES!$D$10:$D$235,$GB14,INDICADORES!FZ$10:FZ$235) -> 0 | HC14: Materiales | HD14: Gas refrigerante | HE14: =+SUMIFS(INDICADORES!FB$10:FB$235,INDICADORES!$D$10:$D$235,$HC14,INDICADORES!$E$10:$E$235,$HD14) -> 0 | HF14: =+SUMIFS(INDICADORES!FC$10:FC$235,INDICADORES!$D$10:$D$235,$HC14,INDICADORES!$E$10:$E$235,$HD14) -> 0 | HG14: =+SUMIFS(INDICADORES!FD$10:FD$235,INDICADORES!$D$10:$D$235,$HC14,INDICADORES!$E$10:$E$235,$HD14) -> 0 | HH14: =+SUMIFS(INDICADORES!FE$10:FE$235,INDICADORES!$D$10:$D$235,$HC14,INDICADORES!$E$10:$E$235,$HD14) -> 0 | HI14: =+SUMIFS(INDICADORES!FF$10:FF$235,INDICADORES!$D$10:$D$235,$HC14,INDICADORES!$E$10:$E$235,$HD14) -> 0 | HJ14: =+SUMIFS(INDICADORES!FG$10:FG$235,INDICADORES!$D$10:$D$235,$HC14,INDICADORES!$E$10:$E$235,$HD14) -> 0 | HK14: =+SUMIFS(INDICADORES!FH$10:FH$235,INDICADORES!$D$10:$D$235,$HC14,INDICADORES!$E$10:$E$235,$HD14) -> 0 | HL14: =+SUMIFS(INDICADORES!FI$10:FI$235,INDICADORES!$D$10:$D$235,$HC14,INDICADORES!$E$10:$E$235,$HD14) -> 0 | HM14: =+SUMIFS(INDICADORES!FJ$10:FJ$235,INDICADORES!$D$10:$D$235,$HC14,INDICADORES!$E$10:$E$235,$HD14) -> 0 | HN14: =+SUMIFS(INDICADORES!FK$10:FK$235,INDICADORES!$D$10:$D$235,$HC14,INDICADORES!$E$10:$E$235,$HD14) -> 0 | HO14: =+SUMIFS(INDICADORES!FL$10:FL$235,INDICADORES!$D$10:$D$235,$HC14,INDICADORES!$E$10:$E$235,$HD14) -> 0 | HP14: =+SUMIFS(INDICADORES!FM$10:FM$235,INDICADORES!$D$10:$D$235,$HC14,INDICADORES!$E$10:$E$235,$HD14) -> 0 | HQ14: =+SUMIFS(INDICADORES!FN$10:FN$235,INDICADORES!$D$10:$D$235,$HC14,INDICADORES!$E$10:$E$235,$HD14) -> 0 | HR14: =+SUMIFS(INDICADORES!FO$10:FO$235,INDICADORES!$D$10:$D$235,$HC14,INDICADORES!$E$10:$E$235,$HD14) -> 0 | HS14: =+SUMIFS(INDICADORES!FP$10:FP$235,INDICADORES!$D$10:$D$235,$HC14,INDICADORES!$E$10:$E$235,$HD14) -> 0 | HT14: =+SUMIFS(INDICADORES!FQ$10:FQ$235,INDICADORES!$D$10:$D$235,$HC14,INDICADORES!$E$10:$E$235,$HD14) -> 0 | HU14: =+SUMIFS(INDICADORES!FR$10:FR$235,INDICADORES!$D$10:$D$235,$HC14,INDICADORES!$E$10:$E$235,$HD14) -> 0 | HV14: =+SUMIFS(INDICADORES!FS$10:FS$235,INDICADORES!$D$10:$D$235,$HC14,INDICADORES!$E$10:$E$235,$HD14) -> 0 | HW14: =+SUMIFS(INDICADORES!FT$10:FT$235,INDICADORES!$D$10:$D$235,$HC14,INDICADORES!$E$10:$E$235,$HD14) -> 0 | HX14: =+SUMIFS(INDICADORES!FU$10:FU$235,INDICADORES!$D$10:$D$235,$HC14,INDICADORES!$E$10:$E$235,$HD14) -> 0 | HY14: =+SUMIFS(INDICADORES!FV$10:FV$235,INDICADORES!$D$10:$D$235,$HC14,INDICADORES!$E$10:$E$235,$HD14) -> 0 | HZ14: =+SUMIFS(INDICADORES!FW$10:FW$235,INDICADORES!$D$10:$D$235,$HC14,INDICADORES!$E$10:$E$235,$HD14) -> 0 | IA14: =+SUMIFS(INDICADORES!FX$10:FX$235,INDICADORES!$D$10:$D$235,$HC14,INDICADORES!$E$10:$E$235,$HD14) -> 0 | IB14: =+SUMIFS(INDICADORES!FY$10:FY$235,INDICADORES!$D$10:$D$235,$HC14,INDICADORES!$E$10:$E$235,$HD14) -> 0 | IC14: =+SUMIFS(INDICADORES!FZ$10:FZ$235,INDICADORES!$D$10:$D$235,$HC14,INDICADORES!$E$10:$E$235,$HD14) -> 0
B15: 10 | C15: MCo 009 | D15: Materiales | E15: Construcción | F15: Caliza | G15: kg | H15: 2.35261749e-06 | I15: 1.864200933e-05 | J15: 1.190352998e-09 | K15: 2.176710667e-07 | L15: 0.000263055752 | M15: 0.00868829613 | N15: 3.8549376e-10 | O15: 6.590634735e-06 | P15: 3.33899629e-10 | Q15: 0.0002557315124 | R15: 5.480471203e-05 | S15: 1.32684478e-10 | T15: 5.471949444e-05 | U15: 0.007001882411 | V15: 5.770491791e-08 | W15: 3.561009192e-06 | X15: 0.0005807562533 | Y15: 0.03272570941 | Z15: 0.002355588222 | AA15: 6.778872079e-07 | AB15: 0.03508197552 | AC15: 0.0007398055438 | AD15: 0.0005902208595 | AE15: 0.001570535997 | AF15: 0.002900562401 | AG15: M | AH15: 0.001 | AI15: N/A | AM15: =+(SUMIFS(ASPECTOS!$F$7:$F$477,ASPECTOS!$A$7:$A$477,INDICADORES!AM$8,ASPECTOS!$E$7:$E$477,INDICADORES!$F15)*$H15) -> 0 | AN15: =+(SUMIFS(ASPECTOS!$F$7:$F$477,ASPECTOS!$A$7:$A$477,INDICADORES!AN$8,ASPECTOS!$E$7:$E$477,INDICADORES!$F15)*$H15) -> 0 | AO15: =+(SUMIFS(ASPECTOS!$F$7:$F$477,ASPECTOS!$A$7:$A$477,INDICADORES!AO$8,ASPECTOS!$E$7:$E$477,INDICADORES!$F15)*$H15) -> 0 | AP15: =+(SUMIFS(ASPECTOS!$F$7:$F$477,ASPECTOS!$A$7:$A$477,INDICADORES!AP$8,ASPECTOS!$E$7:$E$477,INDICADORES!$F15)*$H15) -> 0 | AQ15: =+(SUMIFS(ASPECTOS!$F$7:$F$477,ASPECTOS!$A$7:$A$477,INDICADORES!AQ$8,ASPECTOS!$E$7:$E$477,INDICADORES!$F15)*$V15) -> 0 | AR15: =+(SUMIFS(ASPECTOS!$F$7:$F$477,ASPECTOS!$A$7:$A$477,INDICADORES!AR$8,ASPECTOS!$E$7:$E$477,INDICADORES!$F15)*$V15) -> 0 | AS15: =+(SUMIFS(ASPECTOS!$F$7:$F$477,ASPECTOS!$A$7:$A$477,INDICADORES!AS$8,ASPECTOS!$E$7:$E$477,INDICADORES!$F15)*$V15) -> 0 | AT15: =+(SUMIFS(ASPECTOS!$F$7:$F$477,ASPECTOS!$A$7:$A$477,INDICADORES!AT$8,ASPECTOS!$E$7:$E$477,INDICADORES!$F15)*$V15) -> 0 | AU15: =+(SUMIFS(ASPECTOS!$F$7:$F$477,ASPECTOS!$A$7:$A$477,INDICADORES!AU$8,ASPECTOS!$E$7:$E$477,INDICADORES!$F15)*$W15) -> 0 | AV15: =+(SUMIFS(ASPECTOS!$F$7:$F$477,ASPECTOS!$A$7:$A$477,INDICADORES!AV$8,ASPECTOS!$E$7:$E$477,INDICADORES!$F15)*$W15) -> 0 | AW15: =+(SUMIFS(ASPECTOS!$F$7:$F$477,ASPECTOS!$A$7:$A$477,INDICADORES!AW$8,ASPECTOS!$E$7:$E$477,INDICADORES!$F15)*$W15) -> 0 | AX15: =+(SUMIFS(ASPECTOS!$F$7:$F$477,ASPECTOS!$A$7:$A$477,INDICADORES!AX$8,ASPECTOS!$E$7:$E$477,INDICADORES!$F15)*$W15) -> 0 | AY15: =+(SUMIFS(ASPECTOS!$F$7:$F$477,ASPECTOS!$A$7:$A$477,INDICADORES!AY$8,ASPECTOS!$E$7:$E$477,INDICADORES!$F15)*$X15) -> 0 | AZ15: =+(SUMIFS(ASPECTOS!$F$7:$F$477,ASPECTOS!$A$7:$A$477,INDICADORES!AZ$8,ASPECTOS!$E$7:$E$477,INDICADORES!$F15)*$X15) -> 0 | BA15: =+(SUMIFS(ASPECTOS!$F$7:$F$477,ASPECTOS!$A$7:$A$477,INDICADORES!BA$8,ASPECTOS!$E$7:$E$477,INDICADORES!$F15)*$X15) -> 0 | BB15: =+(SUMIFS(ASPECTOS!$F$7:$F$477,ASPECTOS!$A$7:$A$477,INDICADORES!BB$8,ASPECTOS!$E$7:$E$477,INDICADORES!$F15)*$X15) -> 0 | BE15: =+(SUMIFS(ASPECTOS!$F$7:$F$477,ASPECTOS!$A$7:$A$477,INDICADORES!$BE$7,ASPECTOS!$E$7:$E$477,INDICADORES!$F15)*INDICADORES!H15) -> 0 | BF15: =+(SUMIFS(ASPECTOS!$F$7:$F$477,ASPECTOS!$A$7:$A$477,INDICADORES!$BE$7,ASPECTOS!$E$7:$E$477,INDICADORES!$F15)*INDICADORES!I15) -> 0 | BG15: =+(SUMIFS(ASPECTOS!$F$7:$F$477,ASPECTOS!$A$7:$A$477,INDICADORES!$BE$7,ASPECTOS!$E$7:$E$477,INDICADORES!$F15)*INDICADORES!J15) -> 0 | BH15: =+(SUMIFS(ASPECTOS!$F$7:$F$477,ASPECTOS!$A$7:$A$477,INDICADORES!$BE$7,ASPECTOS!$E$7:$E$477,INDICADORES!$F15)*INDICADORES!K15) -> 0 | BI15: =+(SUMIFS(ASPECTOS!$F$7:$F$477,ASPECTOS!$A$7:$A$477,INDICADORES!$BE$7,ASPECTOS!$E$7:$E$477,INDICADORES!$F15)*INDICADORES!L15) -> 0 | BJ15: =+(SUMIFS(ASPECTOS!$F$7:$F$477,ASPECTOS!$A$7:$A$477,INDICADORES!$BE$7,ASPECTOS!$E$7:$E$477,INDICADORES!$F15)*INDICADORES!M15) -> 0 | BK15: =+(SUMIFS(ASPECTOS!$F$7:$F$477,ASPECTOS!$A$7:$A$477,INDICADORES!$BE$7,ASPECTOS!$E$7:$E$477,INDICADORES!$F15)*INDICADORES!N15) -> 0 | BL15: =+(SUMIFS(ASPECTOS!$F$7:$F$477,ASPECTOS!$A$7:$A$477,INDICADORES!$BE$7,ASPECTOS!$E$7:$E$477,INDICADORES!$F15)*INDICADORES!O15) -> 0 | BM15: =+(SUMIFS(ASPECTOS!$F$7:$F$477,ASPECTOS!$A$7:$A$477,INDICADORES!$BE$7,ASPECTOS!$E$7:$E$477,INDICADORES!$F15)*INDICADORES!P15) -> 0 | BN15: =+(SUMIFS(ASPECTOS!$F$7:$F$477,ASPECTOS!$A$7:$A$477,INDICADORES!$BE$7,ASPECTOS!$E$7:$E$477,INDICADORES!$F15)*INDICADORES!Q15) -> 0 | BO15: =+(SUMIFS(ASPECTOS!$F$7:$F$477,ASPECTOS!$A$7:$A$477,INDICADORES!$BE$7,ASPECTOS!$E$7:$E$477,INDICADORES!$F15)*INDICADORES!R15) -> 0 | BP15: =+(SUMIFS(ASPECTOS!$F$7:$F$477,ASPECTOS!$A$7:$A$477,INDICADORES!$BE$7,ASPECTOS!$E$7:$E$477,INDICADORES!$F15)*INDICADORES!S15) -> 0 | BQ15: =+(SUMIFS(ASPECTOS!$F$7:$F$477,ASPECTOS!$A$7:$A$477,INDICADORES!$BE$7,ASPECTOS!$E$7:$E$477,INDICADORES!$F15)*INDICADORES!T15) -> 0 | BR15: =+(SUMIFS(ASPECTOS!$F$7:$F$477,ASPECTOS!$A$7:$A$477,INDICADORES!$BE$7,ASPECTOS!$E$7:$E$477,INDICADORES!$F15)*INDICADORES!U15) -> 0 | BS15: =+(SUMIFS(ASPECTOS!$F$7:$F$477,ASPECTOS!$A$7:$A$477,INDICADORES!$BE$7,ASPECTOS!$E$7:$E$477,INDICADORES!$F15)*INDICADORES!V15) -> 0 | BT15: =+(SUMIFS(ASPECTOS!$F$7:$F$477,ASPECTOS!$A$7:$A$477,INDICADORES!$BE$7,ASPECTOS!$E$7:$E$477,INDICADORES!$F15)*INDICADORES!W15) -> 0 | BU15: =+(SUMIFS(ASPECTOS!$F$7:$F$477,ASPECTOS!$A$7:$A$477,INDICADORES!$BE$7,ASPECTOS!$E$7:$E$477,INDICADORES!$F15)*INDICADORES!X15) -> 0 | BV15: =+(SUMIFS(ASPECTOS!$F$7:$F$477,ASPECTOS!$A$7:$A$477,INDICADORES!$BE$7,ASPECTOS!$E$7:$E$477,INDICADORES!$F15)*INDICADORES!Y15) -> 0 | BW15: =+(SUMIFS(ASPECTOS!$F$7:$F$477,ASPECTOS!$A$7:$A$477,INDICADORES!$BE$7,ASPECTOS!$E$7:$E$477,INDICADORES!$F15)*INDICADORES!Z15) -> 0 | BX15: =+(SUMIFS(ASPECTOS!$F$7:$F$477,ASPECTOS!$A$7:$A$477,INDICADORES!$BE$7,ASPECTOS!$E$7:$E$477,INDICADORES!$F15)*INDICADORES!AA15) -> 0 | BY15: =+(SUMIFS(ASPECTOS!$F$7:$F$477,ASPECTOS!$A$7:$A$477,INDICADORES!$BE$7,ASPECTOS!$E$7:$E$477,INDICADORES!$F15)*INDICADORES!AB15) -> 0 | BZ15: =+(SUMIFS(ASPECTOS!$F$7:$F$477,ASPECTOS!$A$7:$A$477,INDICADORES!$BE$7,ASPECTOS!$E$7:$E$477,INDICADORES!$F15)*INDICADORES!AC15) -> 0 | CA15: =+(SUMIFS(ASPECTOS!$F$7:$F$477,ASPECTOS!$A$7:$A$477,INDICADORES!$BE$7,ASPECTOS!$E$7:$E$477,INDICADORES!$F15)*INDICADORES!AD15) -> 0 | CB15: =+(SUMIFS(ASPECTOS!$F$7:$F$477,ASPECTOS!$A$7:$A$477,INDICADORES!$BE$7,ASPECTOS!$E$7:$E$477,INDICADORES!$F15)*INDICADORES!AE15) -> 0 | CC15: =+(SUMIFS(ASPECTOS!$F$7:$F$477,ASPECTOS!$A$7:$A$477,INDICADORES!$BE$7,ASPECTOS!$E$7:$E$477,INDICADORES!$F15)*INDICADORES!AF15) -> 0 | CD15: =+(SUMIFS(ASPECTOS!$F$7:$F$477,ASPECTOS!$A$7:$A$477,INDICADORES!$CD$7,ASPECTOS!$E$7:$E$477,INDICADORES!$F15)*INDICADORES!H15) -> 0 | CE15: =+(SUMIFS(ASPECTOS!$F$7:$F$477,ASPECTOS!$A$7:$A$477,INDICADORES!$CD$7,ASPECTOS!$E$7:$E$477,INDICADORES!$F15)*INDICADORES!I15) -> 0 | CF15: =+(SUMIFS(ASPECTOS!$F$7:$F$477,ASPECTOS!$A$7:$A$477,INDICADORES!$CD$7,ASPECTOS!$E$7:$E$477,INDICADORES!$F15)*INDICADORES!J15) -> 0 | CG15: =+(SUMIFS(ASPECTOS!$F$7:$F$477,ASPECTOS!$A$7:$A$477,INDICADORES!$CD$7,ASPECTOS!$E$7:$E$477,INDICADORES!$F15)*INDICADORES!K15) -> 0 | CH15: =+(SUMIFS(ASPECTOS!$F$7:$F$477,ASPECTOS!$A$7:$A$477,INDICADORES!$CD$7,ASPECTOS!$E$7:$E$477,INDICADORES!$F15)*INDICADORES!L15) -> 0 | CI15: =+(SUMIFS(ASPECTOS!$F$7:$F$477,ASPECTOS!$A$7:$A$477,INDICADORES!$CD$7,ASPECTOS!$E$7:$E$477,INDICADORES!$F15)*INDICADORES!M15) -> 0 | CJ15: =+(SUMIFS(ASPECTOS!$F$7:$F$477,ASPECTOS!$A$7:$A$477,INDICADORES!$CD$7,ASPECTOS!$E$7:$E$477,INDICADORES!$F15)*INDICADORES!N15) -> 0 | CK15: =+(SUMIFS(ASPECTOS!$F$7:$F$477,ASPECTOS!$A$7:$A$477,INDICADORES!$CD$7,ASPECTOS!$E$7:$E$477,INDICADORES!$F15)*INDICADORES!O15) -> 0 | CL15: =+(SUMIFS(ASPECTOS!$F$7:$F$477,ASPECTOS!$A$7:$A$477,INDICADORES!$CD$7,ASPECTOS!$E$7:$E$477,INDICADORES!$F15)*INDICADORES!P15) -> 0 | CM15: =+(SUMIFS(ASPECTOS!$F$7:$F$477,ASPECTOS!$A$7:$A$477,INDICADORES!$CD$7,ASPECTOS!$E$7:$E$477,INDICADORES!$F15)*INDICADORES!Q15) -> 0 | CN15: =+(SUMIFS(ASPECTOS!$F$7:$F$477,ASPECTOS!$A$7:$A$477,INDICADORES!$CD$7,ASPECTOS!$E$7:$E$477,INDICADORES!$F15)*INDICADORES!R15) -> 0 | CO15: =+(SUMIFS(ASPECTOS!$F$7:$F$477,ASPECTOS!$A$7:$A$477,INDICADORES!$CD$7,ASPECTOS!$E$7:$E$477,INDICADORES!$F15)*INDICADORES!S15) -> 0 | CP15: =+(SUMIFS(ASPECTOS!$F$7:$F$477,ASPECTOS!$A$7:$A$477,INDICADORES!$CD$7,ASPECTOS!$E$7:$E$477,INDICADORES!$F15)*INDICADORES!T15) -> 0 | CQ15: =+(SUMIFS(ASPECTOS!$F$7:$F$477,ASPECTOS!$A$7:$A$477,INDICADORES!$CD$7,ASPECTOS!$E$7:$E$477,INDICADORES!$F15)*INDICADORES!U15) -> 0 | CR15: =+(SUMIFS(ASPECTOS!$F$7:$F$477,ASPECTOS!$A$7:$A$477,INDICADORES!$CD$7,ASPECTOS!$E$7:$E$477,INDICADORES!$F15)*INDICADORES!V15) -> 0 | CS15: =+(SUMIFS(ASPECTOS!$F$7:$F$477,ASPECTOS!$A$7:$A$477,INDICADORES!$CD$7,ASPECTOS!$E$7:$E$477,INDICADORES!$F15)*INDICADORES!W15) -> 0 | CT15: =+(SUMIFS(ASPECTOS!$F$7:$F$477,ASPECTOS!$A$7:$A$477,INDICADORES!$CD$7,ASPECTOS!$E$7:$E$477,INDICADORES!$F15)*INDICADORES!X15) -> 0 | CU15: =+(SUMIFS(ASPECTOS!$F$7:$F$477,ASPECTOS!$A$7:$A$477,INDICADORES!$CD$7,ASPECTOS!$E$7:$E$477,INDICADORES!$F15)*INDICADORES!Y15) -> 0 | CV15: =+(SUMIFS(ASPECTOS!$F$7:$F$477,ASPECTOS!$A$7:$A$477,INDICADORES!$CD$7,ASPECTOS!$E$7:$E$477,INDICADORES!$F15)*INDICADORES!Z15) -> 0 | CW15: =+(SUMIFS(ASPECTOS!$F$7:$F$477,ASPECTOS!$A$7:$A$477,INDICADORES!$CD$7,ASPECTOS!$E$7:$E$477,INDICADORES!$F15)*INDICADORES!AA15) -> 0 | CX15: =+(SUMIFS(ASPECTOS!$F$7:$F$477,ASPECTOS!$A$7:$A$477,INDICADORES!$CD$7,ASPECTOS!$E$7:$E$477,INDICADORES!$F15)*INDICADORES!AB15) -> 0 | CY15: =+(SUMIFS(ASPECTOS!$F$7:$F$477,ASPECTOS!$A$7:$A$477,INDICADORES!$CD$7,ASPECTOS!$E$7:$E$477,INDICADORES!$F15)*INDICADORES!AC15) -> 0 | CZ15: =+(SUMIFS(ASPECTOS!$F$7:$F$477,ASPECTOS!$A$7:$A$477,INDICADORES!$CD$7,ASPECTOS!$E$7:$E$477,INDICADORES!$F15)*INDICADORES!AD15) -> 0 | DA15: =+(SUMIFS(ASPECTOS!$F$7:$F$477,ASPECTOS!$A$7:$A$477,INDICADORES!$CD$7,ASPECTOS!$E$7:$E$477,INDICADORES!$F15)*INDICADORES!AE15) -> 0 | DB15: =+(SUMIFS(ASPECTOS!$F$7:$F$477,ASPECTOS!$A$7:$A$477,INDICADORES!$CD$7,ASPECTOS!$E$7:$E$477,INDICADORES!$F15)*INDICADORES!AF15) -> 0 | DC15: =+(SUMIFS(ASPECTOS!$F$7:$F$477,ASPECTOS!$A$7:$A$477,INDICADORES!$DC$7,ASPECTOS!$E$7:$E$477,INDICADORES!$F15)*INDICADORES!H15) -> 0 | DD15: =+(SUMIFS(ASPECTOS!$F$7:$F$477,ASPECTOS!$A$7:$A$477,INDICADORES!$DC$7,ASPECTOS!$E$7:$E$477,INDICADORES!$F15)*INDICADORES!I15) -> 0 | DE15: =+(SUMIFS(ASPECTOS!$F$7:$F$477,ASPECTOS!$A$7:$A$477,INDICADORES!$DC$7,ASPECTOS!$E$7:$E$477,INDICADORES!$F15)*INDICADORES!J15) -> 0 | DF15: =+(SUMIFS(ASPECTOS!$F$7:$F$477,ASPECTOS!$A$7:$A$477,INDICADORES!$DC$7,ASPECTOS!$E$7:$E$477,INDICADORES!$F15)*INDICADORES!K15) -> 0 | DG15: =+(SUMIFS(ASPECTOS!$F$7:$F$477,ASPECTOS!$A$7:$A$477,INDICADORES!$DC$7,ASPECTOS!$E$7:$E$477,INDICADORES!$F15)*INDICADORES!L15) -> 0 | DH15: =+(SUMIFS(ASPECTOS!$F$7:$F$477,ASPECTOS!$A$7:$A$477,INDICADORES!$DC$7,ASPECTOS!$E$7:$E$477,INDICADORES!$F15)*INDICADORES!M15) -> 0 | DI15: =+(SUMIFS(ASPECTOS!$F$7:$F$477,ASPECTOS!$A$7:$A$477,INDICADORES!$DC$7,ASPECTOS!$E$7:$E$477,INDICADORES!$F15)*INDICADORES!N15) -> 0 | DJ15: =+(SUMIFS(ASPECTOS!$F$7:$F$477,ASPECTOS!$A$7:$A$477,INDICADORES!$DC$7,ASPECTOS!$E$7:$E$477,INDICADORES!$F15)*INDICADORES!O15) -> 0 | DK15: =+(SUMIFS(ASPECTOS!$F$7:$F$477,ASPECTOS!$A$7:$A$477,INDICADORES!$DC$7,ASPECTOS!$E$7:$E$477,INDICADORES!$F15)*INDICADORES!P15) -> 0 | DL15: =+(SUMIFS(ASPECTOS!$F$7:$F$477,ASPECTOS!$A$7:$A$477,INDICADORES!$DC$7,ASPECTOS!$E$7:$E$477,INDICADORES!$F15)*INDICADORES!Q15) -> 0 | DM15: =+(SUMIFS(ASPECTOS!$F$7:$F$477,ASPECTOS!$A$7:$A$477,INDICADORES!$DC$7,ASPECTOS!$E$7:$E$477,INDICADORES!$F15)*INDICADORES!R15) -> 0 | DN15: =+(SUMIFS(ASPECTOS!$F$7:$F$477,ASPECTOS!$A$7:$A$477,INDICADORES!$DC$7,ASPECTOS!$E$7:$E$477,INDICADORES!$F15)*INDICADORES!S15) -> 0 | DO15: =+(SUMIFS(ASPECTOS!$F$7:$F$477,ASPECTOS!$A$7:$A$477,INDICADORES!$DC$7,ASPECTOS!$E$7:$E$477,INDICADORES!$F15)*INDICADORES!T15) -> 0 | DP15: =+(SUMIFS(ASPECTOS!$F$7:$F$477,ASPECTOS!$A$7:$A$477,INDICADORES!$DC$7,ASPECTOS!$E$7:$E$477,INDICADORES!$F15)*INDICADORES!U15) -> 0 | DQ15: =+(SUMIFS(ASPECTOS!$F$7:$F$477,ASPECTOS!$A$7:$A$477,INDICADORES!$DC$7,ASPECTOS!$E$7:$E$477,INDICADORES!$F15)*INDICADORES!V15) -> 0 | DR15: =+(SUMIFS(ASPECTOS!$F$7:$F$477,ASPECTOS!$A$7:$A$477,INDICADORES!$DC$7,ASPECTOS!$E$7:$E$477,INDICADORES!$F15)*INDICADORES!W15) -> 0 | DS15: =+(SUMIFS(ASPECTOS!$F$7:$F$477,ASPECTOS!$A$7:$A$477,INDICADORES!$DC$7,ASPECTOS!$E$7:$E$477,INDICADORES!$F15)*INDICADORES!X15) -> 0 | DT15: =+(SUMIFS(ASPECTOS!$F$7:$F$477,ASPECTOS!$A$7:$A$477,INDICADORES!$DC$7,ASPECTOS!$E$7:$E$477,INDICADORES!$F15)*INDICADORES!Y15) -> 0 | DU15: =+(SUMIFS(ASPECTOS!$F$7:$F$477,ASPECTOS!$A$7:$A$477,INDICADORES!$DC$7,ASPECTOS!$E$7:$E$477,INDICADORES!$F15)*INDICADORES!Z15) -> 0 | DV15: =+(SUMIFS(ASPECTOS!$F$7:$F$477,ASPECTOS!$A$7:$A$477,INDICADORES!$DC$7,ASPECTOS!$E$7:$E$477,INDICADORES!$F15)*INDICADORES!AA15) -> 0 | DW15: =+(SUMIFS(ASPECTOS!$F$7:$F$477,ASPECTOS!$A$7:$A$477,INDICADORES!$DC$7,ASPECTOS!$E$7:$E$477,INDICADORES!$F15)*INDICADORES!AB15) -> 0 | DX15: =+(SUMIFS(ASPECTOS!$F$7:$F$477,ASPECTOS!$A$7:$A$477,INDICADORES!$DC$7,ASPECTOS!$E$7:$E$477,INDICADORES!$F15)*INDICADORES!AC15) -> 0 | DY15: =+(SUMIFS(ASPECTOS!$F$7:$F$477,ASPECTOS!$A$7:$A$477,INDICADORES!$DC$7,ASPECTOS!$E$7:$E$477,INDICADORES!$F15)*INDICADORES!AD15) -> 0 | DZ15: =+(SUMIFS(ASPECTOS!$F$7:$F$477,ASPECTOS!$A$7:$A$477,INDICADORES!$DC$7,ASPECTOS!$E$7:$E$477,INDICADORES!$F15)*INDICADORES!AE15) -> 0 | EA15: =+(SUMIFS(ASPECTOS!$F$7:$F$477,ASPECTOS!$A$7:$A$477,INDICADORES!$DC$7,ASPECTOS!$E$7:$E$477,INDICADORES!$F15)*INDICADORES!AF15) -> 0 | EB15: =+(SUMIFS(ASPECTOS!$F$7:$F$477,ASPECTOS!$A$7:$A$477,INDICADORES!$EB$7,ASPECTOS!$E$7:$E$477,INDICADORES!$F15)*H15) -> 0 | EC15: =+(SUMIFS(ASPECTOS!$F$7:$F$477,ASPECTOS!$A$7:$A$477,INDICADORES!$EB$7,ASPECTOS!$E$7:$E$477,INDICADORES!$F15)*I15) -> 0 | ED15: =+(SUMIFS(ASPECTOS!$F$7:$F$477,ASPECTOS!$A$7:$A$477,INDICADORES!$EB$7,ASPECTOS!$E$7:$E$477,INDICADORES!$F15)*J15) -> 0 | EE15: =+(SUMIFS(ASPECTOS!$F$7:$F$477,ASPECTOS!$A$7:$A$477,INDICADORES!$EB$7,ASPECTOS!$E$7:$E$477,INDICADORES!$F15)*K15) -> 0 | EF15: =+(SUMIFS(ASPECTOS!$F$7:$F$477,ASPECTOS!$A$7:$A$477,INDICADORES!$EB$7,ASPECTOS!$E$7:$E$477,INDICADORES!$F15)*L15) -> 0 | EG15: =+(SUMIFS(ASPECTOS!$F$7:$F$477,ASPECTOS!$A$7:$A$477,INDICADORES!$EB$7,ASPECTOS!$E$7:$E$477,INDICADORES!$F15)*M15) -> 0 | EH15: =+(SUMIFS(ASPECTOS!$F$7:$F$477,ASPECTOS!$A$7:$A$477,INDICADORES!$EB$7,ASPECTOS!$E$7:$E$477,INDICADORES!$F15)*N15) -> 0 | EI15: =+(SUMIFS(ASPECTOS!$F$7:$F$477,ASPECTOS!$A$7:$A$477,INDICADORES!$EB$7,ASPECTOS!$E$7:$E$477,INDICADORES!$F15)*O15) -> 0 | EJ15: =+(SUMIFS(ASPECTOS!$F$7:$F$477,ASPECTOS!$A$7:$A$477,INDICADORES!$EB$7,ASPECTOS!$E$7:$E$477,INDICADORES!$F15)*P15) -> 0 | EK15: =+(SUMIFS(ASPECTOS!$F$7:$F$477,ASPECTOS!$A$7:$A$477,INDICADORES!$EB$7,ASPECTOS!$E$7:$E$477,INDICADORES!$F15)*Q15) -> 0 | EL15: =+(SUMIFS(ASPECTOS!$F$7:$F$477,ASPECTOS!$A$7:$A$477,INDICADORES!$EB$7,ASPECTOS!$E$7:$E$477,INDICADORES!$F15)*R15) -> 0 | EM15: =+(SUMIFS(ASPECTOS!$F$7:$F$477,ASPECTOS!$A$7:$A$477,INDICADORES!$EB$7,ASPECTOS!$E$7:$E$477,INDICADORES!$F15)*S15) -> 0 | EN15: =+(SUMIFS(ASPECTOS!$F$7:$F$477,ASPECTOS!$A$7:$A$477,INDICADORES!$EB$7,ASPECTOS!$E$7:$E$477,INDICADORES!$F15)*T15) -> 0 | EO15: =+(SUMIFS(ASPECTOS!$F$7:$F$477,ASPECTOS!$A$7:$A$477,INDICADORES!$EB$7,ASPECTOS!$E$7:$E$477,INDICADORES!$F15)*U15) -> 0 | EP15: =+(SUMIFS(ASPECTOS!$F$7:$F$477,ASPECTOS!$A$7:$A$477,INDICADORES!$EB$7,ASPECTOS!$E$7:$E$477,INDICADORES!$F15)*V15) -> 0 | EQ15: =+(SUMIFS(ASPECTOS!$F$7:$F$477,ASPECTOS!$A$7:$A$477,INDICADORES!$EB$7,ASPECTOS!$E$7:$E$477,INDICADORES!$F15)*W15) -> 0 | ER15: =+(SUMIFS(ASPECTOS!$F$7:$F$477,ASPECTOS!$A$7:$A$477,INDICADORES!$EB$7,ASPECTOS!$E$7:$E$477,INDICADORES!$F15)*X15) -> 0 | ES15: =+(SUMIFS(ASPECTOS!$F$7:$F$477,ASPECTOS!$A$7:$A$477,INDICADORES!$EB$7,ASPECTOS!$E$7:$E$477,INDICADORES!$F15)*Y15) -> 0 | ET15: =+(SUMIFS(ASPECTOS!$F$7:$F$477,ASPECTOS!$A$7:$A$477,INDICADORES!$EB$7,ASPECTOS!$E$7:$E$477,INDICADORES!$F15)*Z15) -> 0 | EU15: =+(SUMIFS(ASPECTOS!$F$7:$F$477,ASPECTOS!$A$7:$A$477,INDICADORES!$EB$7,ASPECTOS!$E$7:$E$477,INDICADORES!$F15)*AA15) -> 0 | EV15: =+(SUMIFS(ASPECTOS!$F$7:$F$477,ASPECTOS!$A$7:$A$477,INDICADORES!$EB$7,ASPECTOS!$E$7:$E$477,INDICADORES!$F15)*AB15) -> 0 | EW15: =+(SUMIFS(ASPECTOS!$F$7:$F$477,ASPECTOS!$A$7:$A$477,INDICADORES!$EB$7,ASPECTOS!$E$7:$E$477,INDICADORES!$F15)*AC15) -> 0 | EX15: =+(SUMIFS(ASPECTOS!$F$7:$F$477,ASPECTOS!$A$7:$A$477,INDICADORES!$EB$7,ASPECTOS!$E$7:$E$477,INDICADORES!$F15)*AD15) -> 0 | EY15: =+(SUMIFS(ASPECTOS!$F$7:$F$477,ASPECTOS!$A$7:$A$477,INDICADORES!$EB$7,ASPECTOS!$E$7:$E$477,INDICADORES!$F15)*AE15) -> 0 | EZ15: =+(SUMIFS(ASPECTOS!$F$7:$F$477,ASPECTOS!$A$7:$A$477,INDICADORES!$EB$7,ASPECTOS!$E$7:$E$477,INDICADORES!$F15)*AF15) -> 0 | FB15: 0 | FC15: 0 | FD15: 0 | FE15: 0 | FF15: 0 | FG15: 0 | FH15: 0 | FI15: 0 | FJ15: 0 | FK15: 0 | FL15: 0 | FM15: 0 | FN15: 0 | FO15: 0 | FP15: 0 | FQ15: 0 | FR15: 0 | FS15: 0 | FT15: 0 | FU15: 0 | FV15: 0 | FW15: 0 | FX15: 0 | FY15: 0 | FZ15: 0 | GB15: Fin de Vida | GC15: =+SUMIF(INDICADORES!$D$10:$D$235,$GB15,INDICADORES!FB$10:FB$235) -> 9.717324034 | GD15: =+SUMIF(INDICADORES!$D$10:$D$235,$GB15,INDICADORES!FC$10:FC$235) -> 0.02227543465 | GE15: =+SUMIF(INDICADORES!$D$10:$D$235,$GB15,INDICADORES!FD$10:FD$235) -> 0.002625253287 | GF15: =+SUMIF(INDICADORES!$D$10:$D$235,$GB15,INDICADORES!FE$10:FE$235) -> 0.3064606091 | GG15: =+SUMIF(INDICADORES!$D$10:$D$235,$GB15,INDICADORES!FF$10:FF$235) -> 117.748914 | GH15: =+SUMIF(INDICADORES!$D$10:$D$235,$GB15,INDICADORES!FG$10:FG$235) -> 2611356.254 | GI15: =+SUMIF(INDICADORES!$D$10:$D$235,$GB15,INDICADORES!FH$10:FH$235) -> 0.0009973615724 | GJ15: =+SUMIF(INDICADORES!$D$10:$D$235,$GB15,INDICADORES!FI$10:FI$235) -> 3.927733498 | GK15: =+SUMIF(INDICADORES!$D$10:$D$235,$GB15,INDICADORES!FJ$10:FJ$235) -> 0.004901760643 | GL15: =+SUMIF(INDICADORES!$D$10:$D$235,$GB15,INDICADORES!FK$10:FK$235) -> 459.9306147 | GM15: =+SUMIF(INDICADORES!$D$10:$D$235,$GB15,INDICADORES!FL$10:FL$235) -> 33.49306194 | GN15: =+SUMIF(INDICADORES!$D$10:$D$235,$GB15,INDICADORES!FM$10:FM$235) -> 0.0007376512042 | GO15: =+SUMIF(INDICADORES!$D$10:$D$235,$GB15,INDICADORES!FN$10:FN$235) -> 31.72085102 | GP15: =+SUMIF(INDICADORES!$D$10:$D$235,$GB15,INDICADORES!FO$10:FO$235) -> 94350.23476 | GQ15: =+SUMIF(INDICADORES!$D$10:$D$235,$GB15,INDICADORES!FP$10:FP$235) -> 0.07941123359 | GR15: =+SUMIF(INDICADORES!$D$10:$D$235,$GB15,INDICADORES!FQ$10:FQ$235) -> 16.29701972 | GS15: =+SUMIF(INDICADORES!$D$10:$D$235,$GB15,INDICADORES!FR$10:FR$235) -> 795.5585263 | GT15: =+SUMIF(INDICADORES!$D$10:$D$235,$GB15,INDICADORES!FS$10:FS$235) -> 86723.91694 | GU15: =+SUMIF(INDICADORES!$D$10:$D$235,$GB15,INDICADORES!FT$10:FT$235) -> 2656.660605 | GV15: =+SUMIF(INDICADORES!$D$10:$D$235,$GB15,INDICADORES!FU$10:FU$235) -> 1.702846734 | GW15: =+SUMIF(INDICADORES!$D$10:$D$235,$GB15,INDICADORES!FV$10:FV$235) -> 89382.28039 | GX15: =+SUMIF(INDICADORES!$D$10:$D$235,$GB15,INDICADORES!FW$10:FW$235) -> 1654.086187 | GY15: =+SUMIF(INDICADORES!$D$10:$D$235,$GB15,INDICADORES!FX$10:FX$235) -> 593.2581969 | GZ15: =+SUMIF(INDICADORES!$D$10:$D$235,$GB15,INDICADORES!FY$10:FY$235) -> 258.3780523 | HA15: =+SUMIF(INDICADORES!$D$10:$D$235,$GB15,INDICADORES!FZ$10:FZ$235) -> 2505.722436 | HC15: Materiales | HD15: Madera | HE15: =+SUMIFS(INDICADORES!FB$10:FB$235,INDICADORES!$D$10:$D$235,$HC15,INDICADORES!$E$10:$E$235,$HD15) -> 0 | HF15: =+SUMIFS(INDICADORES!FC$10:FC$235,INDICADORES!$D$10:$D$235,$HC15,INDICADORES!$E$10:$E$235,$HD15) -> 0 | HG15: =+SUMIFS(INDICADORES!FD$10:FD$235,INDICADORES!$D$10:$D$235,$HC15,INDICADORES!$E$10:$E$235,$HD15) -> 0 | HH15: =+SUMIFS(INDICADORES!FE$10:FE$235,INDICADORES!$D$10:$D$235,$HC15,INDICADORES!$E$10:$E$235,$HD15) -> 0 | HI15: =+SUMIFS(INDICADORES!FF$10:FF$235,INDICADORES!$D$10:$D$235,$HC15,INDICADORES!$E$10:$E$235,$HD15) -> 0 | HJ15: =+SUMIFS(INDICADORES!FG$10:FG$235,INDICADORES!$D$10:$D$235,$HC15,INDICADORES!$E$10:$E$235,$HD15) -> 0 | HK15: =+SUMIFS(INDICADORES!FH$10:FH$235,INDICADORES!$D$10:$D$235,$HC15,INDICADORES!$E$10:$E$235,$HD15) -> 0 | HL15: =+SUMIFS(INDICADORES!FI$10:FI$235,INDICADORES!$D$10:$D$235,$HC15,INDICADORES!$E$10:$E$235,$HD15) -> 0 | HM15: =+SUMIFS(INDICADORES!FJ$10:FJ$235,INDICADORES!$D$10:$D$235,$HC15,INDICADORES!$E$10:$E$235,$HD15) -> 0 | HN15: =+SUMIFS(INDICADORES!FK$10:FK$235,INDICADORES!$D$10:$D$235,$HC15,INDICADORES!$E$10:$E$235,$HD15) -> 0 | HO15: =+SUMIFS(INDICADORES!FL$10:FL$235,INDICADORES!$D$10:$D$235,$HC15,INDICADORES!$E$10:$E$235,$HD15) -> 0 | HP15: =+SUMIFS(INDICADORES!FM$10:FM$235,INDICADORES!$D$10:$D$235,$HC15,INDICADORES!$E$10:$E$235,$HD15) -> 0 | HQ15: =+SUMIFS(INDICADORES!FN$10:FN$235,INDICADORES!$D$10:$D$235,$HC15,INDICADORES!$E$10:$E$235,$HD15) -> 0 | HR15: =+SUMIFS(INDICADORES!FO$10:FO$235,INDICADORES!$D$10:$D$235,$HC15,INDICADORES!$E$10:$E$235,$HD15) -> 0 | HS15: =+SUMIFS(INDICADORES!FP$10:FP$235,INDICADORES!$D$10:$D$235,$HC15,INDICADORES!$E$10:$E$235,$HD15) -> 0 | HT15: =+SUMIFS(INDICADORES!FQ$10:FQ$235,INDICADORES!$D$10:$D$235,$HC15,INDICADORES!$E$10:$E$235,$HD15) -> 0 | HU15: =+SUMIFS(INDICADORES!FR$10:FR$235,INDICADORES!$D$10:$D$235,$HC15,INDICADORES!$E$10:$E$235,$HD15) -> 0 | HV15: =+SUMIFS(INDICADORES!FS$10:FS$235,INDICADORES!$D$10:$D$235,$HC15,INDICADORES!$E$10:$E$235,$HD15) -> 0 | HW15: =+SUMIFS(INDICADORES!FT$10:FT$235,INDICADORES!$D$10:$D$235,$HC15,INDICADORES!$E$10:$E$235,$HD15) -> 0 | HX15: =+SUMIFS(INDICADORES!FU$10:FU$235,INDICADORES!$D$10:$D$235,$HC15,INDICADORES!$E$10:$E$235,$HD15) -> 0 | HY15: =+SUMIFS(INDICADORES!FV$10:FV$235,INDICADORES!$D$10:$D$235,$HC15,INDICADORES!$E$10:$E$235,$HD15) -> 0 | HZ15: =+SUMIFS(INDICADORES!FW$10:FW$235,INDICADORES!$D$10:$D$235,$HC15,INDICADORES!$E$10:$E$235,$HD15) -> 0 | IA15: =+SUMIFS(INDICADORES!FX$10:FX$235,INDICADORES!$D$10:$D$235,$HC15,INDICADORES!$E$10:$E$235,$HD15) -> 0 | IB15: =+SUMIFS(INDICADORES!FY$10:FY$235,INDICADORES!$D$10:$D$235,$HC15,INDICADORES!$E$10:$E$235,$HD15) -> 0 | IC15: =+SUMIFS(INDICADORES!FZ$10:FZ$235,INDICADORES!$D$10:$D$235,$HC15,INDICADORES!$E$10:$E$235,$HD15) -> 0
B16: 3 | C16: MCo 002 | D16: Materiales | E16: Construcción | F16: Cemento | G16: kg | H16: 0.0008601887533 | I16: 0.0005149915387 | J16: 1.123897245e-07 | K16: 3.907487856e-05 | L16: 0.00591655955 | M16: 0.8711266925 | N16: 2.640494869e-08 | O16: 0.0001046452953 | P16: 5.855574002e-08 | Q16: 0.03142850531 | R16: 0.001477038051 | S16: 7.360525864e-09 | T16: 0.002025067065 | U16: 0.3894302864 | V16: 4.758749172e-06 | W16: 0.0003673834679 | X16: 0.05154813051 | Y16: 3.21314256 | Z16: 0.4182227806 | AA16: 4.405010737e-05 | AB16: 3.63140939 | AC16: 0.0556412556 | AD16: 0.1018533702 | AE16: 0.07914491073 | AF16: 0.2366395366 | AG16: M | AH16: 0.001 | AI16: N/A | AM16: =+(SUMIFS(ASPECTOS!$F$7:$F$477,ASPECTOS!$A$7:$A$477,INDICADORES!AM$8,ASPECTOS!$E$7:$E$477,INDICADORES!$F16)*$H16) -> 0 | AN16: =+(SUMIFS(ASPECTOS!$F$7:$F$477,ASPECTOS!$A$7:$A$477,INDICADORES!AN$8,ASPECTOS!$E$7:$E$477,INDICADORES!$F16)*$H16) -> 0 | AO16: =+(SUMIFS(ASPECTOS!$F$7:$F$477,ASPECTOS!$A$7:$A$477,INDICADORES!AO$8,ASPECTOS!$E$7:$E$477,INDICADORES!$F16)*$H16) -> 0 | AP16: =+(SUMIFS(ASPECTOS!$F$7:$F$477,ASPECTOS!$A$7:$A$477,INDICADORES!AP$8,ASPECTOS!$E$7:$E$477,INDICADORES!$F16)*$H16) -> 0 | AQ16: =+(SUMIFS(ASPECTOS!$F$7:$F$477,ASPECTOS!$A$7:$A$477,INDICADORES!AQ$8,ASPECTOS!$E$7:$E$477,INDICADORES!$F16)*$V16) -> 0 | AR16: =+(SUMIFS(ASPECTOS!$F$7:$F$477,ASPECTOS!$A$7:$A$477,INDICADORES!AR$8,ASPECTOS!$E$7:$E$477,INDICADORES!$F16)*$V16) -> 0 | AS16: =+(SUMIFS(ASPECTOS!$F$7:$F$477,ASPECTOS!$A$7:$A$477,INDICADORES!AS$8,ASPECTOS!$E$7:$E$477,INDICADORES!$F16)*$V16) -> 0 | AT16: =+(SUMIFS(ASPECTOS!$F$7:$F$477,ASPECTOS!$A$7:$A$477,INDICADORES!AT$8,ASPECTOS!$E$7:$E$477,INDICADORES!$F16)*$V16) -> 0 | AU16: =+(SUMIFS(ASPECTOS!$F$7:$F$477,ASPECTOS!$A$7:$A$477,INDICADORES!AU$8,ASPECTOS!$E$7:$E$477,INDICADORES!$F16)*$W16) -> 0 | AV16: =+(SUMIFS(ASPECTOS!$F$7:$F$477,ASPECTOS!$A$7:$A$477,INDICADORES!AV$8,ASPECTOS!$E$7:$E$477,INDICADORES!$F16)*$W16) -> 0 | AW16: =+(SUMIFS(ASPECTOS!$F$7:$F$477,ASPECTOS!$A$7:$A$477,INDICADORES!AW$8,ASPECTOS!$E$7:$E$477,INDICADORES!$F16)*$W16) -> 0 | AX16: =+(SUMIFS(ASPECTOS!$F$7:$F$477,ASPECTOS!$A$7:$A$477,INDICADORES!AX$8,ASPECTOS!$E$7:$E$477,INDICADORES!$F16)*$W16) -> 0 | AY16: =+(SUMIFS(ASPECTOS!$F$7:$F$477,ASPECTOS!$A$7:$A$477,INDICADORES!AY$8,ASPECTOS!$E$7:$E$477,INDICADORES!$F16)*$X16) -> 0 | AZ16: =+(SUMIFS(ASPECTOS!$F$7:$F$477,ASPECTOS!$A$7:$A$477,INDICADORES!AZ$8,ASPECTOS!$E$7:$E$477,INDICADORES!$F16)*$X16) -> 0 | BA16: =+(SUMIFS(ASPECTOS!$F$7:$F$477,ASPECTOS!$A$7:$A$477,INDICADORES!BA$8,ASPECTOS!$E$7:$E$477,INDICADORES!$F16)*$X16) -> 0 | BB16: =+(SUMIFS(ASPECTOS!$F$7:$F$477,ASPECTOS!$A$7:$A$477,INDICADORES!BB$8,ASPECTOS!$E$7:$E$477,INDICADORES!$F16)*$X16) -> 0 | BE16: =+(SUMIFS(ASPECTOS!$F$7:$F$477,ASPECTOS!$A$7:$A$477,INDICADORES!$BE$7,ASPECTOS!$E$7:$E$477,INDICADORES!$F16)*INDICADORES!H16) -> 0 | BF16: =+(SUMIFS(ASPECTOS!$F$7:$F$477,ASPECTOS!$A$7:$A$477,INDICADORES!$BE$7,ASPECTOS!$E$7:$E$477,INDICADORES!$F16)*INDICADORES!I16) -> 0 | BG16: =+(SUMIFS(ASPECTOS!$F$7:$F$477,ASPECTOS!$A$7:$A$477,INDICADORES!$BE$7,ASPECTOS!$E$7:$E$477,INDICADORES!$F16)*INDICADORES!J16) -> 0 | BH16: =+(SUMIFS(ASPECTOS!$F$7:$F$477,ASPECTOS!$A$7:$A$477,INDICADORES!$BE$7,ASPECTOS!$E$7:$E$477,INDICADORES!$F16)*INDICADORES!K16) -> 0 | BI16: =+(SUMIFS(ASPECTOS!$F$7:$F$477,ASPECTOS!$A$7:$A$477,INDICADORES!$BE$7,ASPECTOS!$E$7:$E$477,INDICADORES!$F16)*INDICADORES!L16) -> 0 | BJ16: =+(SUMIFS(ASPECTOS!$F$7:$F$477,ASPECTOS!$A$7:$A$477,INDICADORES!$BE$7,ASPECTOS!$E$7:$E$477,INDICADORES!$F16)*INDICADORES!M16) -> 0 | BK16: =+(SUMIFS(ASPECTOS!$F$7:$F$477,ASPECTOS!$A$7:$A$477,INDICADORES!$BE$7,ASPECTOS!$E$7:$E$477,INDICADORES!$F16)*INDICADORES!N16) -> 0 | BL16: =+(SUMIFS(ASPECTOS!$F$7:$F$477,ASPECTOS!$A$7:$A$477,INDICADORES!$BE$7,ASPECTOS!$E$7:$E$477,INDICADORES!$F16)*INDICADORES!O16) -> 0 | BM16: =+(SUMIFS(ASPECTOS!$F$7:$F$477,ASPECTOS!$A$7:$A$477,INDICADORES!$BE$7,ASPECTOS!$E$7:$E$477,INDICADORES!$F16)*INDICADORES!P16) -> 0 | BN16: =+(SUMIFS(ASPECTOS!$F$7:$F$477,ASPECTOS!$A$7:$A$477,INDICADORES!$BE$7,ASPECTOS!$E$7:$E$477,INDICADORES!$F16)*INDICADORES!Q16) -> 0 | BO16: =+(SUMIFS(ASPECTOS!$F$7:$F$477,ASPECTOS!$A$7:$A$477,INDICADORES!$BE$7,ASPECTOS!$E$7:$E$477,INDICADORES!$F16)*INDICADORES!R16) -> 0 | BP16: =+(SUMIFS(ASPECTOS!$F$7:$F$477,ASPECTOS!$A$7:$A$477,INDICADORES!$BE$7,ASPECTOS!$E$7:$E$477,INDICADORES!$F16)*INDICADORES!S16) -> 0 | BQ16: =+(SUMIFS(ASPECTOS!$F$7:$F$477,ASPECTOS!$A$7:$A$477,INDICADORES!$BE$7,ASPECTOS!$E$7:$E$477,INDICADORES!$F16)*INDICADORES!T16) -> 0 | BR16: =+(SUMIFS(ASPECTOS!$F$7:$F$477,ASPECTOS!$A$7:$A$477,INDICADORES!$BE$7,ASPECTOS!$E$7:$E$477,INDICADORES!$F16)*INDICADORES!U16) -> 0 | BS16: =+(SUMIFS(ASPECTOS!$F$7:$F$477,ASPECTOS!$A$7:$A$477,INDICADORES!$BE$7,ASPECTOS!$E$7:$E$477,INDICADORES!$F16)*INDICADORES!V16) -> 0 | BT16: =+(SUMIFS(ASPECTOS!$F$7:$F$477,ASPECTOS!$A$7:$A$477,INDICADORES!$BE$7,ASPECTOS!$E$7:$E$477,INDICADORES!$F16)*INDICADORES!W16) -> 0 | BU16: =+(SUMIFS(ASPECTOS!$F$7:$F$477,ASPECTOS!$A$7:$A$477,INDICADORES!$BE$7,ASPECTOS!$E$7:$E$477,INDICADORES!$F16)*INDICADORES!X16) -> 0 | BV16: =+(SUMIFS(ASPECTOS!$F$7:$F$477,ASPECTOS!$A$7:$A$477,INDICADORES!$BE$7,ASPECTOS!$E$7:$E$477,INDICADORES!$F16)*INDICADORES!Y16) -> 0 | BW16: =+(SUMIFS(ASPECTOS!$F$7:$F$477,ASPECTOS!$A$7:$A$477,INDICADORES!$BE$7,ASPECTOS!$E$7:$E$477,INDICADORES!$F16)*INDICADORES!Z16) -> 0 | BX16: =+(SUMIFS(ASPECTOS!$F$7:$F$477,ASPECTOS!$A$7:$A$477,INDICADORES!$BE$7,ASPECTOS!$E$7:$E$477,INDICADORES!$F16)*INDICADORES!AA16) -> 0 | BY16: =+(SUMIFS(ASPECTOS!$F$7:$F$477,ASPECTOS!$A$7:$A$477,INDICADORES!$BE$7,ASPECTOS!$E$7:$E$477,INDICADORES!$F16)*INDICADORES!AB16) -> 0 | BZ16: =+(SUMIFS(ASPECTOS!$F$7:$F$477,ASPECTOS!$A$7:$A$477,INDICADORES!$BE$7,ASPECTOS!$E$7:$E$477,INDICADORES!$F16)*INDICADORES!AC16) -> 0 | CA16: =+(SUMIFS(ASPECTOS!$F$7:$F$477,ASPECTOS!$A$7:$A$477,INDICADORES!$BE$7,ASPECTOS!$E$7:$E$477,INDICADORES!$F16)*INDICADORES!AD16) -> 0 | CB16: =+(SUMIFS(ASPECTOS!$F$7:$F$477,ASPECTOS!$A$7:$A$477,INDICADORES!$BE$7,ASPECTOS!$E$7:$E$477,INDICADORES!$F16)*INDICADORES!AE16) -> 0 | CC16: =+(SUMIFS(ASPECTOS!$F$7:$F$477,ASPECTOS!$A$7:$A$477,INDICADORES!$BE$7,ASPECTOS!$E$7:$E$477,INDICADORES!$F16)*INDICADORES!AF16) -> 0 | CD16: =+(SUMIFS(ASPECTOS!$F$7:$F$477,ASPECTOS!$A$7:$A$477,INDICADORES!$CD$7,ASPECTOS!$E$7:$E$477,INDICADORES!$F16)*INDICADORES!H16) -> 0 | CE16: =+(SUMIFS(ASPECTOS!$F$7:$F$477,ASPECTOS!$A$7:$A$477,INDICADORES!$CD$7,ASPECTOS!$E$7:$E$477,INDICADORES!$F16)*INDICADORES!I16) -> 0 | CF16: =+(SUMIFS(ASPECTOS!$F$7:$F$477,ASPECTOS!$A$7:$A$477,INDICADORES!$CD$7,ASPECTOS!$E$7:$E$477,INDICADORES!$F16)*INDICADORES!J16) -> 0 | CG16: =+(SUMIFS(ASPECTOS!$F$7:$F$477,ASPECTOS!$A$7:$A$477,INDICADORES!$CD$7,ASPECTOS!$E$7:$E$477,INDICADORES!$F16)*INDICADORES!K16) -> 0 | CH16: =+(SUMIFS(ASPECTOS!$F$7:$F$477,ASPECTOS!$A$7:$A$477,INDICADORES!$CD$7,ASPECTOS!$E$7:$E$477,INDICADORES!$F16)*INDICADORES!L16) -> 0 | CI16: =+(SUMIFS(ASPECTOS!$F$7:$F$477,ASPECTOS!$A$7:$A$477,INDICADORES!$CD$7,ASPECTOS!$E$7:$E$477,INDICADORES!$F16)*INDICADORES!M16) -> 0 | CJ16: =+(SUMIFS(ASPECTOS!$F$7:$F$477,ASPECTOS!$A$7:$A$477,INDICADORES!$CD$7,ASPECTOS!$E$7:$E$477,INDICADORES!$F16)*INDICADORES!N16) -> 0 | CK16: =+(SUMIFS(ASPECTOS!$F$7:$F$477,ASPECTOS!$A$7:$A$477,INDICADORES!$CD$7,ASPECTOS!$E$7:$E$477,INDICADORES!$F16)*INDICADORES!O16) -> 0 | CL16: =+(SUMIFS(ASPECTOS!$F$7:$F$477,ASPECTOS!$A$7:$A$477,INDICADORES!$CD$7,ASPECTOS!$E$7:$E$477,INDICADORES!$F16)*INDICADORES!P16) -> 0 | CM16: =+(SUMIFS(ASPECTOS!$F$7:$F$477,ASPECTOS!$A$7:$A$477,INDICADORES!$CD$7,ASPECTOS!$E$7:$E$477,INDICADORES!$F16)*INDICADORES!Q16) -> 0 | CN16: =+(SUMIFS(ASPECTOS!$F$7:$F$477,ASPECTOS!$A$7:$A$477,INDICADORES!$CD$7,ASPECTOS!$E$7:$E$477,INDICADORES!$F16)*INDICADORES!R16) -> 0 | CO16: =+(SUMIFS(ASPECTOS!$F$7:$F$477,ASPECTOS!$A$7:$A$477,INDICADORES!$CD$7,ASPECTOS!$E$7:$E$477,INDICADORES!$F16)*INDICADORES!S16) -> 0 | CP16: =+(SUMIFS(ASPECTOS!$F$7:$F$477,ASPECTOS!$A$7:$A$477,INDICADORES!$CD$7,ASPECTOS!$E$7:$E$477,INDICADORES!$F16)*INDICADORES!T16) -> 0 | CQ16: =+(SUMIFS(ASPECTOS!$F$7:$F$477,ASPECTOS!$A$7:$A$477,INDICADORES!$CD$7,ASPECTOS!$E$7:$E$477,INDICADORES!$F16)*INDICADORES!U16) -> 0 | CR16: =+(SUMIFS(ASPECTOS!$F$7:$F$477,ASPECTOS!$A$7:$A$477,INDICADORES!$CD$7,ASPECTOS!$E$7:$E$477,INDICADORES!$F16)*INDICADORES!V16) -> 0 | CS16: =+(SUMIFS(ASPECTOS!$F$7:$F$477,ASPECTOS!$A$7:$A$477,INDICADORES!$CD$7,ASPECTOS!$E$7:$E$477,INDICADORES!$F16)*INDICADORES!W16) -> 0 | CT16: =+(SUMIFS(ASPECTOS!$F$7:$F$477,ASPECTOS!$A$7:$A$477,INDICADORES!$CD$7,ASPECTOS!$E$7:$E$477,INDICADORES!$F16)*INDICADORES!X16) -> 0 | CU16: =+(SUMIFS(ASPECTOS!$F$7:$F$477,ASPECTOS!$A$7:$A$477,INDICADORES!$CD$7,ASPECTOS!$E$7:$E$477,INDICADORES!$F16)*INDICADORES!Y16) -> 0 | CV16: =+(SUMIFS(ASPECTOS!$F$7:$F$477,ASPECTOS!$A$7:$A$477,INDICADORES!$CD$7,ASPECTOS!$E$7:$E$477,INDICADORES!$F16)*INDICADORES!Z16) -> 0 | CW16: =+(SUMIFS(ASPECTOS!$F$7:$F$477,ASPECTOS!$A$7:$A$477,INDICADORES!$CD$7,ASPECTOS!$E$7:$E$477,INDICADORES!$F16)*INDICADORES!AA16) -> 0 | CX16: =+(SUMIFS(ASPECTOS!$F$7:$F$477,ASPECTOS!$A$7:$A$477,INDICADORES!$CD$7,ASPECTOS!$E$7:$E$477,INDICADORES!$F16)*INDICADORES!AB16) -> 0 | CY16: =+(SUMIFS(ASPECTOS!$F$7:$F$477,ASPECTOS!$A$7:$A$477,INDICADORES!$CD$7,ASPECTOS!$E$7:$E$477,INDICADORES!$F16)*INDICADORES!AC16) -> 0 | CZ16: =+(SUMIFS(ASPECTOS!$F$7:$F$477,ASPECTOS!$A$7:$A$477,INDICADORES!$CD$7,ASPECTOS!$E$7:$E$477,INDICADORES!$F16)*INDICADORES!AD16) -> 0 | DA16: =+(SUMIFS(ASPECTOS!$F$7:$F$477,ASPECTOS!$A$7:$A$477,INDICADORES!$CD$7,ASPECTOS!$E$7:$E$477,INDICADORES!$F16)*INDICADORES!AE16) -> 0 | DB16: =+(SUMIFS(ASPECTOS!$F$7:$F$477,ASPECTOS!$A$7:$A$477,INDICADORES!$CD$7,ASPECTOS!$E$7:$E$477,INDICADORES!$F16)*INDICADORES!AF16) -> 0 | DC16: =+(SUMIFS(ASPECTOS!$F$7:$F$477,ASPECTOS!$A$7:$A$477,INDICADORES!$DC$7,ASPECTOS!$E$7:$E$477,INDICADORES!$F16)*INDICADORES!H16) -> 0 | DD16: =+(SUMIFS(ASPECTOS!$F$7:$F$477,ASPECTOS!$A$7:$A$477,INDICADORES!$DC$7,ASPECTOS!$E$7:$E$477,INDICADORES!$F16)*INDICADORES!I16) -> 0 | DE16: =+(SUMIFS(ASPECTOS!$F$7:$F$477,ASPECTOS!$A$7:$A$477,INDICADORES!$DC$7,ASPECTOS!$E$7:$E$477,INDICADORES!$F16)*INDICADORES!J16) -> 0 | DF16: =+(SUMIFS(ASPECTOS!$F$7:$F$477,ASPECTOS!$A$7:$A$477,INDICADORES!$DC$7,ASPECTOS!$E$7:$E$477,INDICADORES!$F16)*INDICADORES!K16) -> 0 | DG16: =+(SUMIFS(ASPECTOS!$F$7:$F$477,ASPECTOS!$A$7:$A$477,INDICADORES!$DC$7,ASPECTOS!$E$7:$E$477,INDICADORES!$F16)*INDICADORES!L16) -> 0 | DH16: =+(SUMIFS(ASPECTOS!$F$7:$F$477,ASPECTOS!$A$7:$A$477,INDICADORES!$DC$7,ASPECTOS!$E$7:$E$477,INDICADORES!$F16)*INDICADORES!M16) -> 0 | DI16: =+(SUMIFS(ASPECTOS!$F$7:$F$477,ASPECTOS!$A$7:$A$477,INDICADORES!$DC$7,ASPECTOS!$E$7:$E$477,INDICADORES!$F16)*INDICADORES!N16) -> 0 | DJ16: =+(SUMIFS(ASPECTOS!$F$7:$F$477,ASPECTOS!$A$7:$A$477,INDICADORES!$DC$7,ASPECTOS!$E$7:$E$477,INDICADORES!$F16)*INDICADORES!O16) -> 0 | DK16: =+(SUMIFS(ASPECTOS!$F$7:$F$477,ASPECTOS!$A$7:$A$477,INDICADORES!$DC$7,ASPECTOS!$E$7:$E$477,INDICADORES!$F16)*INDICADORES!P16) -> 0 | DL16: =+(SUMIFS(ASPECTOS!$F$7:$F$477,ASPECTOS!$A$7:$A$477,INDICADORES!$DC$7,ASPECTOS!$E$7:$E$477,INDICADORES!$F16)*INDICADORES!Q16) -> 0 | DM16: =+(SUMIFS(ASPECTOS!$F$7:$F$477,ASPECTOS!$A$7:$A$477,INDICADORES!$DC$7,ASPECTOS!$E$7:$E$477,INDICADORES!$F16)*INDICADORES!R16) -> 0 | DN16: =+(SUMIFS(ASPECTOS!$F$7:$F$477,ASPECTOS!$A$7:$A$477,INDICADORES!$DC$7,ASPECTOS!$E$7:$E$477,INDICADORES!$F16)*INDICADORES!S16) -> 0 | DO16: =+(SUMIFS(ASPECTOS!$F$7:$F$477,ASPECTOS!$A$7:$A$477,INDICADORES!$DC$7,ASPECTOS!$E$7:$E$477,INDICADORES!$F16)*INDICADORES!T16) -> 0 | DP16: =+(SUMIFS(ASPECTOS!$F$7:$F$477,ASPECTOS!$A$7:$A$477,INDICADORES!$DC$7,ASPECTOS!$E$7:$E$477,INDICADORES!$F16)*INDICADORES!U16) -> 0 | DQ16: =+(SUMIFS(ASPECTOS!$F$7:$F$477,ASPECTOS!$A$7:$A$477,INDICADORES!$DC$7,ASPECTOS!$E$7:$E$477,INDICADORES!$F16)*INDICADORES!V16) -> 0 | DR16: =+(SUMIFS(ASPECTOS!$F$7:$F$477,ASPECTOS!$A$7:$A$477,INDICADORES!$DC$7,ASPECTOS!$E$7:$E$477,INDICADORES!$F16)*INDICADORES!W16) -> 0 | DS16: =+(SUMIFS(ASPECTOS!$F$7:$F$477,ASPECTOS!$A$7:$A$477,INDICADORES!$DC$7,ASPECTOS!$E$7:$E$477,INDICADORES!$F16)*INDICADORES!X16) -> 0 | DT16: =+(SUMIFS(ASPECTOS!$F$7:$F$477,ASPECTOS!$A$7:$A$477,INDICADORES!$DC$7,ASPECTOS!$E$7:$E$477,INDICADORES!$F16)*INDICADORES!Y16) -> 0 | DU16: =+(SUMIFS(ASPECTOS!$F$7:$F$477,ASPECTOS!$A$7:$A$477,INDICADORES!$DC$7,ASPECTOS!$E$7:$E$477,INDICADORES!$F16)*INDICADORES!Z16) -> 0 | DV16: =+(SUMIFS(ASPECTOS!$F$7:$F$477,ASPECTOS!$A$7:$A$477,INDICADORES!$DC$7,ASPECTOS!$E$7:$E$477,INDICADORES!$F16)*INDICADORES!AA16) -> 0 | DW16: =+(SUMIFS(ASPECTOS!$F$7:$F$477,ASPECTOS!$A$7:$A$477,INDICADORES!$DC$7,ASPECTOS!$E$7:$E$477,INDICADORES!$F16)*INDICADORES!AB16) -> 0 | DX16: =+(SUMIFS(ASPECTOS!$F$7:$F$477,ASPECTOS!$A$7:$A$477,INDICADORES!$DC$7,ASPECTOS!$E$7:$E$477,INDICADORES!$F16)*INDICADORES!AC16) -> 0 | DY16: =+(SUMIFS(ASPECTOS!$F$7:$F$477,ASPECTOS!$A$7:$A$477,INDICADORES!$DC$7,ASPECTOS!$E$7:$E$477,INDICADORES!$F16)*INDICADORES!AD16) -> 0 | DZ16: =+(SUMIFS(ASPECTOS!$F$7:$F$477,ASPECTOS!$A$7:$A$477,INDICADORES!$DC$7,ASPECTOS!$E$7:$E$477,INDICADORES!$F16)*INDICADORES!AE16) -> 0 | EA16: =+(SUMIFS(ASPECTOS!$F$7:$F$477,ASPECTOS!$A$7:$A$477,INDICADORES!$DC$7,ASPECTOS!$E$7:$E$477,INDICADORES!$F16)*INDICADORES!AF16) -> 0 | EB16: =+(SUMIFS(ASPECTOS!$F$7:$F$477,ASPECTOS!$A$7:$A$477,INDICADORES!$EB$7,ASPECTOS!$E$7:$E$477,INDICADORES!$F16)*H16) -> 0 | EC16: =+(SUMIFS(ASPECTOS!$F$7:$F$477,ASPECTOS!$A$7:$A$477,INDICADORES!$EB$7,ASPECTOS!$E$7:$E$477,INDICADORES!$F16)*I16) -> 0 | ED16: =+(SUMIFS(ASPECTOS!$F$7:$F$477,ASPECTOS!$A$7:$A$477,INDICADORES!$EB$7,ASPECTOS!$E$7:$E$477,INDICADORES!$F16)*J16) -> 0 | EE16: =+(SUMIFS(ASPECTOS!$F$7:$F$477,ASPECTOS!$A$7:$A$477,INDICADORES!$EB$7,ASPECTOS!$E$7:$E$477,INDICADORES!$F16)*K16) -> 0 | EF16: =+(SUMIFS(ASPECTOS!$F$7:$F$477,ASPECTOS!$A$7:$A$477,INDICADORES!$EB$7,ASPECTOS!$E$7:$E$477,INDICADORES!$F16)*L16) -> 0 | EG16: =+(SUMIFS(ASPECTOS!$F$7:$F$477,ASPECTOS!$A$7:$A$477,INDICADORES!$EB$7,ASPECTOS!$E$7:$E$477,INDICADORES!$F16)*M16) -> 0 | EH16: =+(SUMIFS(ASPECTOS!$F$7:$F$477,ASPECTOS!$A$7:$A$477,INDICADORES!$EB$7,ASPECTOS!$E$7:$E$477,INDICADORES!$F16)*N16) -> 0 | EI16: =+(SUMIFS(ASPECTOS!$F$7:$F$477,ASPECTOS!$A$7:$A$477,INDICADORES!$EB$7,ASPECTOS!$E$7:$E$477,INDICADORES!$F16)*O16) -> 0 | EJ16: =+(SUMIFS(ASPECTOS!$F$7:$F$477,ASPECTOS!$A$7:$A$477,INDICADORES!$EB$7,ASPECTOS!$E$7:$E$477,INDICADORES!$F16)*P16) -> 0 | EK16: =+(SUMIFS(ASPECTOS!$F$7:$F$477,ASPECTOS!$A$7:$A$477,INDICADORES!$EB$7,ASPECTOS!$E$7:$E$477,INDICADORES!$F16)*Q16) -> 0 | EL16: =+(SUMIFS(ASPECTOS!$F$7:$F$477,ASPECTOS!$A$7:$A$477,INDICADORES!$EB$7,ASPECTOS!$E$7:$E$477,INDICADORES!$F16)*R16) -> 0 | EM16: =+(SUMIFS(ASPECTOS!$F$7:$F$477,ASPECTOS!$A$7:$A$477,INDICADORES!$EB$7,ASPECTOS!$E$7:$E$477,INDICADORES!$F16)*S16) -> 0 | EN16: =+(SUMIFS(ASPECTOS!$F$7:$F$477,ASPECTOS!$A$7:$A$477,INDICADORES!$EB$7,ASPECTOS!$E$7:$E$477,INDICADORES!$F16)*T16) -> 0 | EO16: =+(SUMIFS(ASPECTOS!$F$7:$F$477,ASPECTOS!$A$7:$A$477,INDICADORES!$EB$7,ASPECTOS!$E$7:$E$477,INDICADORES!$F16)*U16) -> 0 | EP16: =+(SUMIFS(ASPECTOS!$F$7:$F$477,ASPECTOS!$A$7:$A$477,INDICADORES!$EB$7,ASPECTOS!$E$7:$E$477,INDICADORES!$F16)*V16) -> 0 | EQ16: =+(SUMIFS(ASPECTOS!$F$7:$F$477,ASPECTOS!$A$7:$A$477,INDICADORES!$EB$7,ASPECTOS!$E$7:$E$477,INDICADORES!$F16)*W16) -> 0 | ER16: =+(SUMIFS(ASPECTOS!$F$7:$F$477,ASPECTOS!$A$7:$A$477,INDICADORES!$EB$7,ASPECTOS!$E$7:$E$477,INDICADORES!$F16)*X16) -> 0 | ES16: =+(SUMIFS(ASPECTOS!$F$7:$F$477,ASPECTOS!$A$7:$A$477,INDICADORES!$EB$7,ASPECTOS!$E$7:$E$477,INDICADORES!$F16)*Y16) -> 0 | ET16: =+(SUMIFS(ASPECTOS!$F$7:$F$477,ASPECTOS!$A$7:$A$477,INDICADORES!$EB$7,ASPECTOS!$E$7:$E$477,INDICADORES!$F16)*Z16) -> 0 | EU16: =+(SUMIFS(ASPECTOS!$F$7:$F$477,ASPECTOS!$A$7:$A$477,INDICADORES!$EB$7,ASPECTOS!$E$7:$E$477,INDICADORES!$F16)*AA16) -> 0 | EV16: =+(SUMIFS(ASPECTOS!$F$7:$F$477,ASPECTOS!$A$7:$A$477,INDICADORES!$EB$7,ASPECTOS!$E$7:$E$477,INDICADORES!$F16)*AB16) -> 0 | EW16: =+(SUMIFS(ASPECTOS!$F$7:$F$477,ASPECTOS!$A$7:$A$477,INDICADORES!$EB$7,ASPECTOS!$E$7:$E$477,INDICADORES!$F16)*AC16) -> 0 | EX16: =+(SUMIFS(ASPECTOS!$F$7:$F$477,ASPECTOS!$A$7:$A$477,INDICADORES!$EB$7,ASPECTOS!$E$7:$E$477,INDICADORES!$F16)*AD16) -> 0 | EY16: =+(SUMIFS(ASPECTOS!$F$7:$F$477,ASPECTOS!$A$7:$A$477,INDICADORES!$EB$7,ASPECTOS!$E$7:$E$477,INDICADORES!$F16)*AE16) -> 0 | EZ16: =+(SUMIFS(ASPECTOS!$F$7:$F$477,ASPECTOS!$A$7:$A$477,INDICADORES!$EB$7,ASPECTOS!$E$7:$E$477,INDICADORES!$F16)*AF16) -> 0 | FB16: 0 | FC16: 0 | FD16: 0 | FE16: 0 | FF16: 0 | FG16: 0 | FH16: 0 | FI16: 0 | FJ16: 0 | FK16: 0 | FL16: 0 | FM16: 0 | FN16: 0 | FO16: 0 | FP16: 0 | FQ16: 0 | FR16: 0 | FS16: 0 | FT16: 0 | FU16: 0 | FV16: 0 | FW16: 0 | FX16: 0 | FY16: 0 | FZ16: 0 | HC16: Materiales | HD16: Metal | HE16: =+SUMIFS(INDICADORES!FB$10:FB$235,INDICADORES!$D$10:$D$235,$HC16,INDICADORES!$E$10:$E$235,$HD16) -> 268.4128643 | HF16: =+SUMIFS(INDICADORES!FC$10:FC$235,INDICADORES!$D$10:$D$235,$HC16,INDICADORES!$E$10:$E$235,$HD16) -> 354.5939855 | HG16: =+SUMIFS(INDICADORES!FD$10:FD$235,INDICADORES!$D$10:$D$235,$HC16,INDICADORES!$E$10:$E$235,$HD16) -> 0.2446444616 | HH16: =+SUMIFS(INDICADORES!FE$10:FE$235,INDICADORES!$D$10:$D$235,$HC16,INDICADORES!$E$10:$E$235,$HD16) -> 88.88030036 | HI16: =+SUMIFS(INDICADORES!FF$10:FF$235,INDICADORES!$D$10:$D$235,$HC16,INDICADORES!$E$10:$E$235,$HD16) -> 3819.507364 | HJ16: =+SUMIFS(INDICADORES!FG$10:FG$235,INDICADORES!$D$10:$D$235,$HC16,INDICADORES!$E$10:$E$235,$HD16) -> 28055184.84 | HK16: =+SUMIFS(INDICADORES!FH$10:FH$235,INDICADORES!$D$10:$D$235,$HC16,INDICADORES!$E$10:$E$235,$HD16) -> 0.03900809451 | HL16: =+SUMIFS(INDICADORES!FI$10:FI$235,INDICADORES!$D$10:$D$235,$HC16,INDICADORES!$E$10:$E$235,$HD16) -> 255.5107942 | HM16: =+SUMIFS(INDICADORES!FJ$10:FJ$235,INDICADORES!$D$10:$D$235,$HC16,INDICADORES!$E$10:$E$235,$HD16) -> 1.723188752 | HN16: =+SUMIFS(INDICADORES!FK$10:FK$235,INDICADORES!$D$10:$D$235,$HC16,INDICADORES!$E$10:$E$235,$HD16) -> 85213.82844 | HO16: =+SUMIFS(INDICADORES!FL$10:FL$235,INDICADORES!$D$10:$D$235,$HC16,INDICADORES!$E$10:$E$235,$HD16) -> 1046.726777 | HP16: =+SUMIFS(INDICADORES!FM$10:FM$235,INDICADORES!$D$10:$D$235,$HC16,INDICADORES!$E$10:$E$235,$HD16) -> 1.875052249 | HQ16: =+SUMIFS(INDICADORES!FN$10:FN$235,INDICADORES!$D$10:$D$235,$HC16,INDICADORES!$E$10:$E$235,$HD16) -> 1950.506665 | HR16: =+SUMIFS(INDICADORES!FO$10:FO$235,INDICADORES!$D$10:$D$235,$HC16,INDICADORES!$E$10:$E$235,$HD16) -> 688057.8689 | HS16: =+SUMIFS(INDICADORES!FP$10:FP$235,INDICADORES!$D$10:$D$235,$HC16,INDICADORES!$E$10:$E$235,$HD16) -> 11.99098159 | HT16: =+SUMIFS(INDICADORES!FQ$10:FQ$235,INDICADORES!$D$10:$D$235,$HC16,INDICADORES!$E$10:$E$235,$HD16) -> 938.6232931 | HU16: =+SUMIFS(INDICADORES!FR$10:FR$235,INDICADORES!$D$10:$D$235,$HC16,INDICADORES!$E$10:$E$235,$HD16) -> 41385.93396 | HV16: =+SUMIFS(INDICADORES!FS$10:FS$235,INDICADORES!$D$10:$D$235,$HC16,INDICADORES!$E$10:$E$235,$HD16) -> 3902064.659 | HW16: =+SUMIFS(INDICADORES!FT$10:FT$235,INDICADORES!$D$10:$D$235,$HC16,INDICADORES!$E$10:$E$235,$HD16) -> 1361596.429 | HX16: =+SUMIFS(INDICADORES!FU$10:FU$235,INDICADORES!$D$10:$D$235,$HC16,INDICADORES!$E$10:$E$235,$HD16) -> 109.6734665 | HY16: =+SUMIFS(INDICADORES!FV$10:FV$235,INDICADORES!$D$10:$D$235,$HC16,INDICADORES!$E$10:$E$235,$HD16) -> 5263770.762 | HZ16: =+SUMIFS(INDICADORES!FW$10:FW$235,INDICADORES!$D$10:$D$235,$HC16,INDICADORES!$E$10:$E$235,$HD16) -> 135121.8284 | IA16: =+SUMIFS(INDICADORES!FX$10:FX$235,INDICADORES!$D$10:$D$235,$HC16,INDICADORES!$E$10:$E$235,$HD16) -> 331529.404 | IB16: =+SUMIFS(INDICADORES!FY$10:FY$235,INDICADORES!$D$10:$D$235,$HC16,INDICADORES!$E$10:$E$235,$HD16) -> 105245.8373 | IC16: =+SUMIFS(INDICADORES!FZ$10:FZ$235,INDICADORES!$D$10:$D$235,$HC16,INDICADORES!$E$10:$E$235,$HD16) -> 571897.0697
B17: 14 | C17: MCo 013 | D17: Materiales | E17: Construcción | F17: Cerámica | G17: kg | H17: 0.001269952891 | I17: 0.0009795806271 | J17: 6.631948657e-07 | K17: 0.0002372259055 | L17: 0.01115906249 | M17: 10.28774268 | N17: 1.618651681e-07 | O17: 0.009132968342 | P17: 3.15572979e-07 | Q17: 0.2419510596 | R17: 0.003275845445 | S17: 4.162501402e-08 | T17: 0.006334181639 | U17: 3.249693699 | V17: 0.0001327623567 | W17: 0.001677935587 | X17: 0.1632386182 | Y17: 17.47858113 | Z17: 3.996504045 | AA17: 0.0003187809762 | AB17: 21.47540396 | AC17: 0.5727163047 | AD17: 0.9690141861 | AE17: 0.2961201556 | AF17: 1.837850646 | AG17: M | AH17: 0.001 | AI17: N/A | AM17: =+(SUMIFS(ASPECTOS!$F$7:$F$477,ASPECTOS!$A$7:$A$477,INDICADORES!AM$8,ASPECTOS!$E$7:$E$477,INDICADORES!$F17)*$H17) -> 0 | AN17: =+(SUMIFS(ASPECTOS!$F$7:$F$477,ASPECTOS!$A$7:$A$477,INDICADORES!AN$8,ASPECTOS!$E$7:$E$477,INDICADORES!$F17)*$H17) -> 0 | AO17: =+(SUMIFS(ASPECTOS!$F$7:$F$477,ASPECTOS!$A$7:$A$477,INDICADORES!AO$8,ASPECTOS!$E$7:$E$477,INDICADORES!$F17)*$H17) -> 0 | AP17: =+(SUMIFS(ASPECTOS!$F$7:$F$477,ASPECTOS!$A$7:$A$477,INDICADORES!AP$8,ASPECTOS!$E$7:$E$477,INDICADORES!$F17)*$H17) -> 0 | AQ17: =+(SUMIFS(ASPECTOS!$F$7:$F$477,ASPECTOS!$A$7:$A$477,INDICADORES!AQ$8,ASPECTOS!$E$7:$E$477,INDICADORES!$F17)*$V17) -> 0 | AR17: =+(SUMIFS(ASPECTOS!$F$7:$F$477,ASPECTOS!$A$7:$A$477,INDICADORES!AR$8,ASPECTOS!$E$7:$E$477,INDICADORES!$F17)*$V17) -> 0 | AS17: =+(SUMIFS(ASPECTOS!$F$7:$F$477,ASPECTOS!$A$7:$A$477,INDICADORES!AS$8,ASPECTOS!$E$7:$E$477,INDICADORES!$F17)*$V17) -> 0 | AT17: =+(SUMIFS(ASPECTOS!$F$7:$F$477,ASPECTOS!$A$7:$A$477,INDICADORES!AT$8,ASPECTOS!$E$7:$E$477,INDICADORES!$F17)*$V17) -> 0 | AU17: =+(SUMIFS(ASPECTOS!$F$7:$F$477,ASPECTOS!$A$7:$A$477,INDICADORES!AU$8,ASPECTOS!$E$7:$E$477,INDICADORES!$F17)*$W17) -> 0 | AV17: =+(SUMIFS(ASPECTOS!$F$7:$F$477,ASPECTOS!$A$7:$A$477,INDICADORES!AV$8,ASPECTOS!$E$7:$E$477,INDICADORES!$F17)*$W17) -> 0 | AW17: =+(SUMIFS(ASPECTOS!$F$7:$F$477,ASPECTOS!$A$7:$A$477,INDICADORES!AW$8,ASPECTOS!$E$7:$E$477,INDICADORES!$F17)*$W17) -> 0 | AX17: =+(SUMIFS(ASPECTOS!$F$7:$F$477,ASPECTOS!$A$7:$A$477,INDICADORES!AX$8,ASPECTOS!$E$7:$E$477,INDICADORES!$F17)*$W17) -> 0 | AY17: =+(SUMIFS(ASPECTOS!$F$7:$F$477,ASPECTOS!$A$7:$A$477,INDICADORES!AY$8,ASPECTOS!$E$7:$E$477,INDICADORES!$F17)*$X17) -> 0 | AZ17: =+(SUMIFS(ASPECTOS!$F$7:$F$477,ASPECTOS!$A$7:$A$477,INDICADORES!AZ$8,ASPECTOS!$E$7:$E$477,INDICADORES!$F17)*$X17) -> 0 | BA17: =+(SUMIFS(ASPECTOS!$F$7:$F$477,ASPECTOS!$A$7:$A$477,INDICADORES!BA$8,ASPECTOS!$E$7:$E$477,INDICADORES!$F17)*$X17) -> 0 | BB17: =+(SUMIFS(ASPECTOS!$F$7:$F$477,ASPECTOS!$A$7:$A$477,INDICADORES!BB$8,ASPECTOS!$E$7:$E$477,INDICADORES!$F17)*$X17) -> 0 | BE17: =+(SUMIFS(ASPECTOS!$F$7:$F$477,ASPECTOS!$A$7:$A$477,INDICADORES!$BE$7,ASPECTOS!$E$7:$E$477,INDICADORES!$F17)*INDICADORES!H17) -> 0 | BF17: =+(SUMIFS(ASPECTOS!$F$7:$F$477,ASPECTOS!$A$7:$A$477,INDICADORES!$BE$7,ASPECTOS!$E$7:$E$477,INDICADORES!$F17)*INDICADORES!I17) -> 0 | BG17: =+(SUMIFS(ASPECTOS!$F$7:$F$477,ASPECTOS!$A$7:$A$477,INDICADORES!$BE$7,ASPECTOS!$E$7:$E$477,INDICADORES!$F17)*INDICADORES!J17) -> 0 | BH17: =+(SUMIFS(ASPECTOS!$F$7:$F$477,ASPECTOS!$A$7:$A$477,INDICADORES!$BE$7,ASPECTOS!$E$7:$E$477,INDICADORES!$F17)*INDICADORES!K17) -> 0 | BI17: =+(SUMIFS(ASPECTOS!$F$7:$F$477,ASPECTOS!$A$7:$A$477,INDICADORES!$BE$7,ASPECTOS!$E$7:$E$477,INDICADORES!$F17)*INDICADORES!L17) -> 0 | BJ17: =+(SUMIFS(ASPECTOS!$F$7:$F$477,ASPECTOS!$A$7:$A$477,INDICADORES!$BE$7,ASPECTOS!$E$7:$E$477,INDICADORES!$F17)*INDICADORES!M17) -> 0 | BK17: =+(SUMIFS(ASPECTOS!$F$7:$F$477,ASPECTOS!$A$7:$A$477,INDICADORES!$BE$7,ASPECTOS!$E$7:$E$477,INDICADORES!$F17)*INDICADORES!N17) -> 0 | BL17: =+(SUMIFS(ASPECTOS!$F$7:$F$477,ASPECTOS!$A$7:$A$477,INDICADORES!$BE$7,ASPECTOS!$E$7:$E$477,INDICADORES!$F17)*INDICADORES!O17) -> 0 | BM17: =+(SUMIFS(ASPECTOS!$F$7:$F$477,ASPECTOS!$A$7:$A$477,INDICADORES!$BE$7,ASPECTOS!$E$7:$E$477,INDICADORES!$F17)*INDICADORES!P17) -> 0 | BN17: =+(SUMIFS(ASPECTOS!$F$7:$F$477,ASPECTOS!$A$7:$A$477,INDICADORES!$BE$7,ASPECTOS!$E$7:$E$477,INDICADORES!$F17)*INDICADORES!Q17) -> 0 | BO17: =+(SUMIFS(ASPECTOS!$F$7:$F$477,ASPECTOS!$A$7:$A$477,INDICADORES!$BE$7,ASPECTOS!$E$7:$E$477,INDICADORES!$F17)*INDICADORES!R17) -> 0 | BP17: =+(SUMIFS(ASPECTOS!$F$7:$F$477,ASPECTOS!$A$7:$A$477,INDICADORES!$BE$7,ASPECTOS!$E$7:$E$477,INDICADORES!$F17)*INDICADORES!S17) -> 0 | BQ17: =+(SUMIFS(ASPECTOS!$F$7:$F$477,ASPECTOS!$A$7:$A$477,INDICADORES!$BE$7,ASPECTOS!$E$7:$E$477,INDICADORES!$F17)*INDICADORES!T17) -> 0 | BR17: =+(SUMIFS(ASPECTOS!$F$7:$F$477,ASPECTOS!$A$7:$A$477,INDICADORES!$BE$7,ASPECTOS!$E$7:$E$477,INDICADORES!$F17)*INDICADORES!U17) -> 0 | BS17: =+(SUMIFS(ASPECTOS!$F$7:$F$477,ASPECTOS!$A$7:$A$477,INDICADORES!$BE$7,ASPECTOS!$E$7:$E$477,INDICADORES!$F17)*INDICADORES!V17) -> 0 | BT17: =+(SUMIFS(ASPECTOS!$F$7:$F$477,ASPECTOS!$A$7:$A$477,INDICADORES!$BE$7,ASPECTOS!$E$7:$E$477,INDICADORES!$F17)*INDICADORES!W17) -> 0 | BU17: =+(SUMIFS(ASPECTOS!$F$7:$F$477,ASPECTOS!$A$7:$A$477,INDICADORES!$BE$7,ASPECTOS!$E$7:$E$477,INDICADORES!$F17)*INDICADORES!X17) -> 0 | BV17: =+(SUMIFS(ASPECTOS!$F$7:$F$477,ASPECTOS!$A$7:$A$477,INDICADORES!$BE$7,ASPECTOS!$E$7:$E$477,INDICADORES!$F17)*INDICADORES!Y17) -> 0 | BW17: =+(SUMIFS(ASPECTOS!$F$7:$F$477,ASPECTOS!$A$7:$A$477,INDICADORES!$BE$7,ASPECTOS!$E$7:$E$477,INDICADORES!$F17)*INDICADORES!Z17) -> 0 | BX17: =+(SUMIFS(ASPECTOS!$F$7:$F$477,ASPECTOS!$A$7:$A$477,INDICADORES!$BE$7,ASPECTOS!$E$7:$E$477,INDICADORES!$F17)*INDICADORES!AA17) -> 0 | BY17: =+(SUMIFS(ASPECTOS!$F$7:$F$477,ASPECTOS!$A$7:$A$477,INDICADORES!$BE$7,ASPECTOS!$E$7:$E$477,INDICADORES!$F17)*INDICADORES!AB17) -> 0 | BZ17: =+(SUMIFS(ASPECTOS!$F$7:$F$477,ASPECTOS!$A$7:$A$477,INDICADORES!$BE$7,ASPECTOS!$E$7:$E$477,INDICADORES!$F17)*INDICADORES!AC17) -> 0 | CA17: =+(SUMIFS(ASPECTOS!$F$7:$F$477,ASPECTOS!$A$7:$A$477,INDICADORES!$BE$7,ASPECTOS!$E$7:$E$477,INDICADORES!$F17)*INDICADORES!AD17) -> 0 | CB17: =+(SUMIFS(ASPECTOS!$F$7:$F$477,ASPECTOS!$A$7:$A$477,INDICADORES!$BE$7,ASPECTOS!$E$7:$E$477,INDICADORES!$F17)*INDICADORES!AE17) -> 0 | CC17: =+(SUMIFS(ASPECTOS!$F$7:$F$477,ASPECTOS!$A$7:$A$477,INDICADORES!$BE$7,ASPECTOS!$E$7:$E$477,INDICADORES!$F17)*INDICADORES!AF17) -> 0 | CD17: =+(SUMIFS(ASPECTOS!$F$7:$F$477,ASPECTOS!$A$7:$A$477,INDICADORES!$CD$7,ASPECTOS!$E$7:$E$477,INDICADORES!$F17)*INDICADORES!H17) -> 0 | CE17: =+(SUMIFS(ASPECTOS!$F$7:$F$477,ASPECTOS!$A$7:$A$477,INDICADORES!$CD$7,ASPECTOS!$E$7:$E$477,INDICADORES!$F17)*INDICADORES!I17) -> 0 | CF17: =+(SUMIFS(ASPECTOS!$F$7:$F$477,ASPECTOS!$A$7:$A$477,INDICADORES!$CD$7,ASPECTOS!$E$7:$E$477,INDICADORES!$F17)*INDICADORES!J17) -> 0 | CG17: =+(SUMIFS(ASPECTOS!$F$7:$F$477,ASPECTOS!$A$7:$A$477,INDICADORES!$CD$7,ASPECTOS!$E$7:$E$477,INDICADORES!$F17)*INDICADORES!K17) -> 0 | CH17: =+(SUMIFS(ASPECTOS!$F$7:$F$477,ASPECTOS!$A$7:$A$477,INDICADORES!$CD$7,ASPECTOS!$E$7:$E$477,INDICADORES!$F17)*INDICADORES!L17) -> 0 | CI17: =+(SUMIFS(ASPECTOS!$F$7:$F$477,ASPECTOS!$A$7:$A$477,INDICADORES!$CD$7,ASPECTOS!$E$7:$E$477,INDICADORES!$F17)*INDICADORES!M17) -> 0 | CJ17: =+(SUMIFS(ASPECTOS!$F$7:$F$477,ASPECTOS!$A$7:$A$477,INDICADORES!$CD$7,ASPECTOS!$E$7:$E$477,INDICADORES!$F17)*INDICADORES!N17) -> 0 | CK17: =+(SUMIFS(ASPECTOS!$F$7:$F$477,ASPECTOS!$A$7:$A$477,INDICADORES!$CD$7,ASPECTOS!$E$7:$E$477,INDICADORES!$F17)*INDICADORES!O17) -> 0 | CL17: =+(SUMIFS(ASPECTOS!$F$7:$F$477,ASPECTOS!$A$7:$A$477,INDICADORES!$CD$7,ASPECTOS!$E$7:$E$477,INDICADORES!$F17)*INDICADORES!P17) -> 0 | CM17: =+(SUMIFS(ASPECTOS!$F$7:$F$477,ASPECTOS!$A$7:$A$477,INDICADORES!$CD$7,ASPECTOS!$E$7:$E$477,INDICADORES!$F17)*INDICADORES!Q17) -> 0 | CN17: =+(SUMIFS(ASPECTOS!$F$7:$F$477,ASPECTOS!$A$7:$A$477,INDICADORES!$CD$7,ASPECTOS!$E$7:$E$477,INDICADORES!$F17)*INDICADORES!R17) -> 0 | CO17: =+(SUMIFS(ASPECTOS!$F$7:$F$477,ASPECTOS!$A$7:$A$477,INDICADORES!$CD$7,ASPECTOS!$E$7:$E$477,INDICADORES!$F17)*INDICADORES!S17) -> 0 | CP17: =+(SUMIFS(ASPECTOS!$F$7:$F$477,ASPECTOS!$A$7:$A$477,INDICADORES!$CD$7,ASPECTOS!$E$7:$E$477,INDICADORES!$F17)*INDICADORES!T17) -> 0 | CQ17: =+(SUMIFS(ASPECTOS!$F$7:$F$477,ASPECTOS!$A$7:$A$477,INDICADORES!$CD$7,ASPECTOS!$E$7:$E$477,INDICADORES!$F17)*INDICADORES!U17) -> 0 | CR17: =+(SUMIFS(ASPECTOS!$F$7:$F$477,ASPECTOS!$A$7:$A$477,INDICADORES!$CD$7,ASPECTOS!$E$7:$E$477,INDICADORES!$F17)*INDICADORES!V17) -> 0 | CS17: =+(SUMIFS(ASPECTOS!$F$7:$F$477,ASPECTOS!$A$7:$A$477,INDICADORES!$CD$7,ASPECTOS!$E$7:$E$477,INDICADORES!$F17)*INDICADORES!W17) -> 0 | CT17: =+(SUMIFS(ASPECTOS!$F$7:$F$477,ASPECTOS!$A$7:$A$477,INDICADORES!$CD$7,ASPECTOS!$E$7:$E$477,INDICADORES!$F17)*INDICADORES!X17) -> 0 | CU17: =+(SUMIFS(ASPECTOS!$F$7:$F$477,ASPECTOS!$A$7:$A$477,INDICADORES!$CD$7,ASPECTOS!$E$7:$E$477,INDICADORES!$F17)*INDICADORES!Y17) -> 0 | CV17: =+(SUMIFS(ASPECTOS!$F$7:$F$477,ASPECTOS!$A$7:$A$477,INDICADORES!$CD$7,ASPECTOS!$E$7:$E$477,INDICADORES!$F17)*INDICADORES!Z17) -> 0 | CW17: =+(SUMIFS(ASPECTOS!$F$7:$F$477,ASPECTOS!$A$7:$A$477,INDICADORES!$CD$7,ASPECTOS!$E$7:$E$477,INDICADORES!$F17)*INDICADORES!AA17) -> 0 | CX17: =+(SUMIFS(ASPECTOS!$F$7:$F$477,ASPECTOS!$A$7:$A$477,INDICADORES!$CD$7,ASPECTOS!$E$7:$E$477,INDICADORES!$F17)*INDICADORES!AB17) -> 0 | CY17: =+(SUMIFS(ASPECTOS!$F$7:$F$477,ASPECTOS!$A$7:$A$477,INDICADORES!$CD$7,ASPECTOS!$E$7:$E$477,INDICADORES!$F17)*INDICADORES!AC17) -> 0 | CZ17: =+(SUMIFS(ASPECTOS!$F$7:$F$477,ASPECTOS!$A$7:$A$477,INDICADORES!$CD$7,ASPECTOS!$E$7:$E$477,INDICADORES!$F17)*INDICADORES!AD17) -> 0 | DA17: =+(SUMIFS(ASPECTOS!$F$7:$F$477,ASPECTOS!$A$7:$A$477,INDICADORES!$CD$7,ASPECTOS!$E$7:$E$477,INDICADORES!$F17)*INDICADORES!AE17) -> 0 | DB17: =+(SUMIFS(ASPECTOS!$F$7:$F$477,ASPECTOS!$A$7:$A$477,INDICADORES!$CD$7,ASPECTOS!$E$7:$E$477,INDICADORES!$F17)*INDICADORES!AF17) -> 0 | DC17: =+(SUMIFS(ASPECTOS!$F$7:$F$477,ASPECTOS!$A$7:$A$477,INDICADORES!$DC$7,ASPECTOS!$E$7:$E$477,INDICADORES!$F17)*INDICADORES!H17) -> 0 | DD17: =+(SUMIFS(ASPECTOS!$F$7:$F$477,ASPECTOS!$A$7:$A$477,INDICADORES!$DC$7,ASPECTOS!$E$7:$E$477,INDICADORES!$F17)*INDICADORES!I17) -> 0 | DE17: =+(SUMIFS(ASPECTOS!$F$7:$F$477,ASPECTOS!$A$7:$A$477,INDICADORES!$DC$7,ASPECTOS!$E$7:$E$477,INDICADORES!$F17)*INDICADORES!J17) -> 0 | DF17: =+(SUMIFS(ASPECTOS!$F$7:$F$477,ASPECTOS!$A$7:$A$477,INDICADORES!$DC$7,ASPECTOS!$E$7:$E$477,INDICADORES!$F17)*INDICADORES!K17) -> 0 | DG17: =+(SUMIFS(ASPECTOS!$F$7:$F$477,ASPECTOS!$A$7:$A$477,INDICADORES!$DC$7,ASPECTOS!$E$7:$E$477,INDICADORES!$F17)*INDICADORES!L17) -> 0 | DH17: =+(SUMIFS(ASPECTOS!$F$7:$F$477,ASPECTOS!$A$7:$A$477,INDICADORES!$DC$7,ASPECTOS!$E$7:$E$477,INDICADORES!$F17)*INDICADORES!M17) -> 0 | DI17: =+(SUMIFS(ASPECTOS!$F$7:$F$477,ASPECTOS!$A$7:$A$477,INDICADORES!$DC$7,ASPECTOS!$E$7:$E$477,INDICADORES!$F17)*INDICADORES!N17) -> 0 | DJ17: =+(SUMIFS(ASPECTOS!$F$7:$F$477,ASPECTOS!$A$7:$A$477,INDICADORES!$DC$7,ASPECTOS!$E$7:$E$477,INDICADORES!$F17)*INDICADORES!O17) -> 0 | DK17: =+(SUMIFS(ASPECTOS!$F$7:$F$477,ASPECTOS!$A$7:$A$477,INDICADORES!$DC$7,ASPECTOS!$E$7:$E$477,INDICADORES!$F17)*INDICADORES!P17) -> 0 | DL17: =+(SUMIFS(ASPECTOS!$F$7:$F$477,ASPECTOS!$A$7:$A$477,INDICADORES!$DC$7,ASPECTOS!$E$7:$E$477,INDICADORES!$F17)*INDICADORES!Q17) -> 0 | DM17: =+(SUMIFS(ASPECTOS!$F$7:$F$477,ASPECTOS!$A$7:$A$477,INDICADORES!$DC$7,ASPECTOS!$E$7:$E$477,INDICADORES!$F17)*INDICADORES!R17) -> 0 | DN17: =+(SUMIFS(ASPECTOS!$F$7:$F$477,ASPECTOS!$A$7:$A$477,INDICADORES!$DC$7,ASPECTOS!$E$7:$E$477,INDICADORES!$F17)*INDICADORES!S17) -> 0 | DO17: =+(SUMIFS(ASPECTOS!$F$7:$F$477,ASPECTOS!$A$7:$A$477,INDICADORES!$DC$7,ASPECTOS!$E$7:$E$477,INDICADORES!$F17)*INDICADORES!T17) -> 0 | DP17: =+(SUMIFS(ASPECTOS!$F$7:$F$477,ASPECTOS!$A$7:$A$477,INDICADORES!$DC$7,ASPECTOS!$E$7:$E$477,INDICADORES!$F17)*INDICADORES!U17) -> 0 | DQ17: =+(SUMIFS(ASPECTOS!$F$7:$F$477,ASPECTOS!$A$7:$A$477,INDICADORES!$DC$7,ASPECTOS!$E$7:$E$477,INDICADORES!$F17)*INDICADORES!V17) -> 0 | DR17: =+(SUMIFS(ASPECTOS!$F$7:$F$477,ASPECTOS!$A$7:$A$477,INDICADORES!$DC$7,ASPECTOS!$E$7:$E$477,INDICADORES!$F17)*INDICADORES!W17) -> 0 | DS17: =+(SUMIFS(ASPECTOS!$F$7:$F$477,ASPECTOS!$A$7:$A$477,INDICADORES!$DC$7,ASPECTOS!$E$7:$E$477,INDICADORES!$F17)*INDICADORES!X17) -> 0 | DT17: =+(SUMIFS(ASPECTOS!$F$7:$F$477,ASPECTOS!$A$7:$A$477,INDICADORES!$DC$7,ASPECTOS!$E$7:$E$477,INDICADORES!$F17)*INDICADORES!Y17) -> 0 | DU17: =+(SUMIFS(ASPECTOS!$F$7:$F$477,ASPECTOS!$A$7:$A$477,INDICADORES!$DC$7,ASPECTOS!$E$7:$E$477,INDICADORES!$F17)*INDICADORES!Z17) -> 0 | DV17: =+(SUMIFS(ASPECTOS!$F$7:$F$477,ASPECTOS!$A$7:$A$477,INDICADORES!$DC$7,ASPECTOS!$E$7:$E$477,INDICADORES!$F17)*INDICADORES!AA17) -> 0 | DW17: =+(SUMIFS(ASPECTOS!$F$7:$F$477,ASPECTOS!$A$7:$A$477,INDICADORES!$DC$7,ASPECTOS!$E$7:$E$477,INDICADORES!$F17)*INDICADORES!AB17) -> 0 | DX17: =+(SUMIFS(ASPECTOS!$F$7:$F$477,ASPECTOS!$A$7:$A$477,INDICADORES!$DC$7,ASPECTOS!$E$7:$E$477,INDICADORES!$F17)*INDICADORES!AC17) -> 0 | DY17: =+(SUMIFS(ASPECTOS!$F$7:$F$477,ASPECTOS!$A$7:$A$477,INDICADORES!$DC$7,ASPECTOS!$E$7:$E$477,INDICADORES!$F17)*INDICADORES!AD17) -> 0 | DZ17: =+(SUMIFS(ASPECTOS!$F$7:$F$477,ASPECTOS!$A$7:$A$477,INDICADORES!$DC$7,ASPECTOS!$E$7:$E$477,INDICADORES!$F17)*INDICADORES!AE17) -> 0 | EA17: =+(SUMIFS(ASPECTOS!$F$7:$F$477,ASPECTOS!$A$7:$A$477,INDICADORES!$DC$7,ASPECTOS!$E$7:$E$477,INDICADORES!$F17)*INDICADORES!AF17) -> 0 | EB17: =+(SUMIFS(ASPECTOS!$F$7:$F$477,ASPECTOS!$A$7:$A$477,INDICADORES!$EB$7,ASPECTOS!$E$7:$E$477,INDICADORES!$F17)*H17) -> 0 | EC17: =+(SUMIFS(ASPECTOS!$F$7:$F$477,ASPECTOS!$A$7:$A$477,INDICADORES!$EB$7,ASPECTOS!$E$7:$E$477,INDICADORES!$F17)*I17) -> 0 | ED17: =+(SUMIFS(ASPECTOS!$F$7:$F$477,ASPECTOS!$A$7:$A$477,INDICADORES!$EB$7,ASPECTOS!$E$7:$E$477,INDICADORES!$F17)*J17) -> 0 | EE17: =+(SUMIFS(ASPECTOS!$F$7:$F$477,ASPECTOS!$A$7:$A$477,INDICADORES!$EB$7,ASPECTOS!$E$7:$E$477,INDICADORES!$F17)*K17) -> 0 | EF17: =+(SUMIFS(ASPECTOS!$F$7:$F$477,ASPECTOS!$A$7:$A$477,INDICADORES!$EB$7,ASPECTOS!$E$7:$E$477,INDICADORES!$F17)*L17) -> 0 | EG17: =+(SUMIFS(ASPECTOS!$F$7:$F$477,ASPECTOS!$A$7:$A$477,INDICADORES!$EB$7,ASPECTOS!$E$7:$E$477,INDICADORES!$F17)*M17) -> 0 | EH17: =+(SUMIFS(ASPECTOS!$F$7:$F$477,ASPECTOS!$A$7:$A$477,INDICADORES!$EB$7,ASPECTOS!$E$7:$E$477,INDICADORES!$F17)*N17) -> 0 | EI17: =+(SUMIFS(ASPECTOS!$F$7:$F$477,ASPECTOS!$A$7:$A$477,INDICADORES!$EB$7,ASPECTOS!$E$7:$E$477,INDICADORES!$F17)*O17) -> 0 | EJ17: =+(SUMIFS(ASPECTOS!$F$7:$F$477,ASPECTOS!$A$7:$A$477,INDICADORES!$EB$7,ASPECTOS!$E$7:$E$477,INDICADORES!$F17)*P17) -> 0 | EK17: =+(SUMIFS(ASPECTOS!$F$7:$F$477,ASPECTOS!$A$7:$A$477,INDICADORES!$EB$7,ASPECTOS!$E$7:$E$477,INDICADORES!$F17)*Q17) -> 0 | EL17: =+(SUMIFS(ASPECTOS!$F$7:$F$477,ASPECTOS!$A$7:$A$477,INDICADORES!$EB$7,ASPECTOS!$E$7:$E$477,INDICADORES!$F17)*R17) -> 0 | EM17: =+(SUMIFS(ASPECTOS!$F$7:$F$477,ASPECTOS!$A$7:$A$477,INDICADORES!$EB$7,ASPECTOS!$E$7:$E$477,INDICADORES!$F17)*S17) -> 0 | EN17: =+(SUMIFS(ASPECTOS!$F$7:$F$477,ASPECTOS!$A$7:$A$477,INDICADORES!$EB$7,ASPECTOS!$E$7:$E$477,INDICADORES!$F17)*T17) -> 0 | EO17: =+(SUMIFS(ASPECTOS!$F$7:$F$477,ASPECTOS!$A$7:$A$477,INDICADORES!$EB$7,ASPECTOS!$E$7:$E$477,INDICADORES!$F17)*U17) -> 0 | EP17: =+(SUMIFS(ASPECTOS!$F$7:$F$477,ASPECTOS!$A$7:$A$477,INDICADORES!$EB$7,ASPECTOS!$E$7:$E$477,INDICADORES!$F17)*V17) -> 0 | EQ17: =+(SUMIFS(ASPECTOS!$F$7:$F$477,ASPECTOS!$A$7:$A$477,INDICADORES!$EB$7,ASPECTOS!$E$7:$E$477,INDICADORES!$F17)*W17) -> 0 | ER17: =+(SUMIFS(ASPECTOS!$F$7:$F$477,ASPECTOS!$A$7:$A$477,INDICADORES!$EB$7,ASPECTOS!$E$7:$E$477,INDICADORES!$F17)*X17) -> 0 | ES17: =+(SUMIFS(ASPECTOS!$F$7:$F$477,ASPECTOS!$A$7:$A$477,INDICADORES!$EB$7,ASPECTOS!$E$7:$E$477,INDICADORES!$F17)*Y17) -> 0 | ET17: =+(SUMIFS(ASPECTOS!$F$7:$F$477,ASPECTOS!$A$7:$A$477,INDICADORES!$EB$7,ASPECTOS!$E$7:$E$477,INDICADORES!$F17)*Z17) -> 0 | EU17: =+(SUMIFS(ASPECTOS!$F$7:$F$477,ASPECTOS!$A$7:$A$477,INDICADORES!$EB$7,ASPECTOS!$E$7:$E$477,INDICADORES!$F17)*AA17) -> 0 | EV17: =+(SUMIFS(ASPECTOS!$F$7:$F$477,ASPECTOS!$A$7:$A$477,INDICADORES!$EB$7,ASPECTOS!$E$7:$E$477,INDICADORES!$F17)*AB17) -> 0 | EW17: =+(SUMIFS(ASPECTOS!$F$7:$F$477,ASPECTOS!$A$7:$A$477,INDICADORES!$EB$7,ASPECTOS!$E$7:$E$477,INDICADORES!$F17)*AC17) -> 0 | EX17: =+(SUMIFS(ASPECTOS!$F$7:$F$477,ASPECTOS!$A$7:$A$477,INDICADORES!$EB$7,ASPECTOS!$E$7:$E$477,INDICADORES!$F17)*AD17) -> 0 | EY17: =+(SUMIFS(ASPECTOS!$F$7:$F$477,ASPECTOS!$A$7:$A$477,INDICADORES!$EB$7,ASPECTOS!$E$7:$E$477,INDICADORES!$F17)*AE17) -> 0 | EZ17: =+(SUMIFS(ASPECTOS!$F$7:$F$477,ASPECTOS!$A$7:$A$477,INDICADORES!$EB$7,ASPECTOS!$E$7:$E$477,INDICADORES!$F17)*AF17) -> 0 | FB17: 0 | FC17: 0 | FD17: 0 | FE17: 0 | FF17: 0 | FG17: 0 | FH17: 0 | FI17: 0 | FJ17: 0 | FK17: 0 | FL17: 0 | FM17: 0 | FN17: 0 | FO17: 0 | FP17: 0 | FQ17: 0 | FR17: 0 | FS17: 0 | FT17: 0 | FU17: 0 | FV17: 0 | FW17: 0 | FX17: 0 | FY17: 0 | FZ17: 0 | HC17: Materiales | HD17: Polímeros | HE17: =+SUMIFS(INDICADORES!FB$10:FB$235,INDICADORES!$D$10:$D$235,$HC17,INDICADORES!$E$10:$E$235,$HD17) -> 10.31254058 | HF17: =+SUMIFS(INDICADORES!FC$10:FC$235,INDICADORES!$D$10:$D$235,$HC17,INDICADORES!$E$10:$E$235,$HD17) -> 6.524914265 | HG17: =+SUMIFS(INDICADORES!FD$10:FD$235,INDICADORES!$D$10:$D$235,$HC17,INDICADORES!$E$10:$E$235,$HD17) -> 1.141802314e-05 | HH17: =+SUMIFS(INDICADORES!FE$10:FE$235,INDICADORES!$D$10:$D$235,$HC17,INDICADORES!$E$10:$E$235,$HD17) -> 0.1366878024 | HI17: =+SUMIFS(INDICADORES!FF$10:FF$235,INDICADORES!$D$10:$D$235,$HC17,INDICADORES!$E$10:$E$235,$HD17) -> 71.1174607 | HJ17: =+SUMIFS(INDICADORES!FG$10:FG$235,INDICADORES!$D$10:$D$235,$HC17,INDICADORES!$E$10:$E$235,$HD17) -> 18258.63661 | HK17: =+SUMIFS(INDICADORES!FH$10:FH$235,INDICADORES!$D$10:$D$235,$HC17,INDICADORES!$E$10:$E$235,$HD17) -> 6.041818039e-06 | HL17: =+SUMIFS(INDICADORES!FI$10:FI$235,INDICADORES!$D$10:$D$235,$HC17,INDICADORES!$E$10:$E$235,$HD17) -> 4.330300389 | HM17: =+SUMIFS(INDICADORES!FJ$10:FJ$235,INDICADORES!$D$10:$D$235,$HC17,INDICADORES!$E$10:$E$235,$HD17) -> 0.000157320473 | HN17: =+SUMIFS(INDICADORES!FK$10:FK$235,INDICADORES!$D$10:$D$235,$HC17,INDICADORES!$E$10:$E$235,$HD17) -> 3.330119957 | HO17: =+SUMIFS(INDICADORES!FL$10:FL$235,INDICADORES!$D$10:$D$235,$HC17,INDICADORES!$E$10:$E$235,$HD17) -> 41.28447966 | HP17: =+SUMIFS(INDICADORES!FM$10:FM$235,INDICADORES!$D$10:$D$235,$HC17,INDICADORES!$E$10:$E$235,$HD17) -> 0.0003187486177 | HQ17: =+SUMIFS(INDICADORES!FN$10:FN$235,INDICADORES!$D$10:$D$235,$HC17,INDICADORES!$E$10:$E$235,$HD17) -> 39.93618664 | HR17: =+SUMIFS(INDICADORES!FO$10:FO$235,INDICADORES!$D$10:$D$235,$HC17,INDICADORES!$E$10:$E$235,$HD17) -> 82.35392645 | HS17: =+SUMIFS(INDICADORES!FP$10:FP$235,INDICADORES!$D$10:$D$235,$HC17,INDICADORES!$E$10:$E$235,$HD17) -> 0.01273311324 | HT17: =+SUMIFS(INDICADORES!FQ$10:FQ$235,INDICADORES!$D$10:$D$235,$HC17,INDICADORES!$E$10:$E$235,$HD17) -> 11.30450388 | HU17: =+SUMIFS(INDICADORES!FR$10:FR$235,INDICADORES!$D$10:$D$235,$HC17,INDICADORES!$E$10:$E$235,$HD17) -> 1378.995208 | HV17: =+SUMIFS(INDICADORES!FS$10:FS$235,INDICADORES!$D$10:$D$235,$HC17,INDICADORES!$E$10:$E$235,$HD17) -> 367854.7538 | HW17: =+SUMIFS(INDICADORES!FT$10:FT$235,INDICADORES!$D$10:$D$235,$HC17,INDICADORES!$E$10:$E$235,$HD17) -> 24796.1978 | HX17: =+SUMIFS(INDICADORES!FU$10:FU$235,INDICADORES!$D$10:$D$235,$HC17,INDICADORES!$E$10:$E$235,$HD17) -> 0.05251599219 | HY17: =+SUMIFS(INDICADORES!FV$10:FV$235,INDICADORES!$D$10:$D$235,$HC17,INDICADORES!$E$10:$E$235,$HD17) -> 392651.0041 | HZ17: =+SUMIFS(INDICADORES!FW$10:FW$235,INDICADORES!$D$10:$D$235,$HC17,INDICADORES!$E$10:$E$235,$HD17) -> 1616.317239 | IA17: =+SUMIFS(INDICADORES!FX$10:FX$235,INDICADORES!$D$10:$D$235,$HC17,INDICADORES!$E$10:$E$235,$HD17) -> 11.28916918 | IB17: =+SUMIFS(INDICADORES!FY$10:FY$235,INDICADORES!$D$10:$D$235,$HC17,INDICADORES!$E$10:$E$235,$HD17) -> 3002.361901 | IC17: =+SUMIFS(INDICADORES!FZ$10:FZ$235,INDICADORES!$D$10:$D$235,$HC17,INDICADORES!$E$10:$E$235,$HD17) -> 4629.968309
B18: 8 | C18: MCo 007 | D18: Materiales | E18: Construcción | F18: Grava | G18: kg | H18: 4.989980766e-06 | I18: 1.00297328e-05 | J18: 3.686820811e-09 | K18: 1.379703947e-06 | L18: 0.0001303855431 | M18: 0.05119772272 | N18: 6.766156048e-10 | O18: 4.18379752e-06 | P18: 2.176260684e-09 | Q18: 0.001175252462 | R18: 3.051827796e-05 | S18: 7.945125005e-10 | T18: 4.410619704e-05 | U18: 0.1763390259 | V18: 2.703298988e-06 | W18: 1.883185762e-05 | X18: 0.0006223507217 | Y18: 0.06308194427 | Z18: 0.0176609749 | AA18: 3.677777537e-06 | AB18: 0.08074659695 | AC18: 0.0027561632 | AD18: 0.004325509413 | AE18: 0.001492282495 | AF18: 0.008573955108 | AG18: M | AH18: 0.001 | AI18: N/A | AM18: =+(SUMIFS(ASPECTOS!$F$7:$F$477,ASPECTOS!$A$7:$A$477,INDICADORES!AM$8,ASPECTOS!$E$7:$E$477,INDICADORES!$F18)*$H18) -> 0 | AN18: =+(SUMIFS(ASPECTOS!$F$7:$F$477,ASPECTOS!$A$7:$A$477,INDICADORES!AN$8,ASPECTOS!$E$7:$E$477,INDICADORES!$F18)*$H18) -> 0 | AO18: =+(SUMIFS(ASPECTOS!$F$7:$F$477,ASPECTOS!$A$7:$A$477,INDICADORES!AO$8,ASPECTOS!$E$7:$E$477,INDICADORES!$F18)*$H18) -> 0 | AP18: =+(SUMIFS(ASPECTOS!$F$7:$F$477,ASPECTOS!$A$7:$A$477,INDICADORES!AP$8,ASPECTOS!$E$7:$E$477,INDICADORES!$F18)*$H18) -> 0 | AQ18: =+(SUMIFS(ASPECTOS!$F$7:$F$477,ASPECTOS!$A$7:$A$477,INDICADORES!AQ$8,ASPECTOS!$E$7:$E$477,INDICADORES!$F18)*$V18) -> 0 | AR18: =+(SUMIFS(ASPECTOS!$F$7:$F$477,ASPECTOS!$A$7:$A$477,INDICADORES!AR$8,ASPECTOS!$E$7:$E$477,INDICADORES!$F18)*$V18) -> 0 | AS18: =+(SUMIFS(ASPECTOS!$F$7:$F$477,ASPECTOS!$A$7:$A$477,INDICADORES!AS$8,ASPECTOS!$E$7:$E$477,INDICADORES!$F18)*$V18) -> 0 | AT18: =+(SUMIFS(ASPECTOS!$F$7:$F$477,ASPECTOS!$A$7:$A$477,INDICADORES!AT$8,ASPECTOS!$E$7:$E$477,INDICADORES!$F18)*$V18) -> 0 | AU18: =+(SUMIFS(ASPECTOS!$F$7:$F$477,ASPECTOS!$A$7:$A$477,INDICADORES!AU$8,ASPECTOS!$E$7:$E$477,INDICADORES!$F18)*$W18) -> 0 | AV18: =+(SUMIFS(ASPECTOS!$F$7:$F$477,ASPECTOS!$A$7:$A$477,INDICADORES!AV$8,ASPECTOS!$E$7:$E$477,INDICADORES!$F18)*$W18) -> 0 | AW18: =+(SUMIFS(ASPECTOS!$F$7:$F$477,ASPECTOS!$A$7:$A$477,INDICADORES!AW$8,ASPECTOS!$E$7:$E$477,INDICADORES!$F18)*$W18) -> 0 | AX18: =+(SUMIFS(ASPECTOS!$F$7:$F$477,ASPECTOS!$A$7:$A$477,INDICADORES!AX$8,ASPECTOS!$E$7:$E$477,INDICADORES!$F18)*$W18) -> 0 | AY18: =+(SUMIFS(ASPECTOS!$F$7:$F$477,ASPECTOS!$A$7:$A$477,INDICADORES!AY$8,ASPECTOS!$E$7:$E$477,INDICADORES!$F18)*$X18) -> 0 | AZ18: =+(SUMIFS(ASPECTOS!$F$7:$F$477,ASPECTOS!$A$7:$A$477,INDICADORES!AZ$8,ASPECTOS!$E$7:$E$477,INDICADORES!$F18)*$X18) -> 0 | BA18: =+(SUMIFS(ASPECTOS!$F$7:$F$477,ASPECTOS!$A$7:$A$477,INDICADORES!BA$8,ASPECTOS!$E$7:$E$477,INDICADORES!$F18)*$X18) -> 0 | BB18: =+(SUMIFS(ASPECTOS!$F$7:$F$477,ASPECTOS!$A$7:$A$477,INDICADORES!BB$8,ASPECTOS!$E$7:$E$477,INDICADORES!$F18)*$X18) -> 0 | BE18: =+(SUMIFS(ASPECTOS!$F$7:$F$477,ASPECTOS!$A$7:$A$477,INDICADORES!$BE$7,ASPECTOS!$E$7:$E$477,INDICADORES!$F18)*INDICADORES!H18) -> 0 | BF18: =+(SUMIFS(ASPECTOS!$F$7:$F$477,ASPECTOS!$A$7:$A$477,INDICADORES!$BE$7,ASPECTOS!$E$7:$E$477,INDICADORES!$F18)*INDICADORES!I18) -> 0 | BG18: =+(SUMIFS(ASPECTOS!$F$7:$F$477,ASPECTOS!$A$7:$A$477,INDICADORES!$BE$7,ASPECTOS!$E$7:$E$477,INDICADORES!$F18)*INDICADORES!J18) -> 0 | BH18: =+(SUMIFS(ASPECTOS!$F$7:$F$477,ASPECTOS!$A$7:$A$477,INDICADORES!$BE$7,ASPECTOS!$E$7:$E$477,INDICADORES!$F18)*INDICADORES!K18) -> 0 | BI18: =+(SUMIFS(ASPECTOS!$F$7:$F$477,ASPECTOS!$A$7:$A$477,INDICADORES!$BE$7,ASPECTOS!$E$7:$E$477,INDICADORES!$F18)*INDICADORES!L18) -> 0 | BJ18: =+(SUMIFS(ASPECTOS!$F$7:$F$477,ASPECTOS!$A$7:$A$477,INDICADORES!$BE$7,ASPECTOS!$E$7:$E$477,INDICADORES!$F18)*INDICADORES!M18) -> 0 | BK18: =+(SUMIFS(ASPECTOS!$F$7:$F$477,ASPECTOS!$A$7:$A$477,INDICADORES!$BE$7,ASPECTOS!$E$7:$E$477,INDICADORES!$F18)*INDICADORES!N18) -> 0 | BL18: =+(SUMIFS(ASPECTOS!$F$7:$F$477,ASPECTOS!$A$7:$A$477,INDICADORES!$BE$7,ASPECTOS!$E$7:$E$477,INDICADORES!$F18)*INDICADORES!O18) -> 0 | BM18: =+(SUMIFS(ASPECTOS!$F$7:$F$477,ASPECTOS!$A$7:$A$477,INDICADORES!$BE$7,ASPECTOS!$E$7:$E$477,INDICADORES!$F18)*INDICADORES!P18) -> 0 | BN18: =+(SUMIFS(ASPECTOS!$F$7:$F$477,ASPECTOS!$A$7:$A$477,INDICADORES!$BE$7,ASPECTOS!$E$7:$E$477,INDICADORES!$F18)*INDICADORES!Q18) -> 0 | BO18: =+(SUMIFS(ASPECTOS!$F$7:$F$477,ASPECTOS!$A$7:$A$477,INDICADORES!$BE$7,ASPECTOS!$E$7:$E$477,INDICADORES!$F18)*INDICADORES!R18) -> 0 | BP18: =+(SUMIFS(ASPECTOS!$F$7:$F$477,ASPECTOS!$A$7:$A$477,INDICADORES!$BE$7,ASPECTOS!$E$7:$E$477,INDICADORES!$F18)*INDICADORES!S18) -> 0 | BQ18: =+(SUMIFS(ASPECTOS!$F$7:$F$477,ASPECTOS!$A$7:$A$477,INDICADORES!$BE$7,ASPECTOS!$E$7:$E$477,INDICADORES!$F18)*INDICADORES!T18) -> 0 | BR18: =+(SUMIFS(ASPECTOS!$F$7:$F$477,ASPECTOS!$A$7:$A$477,INDICADORES!$BE$7,ASPECTOS!$E$7:$E$477,INDICADORES!$F18)*INDICADORES!U18) -> 0 | BS18: =+(SUMIFS(ASPECTOS!$F$7:$F$477,ASPECTOS!$A$7:$A$477,INDICADORES!$BE$7,ASPECTOS!$E$7:$E$477,INDICADORES!$F18)*INDICADORES!V18) -> 0 | BT18: =+(SUMIFS(ASPECTOS!$F$7:$F$477,ASPECTOS!$A$7:$A$477,INDICADORES!$BE$7,ASPECTOS!$E$7:$E$477,INDICADORES!$F18)*INDICADORES!W18) -> 0 | BU18: =+(SUMIFS(ASPECTOS!$F$7:$F$477,ASPECTOS!$A$7:$A$477,INDICADORES!$BE$7,ASPECTOS!$E$7:$E$477,INDICADORES!$F18)*INDICADORES!X18) -> 0 | BV18: =+(SUMIFS(ASPECTOS!$F$7:$F$477,ASPECTOS!$A$7:$A$477,INDICADORES!$BE$7,ASPECTOS!$E$7:$E$477,INDICADORES!$F18)*INDICADORES!Y18) -> 0 | BW18: =+(SUMIFS(ASPECTOS!$F$7:$F$477,ASPECTOS!$A$7:$A$477,INDICADORES!$BE$7,ASPECTOS!$E$7:$E$477,INDICADORES!$F18)*INDICADORES!Z18) -> 0 | BX18: =+(SUMIFS(ASPECTOS!$F$7:$F$477,ASPECTOS!$A$7:$A$477,INDICADORES!$BE$7,ASPECTOS!$E$7:$E$477,INDICADORES!$F18)*INDICADORES!AA18) -> 0 | BY18: =+(SUMIFS(ASPECTOS!$F$7:$F$477,ASPECTOS!$A$7:$A$477,INDICADORES!$BE$7,ASPECTOS!$E$7:$E$477,INDICADORES!$F18)*INDICADORES!AB18) -> 0 | BZ18: =+(SUMIFS(ASPECTOS!$F$7:$F$477,ASPECTOS!$A$7:$A$477,INDICADORES!$BE$7,ASPECTOS!$E$7:$E$477,INDICADORES!$F18)*INDICADORES!AC18) -> 0 | CA18: =+(SUMIFS(ASPECTOS!$F$7:$F$477,ASPECTOS!$A$7:$A$477,INDICADORES!$BE$7,ASPECTOS!$E$7:$E$477,INDICADORES!$F18)*INDICADORES!AD18) -> 0 | CB18: =+(SUMIFS(ASPECTOS!$F$7:$F$477,ASPECTOS!$A$7:$A$477,INDICADORES!$BE$7,ASPECTOS!$E$7:$E$477,INDICADORES!$F18)*INDICADORES!AE18) -> 0 | CC18: =+(SUMIFS(ASPECTOS!$F$7:$F$477,ASPECTOS!$A$7:$A$477,INDICADORES!$BE$7,ASPECTOS!$E$7:$E$477,INDICADORES!$F18)*INDICADORES!AF18) -> 0 | CD18: =+(SUMIFS(ASPECTOS!$F$7:$F$477,ASPECTOS!$A$7:$A$477,INDICADORES!$CD$7,ASPECTOS!$E$7:$E$477,INDICADORES!$F18)*INDICADORES!H18) -> 0 | CE18: =+(SUMIFS(ASPECTOS!$F$7:$F$477,ASPECTOS!$A$7:$A$477,INDICADORES!$CD$7,ASPECTOS!$E$7:$E$477,INDICADORES!$F18)*INDICADORES!I18) -> 0 | CF18: =+(SUMIFS(ASPECTOS!$F$7:$F$477,ASPECTOS!$A$7:$A$477,INDICADORES!$CD$7,ASPECTOS!$E$7:$E$477,INDICADORES!$F18)*INDICADORES!J18) -> 0 | CG18: =+(SUMIFS(ASPECTOS!$F$7:$F$477,ASPECTOS!$A$7:$A$477,INDICADORES!$CD$7,ASPECTOS!$E$7:$E$477,INDICADORES!$F18)*INDICADORES!K18) -> 0 | CH18: =+(SUMIFS(ASPECTOS!$F$7:$F$477,ASPECTOS!$A$7:$A$477,INDICADORES!$CD$7,ASPECTOS!$E$7:$E$477,INDICADORES!$F18)*INDICADORES!L18) -> 0 | CI18: =+(SUMIFS(ASPECTOS!$F$7:$F$477,ASPECTOS!$A$7:$A$477,INDICADORES!$CD$7,ASPECTOS!$E$7:$E$477,INDICADORES!$F18)*INDICADORES!M18) -> 0 | CJ18: =+(SUMIFS(ASPECTOS!$F$7:$F$477,ASPECTOS!$A$7:$A$477,INDICADORES!$CD$7,ASPECTOS!$E$7:$E$477,INDICADORES!$F18)*INDICADORES!N18) -> 0 | CK18: =+(SUMIFS(ASPECTOS!$F$7:$F$477,ASPECTOS!$A$7:$A$477,INDICADORES!$CD$7,ASPECTOS!$E$7:$E$477,INDICADORES!$F18)*INDICADORES!O18) -> 0 | CL18: =+(SUMIFS(ASPECTOS!$F$7:$F$477,ASPECTOS!$A$7:$A$477,INDICADORES!$CD$7,ASPECTOS!$E$7:$E$477,INDICADORES!$F18)*INDICADORES!P18) -> 0 | CM18: =+(SUMIFS(ASPECTOS!$F$7:$F$477,ASPECTOS!$A$7:$A$477,INDICADORES!$CD$7,ASPECTOS!$E$7:$E$477,INDICADORES!$F18)*INDICADORES!Q18) -> 0 | CN18: =+(SUMIFS(ASPECTOS!$F$7:$F$477,ASPECTOS!$A$7:$A$477,INDICADORES!$CD$7,ASPECTOS!$E$7:$E$477,INDICADORES!$F18)*INDICADORES!R18) -> 0 | CO18: =+(SUMIFS(ASPECTOS!$F$7:$F$477,ASPECTOS!$A$7:$A$477,INDICADORES!$CD$7,ASPECTOS!$E$7:$E$477,INDICADORES!$F18)*INDICADORES!S18) -> 0 | CP18: =+(SUMIFS(ASPECTOS!$F$7:$F$477,ASPECTOS!$A$7:$A$477,INDICADORES!$CD$7,ASPECTOS!$E$7:$E$477,INDICADORES!$F18)*INDICADORES!T18) -> 0 | CQ18: =+(SUMIFS(ASPECTOS!$F$7:$F$477,ASPECTOS!$A$7:$A$477,INDICADORES!$CD$7,ASPECTOS!$E$7:$E$477,INDICADORES!$F18)*INDICADORES!U18) -> 0 | CR18: =+(SUMIFS(ASPECTOS!$F$7:$F$477,ASPECTOS!$A$7:$A$477,INDICADORES!$CD$7,ASPECTOS!$E$7:$E$477,INDICADORES!$F18)*INDICADORES!V18) -> 0 | CS18: =+(SUMIFS(ASPECTOS!$F$7:$F$477,ASPECTOS!$A$7:$A$477,INDICADORES!$CD$7,ASPECTOS!$E$7:$E$477,INDICADORES!$F18)*INDICADORES!W18) -> 0 | CT18: =+(SUMIFS(ASPECTOS!$F$7:$F$477,ASPECTOS!$A$7:$A$477,INDICADORES!$CD$7,ASPECTOS!$E$7:$E$477,INDICADORES!$F18)*INDICADORES!X18) -> 0 | CU18: =+(SUMIFS(ASPECTOS!$F$7:$F$477,ASPECTOS!$A$7:$A$477,INDICADORES!$CD$7,ASPECTOS!$E$7:$E$477,INDICADORES!$F18)*INDICADORES!Y18) -> 0 | CV18: =+(SUMIFS(ASPECTOS!$F$7:$F$477,ASPECTOS!$A$7:$A$477,INDICADORES!$CD$7,ASPECTOS!$E$7:$E$477,INDICADORES!$F18)*INDICADORES!Z18) -> 0 | CW18: =+(SUMIFS(ASPECTOS!$F$7:$F$477,ASPECTOS!$A$7:$A$477,INDICADORES!$CD$7,ASPECTOS!$E$7:$E$477,INDICADORES!$F18)*INDICADORES!AA18) -> 0 | CX18: =+(SUMIFS(ASPECTOS!$F$7:$F$477,ASPECTOS!$A$7:$A$477,INDICADORES!$CD$7,ASPECTOS!$E$7:$E$477,INDICADORES!$F18)*INDICADORES!AB18) -> 0 | CY18: =+(SUMIFS(ASPECTOS!$F$7:$F$477,ASPECTOS!$A$7:$A$477,INDICADORES!$CD$7,ASPECTOS!$E$7:$E$477,INDICADORES!$F18)*INDICADORES!AC18) -> 0 | CZ18: =+(SUMIFS(ASPECTOS!$F$7:$F$477,ASPECTOS!$A$7:$A$477,INDICADORES!$CD$7,ASPECTOS!$E$7:$E$477,INDICADORES!$F18)*INDICADORES!AD18) -> 0 | DA18: =+(SUMIFS(ASPECTOS!$F$7:$F$477,ASPECTOS!$A$7:$A$477,INDICADORES!$CD$7,ASPECTOS!$E$7:$E$477,INDICADORES!$F18)*INDICADORES!AE18) -> 0 | DB18: =+(SUMIFS(ASPECTOS!$F$7:$F$477,ASPECTOS!$A$7:$A$477,INDICADORES!$CD$7,ASPECTOS!$E$7:$E$477,INDICADORES!$F18)*INDICADORES!AF18) -> 0 | DC18: =+(SUMIFS(ASPECTOS!$F$7:$F$477,ASPECTOS!$A$7:$A$477,INDICADORES!$DC$7,ASPECTOS!$E$7:$E$477,INDICADORES!$F18)*INDICADORES!H18) -> 0 | DD18: =+(SUMIFS(ASPECTOS!$F$7:$F$477,ASPECTOS!$A$7:$A$477,INDICADORES!$DC$7,ASPECTOS!$E$7:$E$477,INDICADORES!$F18)*INDICADORES!I18) -> 0 | DE18: =+(SUMIFS(ASPECTOS!$F$7:$F$477,ASPECTOS!$A$7:$A$477,INDICADORES!$DC$7,ASPECTOS!$E$7:$E$477,INDICADORES!$F18)*INDICADORES!J18) -> 0 | DF18: =+(SUMIFS(ASPECTOS!$F$7:$F$477,ASPECTOS!$A$7:$A$477,INDICADORES!$DC$7,ASPECTOS!$E$7:$E$477,INDICADORES!$F18)*INDICADORES!K18) -> 0 | DG18: =+(SUMIFS(ASPECTOS!$F$7:$F$477,ASPECTOS!$A$7:$A$477,INDICADORES!$DC$7,ASPECTOS!$E$7:$E$477,INDICADORES!$F18)*INDICADORES!L18) -> 0 | DH18: =+(SUMIFS(ASPECTOS!$F$7:$F$477,ASPECTOS!$A$7:$A$477,INDICADORES!$DC$7,ASPECTOS!$E$7:$E$477,INDICADORES!$F18)*INDICADORES!M18) -> 0 | DI18: =+(SUMIFS(ASPECTOS!$F$7:$F$477,ASPECTOS!$A$7:$A$477,INDICADORES!$DC$7,ASPECTOS!$E$7:$E$477,INDICADORES!$F18)*INDICADORES!N18) -> 0 | DJ18: =+(SUMIFS(ASPECTOS!$F$7:$F$477,ASPECTOS!$A$7:$A$477,INDICADORES!$DC$7,ASPECTOS!$E$7:$E$477,INDICADORES!$F18)*INDICADORES!O18) -> 0 | DK18: =+(SUMIFS(ASPECTOS!$F$7:$F$477,ASPECTOS!$A$7:$A$477,INDICADORES!$DC$7,ASPECTOS!$E$7:$E$477,INDICADORES!$F18)*INDICADORES!P18) -> 0 | DL18: =+(SUMIFS(ASPECTOS!$F$7:$F$477,ASPECTOS!$A$7:$A$477,INDICADORES!$DC$7,ASPECTOS!$E$7:$E$477,INDICADORES!$F18)*INDICADORES!Q18) -> 0 | DM18: =+(SUMIFS(ASPECTOS!$F$7:$F$477,ASPECTOS!$A$7:$A$477,INDICADORES!$DC$7,ASPECTOS!$E$7:$E$477,INDICADORES!$F18)*INDICADORES!R18) -> 0 | DN18: =+(SUMIFS(ASPECTOS!$F$7:$F$477,ASPECTOS!$A$7:$A$477,INDICADORES!$DC$7,ASPECTOS!$E$7:$E$477,INDICADORES!$F18)*INDICADORES!S18) -> 0 | DO18: =+(SUMIFS(ASPECTOS!$F$7:$F$477,ASPECTOS!$A$7:$A$477,INDICADORES!$DC$7,ASPECTOS!$E$7:$E$477,INDICADORES!$F18)*INDICADORES!T18) -> 0 | DP18: =+(SUMIFS(ASPECTOS!$F$7:$F$477,ASPECTOS!$A$7:$A$477,INDICADORES!$DC$7,ASPECTOS!$E$7:$E$477,INDICADORES!$F18)*INDICADORES!U18) -> 0 | DQ18: =+(SUMIFS(ASPECTOS!$F$7:$F$477,ASPECTOS!$A$7:$A$477,INDICADORES!$DC$7,ASPECTOS!$E$7:$E$477,INDICADORES!$F18)*INDICADORES!V18) -> 0 | DR18: =+(SUMIFS(ASPECTOS!$F$7:$F$477,ASPECTOS!$A$7:$A$477,INDICADORES!$DC$7,ASPECTOS!$E$7:$E$477,INDICADORES!$F18)*INDICADORES!W18) -> 0 | DS18: =+(SUMIFS(ASPECTOS!$F$7:$F$477,ASPECTOS!$A$7:$A$477,INDICADORES!$DC$7,ASPECTOS!$E$7:$E$477,INDICADORES!$F18)*INDICADORES!X18) -> 0 | DT18: =+(SUMIFS(ASPECTOS!$F$7:$F$477,ASPECTOS!$A$7:$A$477,INDICADORES!$DC$7,ASPECTOS!$E$7:$E$477,INDICADORES!$F18)*INDICADORES!Y18) -> 0 | DU18: =+(SUMIFS(ASPECTOS!$F$7:$F$477,ASPECTOS!$A$7:$A$477,INDICADORES!$DC$7,ASPECTOS!$E$7:$E$477,INDICADORES!$F18)*INDICADORES!Z18) -> 0 | DV18: =+(SUMIFS(ASPECTOS!$F$7:$F$477,ASPECTOS!$A$7:$A$477,INDICADORES!$DC$7,ASPECTOS!$E$7:$E$477,INDICADORES!$F18)*INDICADORES!AA18) -> 0 | DW18: =+(SUMIFS(ASPECTOS!$F$7:$F$477,ASPECTOS!$A$7:$A$477,INDICADORES!$DC$7,ASPECTOS!$E$7:$E$477,INDICADORES!$F18)*INDICADORES!AB18) -> 0 | DX18: =+(SUMIFS(ASPECTOS!$F$7:$F$477,ASPECTOS!$A$7:$A$477,INDICADORES!$DC$7,ASPECTOS!$E$7:$E$477,INDICADORES!$F18)*INDICADORES!AC18) -> 0 | DY18: =+(SUMIFS(ASPECTOS!$F$7:$F$477,ASPECTOS!$A$7:$A$477,INDICADORES!$DC$7,ASPECTOS!$E$7:$E$477,INDICADORES!$F18)*INDICADORES!AD18) -> 0 | DZ18: =+(SUMIFS(ASPECTOS!$F$7:$F$477,ASPECTOS!$A$7:$A$477,INDICADORES!$DC$7,ASPECTOS!$E$7:$E$477,INDICADORES!$F18)*INDICADORES!AE18) -> 0 | EA18: =+(SUMIFS(ASPECTOS!$F$7:$F$477,ASPECTOS!$A$7:$A$477,INDICADORES!$DC$7,ASPECTOS!$E$7:$E$477,INDICADORES!$F18)*INDICADORES!AF18) -> 0 | EB18: =+(SUMIFS(ASPECTOS!$F$7:$F$477,ASPECTOS!$A$7:$A$477,INDICADORES!$EB$7,ASPECTOS!$E$7:$E$477,INDICADORES!$F18)*H18) -> 0 | EC18: =+(SUMIFS(ASPECTOS!$F$7:$F$477,ASPECTOS!$A$7:$A$477,INDICADORES!$EB$7,ASPECTOS!$E$7:$E$477,INDICADORES!$F18)*I18) -> 0 | ED18: =+(SUMIFS(ASPECTOS!$F$7:$F$477,ASPECTOS!$A$7:$A$477,INDICADORES!$EB$7,ASPECTOS!$E$7:$E$477,INDICADORES!$F18)*J18) -> 0 | EE18: =+(SUMIFS(ASPECTOS!$F$7:$F$477,ASPECTOS!$A$7:$A$477,INDICADORES!$EB$7,ASPECTOS!$E$7:$E$477,INDICADORES!$F18)*K18) -> 0 | EF18: =+(SUMIFS(ASPECTOS!$F$7:$F$477,ASPECTOS!$A$7:$A$477,INDICADORES!$EB$7,ASPECTOS!$E$7:$E$477,INDICADORES!$F18)*L18) -> 0 | EG18: =+(SUMIFS(ASPECTOS!$F$7:$F$477,ASPECTOS!$A$7:$A$477,INDICADORES!$EB$7,ASPECTOS!$E$7:$E$477,INDICADORES!$F18)*M18) -> 0 | EH18: =+(SUMIFS(ASPECTOS!$F$7:$F$477,ASPECTOS!$A$7:$A$477,INDICADORES!$EB$7,ASPECTOS!$E$7:$E$477,INDICADORES!$F18)*N18) -> 0 | EI18: =+(SUMIFS(ASPECTOS!$F$7:$F$477,ASPECTOS!$A$7:$A$477,INDICADORES!$EB$7,ASPECTOS!$E$7:$E$477,INDICADORES!$F18)*O18) -> 0 | EJ18: =+(SUMIFS(ASPECTOS!$F$7:$F$477,ASPECTOS!$A$7:$A$477,INDICADORES!$EB$7,ASPECTOS!$E$7:$E$477,INDICADORES!$F18)*P18) -> 0 | EK18: =+(SUMIFS(ASPECTOS!$F$7:$F$477,ASPECTOS!$A$7:$A$477,INDICADORES!$EB$7,ASPECTOS!$E$7:$E$477,INDICADORES!$F18)*Q18) -> 0 | EL18: =+(SUMIFS(ASPECTOS!$F$7:$F$477,ASPECTOS!$A$7:$A$477,INDICADORES!$EB$7,ASPECTOS!$E$7:$E$477,INDICADORES!$F18)*R18) -> 0 | EM18: =+(SUMIFS(ASPECTOS!$F$7:$F$477,ASPECTOS!$A$7:$A$477,INDICADORES!$EB$7,ASPECTOS!$E$7:$E$477,INDICADORES!$F18)*S18) -> 0 | EN18: =+(SUMIFS(ASPECTOS!$F$7:$F$477,ASPECTOS!$A$7:$A$477,INDICADORES!$EB$7,ASPECTOS!$E$7:$E$477,INDICADORES!$F18)*T18) -> 0 | EO18: =+(SUMIFS(ASPECTOS!$F$7:$F$477,ASPECTOS!$A$7:$A$477,INDICADORES!$EB$7,ASPECTOS!$E$7:$E$477,INDICADORES!$F18)*U18) -> 0 | EP18: =+(SUMIFS(ASPECTOS!$F$7:$F$477,ASPECTOS!$A$7:$A$477,INDICADORES!$EB$7,ASPECTOS!$E$7:$E$477,INDICADORES!$F18)*V18) -> 0 | EQ18: =+(SUMIFS(ASPECTOS!$F$7:$F$477,ASPECTOS!$A$7:$A$477,INDICADORES!$EB$7,ASPECTOS!$E$7:$E$477,INDICADORES!$F18)*W18) -> 0 | ER18: =+(SUMIFS(ASPECTOS!$F$7:$F$477,ASPECTOS!$A$7:$A$477,INDICADORES!$EB$7,ASPECTOS!$E$7:$E$477,INDICADORES!$F18)*X18) -> 0 | ES18: =+(SUMIFS(ASPECTOS!$F$7:$F$477,ASPECTOS!$A$7:$A$477,INDICADORES!$EB$7,ASPECTOS!$E$7:$E$477,INDICADORES!$F18)*Y18) -> 0 | ET18: =+(SUMIFS(ASPECTOS!$F$7:$F$477,ASPECTOS!$A$7:$A$477,INDICADORES!$EB$7,ASPECTOS!$E$7:$E$477,INDICADORES!$F18)*Z18) -> 0 | EU18: =+(SUMIFS(ASPECTOS!$F$7:$F$477,ASPECTOS!$A$7:$A$477,INDICADORES!$EB$7,ASPECTOS!$E$7:$E$477,INDICADORES!$F18)*AA18) -> 0 | EV18: =+(SUMIFS(ASPECTOS!$F$7:$F$477,ASPECTOS!$A$7:$A$477,INDICADORES!$EB$7,ASPECTOS!$E$7:$E$477,INDICADORES!$F18)*AB18) -> 0 | EW18: =+(SUMIFS(ASPECTOS!$F$7:$F$477,ASPECTOS!$A$7:$A$477,INDICADORES!$EB$7,ASPECTOS!$E$7:$E$477,INDICADORES!$F18)*AC18) -> 0 | EX18: =+(SUMIFS(ASPECTOS!$F$7:$F$477,ASPECTOS!$A$7:$A$477,INDICADORES!$EB$7,ASPECTOS!$E$7:$E$477,INDICADORES!$F18)*AD18) -> 0 | EY18: =+(SUMIFS(ASPECTOS!$F$7:$F$477,ASPECTOS!$A$7:$A$477,INDICADORES!$EB$7,ASPECTOS!$E$7:$E$477,INDICADORES!$F18)*AE18) -> 0 | EZ18: =+(SUMIFS(ASPECTOS!$F$7:$F$477,ASPECTOS!$A$7:$A$477,INDICADORES!$EB$7,ASPECTOS!$E$7:$E$477,INDICADORES!$F18)*AF18) -> 0 | FB18: 0 | FC18: 0 | FD18: 0 | FE18: 0 | FF18: 0 | FG18: 0 | FH18: 0 | FI18: 0 | FJ18: 0 | FK18: 0 | FL18: 0 | FM18: 0 | FN18: 0 | FO18: 0 | FP18: 0 | FQ18: 0 | FR18: 0 | FS18: 0 | FT18: 0 | FU18: 0 | FV18: 0 | FW18: 0 | FX18: 0 | FY18: 0 | FZ18: 0 | HC18: Materiales | HD18: Químicos | HE18: =+SUMIFS(INDICADORES!FB$10:FB$235,INDICADORES!$D$10:$D$235,$HC18,INDICADORES!$E$10:$E$235,$HD18) -> 65.84422323 | HF18: =+SUMIFS(INDICADORES!FC$10:FC$235,INDICADORES!$D$10:$D$235,$HC18,INDICADORES!$E$10:$E$235,$HD18) -> 79.64493994 | HG18: =+SUMIFS(INDICADORES!FD$10:FD$235,INDICADORES!$D$10:$D$235,$HC18,INDICADORES!$E$10:$E$235,$HD18) -> 0.1726031037 | HH18: =+SUMIFS(INDICADORES!FE$10:FE$235,INDICADORES!$D$10:$D$235,$HC18,INDICADORES!$E$10:$E$235,$HD18) -> 12.05734556 | HI18: =+SUMIFS(INDICADORES!FF$10:FF$235,INDICADORES!$D$10:$D$235,$HC18,INDICADORES!$E$10:$E$235,$HD18) -> 854.4539604 | HJ18: =+SUMIFS(INDICADORES!FG$10:FG$235,INDICADORES!$D$10:$D$235,$HC18,INDICADORES!$E$10:$E$235,$HD18) -> 438535.7883 | HK18: =+SUMIFS(INDICADORES!FH$10:FH$235,INDICADORES!$D$10:$D$235,$HC18,INDICADORES!$E$10:$E$235,$HD18) -> 0.06540999146 | HL18: =+SUMIFS(INDICADORES!FI$10:FI$235,INDICADORES!$D$10:$D$235,$HC18,INDICADORES!$E$10:$E$235,$HD18) -> 53.07240176 | HM18: =+SUMIFS(INDICADORES!FJ$10:FJ$235,INDICADORES!$D$10:$D$235,$HC18,INDICADORES!$E$10:$E$235,$HD18) -> 0.01807151827 | HN18: =+SUMIFS(INDICADORES!FK$10:FK$235,INDICADORES!$D$10:$D$235,$HC18,INDICADORES!$E$10:$E$235,$HD18) -> 29633.28748 | HO18: =+SUMIFS(INDICADORES!FL$10:FL$235,INDICADORES!$D$10:$D$235,$HC18,INDICADORES!$E$10:$E$235,$HD18) -> 1039.963012 | HP18: =+SUMIFS(INDICADORES!FM$10:FM$235,INDICADORES!$D$10:$D$235,$HC18,INDICADORES!$E$10:$E$235,$HD18) -> 0.002915544607 | HQ18: =+SUMIFS(INDICADORES!FN$10:FN$235,INDICADORES!$D$10:$D$235,$HC18,INDICADORES!$E$10:$E$235,$HD18) -> 718.8400426 | HR18: =+SUMIFS(INDICADORES!FO$10:FO$235,INDICADORES!$D$10:$D$235,$HC18,INDICADORES!$E$10:$E$235,$HD18) -> 891084.9 | HS18: =+SUMIFS(INDICADORES!FP$10:FP$235,INDICADORES!$D$10:$D$235,$HC18,INDICADORES!$E$10:$E$235,$HD18) -> 3.721815777 | HT18: =+SUMIFS(INDICADORES!FQ$10:FQ$235,INDICADORES!$D$10:$D$235,$HC18,INDICADORES!$E$10:$E$235,$HD18) -> 130.1412504 | HU18: =+SUMIFS(INDICADORES!FR$10:FR$235,INDICADORES!$D$10:$D$235,$HC18,INDICADORES!$E$10:$E$235,$HD18) -> 17997.33031 | HV18: =+SUMIFS(INDICADORES!FS$10:FS$235,INDICADORES!$D$10:$D$235,$HC18,INDICADORES!$E$10:$E$235,$HD18) -> 5387756.458 | HW18: =+SUMIFS(INDICADORES!FT$10:FT$235,INDICADORES!$D$10:$D$235,$HC18,INDICADORES!$E$10:$E$235,$HD18) -> 141222.2319 | HX18: =+SUMIFS(INDICADORES!FU$10:FU$235,INDICADORES!$D$10:$D$235,$HC18,INDICADORES!$E$10:$E$235,$HD18) -> 24.77969237 | HY18: =+SUMIFS(INDICADORES!FV$10:FV$235,INDICADORES!$D$10:$D$235,$HC18,INDICADORES!$E$10:$E$235,$HD18) -> 5529003.469 | HZ18: =+SUMIFS(INDICADORES!FW$10:FW$235,INDICADORES!$D$10:$D$235,$HC18,INDICADORES!$E$10:$E$235,$HD18) -> 17594.24748 | IA18: =+SUMIFS(INDICADORES!FX$10:FX$235,INDICADORES!$D$10:$D$235,$HC18,INDICADORES!$E$10:$E$235,$HD18) -> 34472.38414 | IB18: =+SUMIFS(INDICADORES!FY$10:FY$235,INDICADORES!$D$10:$D$235,$HC18,INDICADORES!$E$10:$E$235,$HD18) -> 11492.39449 | IC18: =+SUMIFS(INDICADORES!FZ$10:FZ$235,INDICADORES!$D$10:$D$235,$HC18,INDICADORES!$E$10:$E$235,$HD18) -> 63559.02611
B19: 4 | C19: MCo 003 | D19: Materiales | E19: Construcción | F19: Hormigón | G19: m3 | H19: 0.1585644067 | I19: 0.12031578 | J19: 3.17079371e-05 | K19: 0.01810724463 | L19: 1.359599521 | M19: 415.6440297 | N19: 5.592755852e-06 | O19: 0.03032419602 | P19: 1.715141986e-05 | Q19: 10.18982993 | R19: 0.3486236712 | S19: 3.397567323e-06 | T19: 0.4918481984 | U19: 332.8857259 | V19: 0.003398992903 | W19: 0.3040889139 | X19: 10.39456998 | Y19: 703.4072254 | Z19: 153.8761082 | AA19: 0.02240568524 | AB19: 857.3057393 | AC19: 19.06857303 | AD19: 37.43363112 | AE19: 11.99630744 | AF19: 68.4985116 | AG19: M | AH19: 2.37 | AI19: N/A | AM19: =+(SUMIFS(ASPECTOS!$F$7:$F$477,ASPECTOS!$A$7:$A$477,INDICADORES!AM$8,ASPECTOS!$E$7:$E$477,INDICADORES!$F19)*$H19) -> 0 | AN19: =+(SUMIFS(ASPECTOS!$F$7:$F$477,ASPECTOS!$A$7:$A$477,INDICADORES!AN$8,ASPECTOS!$E$7:$E$477,INDICADORES!$F19)*$H19) -> 0 | AO19: =+(SUMIFS(ASPECTOS!$F$7:$F$477,ASPECTOS!$A$7:$A$477,INDICADORES!AO$8,ASPECTOS!$E$7:$E$477,INDICADORES!$F19)*$H19) -> 0 | AP19: =+(SUMIFS(ASPECTOS!$F$7:$F$477,ASPECTOS!$A$7:$A$477,INDICADORES!AP$8,ASPECTOS!$E$7:$E$477,INDICADORES!$F19)*$H19) -> 0 | AQ19: =+(SUMIFS(ASPECTOS!$F$7:$F$477,ASPECTOS!$A$7:$A$477,INDICADORES!AQ$8,ASPECTOS!$E$7:$E$477,INDICADORES!$F19)*$V19) -> 0 | AR19: =+(SUMIFS(ASPECTOS!$F$7:$F$477,ASPECTOS!$A$7:$A$477,INDICADORES!AR$8,ASPECTOS!$E$7:$E$477,INDICADORES!$F19)*$V19) -> 0 | AS19: =+(SUMIFS(ASPECTOS!$F$7:$F$477,ASPECTOS!$A$7:$A$477,INDICADORES!AS$8,ASPECTOS!$E$7:$E$477,INDICADORES!$F19)*$V19) -> 0 | AT19: =+(SUMIFS(ASPECTOS!$F$7:$F$477,ASPECTOS!$A$7:$A$477,INDICADORES!AT$8,ASPECTOS!$E$7:$E$477,INDICADORES!$F19)*$V19) -> 0 | AU19: =+(SUMIFS(ASPECTOS!$F$7:$F$477,ASPECTOS!$A$7:$A$477,INDICADORES!AU$8,ASPECTOS!$E$7:$E$477,INDICADORES!$F19)*$W19) -> 0 | AV19: =+(SUMIFS(ASPECTOS!$F$7:$F$477,ASPECTOS!$A$7:$A$477,INDICADORES!AV$8,ASPECTOS!$E$7:$E$477,INDICADORES!$F19)*$W19) -> 0 | AW19: =+(SUMIFS(ASPECTOS!$F$7:$F$477,ASPECTOS!$A$7:$A$477,INDICADORES!AW$8,ASPECTOS!$E$7:$E$477,INDICADORES!$F19)*$W19) -> 0 | AX19: =+(SUMIFS(ASPECTOS!$F$7:$F$477,ASPECTOS!$A$7:$A$477,INDICADORES!AX$8,ASPECTOS!$E$7:$E$477,INDICADORES!$F19)*$W19) -> 0 | AY19: =+(SUMIFS(ASPECTOS!$F$7:$F$477,ASPECTOS!$A$7:$A$477,INDICADORES!AY$8,ASPECTOS!$E$7:$E$477,INDICADORES!$F19)*$X19) -> 0 | AZ19: =+(SUMIFS(ASPECTOS!$F$7:$F$477,ASPECTOS!$A$7:$A$477,INDICADORES!AZ$8,ASPECTOS!$E$7:$E$477,INDICADORES!$F19)*$X19) -> 0 | BA19: =+(SUMIFS(ASPECTOS!$F$7:$F$477,ASPECTOS!$A$7:$A$477,INDICADORES!BA$8,ASPECTOS!$E$7:$E$477,INDICADORES!$F19)*$X19) -> 0 | BB19: =+(SUMIFS(ASPECTOS!$F$7:$F$477,ASPECTOS!$A$7:$A$477,INDICADORES!BB$8,ASPECTOS!$E$7:$E$477,INDICADORES!$F19)*$X19) -> 0 | BE19: =+(SUMIFS(ASPECTOS!$F$7:$F$477,ASPECTOS!$A$7:$A$477,INDICADORES!$BE$7,ASPECTOS!$E$7:$E$477,INDICADORES!$F19)*INDICADORES!H19) -> 0 | BF19: =+(SUMIFS(ASPECTOS!$F$7:$F$477,ASPECTOS!$A$7:$A$477,INDICADORES!$BE$7,ASPECTOS!$E$7:$E$477,INDICADORES!$F19)*INDICADORES!I19) -> 0 | BG19: =+(SUMIFS(ASPECTOS!$F$7:$F$477,ASPECTOS!$A$7:$A$477,INDICADORES!$BE$7,ASPECTOS!$E$7:$E$477,INDICADORES!$F19)*INDICADORES!J19) -> 0 | BH19: =+(SUMIFS(ASPECTOS!$F$7:$F$477,ASPECTOS!$A$7:$A$477,INDICADORES!$BE$7,ASPECTOS!$E$7:$E$477,INDICADORES!$F19)*INDICADORES!K19) -> 0 | BI19: =+(SUMIFS(ASPECTOS!$F$7:$F$477,ASPECTOS!$A$7:$A$477,INDICADORES!$BE$7,ASPECTOS!$E$7:$E$477,INDICADORES!$F19)*INDICADORES!L19) -> 0 | BJ19: =+(SUMIFS(ASPECTOS!$F$7:$F$477,ASPECTOS!$A$7:$A$477,INDICADORES!$BE$7,ASPECTOS!$E$7:$E$477,INDICADORES!$F19)*INDICADORES!M19) -> 0 | BK19: =+(SUMIFS(ASPECTOS!$F$7:$F$477,ASPECTOS!$A$7:$A$477,INDICADORES!$BE$7,ASPECTOS!$E$7:$E$477,INDICADORES!$F19)*INDICADORES!N19) -> 0 | BL19: =+(SUMIFS(ASPECTOS!$F$7:$F$477,ASPECTOS!$A$7:$A$477,INDICADORES!$BE$7,ASPECTOS!$E$7:$E$477,INDICADORES!$F19)*INDICADORES!O19) -> 0 | BM19: =+(SUMIFS(ASPECTOS!$F$7:$F$477,ASPECTOS!$A$7:$A$477,INDICADORES!$BE$7,ASPECTOS!$E$7:$E$477,INDICADORES!$F19)*INDICADORES!P19) -> 0 | BN19: =+(SUMIFS(ASPECTOS!$F$7:$F$477,ASPECTOS!$A$7:$A$477,INDICADORES!$BE$7,ASPECTOS!$E$7:$E$477,INDICADORES!$F19)*INDICADORES!Q19) -> 0 | BO19: =+(SUMIFS(ASPECTOS!$F$7:$F$477,ASPECTOS!$A$7:$A$477,INDICADORES!$BE$7,ASPECTOS!$E$7:$E$477,INDICADORES!$F19)*INDICADORES!R19) -> 0 | BP19: =+(SUMIFS(ASPECTOS!$F$7:$F$477,ASPECTOS!$A$7:$A$477,INDICADORES!$BE$7,ASPECTOS!$E$7:$E$477,INDICADORES!$F19)*INDICADORES!S19) -> 0 | BQ19: =+(SUMIFS(ASPECTOS!$F$7:$F$477,ASPECTOS!$A$7:$A$477,INDICADORES!$BE$7,ASPECTOS!$E$7:$E$477,INDICADORES!$F19)*INDICADORES!T19) -> 0 | BR19: =+(SUMIFS(ASPECTOS!$F$7:$F$477,ASPECTOS!$A$7:$A$477,INDICADORES!$BE$7,ASPECTOS!$E$7:$E$477,INDICADORES!$F19)*INDICADORES!U19) -> 0 | BS19: =+(SUMIFS(ASPECTOS!$F$7:$F$477,ASPECTOS!$A$7:$A$477,INDICADORES!$BE$7,ASPECTOS!$E$7:$E$477,INDICADORES!$F19)*INDICADORES!V19) -> 0 | BT19: =+(SUMIFS(ASPECTOS!$F$7:$F$477,ASPECTOS!$A$7:$A$477,INDICADORES!$BE$7,ASPECTOS!$E$7:$E$477,INDICADORES!$F19)*INDICADORES!W19) -> 0 | BU19: =+(SUMIFS(ASPECTOS!$F$7:$F$477,ASPECTOS!$A$7:$A$477,INDICADORES!$BE$7,ASPECTOS!$E$7:$E$477,INDICADORES!$F19)*INDICADORES!X19) -> 0 | BV19: =+(SUMIFS(ASPECTOS!$F$7:$F$477,ASPECTOS!$A$7:$A$477,INDICADORES!$BE$7,ASPECTOS!$E$7:$E$477,INDICADORES!$F19)*INDICADORES!Y19) -> 0 | BW19: =+(SUMIFS(ASPECTOS!$F$7:$F$477,ASPECTOS!$A$7:$A$477,INDICADORES!$BE$7,ASPECTOS!$E$7:$E$477,INDICADORES!$F19)*INDICADORES!Z19) -> 0 | BX19: =+(SUMIFS(ASPECTOS!$F$7:$F$477,ASPECTOS!$A$7:$A$477,INDICADORES!$BE$7,ASPECTOS!$E$7:$E$477,INDICADORES!$F19)*INDICADORES!AA19) -> 0 | BY19: =+(SUMIFS(ASPECTOS!$F$7:$F$477,ASPECTOS!$A$7:$A$477,INDICADORES!$BE$7,ASPECTOS!$E$7:$E$477,INDICADORES!$F19)*INDICADORES!AB19) -> 0 | BZ19: =+(SUMIFS(ASPECTOS!$F$7:$F$477,ASPECTOS!$A$7:$A$477,INDICADORES!$BE$7,ASPECTOS!$E$7:$E$477,INDICADORES!$F19)*INDICADORES!AC19) -> 0 | CA19: =+(SUMIFS(ASPECTOS!$F$7:$F$477,ASPECTOS!$A$7:$A$477,INDICADORES!$BE$7,ASPECTOS!$E$7:$E$477,INDICADORES!$F19)*INDICADORES!AD19) -> 0 | CB19: =+(SUMIFS(ASPECTOS!$F$7:$F$477,ASPECTOS!$A$7:$A$477,INDICADORES!$BE$7,ASPECTOS!$E$7:$E$477,INDICADORES!$F19)*INDICADORES!AE19) -> 0 | CC19: =+(SUMIFS(ASPECTOS!$F$7:$F$477,ASPECTOS!$A$7:$A$477,INDICADORES!$BE$7,ASPECTOS!$E$7:$E$477,INDICADORES!$F19)*INDICADORES!AF19) -> 0 | CD19: =+(SUMIFS(ASPECTOS!$F$7:$F$477,ASPECTOS!$A$7:$A$477,INDICADORES!$CD$7,ASPECTOS!$E$7:$E$477,INDICADORES!$F19)*INDICADORES!H19) -> 0 | CE19: =+(SUMIFS(ASPECTOS!$F$7:$F$477,ASPECTOS!$A$7:$A$477,INDICADORES!$CD$7,ASPECTOS!$E$7:$E$477,INDICADORES!$F19)*INDICADORES!I19) -> 0 | CF19: =+(SUMIFS(ASPECTOS!$F$7:$F$477,ASPECTOS!$A$7:$A$477,INDICADORES!$CD$7,ASPECTOS!$E$7:$E$477,INDICADORES!$F19)*INDICADORES!J19) -> 0 | CG19: =+(SUMIFS(ASPECTOS!$F$7:$F$477,ASPECTOS!$A$7:$A$477,INDICADORES!$CD$7,ASPECTOS!$E$7:$E$477,INDICADORES!$F19)*INDICADORES!K19) -> 0 | CH19: =+(SUMIFS(ASPECTOS!$F$7:$F$477,ASPECTOS!$A$7:$A$477,INDICADORES!$CD$7,ASPECTOS!$E$7:$E$477,INDICADORES!$F19)*INDICADORES!L19) -> 0 | CI19: =+(SUMIFS(ASPECTOS!$F$7:$F$477,ASPECTOS!$A$7:$A$477,INDICADORES!$CD$7,ASPECTOS!$E$7:$E$477,INDICADORES!$F19)*INDICADORES!M19) -> 0 | CJ19: =+(SUMIFS(ASPECTOS!$F$7:$F$477,ASPECTOS!$A$7:$A$477,INDICADORES!$CD$7,ASPECTOS!$E$7:$E$477,INDICADORES!$F19)*INDICADORES!N19) -> 0 | CK19: =+(SUMIFS(ASPECTOS!$F$7:$F$477,ASPECTOS!$A$7:$A$477,INDICADORES!$CD$7,ASPECTOS!$E$7:$E$477,INDICADORES!$F19)*INDICADORES!O19) -> 0 | CL19: =+(SUMIFS(ASPECTOS!$F$7:$F$477,ASPECTOS!$A$7:$A$477,INDICADORES!$CD$7,ASPECTOS!$E$7:$E$477,INDICADORES!$F19)*INDICADORES!P19) -> 0 | CM19: =+(SUMIFS(ASPECTOS!$F$7:$F$477,ASPECTOS!$A$7:$A$477,INDICADORES!$CD$7,ASPECTOS!$E$7:$E$477,INDICADORES!$F19)*INDICADORES!Q19) -> 0 | CN19: =+(SUMIFS(ASPECTOS!$F$7:$F$477,ASPECTOS!$A$7:$A$477,INDICADORES!$CD$7,ASPECTOS!$E$7:$E$477,INDICADORES!$F19)*INDICADORES!R19) -> 0 | CO19: =+(SUMIFS(ASPECTOS!$F$7:$F$477,ASPECTOS!$A$7:$A$477,INDICADORES!$CD$7,ASPECTOS!$E$7:$E$477,INDICADORES!$F19)*INDICADORES!S19) -> 0 | CP19: =+(SUMIFS(ASPECTOS!$F$7:$F$477,ASPECTOS!$A$7:$A$477,INDICADORES!$CD$7,ASPECTOS!$E$7:$E$477,INDICADORES!$F19)*INDICADORES!T19) -> 0 | CQ19: =+(SUMIFS(ASPECTOS!$F$7:$F$477,ASPECTOS!$A$7:$A$477,INDICADORES!$CD$7,ASPECTOS!$E$7:$E$477,INDICADORES!$F19)*INDICADORES!U19) -> 0 | CR19: =+(SUMIFS(ASPECTOS!$F$7:$F$477,ASPECTOS!$A$7:$A$477,INDICADORES!$CD$7,ASPECTOS!$E$7:$E$477,INDICADORES!$F19)*INDICADORES!V19) -> 0 | CS19: =+(SUMIFS(ASPECTOS!$F$7:$F$477,ASPECTOS!$A$7:$A$477,INDICADORES!$CD$7,ASPECTOS!$E$7:$E$477,INDICADORES!$F19)*INDICADORES!W19) -> 0 | CT19: =+(SUMIFS(ASPECTOS!$F$7:$F$477,ASPECTOS!$A$7:$A$477,INDICADORES!$CD$7,ASPECTOS!$E$7:$E$477,INDICADORES!$F19)*INDICADORES!X19) -> 0 | CU19: =+(SUMIFS(ASPECTOS!$F$7:$F$477,ASPECTOS!$A$7:$A$477,INDICADORES!$CD$7,ASPECTOS!$E$7:$E$477,INDICADORES!$F19)*INDICADORES!Y19) -> 0 | CV19: =+(SUMIFS(ASPECTOS!$F$7:$F$477,ASPECTOS!$A$7:$A$477,INDICADORES!$CD$7,ASPECTOS!$E$7:$E$477,INDICADORES!$F19)*INDICADORES!Z19) -> 0 | CW19: =+(SUMIFS(ASPECTOS!$F$7:$F$477,ASPECTOS!$A$7:$A$477,INDICADORES!$CD$7,ASPECTOS!$E$7:$E$477,INDICADORES!$F19)*INDICADORES!AA19) -> 0 | CX19: =+(SUMIFS(ASPECTOS!$F$7:$F$477,ASPECTOS!$A$7:$A$477,INDICADORES!$CD$7,ASPECTOS!$E$7:$E$477,INDICADORES!$F19)*INDICADORES!AB19) -> 0 | CY19: =+(SUMIFS(ASPECTOS!$F$7:$F$477,ASPECTOS!$A$7:$A$477,INDICADORES!$CD$7,ASPECTOS!$E$7:$E$477,INDICADORES!$F19)*INDICADORES!AC19) -> 0 | CZ19: =+(SUMIFS(ASPECTOS!$F$7:$F$477,ASPECTOS!$A$7:$A$477,INDICADORES!$CD$7,ASPECTOS!$E$7:$E$477,INDICADORES!$F19)*INDICADORES!AD19) -> 0 | DA19: =+(SUMIFS(ASPECTOS!$F$7:$F$477,ASPECTOS!$A$7:$A$477,INDICADORES!$CD$7,ASPECTOS!$E$7:$E$477,INDICADORES!$F19)*INDICADORES!AE19) -> 0 | DB19: =+(SUMIFS(ASPECTOS!$F$7:$F$477,ASPECTOS!$A$7:$A$477,INDICADORES!$CD$7,ASPECTOS!$E$7:$E$477,INDICADORES!$F19)*INDICADORES!AF19) -> 0 | DC19: =+(SUMIFS(ASPECTOS!$F$7:$F$477,ASPECTOS!$A$7:$A$477,INDICADORES!$DC$7,ASPECTOS!$E$7:$E$477,INDICADORES!$F19)*INDICADORES!H19) -> 0 | DD19: =+(SUMIFS(ASPECTOS!$F$7:$F$477,ASPECTOS!$A$7:$A$477,INDICADORES!$DC$7,ASPECTOS!$E$7:$E$477,INDICADORES!$F19)*INDICADORES!I19) -> 0 | DE19: =+(SUMIFS(ASPECTOS!$F$7:$F$477,ASPECTOS!$A$7:$A$477,INDICADORES!$DC$7,ASPECTOS!$E$7:$E$477,INDICADORES!$F19)*INDICADORES!J19) -> 0 | DF19: =+(SUMIFS(ASPECTOS!$F$7:$F$477,ASPECTOS!$A$7:$A$477,INDICADORES!$DC$7,ASPECTOS!$E$7:$E$477,INDICADORES!$F19)*INDICADORES!K19) -> 0 | DG19: =+(SUMIFS(ASPECTOS!$F$7:$F$477,ASPECTOS!$A$7:$A$477,INDICADORES!$DC$7,ASPECTOS!$E$7:$E$477,INDICADORES!$F19)*INDICADORES!L19) -> 0 | DH19: =+(SUMIFS(ASPECTOS!$F$7:$F$477,ASPECTOS!$A$7:$A$477,INDICADORES!$DC$7,ASPECTOS!$E$7:$E$477,INDICADORES!$F19)*INDICADORES!M19) -> 0 | DI19: =+(SUMIFS(ASPECTOS!$F$7:$F$477,ASPECTOS!$A$7:$A$477,INDICADORES!$DC$7,ASPECTOS!$E$7:$E$477,INDICADORES!$F19)*INDICADORES!N19) -> 0 | DJ19: =+(SUMIFS(ASPECTOS!$F$7:$F$477,ASPECTOS!$A$7:$A$477,INDICADORES!$DC$7,ASPECTOS!$E$7:$E$477,INDICADORES!$F19)*INDICADORES!O19) -> 0 | DK19: =+(SUMIFS(ASPECTOS!$F$7:$F$477,ASPECTOS!$A$7:$A$477,INDICADORES!$DC$7,ASPECTOS!$E$7:$E$477,INDICADORES!$F19)*INDICADORES!P19) -> 0 | DL19: =+(SUMIFS(ASPECTOS!$F$7:$F$477,ASPECTOS!$A$7:$A$477,INDICADORES!$DC$7,ASPECTOS!$E$7:$E$477,INDICADORES!$F19)*INDICADORES!Q19) -> 0 | DM19: =+(SUMIFS(ASPECTOS!$F$7:$F$477,ASPECTOS!$A$7:$A$477,INDICADORES!$DC$7,ASPECTOS!$E$7:$E$477,INDICADORES!$F19)*INDICADORES!R19) -> 0 | DN19: =+(SUMIFS(ASPECTOS!$F$7:$F$477,ASPECTOS!$A$7:$A$477,INDICADORES!$DC$7,ASPECTOS!$E$7:$E$477,INDICADORES!$F19)*INDICADORES!S19) -> 0 | DO19: =+(SUMIFS(ASPECTOS!$F$7:$F$477,ASPECTOS!$A$7:$A$477,INDICADORES!$DC$7,ASPECTOS!$E$7:$E$477,INDICADORES!$F19)*INDICADORES!T19) -> 0 | DP19: =+(SUMIFS(ASPECTOS!$F$7:$F$477,ASPECTOS!$A$7:$A$477,INDICADORES!$DC$7,ASPECTOS!$E$7:$E$477,INDICADORES!$F19)*INDICADORES!U19) -> 0 | DQ19: =+(SUMIFS(ASPECTOS!$F$7:$F$477,ASPECTOS!$A$7:$A$477,INDICADORES!$DC$7,ASPECTOS!$E$7:$E$477,INDICADORES!$F19)*INDICADORES!V19) -> 0 | DR19: =+(SUMIFS(ASPECTOS!$F$7:$F$477,ASPECTOS!$A$7:$A$477,INDICADORES!$DC$7,ASPECTOS!$E$7:$E$477,INDICADORES!$F19)*INDICADORES!W19) -> 0 | DS19: =+(SUMIFS(ASPECTOS!$F$7:$F$477,ASPECTOS!$A$7:$A$477,INDICADORES!$DC$7,ASPECTOS!$E$7:$E$477,INDICADORES!$F19)*INDICADORES!X19) -> 0 | DT19: =+(SUMIFS(ASPECTOS!$F$7:$F$477,ASPECTOS!$A$7:$A$477,INDICADORES!$DC$7,ASPECTOS!$E$7:$E$477,INDICADORES!$F19)*INDICADORES!Y19) -> 0 | DU19: =+(SUMIFS(ASPECTOS!$F$7:$F$477,ASPECTOS!$A$7:$A$477,INDICADORES!$DC$7,ASPECTOS!$E$7:$E$477,INDICADORES!$F19)*INDICADORES!Z19) -> 0 | DV19: =+(SUMIFS(ASPECTOS!$F$7:$F$477,ASPECTOS!$A$7:$A$477,INDICADORES!$DC$7,ASPECTOS!$E$7:$E$477,INDICADORES!$F19)*INDICADORES!AA19) -> 0 | DW19: =+(SUMIFS(ASPECTOS!$F$7:$F$477,ASPECTOS!$A$7:$A$477,INDICADORES!$DC$7,ASPECTOS!$E$7:$E$477,INDICADORES!$F19)*INDICADORES!AB19) -> 0 | DX19: =+(SUMIFS(ASPECTOS!$F$7:$F$477,ASPECTOS!$A$7:$A$477,INDICADORES!$DC$7,ASPECTOS!$E$7:$E$477,INDICADORES!$F19)*INDICADORES!AC19) -> 0 | DY19: =+(SUMIFS(ASPECTOS!$F$7:$F$477,ASPECTOS!$A$7:$A$477,INDICADORES!$DC$7,ASPECTOS!$E$7:$E$477,INDICADORES!$F19)*INDICADORES!AD19) -> 0 | DZ19: =+(SUMIFS(ASPECTOS!$F$7:$F$477,ASPECTOS!$A$7:$A$477,INDICADORES!$DC$7,ASPECTOS!$E$7:$E$477,INDICADORES!$F19)*INDICADORES!AE19) -> 0 | EA19: =+(SUMIFS(ASPECTOS!$F$7:$F$477,ASPECTOS!$A$7:$A$477,INDICADORES!$DC$7,ASPECTOS!$E$7:$E$477,INDICADORES!$F19)*INDICADORES!AF19) -> 0 | EB19: =+(SUMIFS(ASPECTOS!$F$7:$F$477,ASPECTOS!$A$7:$A$477,INDICADORES!$EB$7,ASPECTOS!$E$7:$E$477,INDICADORES!$F19)*H19) -> 0 | EC19: =+(SUMIFS(ASPECTOS!$F$7:$F$477,ASPECTOS!$A$7:$A$477,INDICADORES!$EB$7,ASPECTOS!$E$7:$E$477,INDICADORES!$F19)*I19) -> 0 | ED19: =+(SUMIFS(ASPECTOS!$F$7:$F$477,ASPECTOS!$A$7:$A$477,INDICADORES!$EB$7,ASPECTOS!$E$7:$E$477,INDICADORES!$F19)*J19) -> 0 | EE19: =+(SUMIFS(ASPECTOS!$F$7:$F$477,ASPECTOS!$A$7:$A$477,INDICADORES!$EB$7,ASPECTOS!$E$7:$E$477,INDICADORES!$F19)*K19) -> 0 | EF19: =+(SUMIFS(ASPECTOS!$F$7:$F$477,ASPECTOS!$A$7:$A$477,INDICADORES!$EB$7,ASPECTOS!$E$7:$E$477,INDICADORES!$F19)*L19) -> 0 | EG19: =+(SUMIFS(ASPECTOS!$F$7:$F$477,ASPECTOS!$A$7:$A$477,INDICADORES!$EB$7,ASPECTOS!$E$7:$E$477,INDICADORES!$F19)*M19) -> 0 | EH19: =+(SUMIFS(ASPECTOS!$F$7:$F$477,ASPECTOS!$A$7:$A$477,INDICADORES!$EB$7,ASPECTOS!$E$7:$E$477,INDICADORES!$F19)*N19) -> 0 | EI19: =+(SUMIFS(ASPECTOS!$F$7:$F$477,ASPECTOS!$A$7:$A$477,INDICADORES!$EB$7,ASPECTOS!$E$7:$E$477,INDICADORES!$F19)*O19) -> 0 | EJ19: =+(SUMIFS(ASPECTOS!$F$7:$F$477,ASPECTOS!$A$7:$A$477,INDICADORES!$EB$7,ASPECTOS!$E$7:$E$477,INDICADORES!$F19)*P19) -> 0 | EK19: =+(SUMIFS(ASPECTOS!$F$7:$F$477,ASPECTOS!$A$7:$A$477,INDICADORES!$EB$7,ASPECTOS!$E$7:$E$477,INDICADORES!$F19)*Q19) -> 0 | EL19: =+(SUMIFS(ASPECTOS!$F$7:$F$477,ASPECTOS!$A$7:$A$477,INDICADORES!$EB$7,ASPECTOS!$E$7:$E$477,INDICADORES!$F19)*R19) -> 0 | EM19: =+(SUMIFS(ASPECTOS!$F$7:$F$477,ASPECTOS!$A$7:$A$477,INDICADORES!$EB$7,ASPECTOS!$E$7:$E$477,INDICADORES!$F19)*S19) -> 0 | EN19: =+(SUMIFS(ASPECTOS!$F$7:$F$477,ASPECTOS!$A$7:$A$477,INDICADORES!$EB$7,ASPECTOS!$E$7:$E$477,INDICADORES!$F19)*T19) -> 0 | EO19: =+(SUMIFS(ASPECTOS!$F$7:$F$477,ASPECTOS!$A$7:$A$477,INDICADORES!$EB$7,ASPECTOS!$E$7:$E$477,INDICADORES!$F19)*U19) -> 0 | EP19: =+(SUMIFS(ASPECTOS!$F$7:$F$477,ASPECTOS!$A$7:$A$477,INDICADORES!$EB$7,ASPECTOS!$E$7:$E$477,INDICADORES!$F19)*V19) -> 0 | EQ19: =+(SUMIFS(ASPECTOS!$F$7:$F$477,ASPECTOS!$A$7:$A$477,INDICADORES!$EB$7,ASPECTOS!$E$7:$E$477,INDICADORES!$F19)*W19) -> 0 | ER19: =+(SUMIFS(ASPECTOS!$F$7:$F$477,ASPECTOS!$A$7:$A$477,INDICADORES!$EB$7,ASPECTOS!$E$7:$E$477,INDICADORES!$F19)*X19) -> 0 | ES19: =+(SUMIFS(ASPECTOS!$F$7:$F$477,ASPECTOS!$A$7:$A$477,INDICADORES!$EB$7,ASPECTOS!$E$7:$E$477,INDICADORES!$F19)*Y19) -> 0 | ET19: =+(SUMIFS(ASPECTOS!$F$7:$F$477,ASPECTOS!$A$7:$A$477,INDICADORES!$EB$7,ASPECTOS!$E$7:$E$477,INDICADORES!$F19)*Z19) -> 0 | EU19: =+(SUMIFS(ASPECTOS!$F$7:$F$477,ASPECTOS!$A$7:$A$477,INDICADORES!$EB$7,ASPECTOS!$E$7:$E$477,INDICADORES!$F19)*AA19) -> 0 | EV19: =+(SUMIFS(ASPECTOS!$F$7:$F$477,ASPECTOS!$A$7:$A$477,INDICADORES!$EB$7,ASPECTOS!$E$7:$E$477,INDICADORES!$F19)*AB19) -> 0 | EW19: =+(SUMIFS(ASPECTOS!$F$7:$F$477,ASPECTOS!$A$7:$A$477,INDICADORES!$EB$7,ASPECTOS!$E$7:$E$477,INDICADORES!$F19)*AC19) -> 0 | EX19: =+(SUMIFS(ASPECTOS!$F$7:$F$477,ASPECTOS!$A$7:$A$477,INDICADORES!$EB$7,ASPECTOS!$E$7:$E$477,INDICADORES!$F19)*AD19) -> 0 | EY19: =+(SUMIFS(ASPECTOS!$F$7:$F$477,ASPECTOS!$A$7:$A$477,INDICADORES!$EB$7,ASPECTOS!$E$7:$E$477,INDICADORES!$F19)*AE19) -> 0 | EZ19: =+(SUMIFS(ASPECTOS!$F$7:$F$477,ASPECTOS!$A$7:$A$477,INDICADORES!$EB$7,ASPECTOS!$E$7:$E$477,INDICADORES!$F19)*AF19) -> 0 | FB19: 0 | FC19: 0 | FD19: 0 | FE19: 0 | FF19: 0 | FG19: 0 | FH19: 0 | FI19: 0 | FJ19: 0 | FK19: 0 | FL19: 0 | FM19: 0 | FN19: 0 | FO19: 0 | FP19: 0 | FQ19: 0 | FR19: 0 | FS19: 0 | FT19: 0 | FU19: 0 | FV19: 0 | FW19: 0 | FX19: 0 | FY19: 0 | FZ19: 0 | HC19: Materiales | HD19: Textil | HE19: =+SUMIFS(INDICADORES!FB$10:FB$235,INDICADORES!$D$10:$D$235,$HC19,INDICADORES!$E$10:$E$235,$HD19) -> 0 | HF19: =+SUMIFS(INDICADORES!FC$10:FC$235,INDICADORES!$D$10:$D$235,$HC19,INDICADORES!$E$10:$E$235,$HD19) -> 0 | HG19: =+SUMIFS(INDICADORES!FD$10:FD$235,INDICADORES!$D$10:$D$235,$HC19,INDICADORES!$E$10:$E$235,$HD19) -> 0 | HH19: =+SUMIFS(INDICADORES!FE$10:FE$235,INDICADORES!$D$10:$D$235,$HC19,INDICADORES!$E$10:$E$235,$HD19) -> 0 | HI19: =+SUMIFS(INDICADORES!FF$10:FF$235,INDICADORES!$D$10:$D$235,$HC19,INDICADORES!$E$10:$E$235,$HD19) -> 0 | HJ19: =+SUMIFS(INDICADORES!FG$10:FG$235,INDICADORES!$D$10:$D$235,$HC19,INDICADORES!$E$10:$E$235,$HD19) -> 0 | HK19: =+SUMIFS(INDICADORES!FH$10:FH$235,INDICADORES!$D$10:$D$235,$HC19,INDICADORES!$E$10:$E$235,$HD19) -> 0 | HL19: =+SUMIFS(INDICADORES!FI$10:FI$235,INDICADORES!$D$10:$D$235,$HC19,INDICADORES!$E$10:$E$235,$HD19) -> 0 | HM19: =+SUMIFS(INDICADORES!FJ$10:FJ$235,INDICADORES!$D$10:$D$235,$HC19,INDICADORES!$E$10:$E$235,$HD19) -> 0 | HN19: =+SUMIFS(INDICADORES!FK$10:FK$235,INDICADORES!$D$10:$D$235,$HC19,INDICADORES!$E$10:$E$235,$HD19) -> 0 | HO19: =+SUMIFS(INDICADORES!FL$10:FL$235,INDICADORES!$D$10:$D$235,$HC19,INDICADORES!$E$10:$E$235,$HD19) -> 0 | HP19: =+SUMIFS(INDICADORES!FM$10:FM$235,INDICADORES!$D$10:$D$235,$HC19,INDICADORES!$E$10:$E$235,$HD19) -> 0 | HQ19: =+SUMIFS(INDICADORES!FN$10:FN$235,INDICADORES!$D$10:$D$235,$HC19,INDICADORES!$E$10:$E$235,$HD19) -> 0 | HR19: =+SUMIFS(INDICADORES!FO$10:FO$235,INDICADORES!$D$10:$D$235,$HC19,INDICADORES!$E$10:$E$235,$HD19) -> 0 | HS19: =+SUMIFS(INDICADORES!FP$10:FP$235,INDICADORES!$D$10:$D$235,$HC19,INDICADORES!$E$10:$E$235,$HD19) -> 0 | HT19: =+SUMIFS(INDICADORES!FQ$10:FQ$235,INDICADORES!$D$10:$D$235,$HC19,INDICADORES!$E$10:$E$235,$HD19) -> 0 | HU19: =+SUMIFS(INDICADORES!FR$10:FR$235,INDICADORES!$D$10:$D$235,$HC19,INDICADORES!$E$10:$E$235,$HD19) -> 0 | HV19: =+SUMIFS(INDICADORES!FS$10:FS$235,INDICADORES!$D$10:$D$235,$HC19,INDICADORES!$E$10:$E$235,$HD19) -> 0 | HW19: =+SUMIFS(INDICADORES!FT$10:FT$235,INDICADORES!$D$10:$D$235,$HC19,INDICADORES!$E$10:$E$235,$HD19) -> 0 | HX19: =+SUMIFS(INDICADORES!FU$10:FU$235,INDICADORES!$D$10:$D$235,$HC19,INDICADORES!$E$10:$E$235,$HD19) -> 0 | HY19: =+SUMIFS(INDICADORES!FV$10:FV$235,INDICADORES!$D$10:$D$235,$HC19,INDICADORES!$E$10:$E$235,$HD19) -> 0 | HZ19: =+SUMIFS(INDICADORES!FW$10:FW$235,INDICADORES!$D$10:$D$235,$HC19,INDICADORES!$E$10:$E$235,$HD19) -> 0 | IA19: =+SUMIFS(INDICADORES!FX$10:FX$235,INDICADORES!$D$10:$D$235,$HC19,INDICADORES!$E$10:$E$235,$HD19) -> 0 | IB19: =+SUMIFS(INDICADORES!FY$10:FY$235,INDICADORES!$D$10:$D$235,$HC19,INDICADORES!$E$10:$E$235,$HD19) -> 0 | IC19: =+SUMIFS(INDICADORES!FZ$10:FZ$235,INDICADORES!$D$10:$D$235,$HC19,INDICADORES!$E$10:$E$235,$HD19) -> 0
